Workbook

Sheet Table of Contents
C1: SHIFT,CNTL,Q to Hide Comments, SHIFT, CNTL N to Show Comments
C3: Sheet Tab | D3: Description | E3: Author
B4: 1 | C4: Table of Contents
B5: 2 | C5: Summary Transaction
B6: 3 | C6: Scenario
B7: 4 | C7: Corporate Model
B8: 5 | C8: Tornado Diagram
B9: 6 | C9: Transaction Assumption
B10: 7 | C10: Acquisition Model
B11: 8 | C11: Long-term Analysis
B12: 9 | C12: Synergy & Premium
B13: 10 | C13: Accretion & Dilution
B14: 11 | C14: Simple Accretion Graph
B15: 12 | C15: Admin Cost Analysis
B16: 13 | C16: IRR
B18: File Name: | D18: C:\Users\numfon\Desktop\M&A Course\M&A Class_Day_4.xlsm
B20: Colour Codes
B22: Last Save Date | D22: 2014-01-27T08:26:33
B23: Last Save By | D23: numfon
B25: http://edbodmer.wikispaces.com/
B26: edwardbodmer@gmail.com

Sheet Summary Transaction
A2: Cosideration
B3: Total | C3: ='Transaction Assumption'!$E$7 -> 2380
B4: P/E Ratio | C4: ='Transaction Assumption'!$E$11 -> 13.75536506 | E4: Uses of Funds
B5: EV/EBITDA | C5: ='Transaction Assumption'!$E$20 -> 9.569420499 | E5: Consideration for Equity | G5: ='Transaction Assumption'!E58 -> 2380 | I5: Sorces of Funds
E6: Banking Fee | G6: ='Transaction Assumption'!E59 -> 12 | I6: New Debt Issues | K6: ='Transaction Assumption'!E64 -> 800
B7: Synergy | C7: ='Transaction Assumption'!$E$24 -> 95 | E7: Advisory Fee | G7: ='Transaction Assumption'!E60 -> 23.8 | I7: Equity | K7: ='Transaction Assumption'!E65 -> 1815.8
E8: Debt Retired | G8: ='Transaction Assumption'!E61 -> 200 | I8: Total | K8: ='Transaction Assumption'!E66 -> 2615.8
A9: Fundamental Analysis | E9: Total | G9: ='Transaction Assumption'!E62 -> 2615.8
B10: WACC | C10: ='Corporate Model'!F273 -> 0.11
B11: Growth | C11: ='Corporate Model'!F274 -> 0.03 | Z11: Transpose for Waterfall Graph
E12: Enterprise Value | F12: Equity Value | G12: PV Synergies | H12: Transaction Cost | I12: Transaction Value | Z12: =TRANSPOSE(F12:I13) -> Equity Value | AA12: 2090.440124
B13: DCF Valuation with growth rate | E13: ='Corporate Model'!F290 -> 2400.440124 | F13: =E13-'Corporate Model'!$F$316 -> 2090.440124 | G13: =10*C7 -> 950 | H13: =-('Transaction Assumption'!E60+'Transaction Assumption'!E59) -> -35.8 | I13: =F13+G13-H13 -> 3076.240124 | Z13: PV Synergies | AA13: 950
B14: DCF Valuation with multiple | E14: ='Corporate Model'!F310 -> 2708.808119 | F14: =E14-'Corporate Model'!$F$316 -> 2398.808119 | G14: =G13 -> 950 | H14: =H13 -> -35.8 | I14: =F14+G14-H14 -> 3384.608119 | Z14: Transaction Cost | AA14: -35.8
Z15: Transaction Value | AA15: 3076.240124
A16: Accretion and Dilution Analysis | E16: ='Acquisition Model'!H2 -> 2015 | F16: ='Acquisition Model'!I2 -> 2016 | G16: ='Acquisition Model'!J2 -> 2017 | H16: ='Acquisition Model'!K2 -> 2018 | I16: ='Acquisition Model'!L2 -> 2019 | J16: ='Acquisition Model'!M2 -> 2020
B17: Acquiring Company (TOP) | E17: ='Acquisition Model'!H116 -> 5.377205882 | F17: ='Acquisition Model'!I116 -> 5.538522059 | G17: ='Acquisition Model'!J116 -> 5.704677721 | H17: ='Acquisition Model'!K116 -> 5.875818052 | I17: ='Acquisition Model'!L116 -> 6.052092594 | J17: ='Acquisition Model'!M116 -> 6.1
B18: Consolidated | E18: ='Acquisition Model'!H127 -> 5.332337728 | F18: ='Acquisition Model'!I127 -> 5.715766251 | G18: ='Acquisition Model'!J127 -> 6.101507666 | H18: ='Acquisition Model'!K127 -> 6.619144165 | I18: ='Acquisition Model'!L127 -> 6.934141016 | J18: ='Acquisition Model'!M127 -> 7.119553304 | Z18: =Z12 -> Equity Value | AA18: =AA12 -> 2090.440124
B19: Accretion/Dilution | E19: =E18-E17 -> -0.044868154 | F19: 0.1772441919 | G19: 0.3968299453 | H19: 0.7433261125 | I19: 0.8820484219 | J19: 1.019553304 | Z19: =Z13 -> PV Synergies | AA19: 950
Z20: Transaction Cost | AA20: -35.8
A21: Rate of Retun on Acquistion | Z21: Transaction Value | AA21: 0
B22: Equity IRR | D22: ='Acquisition Model'!G113 -> 0.1876943767 | F22: Terminal EV/EBITDA | H22: ='Transaction Assumption'!E39 -> 9
B23: Unlevered IRR | D23: ='Acquisition Model'!H63 -> 0.1799836814 | F23: Holding Period | H23: ='Transaction Assumption'!E37 -> 6

Sheet Scenario
A1: Part 1: Page 25, 37 | E1: Scenario Code No. | G1: 1 | O1: SHIFT,CNTL,Q to Hide Comments, SHIFT, CNTL N to Show Comments
E2: WACC | F2: 0.08
J5: One-Way Data Table
E6: Sale Growth | F6: COGS Percent | G6: Admin | H6: CAPEX | I6: Working Capital | K6: DCF Value Growth | L6: DCF Value Multiple Case | M6: EV/EBITDA Growth Case | N6: EV/EBITDA Multiple Case
K7: ='Corporate Model'!F290 -> 2400.440124 | L7: ='Corporate Model'!F310 -> 2708.808119 | M7: ='Corporate Model'!F297 -> 8.906235184 | N7: ='Corporate Model'!F311 -> 10.05035782
D8: Base Case | E8: 0.06 | F8: 1 | G8: 1 | H8: 1 | I8: 0.35 | J8: 1 | K8: 2400.440124 | L8: 2708.808119 | M8: 8.906235184 | N8: 10.05035782
D9: Low Case | E9: 0.02 | F9: 2 | G9: 2 | H9: 2 | I9: 0.45 | J9: 2 | K9: 1491.757254 | L9: 1759.995761 | M9: 6.648877821 | N9: 7.844437654
D10: High Case | E10: 0.1 | F10: 3 | G10: 3 | H10: 3 | I10: 0.25 | J10: 3 | K10: 3861.481706 | L10: 4148.450632 | M10: 12.21552993 | N10: 13.12333626
D11: =TRANSPOSE(E6:I6) & " LOW " -> Sale Growth LOW | E11: =E9 -> 0.02 | F11: =F$8 -> 1 | G11: 1 | H11: 1 | I11: 0.35 | J11: 4 | K11: 1897.303237 | L11: 2127.329106 | M11: 7.602412257 | N11: 8.524115993
D12: COGS Percent LOW | E12: =E$8 -> 0.06 | F12: =F9 -> 2 | G12: 1 | H12: 1 | I12: 0.35 | J12: 5 | K12: 2136.538867 | L12: 2459.583842 | M12: 8.608995972 | N12: 9.910677367
D13: Admin LOW | E13: =E$8 -> 0.06 | F13: 1 | G13: =G9 -> 2 | H13: 1 | I13: 0.35 | J13: 6 | K13: 2275.325516 | L13: 2589.072111 | M13: 8.63000899 | N13: 9.820008361
D14: CAPEX LOW | E14: =E$8 -> 0.06 | F14: 1 | G14: 1 | H14: =H9 -> 2 | I14: 0.35 | J14: 7 | K14: 2291.205816 | L14: 2617.525011 | M14: 8.500948492 | N14: 9.711674586
D15: Working Capital LOW | E15: =E$8 -> 0.06 | F15: 1 | G15: 1 | H15: 1 | I15: =I9 -> 0.45 | J15: 8 | K15: 2336.666517 | L15: 2684.232325 | M15: 8.669619102 | N15: 9.95917546
D16: =TRANSPOSE(E6:I6) & " "&D10 -> Sale Growth High Case | E16: =E10 -> 0.1 | F16: =F$8 -> 1 | G16: 1 | H16: 1 | I16: 0.35 | J16: 9 | K16: 3015.066429 | L16: 3450.056941 | M16: 10.3878705 | N16: 11.88655228
D17: COGS Percent High Case | E17: =E$8 -> 0.06 | F17: =F10 -> 3 | G17: 1 | H17: 1 | I17: 0.35 | J17: 10 | K17: 2664.341381 | L17: 2958.032396 | M17: 9.159842952 | N17: 10.16953473
D18: Admin High Case | E18: =E$8 -> 0.06 | F18: 1 | G18: =G10 -> 3 | H18: 1 | I18: 0.35 | J18: 11 | K18: 2519.25312 | L18: 2822.242515 | M18: 9.255423356 | N18: 10.3685688
D19: CAPEX High Case | E19: =E$8 -> 0.06 | F19: 1 | G19: 1 | H19: =H10 -> 3 | I19: 0.35 | J19: 12 | K19: 2582.497304 | L19: 2860.946633 | M19: 9.581713004 | N19: 10.61482989
D20: Working Capital High Case | E20: =E$8 -> 0.06 | F20: 1 | G20: 1 | H20: 1 | I20: =I10 -> 0.25 | J20: 13 | K20: 2464.21373 | L20: 2733.383914 | M20: 9.142851266 | N20: 10.14154019
D22: =INDEX(D8:D20,$G$1) -> Base Case | E22: 0.06 | F22: 1 | G22: 1 | H22: 1 | I22: 0.35
E24: Low vs Base | F24: High vs Base
D25: =TRANSPOSE(E6:I6) -> Sale Growth | E25: =K11-K$8 -> -503.1368868 | F25: =K16-K$8 -> 614.6263048
D26: COGS Percent | E26: =K12-K$8 -> -263.9012572 | F26: =K17-K$8 -> 263.9012572
D27: Admin | E27: =K13-K$8 -> -125.1146075 | F27: =K18-K$8 -> 118.8129956
D28: CAPEX | E28: =K14-K$8 -> -109.234308 | F28: =K19-K$8 -> 182.0571801
D29: Working Capital | E29: =K15-K$8 -> -63.77360647 | F29: =K20-K$8 -> 63.77360647

Sheet Corporate Model
A1: > Standalone model for target company to derive DCF
A2: Book Part1, P.9/P.25
A4: Timeline | F4: special column
I5: 2007 | J5: =I5+1 -> 2008 | K5: =J5+1 -> 2009 | L5: 2010 | M5: 2011 | N5: 2012 | O5: 2013 | P5: 2014 | Q5: 2015 | R5: 2016 | S5: 2017 | T5: 2018 | U5: 2019 | V5: 2020 | W5: 2021 | X5: 2022 | Y5: 2023 | Z5: 2024 | AA5: 2025
B6: Historical Switch | F6: 2013 | I6: =I5<=$F$6 -> TRUE | J6: =J5<=$F$6 -> TRUE | K6: TRUE | L6: TRUE | M6: TRUE | N6: TRUE | O6: TRUE | P6: FALSE | Q6: FALSE | R6: FALSE | S6: FALSE | T6: FALSE | U6: FALSE | V6: FALSE | W6: FALSE | X6: FALSE | Y6: FALSE | Z6: FALSE | AA6: FALSE
B7: Valuation Period | F7: 2015 | G7: 2021 | I7: =AND(I5>=$F$7,I5<=$G$7) -> FALSE | J7: =AND(J5>=$F$7,J5<=$G$7) -> FALSE | K7: FALSE | L7: FALSE | M7: FALSE | N7: FALSE | O7: FALSE | P7: FALSE | Q7: TRUE | R7: TRUE | S7: TRUE | T7: TRUE | U7: TRUE | V7: TRUE | W7: TRUE | X7: FALSE | Y7: FALSE | Z7: FALSE | AA7: FALSE
B8: Terminal Period | F8: =G7 -> 2021 | I8: =I5=$F$8 -> FALSE | J8: =J5=$F$8 -> FALSE | K8: FALSE | L8: FALSE | M8: FALSE | N8: FALSE | O8: FALSE | P8: FALSE | Q8: FALSE | R8: FALSE | S8: FALSE | T8: FALSE | U8: FALSE | V8: FALSE | W8: TRUE | X8: FALSE | Y8: FALSE | Z8: FALSE | AA8: FALSE
A10: Historical Financial Statements
B11: Balance Sheets
C12: Assets
D13: Cash | I13: 100 | J13: 120 | K13: 30 | L13: 60 | M13: 80 | N13: 110 | O13: 130
D14: Inventories | I14: 200 | J14: 210 | K14: 300 | L14: 250 | M14: 260 | N14: 270 | O14: 280
D15: Gross Plant Investment | I15: 1000 | J15: 1300 | K15: 1310 | L15: 1350 | M15: 1500 | N15: 1750 | O15: 1900
D16: Accumulated Depreciation | I16: -350 | J16: -390 | K16: -410 | L16: -450 | M16: -520 | N16: -630 | O16: -710
D17: Net PPE | I17: =SUM(I15:I16) -> 650 | J17: 910 | K17: 900 | L17: 900 | M17: 980 | N17: 1120 | O17: 1190
D18: Investment Property | I18: 70 | J18: 70 | K18: 70 | L18: 70 | M18: 70 | N18: 70 | O18: 70
D19: Total Assets | I19: =I13+I14+I17+I18 -> 1020 | J19: =J13+J14+J17+J18 -> 1310 | K19: 1300 | L19: 1280 | M19: 1390 | N19: 1570 | O19: 1670
C21: Liabilities and Equity
D22: Debt | I22: 400 | J22: 500 | K22: 600 | L22: 550 | M22: 450 | N22: 500 | O22: 510
D23: Equity | I23: =I19-I22 -> 620 | J23: =J19-J22 -> 810 | K23: 700 | L23: 730 | M23: 940 | N23: 1070 | O23: 1160
D24: Total Liabilities & Equity | I24: =SUM(I22:I23) -> 1020 | J24: 1310 | K24: 1300 | L24: 1280 | M24: 1390 | N24: 1570 | O24: 1670
D26: Test | H26: =AND(I26:O26) -> TRUE | I26: =I19=I24 -> TRUE | J26: =J19=J24 -> TRUE | K26: TRUE | L26: TRUE | M26: TRUE | N26: TRUE | O26: TRUE
B28: Income Statement
C29: Revenues | I29: 800 | J29: 850 | K29: 760 | L29: 800 | M29: 880 | N29: 920 | O29: 950
C30: Cost of Goods Sold | I30: 600 | J30: 670 | K30: 590 | L30: 620 | M30: 650 | N30: 700 | O30: 720
C31: Margin | I31: =I29-I30 -> 200 | J31: =J29-J30 -> 180 | K31: 170 | L31: 180 | M31: 230 | N31: 220 | O31: 230
C32: Administrative Cost | I32: 30 | J32: 35 | K32: 28 | L32: 34 | M32: 39 | N32: 42 | O32: 50
C33: Operating Income (EBIT) | I33: =I31-I32 -> 170 | J33: =J31-J32 -> 145 | K33: 142 | L33: 146 | M33: 191 | N33: 178 | O33: 180
C34: Other Income | I34: 15 | J34: 15 | K34: 15 | L34: 15 | M34: 15 | N34: 15 | O34: 15
C35: Interest Income | I35: 2 | J35: 1 | K35: 3 | L35: 4 | M35: 3 | N35: 2 | O35: 2
C36: Interest Expense | I36: 24 | J36: 28 | K36: 27 | L36: 23 | M36: 22 | N36: 25 | O36: 30
C37: Pre-tax Income | I37: =I33+I34+I35-I36 -> 163 | J37: =J33+J34+J35-J36 -> 133 | K37: 133 | L37: 142 | M37: 187 | N37: 170 | O37: 167
C38: Taxes | I38: 32 | J38: 25 | K38: 24 | L38: 29 | M38: 39 | N38: 33 | O38: 30
C39: Net Income | I39: =I37-I38 -> 131 | J39: =J37-J38 -> 108 | K39: 109 | L39: 113 | M39: 148 | N39: 137 | O39: 137
B41: Cash Flow Items
C42: Depreciation Expense | I42: 30 | J42: 32 | K42: 35 | L42: 38 | M42: 42 | N42: 46 | O42: 50
C43: Amortization Expense
C44: Impairment of Assets
C45: Currency Translation
C46: Capital Expenditures | I46: 60 | J46: 62 | K46: 20 | L46: 35 | M46: 80 | N46: 60 | O46: 70
C47: Dividends | I47: 25 | J47: 14 | K47: 15 | L47: 15 | M47: 17 | N47: 20 | O47: 30
A50: Assumptions
B51: Revenue
C52: Historical Growth | J52: =IF(J6,J29/I29-1) -> 0.0625 | K52: =IF(K6,K29/J29-1) -> -0.1058823529 | L52: 0.05263157895 | M52: 0.1 | N52: 0.04545454545 | O52: 0.03260869565 | P52: FALSE | Q52: FALSE | R52: FALSE | S52: FALSE | T52: FALSE | U52: FALSE | V52: FALSE | W52: FALSE | X52: FALSE | Y52: FALSE | Z52: FALSE | AA52: FALSE | AB52: FALSE | AC52: FALSE | AD52: FALSE | AE52: FALSE | AF52: FALSE | AG52: FALSE | AH52: FALSE | AI52: FALSE | AJ52: FALSE | AK52: FALSE | AL52: FALSE | AM52: FALSE | AN52: FALSE | AO52: FALSE | AP52: FALSE | AQ52: FALSE | AR52: FALSE | AS52: FALSE | AT52: FALSE | AU52: FALSE | AV52: FALSE | AW52: FALSE | AX52: FALSE | AY52: FALSE | AZ52: FALSE | BA52: FALSE | BB52: FALSE | BC52: FALSE | BD52: FALSE | BE52: FALSE | BF52: FALSE | BG52: FALSE | BH52: FALSE | BI52: FALSE | BJ52: FALSE | BK52: FALSE | BL52: FALSE | BM52: FALSE | BN52: FALSE | BO52: FALSE | BP52: FALSE | BQ52: FALSE | BR52: FALSE | BS52: FALSE | BT52: FALSE | BU52: FALSE | BV52: FALSE | BW52: =IF(BW6,BW29/BV29-1) -> FALSE | BX52: FALSE | BY52: FALSE | BZ52: FALSE | CA52: FALSE | CB52: FALSE | CC52: FALSE | CD52: FALSE | CE52: FALSE | CF52: FALSE | CG52: FALSE | CH52: FALSE | CI52: FALSE | CJ52: FALSE | CK52: FALSE | CL52: FALSE | CM52: FALSE | CN52: FALSE | CO52: FALSE | CP52: FALSE | CQ52: FALSE | CR52: FALSE | CS52: FALSE | CT52: FALSE | CU52: FALSE | CV52: FALSE | CW52: FALSE | CX52: FALSE | CY52: FALSE | CZ52: FALSE | DA52: FALSE | DB52: FALSE | DC52: FALSE | DD52: FALSE | DE52: FALSE | DF52: FALSE | DG52: FALSE | DH52: FALSE | DI52: FALSE | DJ52: FALSE | DK52: FALSE | DL52: FALSE | DM52: FALSE | DN52: FALSE | DO52: FALSE | DP52: FALSE | DQ52: FALSE | DR52: FALSE | DS52: FALSE | DT52: FALSE | DU52: FALSE | DV52: FALSE | DW52: FALSE | DX52: FALSE | DY52: FALSE | DZ52: FALSE | EA52: FALSE | EB52: FALSE | EC52: FALSE | ED52: FALSE | EE52: FALSE | EF52: FALSE | EG52: FALSE | EH52: FALSE | EI52: =IF(EI6,EI29/EH29-1) -> FALSE | EJ52: FALSE | EK52: FALSE | EL52: FALSE | EM52: FALSE | EN52: FALSE | EO52: FALSE | EP52: FALSE | EQ52: FALSE | ER52: FALSE | ES52: FALSE | ET52: FALSE | EU52: FALSE | EV52: FALSE | EW52: FALSE | EX52: FALSE | EY52: FALSE | EZ52: FALSE | FA52: FALSE | FB52: FALSE | FC52: FALSE | FD52: FALSE | FE52: FALSE | FF52: FALSE | FG52: FALSE | FH52: FALSE | FI52: FALSE | FJ52: FALSE | FK52: FALSE | FL52: FALSE | FM52: FALSE | FN52: FALSE | FO52: FALSE | FP52: FALSE | FQ52: FALSE | FR52: FALSE | FS52: FALSE | FT52: FALSE | FU52: FALSE | FV52: FALSE | FW52: FALSE | FX52: FALSE | FY52: FALSE | FZ52: FALSE | GA52: FALSE | GB52: FALSE | GC52: FALSE | GD52: FALSE | GE52: FALSE | GF52: FALSE | GG52: FALSE | GH52: FALSE | GI52: FALSE | GJ52: FALSE | GK52: FALSE | GL52: FALSE | GM52: FALSE | GN52: FALSE | GO52: FALSE | GP52: FALSE | GQ52: FALSE | GR52: FALSE | GS52: FALSE | GT52: FALSE | GU52: =IF(GU6,GU29/GT29-1) -> FALSE | GV52: FALSE | GW52: FALSE | GX52: FALSE | GY52: FALSE | GZ52: FALSE | HA52: FALSE | HB52: FALSE | HC52: FALSE | HD52: FALSE | HE52: FALSE | HF52: FALSE | HG52: FALSE | HH52: FALSE | HI52: FALSE | HJ52: FALSE | HK52: FALSE | HL52: FALSE | HM52: FALSE | HN52: FALSE | HO52: FALSE | HP52: FALSE | HQ52: FALSE | HR52: FALSE | HS52: FALSE | HT52: FALSE | HU52: FALSE | HV52: FALSE | HW52: FALSE | HX52: FALSE | HY52: FALSE | HZ52: FALSE | IA52: FALSE | IB52: FALSE | IC52: FALSE | ID52: FALSE | IE52: FALSE | IF52: FALSE | IG52: FALSE | IH52: FALSE | II52: FALSE | IJ52: FALSE | IK52: FALSE | IL52: FALSE | IM52: FALSE | IN52: FALSE | IO52: FALSE | IP52: FALSE | IQ52: FALSE | IR52: FALSE | IS52: FALSE | IT52: FALSE | IU52: FALSE | IV52: FALSE | IW52: FALSE | IX52: FALSE | IY52: FALSE | IZ52: FALSE | JA52: FALSE | JB52: FALSE | JC52: FALSE | JD52: FALSE | JE52: FALSE | JF52: FALSE | JG52: =IF(JG6,JG29/JF29-1) -> FALSE | JH52: FALSE | JI52: FALSE | JJ52: FALSE | JK52: FALSE | JL52: FALSE | JM52: FALSE | JN52: FALSE | JO52: FALSE | JP52: FALSE | JQ52: FALSE | JR52: FALSE | JS52: FALSE | JT52: FALSE | JU52: FALSE | JV52: FALSE | JW52: FALSE | JX52: FALSE | JY52: FALSE | JZ52: FALSE | KA52: FALSE | KB52: FALSE | KC52: FALSE | KD52: FALSE | KE52: FALSE | KF52: FALSE | KG52: FALSE | KH52: FALSE | KI52: FALSE | KJ52: FALSE | KK52: FALSE | KL52: FALSE | KM52: FALSE | KN52: FALSE | KO52: FALSE | KP52: FALSE | KQ52: FALSE | KR52: FALSE | KS52: FALSE | KT52: FALSE | KU52: FALSE | KV52: FALSE | KW52: FALSE | KX52: FALSE | KY52: FALSE | KZ52: FALSE | LA52: FALSE | LB52: FALSE | LC52: FALSE | LD52: FALSE | LE52: FALSE | LF52: FALSE | LG52: FALSE | LH52: FALSE | LI52: FALSE | LJ52: FALSE | LK52: FALSE | LL52: FALSE | LM52: FALSE | LN52: FALSE | LO52: FALSE | LP52: FALSE | LQ52: FALSE | LR52: FALSE | LS52: =IF(LS6,LS29/LR29-1) -> FALSE | LT52: FALSE | LU52: FALSE | LV52: FALSE | LW52: FALSE | LX52: FALSE | LY52: FALSE | LZ52: FALSE | MA52: FALSE | MB52: FALSE | MC52: FALSE | MD52: FALSE | ME52: FALSE | MF52: FALSE | MG52: FALSE | MH52: FALSE | MI52: FALSE | MJ52: FALSE | MK52: FALSE | ML52: FALSE | MM52: FALSE | MN52: FALSE | MO52: FALSE | MP52: FALSE | MQ52: FALSE | MR52: FALSE | MS52: FALSE | MT52: FALSE | MU52: FALSE | MV52: FALSE | MW52: FALSE | MX52: FALSE | MY52: FALSE | MZ52: FALSE | NA52: FALSE | NB52: FALSE | NC52: FALSE | ND52: FALSE | NE52: FALSE | NF52: FALSE | NG52: FALSE | NH52: FALSE | NI52: FALSE | NJ52: FALSE | NK52: FALSE | NL52: FALSE | NM52: FALSE | NN52: FALSE | NO52: FALSE | NP52: FALSE | NQ52: FALSE | NR52: FALSE | NS52: FALSE | NT52: FALSE | NU52: FALSE | NV52: FALSE | NW52: FALSE | NX52: FALSE | NY52: FALSE | NZ52: FALSE | OA52: FALSE | OB52: FALSE | OC52: FALSE | OD52: FALSE | OE52: =IF(OE6,OE29/OD29-1) -> FALSE | OF52: FALSE | OG52: FALSE | OH52: FALSE | OI52: FALSE | OJ52: FALSE | OK52: FALSE | OL52: FALSE | OM52: FALSE | ON52: FALSE | OO52: FALSE | OP52: FALSE | OQ52: FALSE | OR52: FALSE | OS52: FALSE | OT52: FALSE | OU52: FALSE | OV52: FALSE | OW52: FALSE | OX52: FALSE | OY52: FALSE | OZ52: FALSE | PA52: FALSE | PB52: FALSE | PC52: FALSE | PD52: FALSE | PE52: FALSE | PF52: FALSE | PG52: FALSE | PH52: FALSE | PI52: FALSE | PJ52: FALSE | PK52: FALSE | PL52: FALSE | PM52: FALSE | PN52: FALSE | PO52: FALSE | PP52: FALSE | PQ52: FALSE | PR52: FALSE | PS52: FALSE | PT52: FALSE | PU52: FALSE | PV52: FALSE | PW52: FALSE | PX52: FALSE | PY52: FALSE | PZ52: FALSE | QA52: FALSE | QB52: FALSE | QC52: FALSE | QD52: FALSE | QE52: FALSE | QF52: FALSE | QG52: FALSE | QH52: FALSE | QI52: FALSE | QJ52: FALSE | QK52: FALSE | QL52: FALSE | QM52: FALSE | QN52: FALSE | QO52: FALSE | QP52: FALSE | QQ52: =IF(QQ6,QQ29/QP29-1) -> FALSE | QR52: FALSE | QS52: FALSE | QT52: FALSE | QU52: FALSE | QV52: FALSE | QW52: FALSE | QX52: FALSE | QY52: FALSE | QZ52: FALSE | RA52: FALSE | RB52: FALSE | RC52: FALSE | RD52: FALSE | RE52: FALSE | RF52: FALSE | RG52: FALSE | RH52: FALSE | RI52: FALSE | RJ52: FALSE | RK52: FALSE | RL52: FALSE | RM52: FALSE | RN52: FALSE | RO52: FALSE | RP52: FALSE | RQ52: FALSE | RR52: FALSE | RS52: FALSE | RT52: FALSE | RU52: FALSE | RV52: FALSE | RW52: FALSE | RX52: FALSE | RY52: FALSE | RZ52: FALSE | SA52: FALSE | SB52: FALSE | SC52: FALSE | SD52: FALSE | SE52: FALSE | SF52: FALSE | SG52: FALSE | SH52: FALSE | SI52: FALSE | SJ52: FALSE | SK52: FALSE | SL52: FALSE | SM52: FALSE | SN52: FALSE | SO52: FALSE | SP52: FALSE | SQ52: FALSE | SR52: FALSE | SS52: FALSE | ST52: FALSE | SU52: FALSE | SV52: FALSE | SW52: FALSE | SX52: FALSE | SY52: FALSE | SZ52: FALSE | TA52: FALSE | TB52: FALSE | TC52: =IF(TC6,TC29/TB29-1) -> FALSE | TD52: FALSE | TE52: FALSE | TF52: FALSE | TG52: FALSE | TH52: FALSE | TI52: FALSE | TJ52: FALSE | TK52: FALSE | TL52: FALSE | TM52: FALSE | TN52: FALSE | TO52: FALSE | TP52: FALSE | TQ52: FALSE | TR52: FALSE | TS52: FALSE | TT52: FALSE | TU52: FALSE | TV52: FALSE | TW52: FALSE | TX52: FALSE | TY52: FALSE | TZ52: FALSE | UA52: FALSE | UB52: FALSE | UC52: FALSE | UD52: FALSE | UE52: FALSE | UF52: FALSE | UG52: FALSE | UH52: FALSE | UI52: FALSE | UJ52: FALSE | UK52: FALSE | UL52: FALSE | UM52: FALSE | UN52: FALSE | UO52: FALSE | UP52: FALSE | UQ52: FALSE | UR52: FALSE | US52: FALSE | UT52: FALSE | UU52: FALSE | UV52: FALSE | UW52: FALSE | UX52: FALSE | UY52: FALSE | UZ52: FALSE | VA52: FALSE | VB52: FALSE | VC52: FALSE | VD52: FALSE | VE52: FALSE | VF52: FALSE | VG52: FALSE | VH52: FALSE | VI52: FALSE | VJ52: FALSE | VK52: FALSE | VL52: FALSE | VM52: FALSE | VN52: FALSE | VO52: =IF(VO6,VO29/VN29-1) -> FALSE | VP52: FALSE | VQ52: FALSE | VR52: FALSE | VS52: FALSE | VT52: FALSE | VU52: FALSE | VV52: FALSE | VW52: FALSE | VX52: FALSE | VY52: FALSE | VZ52: FALSE | WA52: FALSE | WB52: FALSE | WC52: FALSE | WD52: FALSE | WE52: FALSE | WF52: FALSE | WG52: FALSE | WH52: FALSE | WI52: FALSE | WJ52: FALSE | WK52: FALSE | WL52: FALSE | WM52: FALSE | WN52: FALSE | WO52: FALSE | WP52: FALSE | WQ52: FALSE | WR52: FALSE | WS52: FALSE | WT52: FALSE | WU52: FALSE | WV52: FALSE | WW52: FALSE | WX52: FALSE | WY52: FALSE | WZ52: FALSE | XA52: FALSE | XB52: FALSE | XC52: FALSE | XD52: FALSE | XE52: FALSE | XF52: FALSE | XG52: FALSE | XH52: FALSE | XI52: FALSE | XJ52: FALSE | XK52: FALSE | XL52: FALSE | XM52: FALSE | XN52: FALSE | XO52: FALSE | XP52: FALSE | XQ52: FALSE | XR52: FALSE | XS52: FALSE | XT52: FALSE | XU52: FALSE | XV52: FALSE | XW52: FALSE | XX52: FALSE | XY52: FALSE | XZ52: FALSE | YA52: =IF(YA6,YA29/XZ29-1) -> FALSE | YB52: FALSE | YC52: FALSE | YD52: FALSE | YE52: FALSE | YF52: FALSE | YG52: FALSE | YH52: FALSE | YI52: FALSE | YJ52: FALSE | YK52: FALSE | YL52: FALSE | YM52: FALSE | YN52: FALSE | YO52: FALSE | YP52: FALSE | YQ52: FALSE | YR52: FALSE | YS52: FALSE | YT52: FALSE | YU52: FALSE | YV52: FALSE | YW52: FALSE | YX52: FALSE | YY52: FALSE | YZ52: FALSE | ZA52: FALSE | ZB52: FALSE | ZC52: FALSE | ZD52: FALSE | ZE52: FALSE | ZF52: FALSE | ZG52: FALSE | ZH52: FALSE | ZI52: FALSE | ZJ52: FALSE | ZK52: FALSE | ZL52: FALSE | ZM52: FALSE | ZN52: FALSE | ZO52: FALSE | ZP52: FALSE | ZQ52: FALSE | ZR52: FALSE | ZS52: FALSE | ZT52: FALSE | ZU52: FALSE | ZV52: FALSE | ZW52: FALSE | ZX52: FALSE | ZY52: FALSE | ZZ52: FALSE | AAA52: FALSE | AAB52: FALSE | AAC52: FALSE | AAD52: FALSE | AAE52: FALSE | AAF52: FALSE | AAG52: FALSE | AAH52: FALSE | AAI52: FALSE | AAJ52: FALSE | AAK52: FALSE | AAL52: FALSE | AAM52: =IF(AAM6,AAM29/AAL29-1) -> FALSE | AAN52: FALSE | AAO52: FALSE | AAP52: FALSE | AAQ52: FALSE | AAR52: FALSE | AAS52: FALSE | AAT52: FALSE | AAU52: FALSE | AAV52: FALSE | AAW52: FALSE | AAX52: FALSE | AAY52: FALSE | AAZ52: FALSE | ABA52: FALSE | ABB52: FALSE | ABC52: FALSE | ABD52: FALSE | ABE52: FALSE | ABF52: FALSE | ABG52: FALSE | ABH52: FALSE | ABI52: FALSE | ABJ52: FALSE | ABK52: FALSE | ABL52: FALSE | ABM52: FALSE | ABN52: FALSE | ABO52: FALSE | ABP52: FALSE | ABQ52: FALSE | ABR52: FALSE | ABS52: FALSE | ABT52: FALSE | ABU52: FALSE | ABV52: FALSE | ABW52: FALSE | ABX52: FALSE | ABY52: FALSE | ABZ52: FALSE | ACA52: FALSE | ACB52: FALSE | ACC52: FALSE | ACD52: FALSE | ACE52: FALSE | ACF52: FALSE | ACG52: FALSE | ACH52: FALSE | ACI52: FALSE | ACJ52: FALSE | ACK52: FALSE | ACL52: FALSE | ACM52: FALSE | ACN52: FALSE | ACO52: FALSE | ACP52: FALSE | ACQ52: FALSE | ACR52: FALSE | ACS52: FALSE | ACT52: FALSE | ACU52: FALSE | ACV52: FALSE | ACW52: FALSE | ACX52: FALSE | ACY52: =IF(ACY6,ACY29/ACX29-1) -> FALSE | ACZ52: FALSE | ADA52: FALSE | ADB52: FALSE | ADC52: FALSE | ADD52: FALSE | ADE52: FALSE | ADF52: FALSE | ADG52: FALSE | ADH52: FALSE | ADI52: FALSE | ADJ52: FALSE | ADK52: FALSE | ADL52: FALSE | ADM52: FALSE | ADN52: FALSE | ADO52: FALSE | ADP52: FALSE | ADQ52: FALSE | ADR52: FALSE | ADS52: FALSE | ADT52: FALSE | ADU52: FALSE | ADV52: FALSE | ADW52: FALSE | ADX52: FALSE | ADY52: FALSE | ADZ52: FALSE | AEA52: FALSE | AEB52: FALSE | AEC52: FALSE | AED52: FALSE | AEE52: FALSE | AEF52: FALSE | AEG52: FALSE | AEH52: FALSE | AEI52: FALSE | AEJ52: FALSE | AEK52: FALSE | AEL52: FALSE | AEM52: FALSE | AEN52: FALSE | AEO52: FALSE | AEP52: FALSE | AEQ52: FALSE | AER52: FALSE | AES52: FALSE | AET52: FALSE | AEU52: FALSE | AEV52: FALSE | AEW52: FALSE | AEX52: FALSE | AEY52: FALSE | AEZ52: FALSE | AFA52: FALSE | AFB52: FALSE | AFC52: FALSE | AFD52: FALSE | AFE52: FALSE | AFF52: FALSE | AFG52: FALSE | AFH52: FALSE | AFI52: FALSE | AFJ52: FALSE | AFK52: =IF(AFK6,AFK29/AFJ29-1) -> FALSE | AFL52: FALSE | AFM52: FALSE | AFN52: FALSE | AFO52: FALSE | AFP52: FALSE | AFQ52: FALSE | AFR52: FALSE | AFS52: FALSE | AFT52: FALSE | AFU52: FALSE | AFV52: FALSE | AFW52: FALSE | AFX52: FALSE | AFY52: FALSE | AFZ52: FALSE | AGA52: FALSE | AGB52: FALSE | AGC52: FALSE | AGD52: FALSE | AGE52: FALSE | AGF52: FALSE | AGG52: FALSE | AGH52: FALSE | AGI52: FALSE | AGJ52: FALSE | AGK52: FALSE | AGL52: FALSE | AGM52: FALSE | AGN52: FALSE | AGO52: FALSE | AGP52: FALSE | AGQ52: FALSE | AGR52: FALSE | AGS52: FALSE | AGT52: FALSE | AGU52: FALSE | AGV52: FALSE | AGW52: FALSE | AGX52: FALSE | AGY52: FALSE | AGZ52: FALSE | AHA52: FALSE | AHB52: FALSE | AHC52: FALSE | AHD52: FALSE | AHE52: FALSE | AHF52: FALSE | AHG52: FALSE | AHH52: FALSE | AHI52: FALSE | AHJ52: FALSE | AHK52: FALSE | AHL52: FALSE | AHM52: FALSE | AHN52: FALSE | AHO52: FALSE | AHP52: FALSE | AHQ52: FALSE | AHR52: FALSE | AHS52: FALSE | AHT52: FALSE | AHU52: FALSE | AHV52: FALSE | AHW52: =IF(AHW6,AHW29/AHV29-1) -> FALSE | AHX52: FALSE | AHY52: FALSE | AHZ52: FALSE | AIA52: FALSE | AIB52: FALSE | AIC52: FALSE | AID52: FALSE | AIE52: FALSE | AIF52: FALSE | AIG52: FALSE | AIH52: FALSE | AII52: FALSE | AIJ52: FALSE | AIK52: FALSE | AIL52: FALSE | AIM52: FALSE | AIN52: FALSE | AIO52: FALSE | AIP52: FALSE | AIQ52: FALSE | AIR52: FALSE | AIS52: FALSE | AIT52: FALSE | AIU52: FALSE | AIV52: FALSE | AIW52: FALSE | AIX52: FALSE | AIY52: FALSE | AIZ52: FALSE | AJA52: FALSE | AJB52: FALSE | AJC52: FALSE | AJD52: FALSE | AJE52: FALSE | AJF52: FALSE | AJG52: FALSE | AJH52: FALSE | AJI52: FALSE | AJJ52: FALSE | AJK52: FALSE | AJL52: FALSE | AJM52: FALSE | AJN52: FALSE | AJO52: FALSE | AJP52: FALSE | AJQ52: FALSE | AJR52: FALSE | AJS52: FALSE | AJT52: FALSE | AJU52: FALSE | AJV52: FALSE | AJW52: FALSE | AJX52: FALSE | AJY52: FALSE | AJZ52: FALSE | AKA52: FALSE | AKB52: FALSE | AKC52: FALSE | AKD52: FALSE | AKE52: FALSE | AKF52: FALSE | AKG52: FALSE | AKH52: FALSE | AKI52: =IF(AKI6,AKI29/AKH29-1) -> FALSE | AKJ52: FALSE | AKK52: FALSE | AKL52: FALSE | AKM52: FALSE | AKN52: FALSE | AKO52: FALSE | AKP52: FALSE | AKQ52: FALSE | AKR52: FALSE | AKS52: FALSE | AKT52: FALSE | AKU52: FALSE | AKV52: FALSE | AKW52: FALSE | AKX52: FALSE | AKY52: FALSE | AKZ52: FALSE | ALA52: FALSE | ALB52: FALSE | ALC52: FALSE | ALD52: FALSE | ALE52: FALSE | ALF52: FALSE | ALG52: FALSE | ALH52: FALSE | ALI52: FALSE | ALJ52: FALSE | ALK52: FALSE | ALL52: FALSE | ALM52: FALSE | ALN52: FALSE | ALO52: FALSE | ALP52: FALSE | ALQ52: FALSE | ALR52: FALSE | ALS52: FALSE | ALT52: FALSE | ALU52: FALSE | ALV52: FALSE | ALW52: FALSE | ALX52: FALSE | ALY52: FALSE | ALZ52: FALSE | AMA52: FALSE | AMB52: FALSE | AMC52: FALSE | AMD52: FALSE | AME52: FALSE | AMF52: FALSE | AMG52: FALSE | AMH52: FALSE | AMI52: FALSE | AMJ52: FALSE | AMK52: FALSE | AML52: FALSE | AMM52: FALSE | AMN52: FALSE | AMO52: FALSE | AMP52: FALSE | AMQ52: FALSE | AMR52: FALSE | AMS52: FALSE | AMT52: FALSE | AMU52: =IF(AMU6,AMU29/AMT29-1) -> FALSE | AMV52: FALSE | AMW52: FALSE | AMX52: FALSE | AMY52: FALSE | AMZ52: FALSE | ANA52: FALSE | ANB52: FALSE | ANC52: FALSE | AND52: FALSE | ANE52: FALSE | ANF52: FALSE | ANG52: FALSE | ANH52: FALSE | ANI52: FALSE | ANJ52: FALSE | ANK52: FALSE | ANL52: FALSE | ANM52: FALSE | ANN52: FALSE | ANO52: FALSE | ANP52: FALSE | ANQ52: FALSE | ANR52: FALSE | ANS52: FALSE | ANT52: FALSE | ANU52: FALSE | ANV52: FALSE | ANW52: FALSE | ANX52: FALSE | ANY52: FALSE | ANZ52: FALSE | AOA52: FALSE | AOB52: FALSE | AOC52: FALSE | AOD52: FALSE | AOE52: FALSE | AOF52: FALSE | AOG52: FALSE | AOH52: FALSE | AOI52: FALSE | AOJ52: FALSE | AOK52: FALSE | AOL52: FALSE | AOM52: FALSE | AON52: FALSE | AOO52: FALSE | AOP52: FALSE | AOQ52: FALSE | AOR52: FALSE | AOS52: FALSE | AOT52: FALSE | AOU52: FALSE | AOV52: FALSE | AOW52: FALSE | AOX52: FALSE | AOY52: FALSE | AOZ52: FALSE | APA52: FALSE | APB52: FALSE | APC52: FALSE | APD52: FALSE | APE52: FALSE | APF52: FALSE | APG52: =IF(APG6,APG29/APF29-1) -> FALSE | APH52: FALSE | API52: FALSE | APJ52: FALSE | APK52: FALSE | APL52: FALSE | APM52: FALSE | APN52: FALSE | APO52: FALSE | APP52: FALSE | APQ52: FALSE | APR52: FALSE | APS52: FALSE | APT52: FALSE | APU52: FALSE | APV52: FALSE | APW52: FALSE | APX52: FALSE | APY52: FALSE | APZ52: FALSE | AQA52: FALSE | AQB52: FALSE | AQC52: FALSE | AQD52: FALSE | AQE52: FALSE | AQF52: FALSE | AQG52: FALSE | AQH52: FALSE | AQI52: FALSE | AQJ52: FALSE | AQK52: FALSE | AQL52: FALSE | AQM52: FALSE | AQN52: FALSE | AQO52: FALSE | AQP52: FALSE | AQQ52: FALSE | AQR52: FALSE | AQS52: FALSE | AQT52: FALSE | AQU52: FALSE | AQV52: FALSE | AQW52: FALSE | AQX52: FALSE | AQY52: FALSE | AQZ52: FALSE | ARA52: FALSE | ARB52: FALSE | ARC52: FALSE | ARD52: FALSE | ARE52: FALSE | ARF52: FALSE | ARG52: FALSE | ARH52: FALSE | ARI52: FALSE | ARJ52: FALSE | ARK52: FALSE | ARL52: FALSE | ARM52: FALSE | ARN52: FALSE | ARO52: FALSE | ARP52: FALSE | ARQ52: FALSE | ARR52: FALSE | ARS52: =IF(ARS6,ARS29/ARR29-1) -> FALSE | ART52: FALSE | ARU52: FALSE | ARV52: FALSE | ARW52: FALSE | ARX52: FALSE | ARY52: FALSE | ARZ52: FALSE | ASA52: FALSE | ASB52: FALSE | ASC52: FALSE | ASD52: FALSE | ASE52: FALSE | ASF52: FALSE | ASG52: FALSE | ASH52: FALSE | ASI52: FALSE | ASJ52: FALSE | ASK52: FALSE | ASL52: FALSE | ASM52: FALSE | ASN52: FALSE | ASO52: FALSE | ASP52: FALSE | ASQ52: FALSE | ASR52: FALSE | ASS52: FALSE | AST52: FALSE | ASU52: FALSE | ASV52: FALSE | ASW52: FALSE | ASX52: FALSE | ASY52: FALSE | ASZ52: FALSE | ATA52: FALSE | ATB52: FALSE | ATC52: FALSE | ATD52: FALSE | ATE52: FALSE | ATF52: FALSE | ATG52: FALSE | ATH52: FALSE | ATI52: FALSE | ATJ52: FALSE | ATK52: FALSE | ATL52: FALSE | ATM52: FALSE | ATN52: FALSE | ATO52: FALSE | ATP52: FALSE | ATQ52: FALSE | ATR52: FALSE | ATS52: FALSE | ATT52: FALSE | ATU52: FALSE | ATV52: FALSE | ATW52: FALSE | ATX52: FALSE | ATY52: FALSE | ATZ52: FALSE | AUA52: FALSE | AUB52: FALSE | AUC52: FALSE | AUD52: FALSE | AUE52: =IF(AUE6,AUE29/AUD29-1) -> FALSE | AUF52: FALSE | AUG52: FALSE | AUH52: FALSE | AUI52: FALSE | AUJ52: FALSE | AUK52: FALSE | AUL52: FALSE | AUM52: FALSE | AUN52: FALSE | AUO52: FALSE | AUP52: FALSE | AUQ52: FALSE | AUR52: FALSE | AUS52: FALSE | AUT52: FALSE | AUU52: FALSE | AUV52: FALSE | AUW52: FALSE | AUX52: FALSE | AUY52: FALSE | AUZ52: FALSE | AVA52: FALSE | AVB52: FALSE | AVC52: FALSE | AVD52: FALSE | AVE52: FALSE | AVF52: FALSE | AVG52: FALSE | AVH52: FALSE | AVI52: FALSE | AVJ52: FALSE | AVK52: FALSE | AVL52: FALSE | AVM52: FALSE | AVN52: FALSE | AVO52: FALSE | AVP52: FALSE | AVQ52: FALSE | AVR52: FALSE | AVS52: FALSE | AVT52: FALSE | AVU52: FALSE | AVV52: FALSE | AVW52: FALSE | AVX52: FALSE | AVY52: FALSE | AVZ52: FALSE | AWA52: FALSE | AWB52: FALSE | AWC52: FALSE | AWD52: FALSE | AWE52: FALSE | AWF52: FALSE | AWG52: FALSE | AWH52: FALSE | AWI52: FALSE | AWJ52: FALSE | AWK52: FALSE | AWL52: FALSE | AWM52: FALSE | AWN52: FALSE | AWO52: FALSE | AWP52: FALSE | AWQ52: =IF(AWQ6,AWQ29/AWP29-1) -> FALSE | AWR52: FALSE | AWS52: FALSE | AWT52: FALSE | AWU52: FALSE | AWV52: FALSE | AWW52: FALSE | AWX52: FALSE | AWY52: FALSE | AWZ52: FALSE | AXA52: FALSE | AXB52: FALSE | AXC52: FALSE | AXD52: FALSE | AXE52: FALSE | AXF52: FALSE | AXG52: FALSE | AXH52: FALSE | AXI52: FALSE | AXJ52: FALSE | AXK52: FALSE | AXL52: FALSE | AXM52: FALSE | AXN52: FALSE | AXO52: FALSE | AXP52: FALSE | AXQ52: FALSE | AXR52: FALSE | AXS52: FALSE | AXT52: FALSE | AXU52: FALSE | AXV52: FALSE | AXW52: FALSE | AXX52: FALSE | AXY52: FALSE | AXZ52: FALSE | AYA52: FALSE | AYB52: FALSE | AYC52: FALSE | AYD52: FALSE | AYE52: FALSE | AYF52: FALSE | AYG52: FALSE | AYH52: FALSE | AYI52: FALSE | AYJ52: FALSE | AYK52: FALSE | AYL52: FALSE | AYM52: FALSE | AYN52: FALSE | AYO52: FALSE | AYP52: FALSE | AYQ52: FALSE | AYR52: FALSE | AYS52: FALSE | AYT52: FALSE | AYU52: FALSE | AYV52: FALSE | AYW52: FALSE | AYX52: FALSE | AYY52: FALSE | AYZ52: FALSE | AZA52: FALSE | AZB52: FALSE | AZC52: =IF(AZC6,AZC29/AZB29-1) -> FALSE | AZD52: FALSE | AZE52: FALSE | AZF52: FALSE | AZG52: FALSE | AZH52: FALSE | AZI52: FALSE | AZJ52: FALSE | AZK52: FALSE | AZL52: FALSE | AZM52: FALSE | AZN52: FALSE | AZO52: FALSE | AZP52: FALSE | AZQ52: FALSE | AZR52: FALSE | AZS52: FALSE | AZT52: FALSE | AZU52: FALSE | AZV52: FALSE | AZW52: FALSE | AZX52: FALSE | AZY52: FALSE | AZZ52: FALSE | BAA52: FALSE | BAB52: FALSE | BAC52: FALSE | BAD52: FALSE | BAE52: FALSE | BAF52: FALSE | BAG52: FALSE | BAH52: FALSE | BAI52: FALSE | BAJ52: FALSE | BAK52: FALSE | BAL52: FALSE | BAM52: FALSE | BAN52: FALSE | BAO52: FALSE | BAP52: FALSE | BAQ52: FALSE | BAR52: FALSE | BAS52: FALSE | BAT52: FALSE | BAU52: FALSE | BAV52: FALSE | BAW52: FALSE | BAX52: FALSE | BAY52: FALSE | BAZ52: FALSE | BBA52: FALSE | BBB52: FALSE | BBC52: FALSE | BBD52: FALSE | BBE52: FALSE | BBF52: FALSE | BBG52: FALSE | BBH52: FALSE | BBI52: FALSE | BBJ52: FALSE | BBK52: FALSE | BBL52: FALSE | BBM52: FALSE | BBN52: FALSE | BBO52: =IF(BBO6,BBO29/BBN29-1) -> FALSE | BBP52: FALSE | BBQ52: FALSE | BBR52: FALSE | BBS52: FALSE | BBT52: FALSE | BBU52: FALSE | BBV52: FALSE | BBW52: FALSE | BBX52: FALSE | BBY52: FALSE | BBZ52: FALSE | BCA52: FALSE | BCB52: FALSE | BCC52: FALSE | BCD52: FALSE | BCE52: FALSE | BCF52: FALSE | BCG52: FALSE | BCH52: FALSE | BCI52: FALSE | BCJ52: FALSE | BCK52: FALSE | BCL52: FALSE | BCM52: FALSE | BCN52: FALSE | BCO52: FALSE | BCP52: FALSE | BCQ52: FALSE | BCR52: FALSE | BCS52: FALSE | BCT52: FALSE | BCU52: FALSE | BCV52: FALSE | BCW52: FALSE | BCX52: FALSE | BCY52: FALSE | BCZ52: FALSE | BDA52: FALSE | BDB52: FALSE | BDC52: FALSE | BDD52: FALSE | BDE52: FALSE | BDF52: FALSE | BDG52: FALSE | BDH52: FALSE | BDI52: FALSE | BDJ52: FALSE | BDK52: FALSE | BDL52: FALSE | BDM52: FALSE | BDN52: FALSE | BDO52: FALSE | BDP52: FALSE | BDQ52: FALSE | BDR52: FALSE | BDS52: FALSE | BDT52: FALSE | BDU52: FALSE | BDV52: FALSE | BDW52: FALSE | BDX52: FALSE | BDY52: FALSE | BDZ52: FALSE | BEA52: =IF(BEA6,BEA29/BDZ29-1) -> FALSE | BEB52: FALSE | BEC52: FALSE | BED52: FALSE | BEE52: FALSE | BEF52: FALSE | BEG52: FALSE | BEH52: FALSE | BEI52: FALSE | BEJ52: FALSE | BEK52: FALSE | BEL52: FALSE | BEM52: FALSE | BEN52: FALSE | BEO52: FALSE | BEP52: FALSE | BEQ52: FALSE | BER52: FALSE | BES52: FALSE | BET52: FALSE | BEU52: FALSE | BEV52: FALSE | BEW52: FALSE | BEX52: FALSE | BEY52: FALSE | BEZ52: FALSE | BFA52: FALSE | BFB52: FALSE | BFC52: FALSE | BFD52: FALSE | BFE52: FALSE | BFF52: FALSE | BFG52: FALSE | BFH52: FALSE | BFI52: FALSE | BFJ52: FALSE | BFK52: FALSE | BFL52: FALSE | BFM52: FALSE | BFN52: FALSE | BFO52: FALSE | BFP52: FALSE | BFQ52: FALSE | BFR52: FALSE | BFS52: FALSE | BFT52: FALSE | BFU52: FALSE | BFV52: FALSE | BFW52: FALSE | BFX52: FALSE | BFY52: FALSE | BFZ52: FALSE | BGA52: FALSE | BGB52: FALSE | BGC52: FALSE | BGD52: FALSE | BGE52: FALSE | BGF52: FALSE | BGG52: FALSE | BGH52: FALSE | BGI52: FALSE | BGJ52: FALSE | BGK52: FALSE | BGL52: FALSE | BGM52: =IF(BGM6,BGM29/BGL29-1) -> FALSE | BGN52: FALSE | BGO52: FALSE | BGP52: FALSE | BGQ52: FALSE | BGR52: FALSE | BGS52: FALSE | BGT52: FALSE | BGU52: FALSE | BGV52: FALSE | BGW52: FALSE | BGX52: FALSE | BGY52: FALSE | BGZ52: FALSE | BHA52: FALSE | BHB52: FALSE | BHC52: FALSE | BHD52: FALSE | BHE52: FALSE | BHF52: FALSE | BHG52: FALSE | BHH52: FALSE | BHI52: FALSE | BHJ52: FALSE | BHK52: FALSE | BHL52: FALSE | BHM52: FALSE | BHN52: FALSE | BHO52: FALSE | BHP52: FALSE | BHQ52: FALSE | BHR52: FALSE | BHS52: FALSE | BHT52: FALSE | BHU52: FALSE | BHV52: FALSE | BHW52: FALSE | BHX52: FALSE | BHY52: FALSE | BHZ52: FALSE | BIA52: FALSE | BIB52: FALSE | BIC52: FALSE | BID52: FALSE | BIE52: FALSE | BIF52: FALSE | BIG52: FALSE | BIH52: FALSE | BII52: FALSE | BIJ52: FALSE | BIK52: FALSE | BIL52: FALSE | BIM52: FALSE | BIN52: FALSE | BIO52: FALSE | BIP52: FALSE | BIQ52: FALSE | BIR52: FALSE | BIS52: FALSE | BIT52: FALSE | BIU52: FALSE | BIV52: FALSE | BIW52: FALSE | BIX52: FALSE | BIY52: =IF(BIY6,BIY29/BIX29-1) -> FALSE | BIZ52: FALSE | BJA52: FALSE | BJB52: FALSE | BJC52: FALSE | BJD52: FALSE | BJE52: FALSE | BJF52: FALSE | BJG52: FALSE | BJH52: FALSE | BJI52: FALSE | BJJ52: FALSE | BJK52: FALSE | BJL52: FALSE | BJM52: FALSE | BJN52: FALSE | BJO52: FALSE | BJP52: FALSE | BJQ52: FALSE | BJR52: FALSE | BJS52: FALSE | BJT52: FALSE | BJU52: FALSE | BJV52: FALSE | BJW52: FALSE | BJX52: FALSE | BJY52: FALSE | BJZ52: FALSE | BKA52: FALSE | BKB52: FALSE | BKC52: FALSE | BKD52: FALSE | BKE52: FALSE | BKF52: FALSE | BKG52: FALSE | BKH52: FALSE | BKI52: FALSE | BKJ52: FALSE | BKK52: FALSE | BKL52: FALSE | BKM52: FALSE | BKN52: FALSE | BKO52: FALSE | BKP52: FALSE | BKQ52: FALSE | BKR52: FALSE | BKS52: FALSE | BKT52: FALSE | BKU52: FALSE | BKV52: FALSE | BKW52: FALSE | BKX52: FALSE | BKY52: FALSE | BKZ52: FALSE | BLA52: FALSE | BLB52: FALSE | BLC52: FALSE | BLD52: FALSE | BLE52: FALSE | BLF52: FALSE | BLG52: FALSE | BLH52: FALSE | BLI52: FALSE | BLJ52: FALSE | BLK52: =IF(BLK6,BLK29/BLJ29-1) -> FALSE | BLL52: FALSE | BLM52: FALSE | BLN52: FALSE | BLO52: FALSE | BLP52: FALSE | BLQ52: FALSE | BLR52: FALSE | BLS52: FALSE | BLT52: FALSE | BLU52: FALSE | BLV52: FALSE | BLW52: FALSE | BLX52: FALSE | BLY52: FALSE | BLZ52: FALSE | BMA52: FALSE | BMB52: FALSE | BMC52: FALSE | BMD52: FALSE | BME52: FALSE | BMF52: FALSE | BMG52: FALSE | BMH52: FALSE | BMI52: FALSE | BMJ52: FALSE | BMK52: FALSE | BML52: FALSE | BMM52: FALSE | BMN52: FALSE | BMO52: FALSE | BMP52: FALSE | BMQ52: FALSE | BMR52: FALSE | BMS52: FALSE | BMT52: FALSE | BMU52: FALSE | BMV52: FALSE | BMW52: FALSE | BMX52: FALSE | BMY52: FALSE | BMZ52: FALSE | BNA52: FALSE | BNB52: FALSE | BNC52: FALSE | BND52: FALSE | BNE52: FALSE | BNF52: FALSE | BNG52: FALSE | BNH52: FALSE | BNI52: FALSE | BNJ52: FALSE | BNK52: FALSE | BNL52: FALSE | BNM52: FALSE | BNN52: FALSE | BNO52: FALSE | BNP52: FALSE | BNQ52: FALSE | BNR52: FALSE | BNS52: FALSE | BNT52: FALSE | BNU52: FALSE | BNV52: FALSE | BNW52: =IF(BNW6,BNW29/BNV29-1) -> FALSE | BNX52: FALSE | BNY52: FALSE | BNZ52: FALSE | BOA52: FALSE | BOB52: FALSE | BOC52: FALSE | BOD52: FALSE | BOE52: FALSE | BOF52: FALSE | BOG52: FALSE | BOH52: FALSE | BOI52: FALSE | BOJ52: FALSE | BOK52: FALSE | BOL52: FALSE | BOM52: FALSE | BON52: FALSE | BOO52: FALSE | BOP52: FALSE | BOQ52: FALSE | BOR52: FALSE | BOS52: FALSE | BOT52: FALSE | BOU52: FALSE | BOV52: FALSE | BOW52: FALSE | BOX52: FALSE | BOY52: FALSE | BOZ52: FALSE | BPA52: FALSE | BPB52: FALSE | BPC52: FALSE | BPD52: FALSE | BPE52: FALSE | BPF52: FALSE | BPG52: FALSE | BPH52: FALSE | BPI52: FALSE | BPJ52: FALSE | BPK52: FALSE | BPL52: FALSE | BPM52: FALSE | BPN52: FALSE | BPO52: FALSE | BPP52: FALSE | BPQ52: FALSE | BPR52: FALSE | BPS52: FALSE | BPT52: FALSE | BPU52: FALSE | BPV52: FALSE | BPW52: FALSE | BPX52: FALSE | BPY52: FALSE | BPZ52: FALSE | BQA52: FALSE | BQB52: FALSE | BQC52: FALSE | BQD52: FALSE | BQE52: FALSE | BQF52: FALSE | BQG52: FALSE | BQH52: FALSE | BQI52: =IF(BQI6,BQI29/BQH29-1) -> FALSE | BQJ52: FALSE | BQK52: FALSE | BQL52: FALSE | BQM52: FALSE | BQN52: FALSE | BQO52: FALSE | BQP52: FALSE | BQQ52: FALSE | BQR52: FALSE | BQS52: FALSE | BQT52: FALSE | BQU52: FALSE | BQV52: FALSE | BQW52: FALSE | BQX52: FALSE | BQY52: FALSE | BQZ52: FALSE | BRA52: FALSE | BRB52: FALSE | BRC52: FALSE | BRD52: FALSE | BRE52: FALSE | BRF52: FALSE | BRG52: FALSE | BRH52: FALSE | BRI52: FALSE | BRJ52: FALSE | BRK52: FALSE | BRL52: FALSE | BRM52: FALSE | BRN52: FALSE | BRO52: FALSE | BRP52: FALSE | BRQ52: FALSE | BRR52: FALSE | BRS52: FALSE | BRT52: FALSE | BRU52: FALSE | BRV52: FALSE | BRW52: FALSE | BRX52: FALSE | BRY52: FALSE | BRZ52: FALSE | BSA52: FALSE | BSB52: FALSE | BSC52: FALSE | BSD52: FALSE | BSE52: FALSE | BSF52: FALSE | BSG52: FALSE | BSH52: FALSE | BSI52: FALSE | BSJ52: FALSE | BSK52: FALSE | BSL52: FALSE | BSM52: FALSE | BSN52: FALSE | BSO52: FALSE | BSP52: FALSE | BSQ52: FALSE | BSR52: FALSE | BSS52: FALSE | BST52: FALSE | BSU52: =IF(BSU6,BSU29/BST29-1) -> FALSE | BSV52: FALSE | BSW52: FALSE | BSX52: FALSE | BSY52: FALSE | BSZ52: FALSE | BTA52: FALSE | BTB52: FALSE | BTC52: FALSE | BTD52: FALSE | BTE52: FALSE | BTF52: FALSE | BTG52: FALSE | BTH52: FALSE | BTI52: FALSE | BTJ52: FALSE | BTK52: FALSE | BTL52: FALSE | BTM52: FALSE | BTN52: FALSE | BTO52: FALSE | BTP52: FALSE | BTQ52: FALSE | BTR52: FALSE | BTS52: FALSE | BTT52: FALSE | BTU52: FALSE | BTV52: FALSE | BTW52: FALSE | BTX52: FALSE | BTY52: FALSE | BTZ52: FALSE | BUA52: FALSE | BUB52: FALSE | BUC52: FALSE | BUD52: FALSE | BUE52: FALSE | BUF52: FALSE | BUG52: FALSE | BUH52: FALSE | BUI52: FALSE | BUJ52: FALSE | BUK52: FALSE | BUL52: FALSE | BUM52: FALSE | BUN52: FALSE | BUO52: FALSE | BUP52: FALSE | BUQ52: FALSE | BUR52: FALSE | BUS52: FALSE | BUT52: FALSE | BUU52: FALSE | BUV52: FALSE | BUW52: FALSE | BUX52: FALSE | BUY52: FALSE | BUZ52: FALSE | BVA52: FALSE | BVB52: FALSE | BVC52: FALSE | BVD52: FALSE | BVE52: FALSE | BVF52: FALSE | BVG52: =IF(BVG6,BVG29/BVF29-1) -> FALSE | BVH52: FALSE | BVI52: FALSE | BVJ52: FALSE | BVK52: FALSE | BVL52: FALSE | BVM52: FALSE | BVN52: FALSE | BVO52: FALSE | BVP52: FALSE | BVQ52: FALSE | BVR52: FALSE | BVS52: FALSE | BVT52: FALSE | BVU52: FALSE | BVV52: FALSE | BVW52: FALSE | BVX52: FALSE | BVY52: FALSE | BVZ52: FALSE | BWA52: FALSE | BWB52: FALSE | BWC52: FALSE | BWD52: FALSE | BWE52: FALSE | BWF52: FALSE | BWG52: FALSE | BWH52: FALSE | BWI52: FALSE | BWJ52: FALSE | BWK52: FALSE | BWL52: FALSE | BWM52: FALSE | BWN52: FALSE | BWO52: FALSE | BWP52: FALSE | BWQ52: FALSE | BWR52: FALSE | BWS52: FALSE | BWT52: FALSE | BWU52: FALSE | BWV52: FALSE | BWW52: FALSE | BWX52: FALSE | BWY52: FALSE | BWZ52: FALSE | BXA52: FALSE | BXB52: FALSE | BXC52: FALSE | BXD52: FALSE | BXE52: FALSE | BXF52: FALSE | BXG52: FALSE | BXH52: FALSE | BXI52: FALSE | BXJ52: FALSE | BXK52: FALSE | BXL52: FALSE | BXM52: FALSE | BXN52: FALSE | BXO52: FALSE | BXP52: FALSE | BXQ52: FALSE | BXR52: FALSE | BXS52: =IF(BXS6,BXS29/BXR29-1) -> FALSE | BXT52: FALSE | BXU52: FALSE | BXV52: FALSE | BXW52: FALSE | BXX52: FALSE | BXY52: FALSE | BXZ52: FALSE | BYA52: FALSE | BYB52: FALSE | BYC52: FALSE | BYD52: FALSE | BYE52: FALSE | BYF52: FALSE | BYG52: FALSE | BYH52: FALSE | BYI52: FALSE | BYJ52: FALSE | BYK52: FALSE | BYL52: FALSE | BYM52: FALSE | BYN52: FALSE | BYO52: FALSE | BYP52: FALSE | BYQ52: FALSE | BYR52: FALSE | BYS52: FALSE | BYT52: FALSE | BYU52: FALSE | BYV52: FALSE | BYW52: FALSE | BYX52: FALSE | BYY52: FALSE | BYZ52: FALSE | BZA52: FALSE | BZB52: FALSE | BZC52: FALSE | BZD52: FALSE | BZE52: FALSE | BZF52: FALSE | BZG52: FALSE | BZH52: FALSE | BZI52: FALSE | BZJ52: FALSE | BZK52: FALSE | BZL52: FALSE | BZM52: FALSE | BZN52: FALSE | BZO52: FALSE | BZP52: FALSE | BZQ52: FALSE | BZR52: FALSE | BZS52: FALSE | BZT52: FALSE | BZU52: FALSE | BZV52: FALSE | BZW52: FALSE | BZX52: FALSE | BZY52: FALSE | BZZ52: FALSE | CAA52: FALSE | CAB52: FALSE | CAC52: FALSE | CAD52: FALSE | CAE52: =IF(CAE6,CAE29/CAD29-1) -> FALSE | CAF52: FALSE | CAG52: FALSE | CAH52: FALSE | CAI52: FALSE | CAJ52: FALSE | CAK52: FALSE | CAL52: FALSE | CAM52: FALSE | CAN52: FALSE | CAO52: FALSE | CAP52: FALSE | CAQ52: FALSE | CAR52: FALSE | CAS52: FALSE | CAT52: FALSE | CAU52: FALSE | CAV52: FALSE | CAW52: FALSE | CAX52: FALSE | CAY52: FALSE | CAZ52: FALSE | CBA52: FALSE | CBB52: FALSE | CBC52: FALSE | CBD52: FALSE | CBE52: FALSE | CBF52: FALSE | CBG52: FALSE | CBH52: FALSE | CBI52: FALSE | CBJ52: FALSE | CBK52: FALSE | CBL52: FALSE | CBM52: FALSE | CBN52: FALSE | CBO52: FALSE | CBP52: FALSE | CBQ52: FALSE | CBR52: FALSE | CBS52: FALSE | CBT52: FALSE | CBU52: FALSE | CBV52: FALSE | CBW52: FALSE | CBX52: FALSE | CBY52: FALSE | CBZ52: FALSE | CCA52: FALSE | CCB52: FALSE | CCC52: FALSE | CCD52: FALSE | CCE52: FALSE | CCF52: FALSE | CCG52: FALSE | CCH52: FALSE | CCI52: FALSE | CCJ52: FALSE | CCK52: FALSE | CCL52: FALSE | CCM52: FALSE | CCN52: FALSE | CCO52: FALSE | CCP52: FALSE | CCQ52: =IF(CCQ6,CCQ29/CCP29-1) -> FALSE | CCR52: FALSE | CCS52: FALSE | CCT52: FALSE | CCU52: FALSE | CCV52: FALSE | CCW52: FALSE | CCX52: FALSE | CCY52: FALSE | CCZ52: FALSE | CDA52: FALSE | CDB52: FALSE | CDC52: FALSE | CDD52: FALSE | CDE52: FALSE | CDF52: FALSE | CDG52: FALSE | CDH52: FALSE | CDI52: FALSE | CDJ52: FALSE | CDK52: FALSE | CDL52: FALSE | CDM52: FALSE | CDN52: FALSE | CDO52: FALSE | CDP52: FALSE | CDQ52: FALSE | CDR52: FALSE | CDS52: FALSE | CDT52: FALSE | CDU52: FALSE | CDV52: FALSE | CDW52: FALSE | CDX52: FALSE | CDY52: FALSE | CDZ52: FALSE | CEA52: FALSE | CEB52: FALSE | CEC52: FALSE | CED52: FALSE | CEE52: FALSE | CEF52: FALSE | CEG52: FALSE | CEH52: FALSE | CEI52: FALSE | CEJ52: FALSE | CEK52: FALSE | CEL52: FALSE | CEM52: FALSE | CEN52: FALSE | CEO52: FALSE | CEP52: FALSE | CEQ52: FALSE | CER52: FALSE | CES52: FALSE | CET52: FALSE | CEU52: FALSE | CEV52: FALSE | CEW52: FALSE | CEX52: FALSE | CEY52: FALSE | CEZ52: FALSE | CFA52: FALSE | CFB52: FALSE | CFC52: =IF(CFC6,CFC29/CFB29-1) -> FALSE | CFD52: FALSE | CFE52: FALSE | CFF52: FALSE | CFG52: FALSE | CFH52: FALSE | CFI52: FALSE | CFJ52: FALSE | CFK52: FALSE | CFL52: FALSE | CFM52: FALSE | CFN52: FALSE | CFO52: FALSE | CFP52: FALSE | CFQ52: FALSE | CFR52: FALSE | CFS52: FALSE | CFT52: FALSE | CFU52: FALSE | CFV52: FALSE | CFW52: FALSE | CFX52: FALSE | CFY52: FALSE | CFZ52: FALSE | CGA52: FALSE | CGB52: FALSE | CGC52: FALSE | CGD52: FALSE | CGE52: FALSE | CGF52: FALSE | CGG52: FALSE | CGH52: FALSE | CGI52: FALSE | CGJ52: FALSE | CGK52: FALSE | CGL52: FALSE | CGM52: FALSE | CGN52: FALSE | CGO52: FALSE | CGP52: FALSE | CGQ52: FALSE | CGR52: FALSE | CGS52: FALSE | CGT52: FALSE | CGU52: FALSE | CGV52: FALSE | CGW52: FALSE | CGX52: FALSE | CGY52: FALSE | CGZ52: FALSE | CHA52: FALSE | CHB52: FALSE | CHC52: FALSE | CHD52: FALSE | CHE52: FALSE | CHF52: FALSE | CHG52: FALSE | CHH52: FALSE | CHI52: FALSE | CHJ52: FALSE | CHK52: FALSE | CHL52: FALSE | CHM52: FALSE | CHN52: FALSE | CHO52: =IF(CHO6,CHO29/CHN29-1) -> FALSE | CHP52: FALSE | CHQ52: FALSE | CHR52: FALSE | CHS52: FALSE | CHT52: FALSE | CHU52: FALSE | CHV52: FALSE | CHW52: FALSE | CHX52: FALSE | CHY52: FALSE | CHZ52: FALSE | CIA52: FALSE | CIB52: FALSE | CIC52: FALSE | CID52: FALSE | CIE52: FALSE | CIF52: FALSE | CIG52: FALSE | CIH52: FALSE | CII52: FALSE | CIJ52: FALSE | CIK52: FALSE | CIL52: FALSE | CIM52: FALSE | CIN52: FALSE | CIO52: FALSE | CIP52: FALSE | CIQ52: FALSE | CIR52: FALSE | CIS52: FALSE | CIT52: FALSE | CIU52: FALSE | CIV52: FALSE | CIW52: FALSE | CIX52: FALSE | CIY52: FALSE | CIZ52: FALSE | CJA52: FALSE | CJB52: FALSE | CJC52: FALSE | CJD52: FALSE | CJE52: FALSE | CJF52: FALSE | CJG52: FALSE | CJH52: FALSE | CJI52: FALSE | CJJ52: FALSE | CJK52: FALSE | CJL52: FALSE | CJM52: FALSE | CJN52: FALSE | CJO52: FALSE | CJP52: FALSE | CJQ52: FALSE | CJR52: FALSE | CJS52: FALSE | CJT52: FALSE | CJU52: FALSE | CJV52: FALSE | CJW52: FALSE | CJX52: FALSE | CJY52: FALSE | CJZ52: FALSE | CKA52: =IF(CKA6,CKA29/CJZ29-1) -> FALSE | CKB52: FALSE | CKC52: FALSE | CKD52: FALSE | CKE52: FALSE | CKF52: FALSE | CKG52: FALSE | CKH52: FALSE | CKI52: FALSE | CKJ52: FALSE | CKK52: FALSE | CKL52: FALSE | CKM52: FALSE | CKN52: FALSE | CKO52: FALSE | CKP52: FALSE | CKQ52: FALSE | CKR52: FALSE | CKS52: FALSE | CKT52: FALSE | CKU52: FALSE | CKV52: FALSE | CKW52: FALSE | CKX52: FALSE | CKY52: FALSE | CKZ52: FALSE | CLA52: FALSE | CLB52: FALSE | CLC52: FALSE | CLD52: FALSE | CLE52: FALSE | CLF52: FALSE | CLG52: FALSE | CLH52: FALSE | CLI52: FALSE | CLJ52: FALSE | CLK52: FALSE | CLL52: FALSE | CLM52: FALSE | CLN52: FALSE | CLO52: FALSE | CLP52: FALSE | CLQ52: FALSE | CLR52: FALSE | CLS52: FALSE | CLT52: FALSE | CLU52: FALSE | CLV52: FALSE | CLW52: FALSE | CLX52: FALSE | CLY52: FALSE | CLZ52: FALSE | CMA52: FALSE | CMB52: FALSE | CMC52: FALSE | CMD52: FALSE | CME52: FALSE | CMF52: FALSE | CMG52: FALSE | CMH52: FALSE | CMI52: FALSE | CMJ52: FALSE | CMK52: FALSE | CML52: FALSE | CMM52: =IF(CMM6,CMM29/CML29-1) -> FALSE | CMN52: FALSE | CMO52: FALSE | CMP52: FALSE | CMQ52: FALSE | CMR52: FALSE | CMS52: FALSE | CMT52: FALSE | CMU52: FALSE | CMV52: FALSE | CMW52: FALSE | CMX52: FALSE | CMY52: FALSE | CMZ52: FALSE | CNA52: FALSE | CNB52: FALSE | CNC52: FALSE | CND52: FALSE | CNE52: FALSE | CNF52: FALSE | CNG52: FALSE | CNH52: FALSE | CNI52: FALSE | CNJ52: FALSE | CNK52: FALSE | CNL52: FALSE | CNM52: FALSE | CNN52: FALSE | CNO52: FALSE | CNP52: FALSE | CNQ52: FALSE | CNR52: FALSE | CNS52: FALSE | CNT52: FALSE | CNU52: FALSE | CNV52: FALSE | CNW52: FALSE | CNX52: FALSE | CNY52: FALSE | CNZ52: FALSE | COA52: FALSE | COB52: FALSE | COC52: FALSE | COD52: FALSE | COE52: FALSE | COF52: FALSE | COG52: FALSE | COH52: FALSE | COI52: FALSE | COJ52: FALSE | COK52: FALSE | COL52: FALSE | COM52: FALSE | CON52: FALSE | COO52: FALSE | COP52: FALSE | COQ52: FALSE | COR52: FALSE | COS52: FALSE | COT52: FALSE | COU52: FALSE | COV52: FALSE | COW52: FALSE | COX52: FALSE | COY52: =IF(COY6,COY29/COX29-1) -> FALSE | COZ52: FALSE | CPA52: FALSE | CPB52: FALSE | CPC52: FALSE | CPD52: FALSE | CPE52: FALSE | CPF52: FALSE | CPG52: FALSE | CPH52: FALSE | CPI52: FALSE | CPJ52: FALSE | CPK52: FALSE | CPL52: FALSE | CPM52: FALSE | CPN52: FALSE | CPO52: FALSE | CPP52: FALSE | CPQ52: FALSE | CPR52: FALSE | CPS52: FALSE | CPT52: FALSE | CPU52: FALSE | CPV52: FALSE | CPW52: FALSE | CPX52: FALSE | CPY52: FALSE | CPZ52: FALSE | CQA52: FALSE | CQB52: FALSE | CQC52: FALSE | CQD52: FALSE | CQE52: FALSE | CQF52: FALSE | CQG52: FALSE | CQH52: FALSE | CQI52: FALSE | CQJ52: FALSE | CQK52: FALSE | CQL52: FALSE | CQM52: FALSE | CQN52: FALSE | CQO52: FALSE | CQP52: FALSE | CQQ52: FALSE | CQR52: FALSE | CQS52: FALSE | CQT52: FALSE | CQU52: FALSE | CQV52: FALSE | CQW52: FALSE | CQX52: FALSE | CQY52: FALSE | CQZ52: FALSE | CRA52: FALSE | CRB52: FALSE | CRC52: FALSE | CRD52: FALSE | CRE52: FALSE | CRF52: FALSE | CRG52: FALSE | CRH52: FALSE | CRI52: FALSE | CRJ52: FALSE | CRK52: =IF(CRK6,CRK29/CRJ29-1) -> FALSE | CRL52: FALSE | CRM52: FALSE | CRN52: FALSE | CRO52: FALSE | CRP52: FALSE | CRQ52: FALSE | CRR52: FALSE | CRS52: FALSE | CRT52: FALSE | CRU52: FALSE | CRV52: FALSE | CRW52: FALSE | CRX52: FALSE | CRY52: FALSE | CRZ52: FALSE | CSA52: FALSE | CSB52: FALSE | CSC52: FALSE | CSD52: FALSE | CSE52: FALSE | CSF52: FALSE | CSG52: FALSE | CSH52: FALSE | CSI52: FALSE | CSJ52: FALSE | CSK52: FALSE | CSL52: FALSE | CSM52: FALSE | CSN52: FALSE | CSO52: FALSE | CSP52: FALSE | CSQ52: FALSE | CSR52: FALSE | CSS52: FALSE | CST52: FALSE | CSU52: FALSE | CSV52: FALSE | CSW52: FALSE | CSX52: FALSE | CSY52: FALSE | CSZ52: FALSE | CTA52: FALSE | CTB52: FALSE | CTC52: FALSE | CTD52: FALSE | CTE52: FALSE | CTF52: FALSE | CTG52: FALSE | CTH52: FALSE | CTI52: FALSE | CTJ52: FALSE | CTK52: FALSE | CTL52: FALSE | CTM52: FALSE | CTN52: FALSE | CTO52: FALSE | CTP52: FALSE | CTQ52: FALSE | CTR52: FALSE | CTS52: FALSE | CTT52: FALSE | CTU52: FALSE | CTV52: FALSE | CTW52: =IF(CTW6,CTW29/CTV29-1) -> FALSE | CTX52: FALSE | CTY52: FALSE | CTZ52: FALSE | CUA52: FALSE | CUB52: FALSE | CUC52: FALSE | CUD52: FALSE | CUE52: FALSE | CUF52: FALSE | CUG52: FALSE | CUH52: FALSE | CUI52: FALSE | CUJ52: FALSE | CUK52: FALSE | CUL52: FALSE | CUM52: FALSE | CUN52: FALSE | CUO52: FALSE | CUP52: FALSE | CUQ52: FALSE | CUR52: FALSE | CUS52: FALSE | CUT52: FALSE | CUU52: FALSE | CUV52: FALSE | CUW52: FALSE | CUX52: FALSE | CUY52: FALSE | CUZ52: FALSE | CVA52: FALSE | CVB52: FALSE | CVC52: FALSE | CVD52: FALSE | CVE52: FALSE | CVF52: FALSE | CVG52: FALSE | CVH52: FALSE | CVI52: FALSE | CVJ52: FALSE | CVK52: FALSE | CVL52: FALSE | CVM52: FALSE | CVN52: FALSE | CVO52: FALSE | CVP52: FALSE | CVQ52: FALSE | CVR52: FALSE | CVS52: FALSE | CVT52: FALSE | CVU52: FALSE | CVV52: FALSE | CVW52: FALSE | CVX52: FALSE | CVY52: FALSE | CVZ52: FALSE | CWA52: FALSE | CWB52: FALSE | CWC52: FALSE | CWD52: FALSE | CWE52: FALSE | CWF52: FALSE | CWG52: FALSE | CWH52: FALSE | CWI52: =IF(CWI6,CWI29/CWH29-1) -> FALSE | CWJ52: FALSE | CWK52: FALSE | CWL52: FALSE | CWM52: FALSE | CWN52: FALSE | CWO52: FALSE | CWP52: FALSE | CWQ52: FALSE | CWR52: FALSE | CWS52: FALSE | CWT52: FALSE | CWU52: FALSE | CWV52: FALSE | CWW52: FALSE | CWX52: FALSE | CWY52: FALSE | CWZ52: FALSE | CXA52: FALSE | CXB52: FALSE | CXC52: FALSE | CXD52: FALSE | CXE52: FALSE | CXF52: FALSE | CXG52: FALSE | CXH52: FALSE | CXI52: FALSE | CXJ52: FALSE | CXK52: FALSE | CXL52: FALSE | CXM52: FALSE | CXN52: FALSE | CXO52: FALSE | CXP52: FALSE | CXQ52: FALSE | CXR52: FALSE | CXS52: FALSE | CXT52: FALSE | CXU52: FALSE | CXV52: FALSE | CXW52: FALSE | CXX52: FALSE | CXY52: FALSE | CXZ52: FALSE | CYA52: FALSE | CYB52: FALSE | CYC52: FALSE | CYD52: FALSE | CYE52: FALSE | CYF52: FALSE | CYG52: FALSE | CYH52: FALSE | CYI52: FALSE | CYJ52: FALSE | CYK52: FALSE | CYL52: FALSE | CYM52: FALSE | CYN52: FALSE | CYO52: FALSE | CYP52: FALSE | CYQ52: FALSE | CYR52: FALSE | CYS52: FALSE | CYT52: FALSE | CYU52: =IF(CYU6,CYU29/CYT29-1) -> FALSE | CYV52: FALSE | CYW52: FALSE | CYX52: FALSE | CYY52: FALSE | CYZ52: FALSE | CZA52: FALSE | CZB52: FALSE | CZC52: FALSE | CZD52: FALSE | CZE52: FALSE | CZF52: FALSE | CZG52: FALSE | CZH52: FALSE | CZI52: FALSE | CZJ52: FALSE | CZK52: FALSE | CZL52: FALSE | CZM52: FALSE | CZN52: FALSE | CZO52: FALSE | CZP52: FALSE | CZQ52: FALSE | CZR52: FALSE | CZS52: FALSE | CZT52: FALSE | CZU52: FALSE | CZV52: FALSE | CZW52: FALSE | CZX52: FALSE | CZY52: FALSE | CZZ52: FALSE | DAA52: FALSE | DAB52: FALSE | DAC52: FALSE | DAD52: FALSE | DAE52: FALSE | DAF52: FALSE | DAG52: FALSE | DAH52: FALSE | DAI52: FALSE | DAJ52: FALSE | DAK52: FALSE | DAL52: FALSE | DAM52: FALSE | DAN52: FALSE | DAO52: FALSE | DAP52: FALSE | DAQ52: FALSE | DAR52: FALSE | DAS52: FALSE | DAT52: FALSE | DAU52: FALSE | DAV52: FALSE | DAW52: FALSE | DAX52: FALSE | DAY52: FALSE | DAZ52: FALSE | DBA52: FALSE | DBB52: FALSE | DBC52: FALSE | DBD52: FALSE | DBE52: FALSE | DBF52: FALSE | DBG52: =IF(DBG6,DBG29/DBF29-1) -> FALSE | DBH52: FALSE | DBI52: FALSE | DBJ52: FALSE | DBK52: FALSE | DBL52: FALSE | DBM52: FALSE | DBN52: FALSE | DBO52: FALSE | DBP52: FALSE | DBQ52: FALSE | DBR52: FALSE | DBS52: FALSE | DBT52: FALSE | DBU52: FALSE | DBV52: FALSE | DBW52: FALSE | DBX52: FALSE | DBY52: FALSE | DBZ52: FALSE | DCA52: FALSE | DCB52: FALSE | DCC52: FALSE | DCD52: FALSE | DCE52: FALSE | DCF52: FALSE | DCG52: FALSE | DCH52: FALSE | DCI52: FALSE | DCJ52: FALSE | DCK52: FALSE | DCL52: FALSE | DCM52: FALSE | DCN52: FALSE | DCO52: FALSE | DCP52: FALSE | DCQ52: FALSE | DCR52: FALSE | DCS52: FALSE | DCT52: FALSE | DCU52: FALSE | DCV52: FALSE | DCW52: FALSE | DCX52: FALSE | DCY52: FALSE | DCZ52: FALSE | DDA52: FALSE | DDB52: FALSE | DDC52: FALSE | DDD52: FALSE | DDE52: FALSE | DDF52: FALSE | DDG52: FALSE | DDH52: FALSE | DDI52: FALSE | DDJ52: FALSE | DDK52: FALSE | DDL52: FALSE | DDM52: FALSE | DDN52: FALSE | DDO52: FALSE | DDP52: FALSE | DDQ52: FALSE | DDR52: FALSE | DDS52: =IF(DDS6,DDS29/DDR29-1) -> FALSE | DDT52: FALSE | DDU52: FALSE | DDV52: FALSE | DDW52: FALSE | DDX52: FALSE | DDY52: FALSE | DDZ52: FALSE | DEA52: FALSE | DEB52: FALSE | DEC52: FALSE | DED52: FALSE | DEE52: FALSE | DEF52: FALSE | DEG52: FALSE | DEH52: FALSE | DEI52: FALSE | DEJ52: FALSE | DEK52: FALSE | DEL52: FALSE | DEM52: FALSE | DEN52: FALSE | DEO52: FALSE | DEP52: FALSE | DEQ52: FALSE | DER52: FALSE | DES52: FALSE | DET52: FALSE | DEU52: FALSE | DEV52: FALSE | DEW52: FALSE | DEX52: FALSE | DEY52: FALSE | DEZ52: FALSE | DFA52: FALSE | DFB52: FALSE | DFC52: FALSE | DFD52: FALSE | DFE52: FALSE | DFF52: FALSE | DFG52: FALSE | DFH52: FALSE | DFI52: FALSE | DFJ52: FALSE | DFK52: FALSE | DFL52: FALSE | DFM52: FALSE | DFN52: FALSE | DFO52: FALSE | DFP52: FALSE | DFQ52: FALSE | DFR52: FALSE | DFS52: FALSE | DFT52: FALSE | DFU52: FALSE | DFV52: FALSE | DFW52: FALSE | DFX52: FALSE | DFY52: FALSE | DFZ52: FALSE | DGA52: FALSE | DGB52: FALSE | DGC52: FALSE | DGD52: FALSE | DGE52: =IF(DGE6,DGE29/DGD29-1) -> FALSE | DGF52: FALSE | DGG52: FALSE | DGH52: FALSE | DGI52: FALSE | DGJ52: FALSE | DGK52: FALSE | DGL52: FALSE | DGM52: FALSE | DGN52: FALSE | DGO52: FALSE | DGP52: FALSE | DGQ52: FALSE | DGR52: FALSE | DGS52: FALSE | DGT52: FALSE | DGU52: FALSE | DGV52: FALSE | DGW52: FALSE | DGX52: FALSE | DGY52: FALSE | DGZ52: FALSE | DHA52: FALSE | DHB52: FALSE | DHC52: FALSE | DHD52: FALSE | DHE52: FALSE | DHF52: FALSE | DHG52: FALSE | DHH52: FALSE | DHI52: FALSE | DHJ52: FALSE | DHK52: FALSE | DHL52: FALSE | DHM52: FALSE | DHN52: FALSE | DHO52: FALSE | DHP52: FALSE | DHQ52: FALSE | DHR52: FALSE | DHS52: FALSE | DHT52: FALSE | DHU52: FALSE | DHV52: FALSE | DHW52: FALSE | DHX52: FALSE | DHY52: FALSE | DHZ52: FALSE | DIA52: FALSE | DIB52: FALSE | DIC52: FALSE | DID52: FALSE | DIE52: FALSE | DIF52: FALSE | DIG52: FALSE | DIH52: FALSE | DII52: FALSE | DIJ52: FALSE | DIK52: FALSE | DIL52: FALSE | DIM52: FALSE | DIN52: FALSE | DIO52: FALSE | DIP52: FALSE | DIQ52: =IF(DIQ6,DIQ29/DIP29-1) -> FALSE | DIR52: FALSE | DIS52: FALSE | DIT52: FALSE | DIU52: FALSE | DIV52: FALSE | DIW52: FALSE | DIX52: FALSE | DIY52: FALSE | DIZ52: FALSE | DJA52: FALSE | DJB52: FALSE | DJC52: FALSE | DJD52: FALSE | DJE52: FALSE | DJF52: FALSE | DJG52: FALSE | DJH52: FALSE | DJI52: FALSE | DJJ52: FALSE | DJK52: FALSE | DJL52: FALSE | DJM52: FALSE | DJN52: FALSE | DJO52: FALSE | DJP52: FALSE | DJQ52: FALSE | DJR52: FALSE | DJS52: FALSE | DJT52: FALSE | DJU52: FALSE | DJV52: FALSE | DJW52: FALSE | DJX52: FALSE | DJY52: FALSE | DJZ52: FALSE | DKA52: FALSE | DKB52: FALSE | DKC52: FALSE | DKD52: FALSE | DKE52: FALSE | DKF52: FALSE | DKG52: FALSE | DKH52: FALSE | DKI52: FALSE | DKJ52: FALSE | DKK52: FALSE | DKL52: FALSE | DKM52: FALSE | DKN52: FALSE | DKO52: FALSE | DKP52: FALSE | DKQ52: FALSE | DKR52: FALSE | DKS52: FALSE | DKT52: FALSE | DKU52: FALSE | DKV52: FALSE | DKW52: FALSE | DKX52: FALSE | DKY52: FALSE | DKZ52: FALSE | DLA52: FALSE | DLB52: FALSE | DLC52: =IF(DLC6,DLC29/DLB29-1) -> FALSE | DLD52: FALSE | DLE52: FALSE | DLF52: FALSE | DLG52: FALSE | DLH52: FALSE | DLI52: FALSE | DLJ52: FALSE | DLK52: FALSE | DLL52: FALSE | DLM52: FALSE | DLN52: FALSE | DLO52: FALSE | DLP52: FALSE | DLQ52: FALSE | DLR52: FALSE | DLS52: FALSE | DLT52: FALSE | DLU52: FALSE | DLV52: FALSE | DLW52: FALSE | DLX52: FALSE | DLY52: FALSE | DLZ52: FALSE | DMA52: FALSE | DMB52: FALSE | DMC52: FALSE | DMD52: FALSE | DME52: FALSE | DMF52: FALSE | DMG52: FALSE | DMH52: FALSE | DMI52: FALSE | DMJ52: FALSE | DMK52: FALSE | DML52: FALSE | DMM52: FALSE | DMN52: FALSE | DMO52: FALSE | DMP52: FALSE | DMQ52: FALSE | DMR52: FALSE | DMS52: FALSE | DMT52: FALSE | DMU52: FALSE | DMV52: FALSE | DMW52: FALSE | DMX52: FALSE | DMY52: FALSE | DMZ52: FALSE | DNA52: FALSE | DNB52: FALSE | DNC52: FALSE | DND52: FALSE | DNE52: FALSE | DNF52: FALSE | DNG52: FALSE | DNH52: FALSE | DNI52: FALSE | DNJ52: FALSE | DNK52: FALSE | DNL52: FALSE | DNM52: FALSE | DNN52: FALSE | DNO52: =IF(DNO6,DNO29/DNN29-1) -> FALSE | DNP52: FALSE | DNQ52: FALSE | DNR52: FALSE | DNS52: FALSE | DNT52: FALSE | DNU52: FALSE | DNV52: FALSE | DNW52: FALSE | DNX52: FALSE | DNY52: FALSE | DNZ52: FALSE | DOA52: FALSE | DOB52: FALSE | DOC52: FALSE | DOD52: FALSE | DOE52: FALSE | DOF52: FALSE | DOG52: FALSE | DOH52: FALSE | DOI52: FALSE | DOJ52: FALSE | DOK52: FALSE | DOL52: FALSE | DOM52: FALSE | DON52: FALSE | DOO52: FALSE | DOP52: FALSE | DOQ52: FALSE | DOR52: FALSE | DOS52: FALSE | DOT52: FALSE | DOU52: FALSE | DOV52: FALSE | DOW52: FALSE | DOX52: FALSE | DOY52: FALSE | DOZ52: FALSE | DPA52: FALSE | DPB52: FALSE | DPC52: FALSE | DPD52: FALSE | DPE52: FALSE | DPF52: FALSE | DPG52: FALSE | DPH52: FALSE | DPI52: FALSE | DPJ52: FALSE | DPK52: FALSE | DPL52: FALSE | DPM52: FALSE | DPN52: FALSE | DPO52: FALSE | DPP52: FALSE | DPQ52: FALSE | DPR52: FALSE | DPS52: FALSE | DPT52: FALSE | DPU52: FALSE | DPV52: FALSE | DPW52: FALSE | DPX52: FALSE | DPY52: FALSE | DPZ52: FALSE | DQA52: =IF(DQA6,DQA29/DPZ29-1) -> FALSE | DQB52: FALSE | DQC52: FALSE | DQD52: FALSE | DQE52: FALSE | DQF52: FALSE | DQG52: FALSE | DQH52: FALSE | DQI52: FALSE | DQJ52: FALSE | DQK52: FALSE | DQL52: FALSE | DQM52: FALSE | DQN52: FALSE | DQO52: FALSE | DQP52: FALSE | DQQ52: FALSE | DQR52: FALSE | DQS52: FALSE | DQT52: FALSE | DQU52: FALSE | DQV52: FALSE | DQW52: FALSE | DQX52: FALSE | DQY52: FALSE | DQZ52: FALSE | DRA52: FALSE | DRB52: FALSE | DRC52: FALSE | DRD52: FALSE | DRE52: FALSE | DRF52: FALSE | DRG52: FALSE | DRH52: FALSE | DRI52: FALSE | DRJ52: FALSE | DRK52: FALSE | DRL52: FALSE | DRM52: FALSE | DRN52: FALSE | DRO52: FALSE | DRP52: FALSE | DRQ52: FALSE | DRR52: FALSE | DRS52: FALSE | DRT52: FALSE | DRU52: FALSE | DRV52: FALSE | DRW52: FALSE | DRX52: FALSE | DRY52: FALSE | DRZ52: FALSE | DSA52: FALSE | DSB52: FALSE | DSC52: FALSE | DSD52: FALSE | DSE52: FALSE | DSF52: FALSE | DSG52: FALSE | DSH52: FALSE | DSI52: FALSE | DSJ52: FALSE | DSK52: FALSE | DSL52: FALSE | DSM52: =IF(DSM6,DSM29/DSL29-1) -> FALSE | DSN52: FALSE | DSO52: FALSE | DSP52: FALSE | DSQ52: FALSE | DSR52: FALSE | DSS52: FALSE | DST52: FALSE | DSU52: FALSE | DSV52: FALSE | DSW52: FALSE | DSX52: FALSE | DSY52: FALSE | DSZ52: FALSE | DTA52: FALSE | DTB52: FALSE | DTC52: FALSE | DTD52: FALSE | DTE52: FALSE | DTF52: FALSE | DTG52: FALSE | DTH52: FALSE | DTI52: FALSE | DTJ52: FALSE | DTK52: FALSE | DTL52: FALSE | DTM52: FALSE | DTN52: FALSE | DTO52: FALSE | DTP52: FALSE | DTQ52: FALSE | DTR52: FALSE | DTS52: FALSE | DTT52: FALSE | DTU52: FALSE | DTV52: FALSE | DTW52: FALSE | DTX52: FALSE | DTY52: FALSE | DTZ52: FALSE | DUA52: FALSE | DUB52: FALSE | DUC52: FALSE | DUD52: FALSE | DUE52: FALSE | DUF52: FALSE | DUG52: FALSE | DUH52: FALSE | DUI52: FALSE | DUJ52: FALSE | DUK52: FALSE | DUL52: FALSE | DUM52: FALSE | DUN52: FALSE | DUO52: FALSE | DUP52: FALSE | DUQ52: FALSE | DUR52: FALSE | DUS52: FALSE | DUT52: FALSE | DUU52: FALSE | DUV52: FALSE | DUW52: FALSE | DUX52: FALSE | DUY52: =IF(DUY6,DUY29/DUX29-1) -> FALSE | DUZ52: FALSE | DVA52: FALSE | DVB52: FALSE | DVC52: FALSE | DVD52: FALSE | DVE52: FALSE | DVF52: FALSE | DVG52: FALSE | DVH52: FALSE | DVI52: FALSE | DVJ52: FALSE | DVK52: FALSE | DVL52: FALSE | DVM52: FALSE | DVN52: FALSE | DVO52: FALSE | DVP52: FALSE | DVQ52: FALSE | DVR52: FALSE | DVS52: FALSE | DVT52: FALSE | DVU52: FALSE | DVV52: FALSE | DVW52: FALSE | DVX52: FALSE | DVY52: FALSE | DVZ52: FALSE | DWA52: FALSE | DWB52: FALSE | DWC52: FALSE | DWD52: FALSE | DWE52: FALSE | DWF52: FALSE | DWG52: FALSE | DWH52: FALSE | DWI52: FALSE | DWJ52: FALSE | DWK52: FALSE | DWL52: FALSE | DWM52: FALSE | DWN52: FALSE | DWO52: FALSE | DWP52: FALSE | DWQ52: FALSE | DWR52: FALSE | DWS52: FALSE | DWT52: FALSE | DWU52: FALSE | DWV52: FALSE | DWW52: FALSE | DWX52: FALSE | DWY52: FALSE | DWZ52: FALSE | DXA52: FALSE | DXB52: FALSE | DXC52: FALSE | DXD52: FALSE | DXE52: FALSE | DXF52: FALSE | DXG52: FALSE | DXH52: FALSE | DXI52: FALSE | DXJ52: FALSE | DXK52: =IF(DXK6,DXK29/DXJ29-1) -> FALSE | DXL52: FALSE | DXM52: FALSE | DXN52: FALSE | DXO52: FALSE | DXP52: FALSE | DXQ52: FALSE | DXR52: FALSE | DXS52: FALSE | DXT52: FALSE | DXU52: FALSE | DXV52: FALSE | DXW52: FALSE | DXX52: FALSE | DXY52: FALSE | DXZ52: FALSE | DYA52: FALSE | DYB52: FALSE | DYC52: FALSE | DYD52: FALSE | DYE52: FALSE | DYF52: FALSE | DYG52: FALSE | DYH52: FALSE | DYI52: FALSE | DYJ52: FALSE | DYK52: FALSE | DYL52: FALSE | DYM52: FALSE | DYN52: FALSE | DYO52: FALSE | DYP52: FALSE | DYQ52: FALSE | DYR52: FALSE | DYS52: FALSE | DYT52: FALSE | DYU52: FALSE | DYV52: FALSE | DYW52: FALSE | DYX52: FALSE | DYY52: FALSE | DYZ52: FALSE | DZA52: FALSE | DZB52: FALSE | DZC52: FALSE | DZD52: FALSE | DZE52: FALSE | DZF52: FALSE | DZG52: FALSE | DZH52: FALSE | DZI52: FALSE | DZJ52: FALSE | DZK52: FALSE | DZL52: FALSE | DZM52: FALSE | DZN52: FALSE | DZO52: FALSE | DZP52: FALSE | DZQ52: FALSE | DZR52: FALSE | DZS52: FALSE | DZT52: FALSE | DZU52: FALSE | DZV52: FALSE | DZW52: =IF(DZW6,DZW29/DZV29-1) -> FALSE | DZX52: FALSE | DZY52: FALSE | DZZ52: FALSE | EAA52: FALSE | EAB52: FALSE | EAC52: FALSE | EAD52: FALSE | EAE52: FALSE | EAF52: FALSE | EAG52: FALSE | EAH52: FALSE | EAI52: FALSE | EAJ52: FALSE | EAK52: FALSE | EAL52: FALSE | EAM52: FALSE | EAN52: FALSE | EAO52: FALSE | EAP52: FALSE | EAQ52: FALSE | EAR52: FALSE | EAS52: FALSE | EAT52: FALSE | EAU52: FALSE | EAV52: FALSE | EAW52: FALSE | EAX52: FALSE | EAY52: FALSE | EAZ52: FALSE | EBA52: FALSE | EBB52: FALSE | EBC52: FALSE | EBD52: FALSE | EBE52: FALSE | EBF52: FALSE | EBG52: FALSE | EBH52: FALSE | EBI52: FALSE | EBJ52: FALSE | EBK52: FALSE | EBL52: FALSE | EBM52: FALSE | EBN52: FALSE | EBO52: FALSE | EBP52: FALSE | EBQ52: FALSE | EBR52: FALSE | EBS52: FALSE | EBT52: FALSE | EBU52: FALSE | EBV52: FALSE | EBW52: FALSE | EBX52: FALSE | EBY52: FALSE | EBZ52: FALSE | ECA52: FALSE | ECB52: FALSE | ECC52: FALSE | ECD52: FALSE | ECE52: FALSE | ECF52: FALSE | ECG52: FALSE | ECH52: FALSE | ECI52: =IF(ECI6,ECI29/ECH29-1) -> FALSE | ECJ52: FALSE | ECK52: FALSE | ECL52: FALSE | ECM52: FALSE | ECN52: FALSE | ECO52: FALSE | ECP52: FALSE | ECQ52: FALSE | ECR52: FALSE | ECS52: FALSE | ECT52: FALSE | ECU52: FALSE | ECV52: FALSE | ECW52: FALSE | ECX52: FALSE | ECY52: FALSE | ECZ52: FALSE | EDA52: FALSE | EDB52: FALSE | EDC52: FALSE | EDD52: FALSE | EDE52: FALSE | EDF52: FALSE | EDG52: FALSE | EDH52: FALSE | EDI52: FALSE | EDJ52: FALSE | EDK52: FALSE | EDL52: FALSE | EDM52: FALSE | EDN52: FALSE | EDO52: FALSE | EDP52: FALSE | EDQ52: FALSE | EDR52: FALSE | EDS52: FALSE | EDT52: FALSE | EDU52: FALSE | EDV52: FALSE | EDW52: FALSE | EDX52: FALSE | EDY52: FALSE | EDZ52: FALSE | EEA52: FALSE | EEB52: FALSE | EEC52: FALSE | EED52: FALSE | EEE52: FALSE | EEF52: FALSE | EEG52: FALSE | EEH52: FALSE | EEI52: FALSE | EEJ52: FALSE | EEK52: FALSE | EEL52: FALSE | EEM52: FALSE | EEN52: FALSE | EEO52: FALSE | EEP52: FALSE | EEQ52: FALSE | EER52: FALSE | EES52: FALSE | EET52: FALSE | EEU52: =IF(EEU6,EEU29/EET29-1) -> FALSE | EEV52: FALSE | EEW52: FALSE | EEX52: FALSE | EEY52: FALSE | EEZ52: FALSE | EFA52: FALSE | EFB52: FALSE | EFC52: FALSE | EFD52: FALSE | EFE52: FALSE | EFF52: FALSE | EFG52: FALSE | EFH52: FALSE | EFI52: FALSE | EFJ52: FALSE | EFK52: FALSE | EFL52: FALSE | EFM52: FALSE | EFN52: FALSE | EFO52: FALSE | EFP52: FALSE | EFQ52: FALSE | EFR52: FALSE | EFS52: FALSE | EFT52: FALSE | EFU52: FALSE | EFV52: FALSE | EFW52: FALSE | EFX52: FALSE | EFY52: FALSE | EFZ52: FALSE | EGA52: FALSE | EGB52: FALSE | EGC52: FALSE | EGD52: FALSE | EGE52: FALSE | EGF52: FALSE | EGG52: FALSE | EGH52: FALSE | EGI52: FALSE | EGJ52: FALSE | EGK52: FALSE | EGL52: FALSE | EGM52: FALSE | EGN52: FALSE | EGO52: FALSE | EGP52: FALSE | EGQ52: FALSE | EGR52: FALSE | EGS52: FALSE | EGT52: FALSE | EGU52: FALSE | EGV52: FALSE | EGW52: FALSE | EGX52: FALSE | EGY52: FALSE | EGZ52: FALSE | EHA52: FALSE | EHB52: FALSE | EHC52: FALSE | EHD52: FALSE | EHE52: FALSE | EHF52: FALSE | EHG52: =IF(EHG6,EHG29/EHF29-1) -> FALSE | EHH52: FALSE | EHI52: FALSE | EHJ52: FALSE | EHK52: FALSE | EHL52: FALSE | EHM52: FALSE | EHN52: FALSE | EHO52: FALSE | EHP52: FALSE | EHQ52: FALSE | EHR52: FALSE | EHS52: FALSE | EHT52: FALSE | EHU52: FALSE | EHV52: FALSE | EHW52: FALSE | EHX52: FALSE | EHY52: FALSE | EHZ52: FALSE | EIA52: FALSE | EIB52: FALSE | EIC52: FALSE | EID52: FALSE | EIE52: FALSE | EIF52: FALSE | EIG52: FALSE | EIH52: FALSE | EII52: FALSE | EIJ52: FALSE | EIK52: FALSE | EIL52: FALSE | EIM52: FALSE | EIN52: FALSE | EIO52: FALSE | EIP52: FALSE | EIQ52: FALSE | EIR52: FALSE | EIS52: FALSE | EIT52: FALSE | EIU52: FALSE | EIV52: FALSE | EIW52: FALSE | EIX52: FALSE | EIY52: FALSE | EIZ52: FALSE | EJA52: FALSE | EJB52: FALSE | EJC52: FALSE | EJD52: FALSE | EJE52: FALSE | EJF52: FALSE | EJG52: FALSE | EJH52: FALSE | EJI52: FALSE | EJJ52: FALSE | EJK52: FALSE | EJL52: FALSE | EJM52: FALSE | EJN52: FALSE | EJO52: FALSE | EJP52: FALSE | EJQ52: FALSE | EJR52: FALSE | EJS52: =IF(EJS6,EJS29/EJR29-1) -> FALSE | EJT52: FALSE | EJU52: FALSE | EJV52: FALSE | EJW52: FALSE | EJX52: FALSE | EJY52: FALSE | EJZ52: FALSE | EKA52: FALSE | EKB52: FALSE | EKC52: FALSE | EKD52: FALSE | EKE52: FALSE | EKF52: FALSE | EKG52: FALSE | EKH52: FALSE | EKI52: FALSE | EKJ52: FALSE | EKK52: FALSE | EKL52: FALSE | EKM52: FALSE | EKN52: FALSE | EKO52: FALSE | EKP52: FALSE | EKQ52: FALSE | EKR52: FALSE | EKS52: FALSE | EKT52: FALSE | EKU52: FALSE | EKV52: FALSE | EKW52: FALSE | EKX52: FALSE | EKY52: FALSE | EKZ52: FALSE | ELA52: FALSE | ELB52: FALSE | ELC52: FALSE | ELD52: FALSE | ELE52: FALSE | ELF52: FALSE | ELG52: FALSE | ELH52: FALSE | ELI52: FALSE | ELJ52: FALSE | ELK52: FALSE | ELL52: FALSE | ELM52: FALSE | ELN52: FALSE | ELO52: FALSE | ELP52: FALSE | ELQ52: FALSE | ELR52: FALSE | ELS52: FALSE | ELT52: FALSE | ELU52: FALSE | ELV52: FALSE | ELW52: FALSE | ELX52: FALSE | ELY52: FALSE | ELZ52: FALSE | EMA52: FALSE | EMB52: FALSE | EMC52: FALSE | EMD52: FALSE | EME52: =IF(EME6,EME29/EMD29-1) -> FALSE | EMF52: FALSE | EMG52: FALSE | EMH52: FALSE | EMI52: FALSE | EMJ52: FALSE | EMK52: FALSE | EML52: FALSE | EMM52: FALSE | EMN52: FALSE | EMO52: FALSE | EMP52: FALSE | EMQ52: FALSE | EMR52: FALSE | EMS52: FALSE | EMT52: FALSE | EMU52: FALSE | EMV52: FALSE | EMW52: FALSE | EMX52: FALSE | EMY52: FALSE | EMZ52: FALSE | ENA52: FALSE | ENB52: FALSE | ENC52: FALSE | END52: FALSE | ENE52: FALSE | ENF52: FALSE | ENG52: FALSE | ENH52: FALSE | ENI52: FALSE | ENJ52: FALSE | ENK52: FALSE | ENL52: FALSE | ENM52: FALSE | ENN52: FALSE | ENO52: FALSE | ENP52: FALSE | ENQ52: FALSE | ENR52: FALSE | ENS52: FALSE | ENT52: FALSE | ENU52: FALSE | ENV52: FALSE | ENW52: FALSE | ENX52: FALSE | ENY52: FALSE | ENZ52: FALSE | EOA52: FALSE | EOB52: FALSE | EOC52: FALSE | EOD52: FALSE | EOE52: FALSE | EOF52: FALSE | EOG52: FALSE | EOH52: FALSE | EOI52: FALSE | EOJ52: FALSE | EOK52: FALSE | EOL52: FALSE | EOM52: FALSE | EON52: FALSE | EOO52: FALSE | EOP52: FALSE | EOQ52: =IF(EOQ6,EOQ29/EOP29-1) -> FALSE | EOR52: FALSE | EOS52: FALSE | EOT52: FALSE | EOU52: FALSE | EOV52: FALSE | EOW52: FALSE | EOX52: FALSE | EOY52: FALSE | EOZ52: FALSE | EPA52: FALSE | EPB52: FALSE | EPC52: FALSE | EPD52: FALSE | EPE52: FALSE | EPF52: FALSE | EPG52: FALSE | EPH52: FALSE | EPI52: FALSE | EPJ52: FALSE | EPK52: FALSE | EPL52: FALSE | EPM52: FALSE | EPN52: FALSE | EPO52: FALSE | EPP52: FALSE | EPQ52: FALSE | EPR52: FALSE | EPS52: FALSE | EPT52: FALSE | EPU52: FALSE | EPV52: FALSE | EPW52: FALSE | EPX52: FALSE | EPY52: FALSE | EPZ52: FALSE | EQA52: FALSE | EQB52: FALSE | EQC52: FALSE | EQD52: FALSE | EQE52: FALSE | EQF52: FALSE | EQG52: FALSE | EQH52: FALSE | EQI52: FALSE | EQJ52: FALSE | EQK52: FALSE | EQL52: FALSE | EQM52: FALSE | EQN52: FALSE | EQO52: FALSE | EQP52: FALSE | EQQ52: FALSE | EQR52: FALSE | EQS52: FALSE | EQT52: FALSE | EQU52: FALSE | EQV52: FALSE | EQW52: FALSE | EQX52: FALSE | EQY52: FALSE | EQZ52: FALSE | ERA52: FALSE | ERB52: FALSE | ERC52: =IF(ERC6,ERC29/ERB29-1) -> FALSE | ERD52: FALSE | ERE52: FALSE | ERF52: FALSE | ERG52: FALSE | ERH52: FALSE | ERI52: FALSE | ERJ52: FALSE | ERK52: FALSE | ERL52: FALSE | ERM52: FALSE | ERN52: FALSE | ERO52: FALSE | ERP52: FALSE | ERQ52: FALSE | ERR52: FALSE | ERS52: FALSE | ERT52: FALSE | ERU52: FALSE | ERV52: FALSE | ERW52: FALSE | ERX52: FALSE | ERY52: FALSE | ERZ52: FALSE | ESA52: FALSE | ESB52: FALSE | ESC52: FALSE | ESD52: FALSE | ESE52: FALSE | ESF52: FALSE | ESG52: FALSE | ESH52: FALSE | ESI52: FALSE | ESJ52: FALSE | ESK52: FALSE | ESL52: FALSE | ESM52: FALSE | ESN52: FALSE | ESO52: FALSE | ESP52: FALSE | ESQ52: FALSE | ESR52: FALSE | ESS52: FALSE | EST52: FALSE | ESU52: FALSE | ESV52: FALSE | ESW52: FALSE | ESX52: FALSE | ESY52: FALSE | ESZ52: FALSE | ETA52: FALSE | ETB52: FALSE | ETC52: FALSE | ETD52: FALSE | ETE52: FALSE | ETF52: FALSE | ETG52: FALSE | ETH52: FALSE | ETI52: FALSE | ETJ52: FALSE | ETK52: FALSE | ETL52: FALSE | ETM52: FALSE | ETN52: FALSE | ETO52: =IF(ETO6,ETO29/ETN29-1) -> FALSE | ETP52: FALSE | ETQ52: FALSE | ETR52: FALSE | ETS52: FALSE | ETT52: FALSE | ETU52: FALSE | ETV52: FALSE | ETW52: FALSE | ETX52: FALSE | ETY52: FALSE | ETZ52: FALSE | EUA52: FALSE | EUB52: FALSE | EUC52: FALSE | EUD52: FALSE | EUE52: FALSE | EUF52: FALSE | EUG52: FALSE | EUH52: FALSE | EUI52: FALSE | EUJ52: FALSE | EUK52: FALSE | EUL52: FALSE | EUM52: FALSE | EUN52: FALSE | EUO52: FALSE | EUP52: FALSE | EUQ52: FALSE | EUR52: FALSE | EUS52: FALSE | EUT52: FALSE | EUU52: FALSE | EUV52: FALSE | EUW52: FALSE | EUX52: FALSE | EUY52: FALSE | EUZ52: FALSE | EVA52: FALSE | EVB52: FALSE | EVC52: FALSE | EVD52: FALSE | EVE52: FALSE | EVF52: FALSE | EVG52: FALSE | EVH52: FALSE | EVI52: FALSE | EVJ52: FALSE | EVK52: FALSE | EVL52: FALSE | EVM52: FALSE | EVN52: FALSE | EVO52: FALSE | EVP52: FALSE | EVQ52: FALSE | EVR52: FALSE | EVS52: FALSE | EVT52: FALSE | EVU52: FALSE | EVV52: FALSE | EVW52: FALSE | EVX52: FALSE | EVY52: FALSE | EVZ52: FALSE | EWA52: =IF(EWA6,EWA29/EVZ29-1) -> FALSE | EWB52: FALSE | EWC52: FALSE | EWD52: FALSE | EWE52: FALSE | EWF52: FALSE | EWG52: FALSE | EWH52: FALSE | EWI52: FALSE | EWJ52: FALSE | EWK52: FALSE | EWL52: FALSE | EWM52: FALSE | EWN52: FALSE | EWO52: FALSE | EWP52: FALSE | EWQ52: FALSE | EWR52: FALSE | EWS52: FALSE | EWT52: FALSE | EWU52: FALSE | EWV52: FALSE | EWW52: FALSE | EWX52: FALSE | EWY52: FALSE | EWZ52: FALSE | EXA52: FALSE | EXB52: FALSE | EXC52: FALSE | EXD52: FALSE | EXE52: FALSE | EXF52: FALSE | EXG52: FALSE | EXH52: FALSE | EXI52: FALSE | EXJ52: FALSE | EXK52: FALSE | EXL52: FALSE | EXM52: FALSE | EXN52: FALSE | EXO52: FALSE | EXP52: FALSE | EXQ52: FALSE | EXR52: FALSE | EXS52: FALSE | EXT52: FALSE | EXU52: FALSE | EXV52: FALSE | EXW52: FALSE | EXX52: FALSE | EXY52: FALSE | EXZ52: FALSE | EYA52: FALSE | EYB52: FALSE | EYC52: FALSE | EYD52: FALSE | EYE52: FALSE | EYF52: FALSE | EYG52: FALSE | EYH52: FALSE | EYI52: FALSE | EYJ52: FALSE | EYK52: FALSE | EYL52: FALSE | EYM52: =IF(EYM6,EYM29/EYL29-1) -> FALSE | EYN52: FALSE | EYO52: FALSE | EYP52: FALSE | EYQ52: FALSE | EYR52: FALSE | EYS52: FALSE | EYT52: FALSE | EYU52: FALSE | EYV52: FALSE | EYW52: FALSE | EYX52: FALSE | EYY52: FALSE | EYZ52: FALSE | EZA52: FALSE | EZB52: FALSE | EZC52: FALSE | EZD52: FALSE | EZE52: FALSE | EZF52: FALSE | EZG52: FALSE | EZH52: FALSE | EZI52: FALSE | EZJ52: FALSE | EZK52: FALSE | EZL52: FALSE | EZM52: FALSE | EZN52: FALSE | EZO52: FALSE | EZP52: FALSE | EZQ52: FALSE | EZR52: FALSE | EZS52: FALSE | EZT52: FALSE | EZU52: FALSE | EZV52: FALSE | EZW52: FALSE | EZX52: FALSE | EZY52: FALSE | EZZ52: FALSE | FAA52: FALSE | FAB52: FALSE | FAC52: FALSE | FAD52: FALSE | FAE52: FALSE | FAF52: FALSE | FAG52: FALSE | FAH52: FALSE | FAI52: FALSE | FAJ52: FALSE | FAK52: FALSE | FAL52: FALSE | FAM52: FALSE | FAN52: FALSE | FAO52: FALSE | FAP52: FALSE | FAQ52: FALSE | FAR52: FALSE | FAS52: FALSE | FAT52: FALSE | FAU52: FALSE | FAV52: FALSE | FAW52: FALSE | FAX52: FALSE | FAY52: =IF(FAY6,FAY29/FAX29-1) -> FALSE | FAZ52: FALSE | FBA52: FALSE | FBB52: FALSE | FBC52: FALSE | FBD52: FALSE | FBE52: FALSE | FBF52: FALSE | FBG52: FALSE | FBH52: FALSE | FBI52: FALSE | FBJ52: FALSE | FBK52: FALSE | FBL52: FALSE | FBM52: FALSE | FBN52: FALSE | FBO52: FALSE | FBP52: FALSE | FBQ52: FALSE | FBR52: FALSE | FBS52: FALSE | FBT52: FALSE | FBU52: FALSE | FBV52: FALSE | FBW52: FALSE | FBX52: FALSE | FBY52: FALSE | FBZ52: FALSE | FCA52: FALSE | FCB52: FALSE | FCC52: FALSE | FCD52: FALSE | FCE52: FALSE | FCF52: FALSE | FCG52: FALSE | FCH52: FALSE | FCI52: FALSE | FCJ52: FALSE | FCK52: FALSE | FCL52: FALSE | FCM52: FALSE | FCN52: FALSE | FCO52: FALSE | FCP52: FALSE | FCQ52: FALSE | FCR52: FALSE | FCS52: FALSE | FCT52: FALSE | FCU52: FALSE | FCV52: FALSE | FCW52: FALSE | FCX52: FALSE | FCY52: FALSE | FCZ52: FALSE | FDA52: FALSE | FDB52: FALSE | FDC52: FALSE | FDD52: FALSE | FDE52: FALSE | FDF52: FALSE | FDG52: FALSE | FDH52: FALSE | FDI52: FALSE | FDJ52: FALSE | FDK52: =IF(FDK6,FDK29/FDJ29-1) -> FALSE | FDL52: FALSE | FDM52: FALSE | FDN52: FALSE | FDO52: FALSE | FDP52: FALSE | FDQ52: FALSE | FDR52: FALSE | FDS52: FALSE | FDT52: FALSE | FDU52: FALSE | FDV52: FALSE | FDW52: FALSE | FDX52: FALSE | FDY52: FALSE | FDZ52: FALSE | FEA52: FALSE | FEB52: FALSE | FEC52: FALSE | FED52: FALSE | FEE52: FALSE | FEF52: FALSE | FEG52: FALSE | FEH52: FALSE | FEI52: FALSE | FEJ52: FALSE | FEK52: FALSE | FEL52: FALSE | FEM52: FALSE | FEN52: FALSE | FEO52: FALSE | FEP52: FALSE | FEQ52: FALSE | FER52: FALSE | FES52: FALSE | FET52: FALSE | FEU52: FALSE | FEV52: FALSE | FEW52: FALSE | FEX52: FALSE | FEY52: FALSE | FEZ52: FALSE | FFA52: FALSE | FFB52: FALSE | FFC52: FALSE | FFD52: FALSE | FFE52: FALSE | FFF52: FALSE | FFG52: FALSE | FFH52: FALSE | FFI52: FALSE | FFJ52: FALSE | FFK52: FALSE | FFL52: FALSE | FFM52: FALSE | FFN52: FALSE | FFO52: FALSE | FFP52: FALSE | FFQ52: FALSE | FFR52: FALSE | FFS52: FALSE | FFT52: FALSE | FFU52: FALSE | FFV52: FALSE | FFW52: =IF(FFW6,FFW29/FFV29-1) -> FALSE | FFX52: FALSE | FFY52: FALSE | FFZ52: FALSE | FGA52: FALSE | FGB52: FALSE | FGC52: FALSE | FGD52: FALSE | FGE52: FALSE | FGF52: FALSE | FGG52: FALSE | FGH52: FALSE | FGI52: FALSE | FGJ52: FALSE | FGK52: FALSE | FGL52: FALSE | FGM52: FALSE | FGN52: FALSE | FGO52: FALSE | FGP52: FALSE | FGQ52: FALSE | FGR52: FALSE | FGS52: FALSE | FGT52: FALSE | FGU52: FALSE | FGV52: FALSE | FGW52: FALSE | FGX52: FALSE | FGY52: FALSE | FGZ52: FALSE | FHA52: FALSE | FHB52: FALSE | FHC52: FALSE | FHD52: FALSE | FHE52: FALSE | FHF52: FALSE | FHG52: FALSE | FHH52: FALSE | FHI52: FALSE | FHJ52: FALSE | FHK52: FALSE | FHL52: FALSE | FHM52: FALSE | FHN52: FALSE | FHO52: FALSE | FHP52: FALSE | FHQ52: FALSE | FHR52: FALSE | FHS52: FALSE | FHT52: FALSE | FHU52: FALSE | FHV52: FALSE | FHW52: FALSE | FHX52: FALSE | FHY52: FALSE | FHZ52: FALSE | FIA52: FALSE | FIB52: FALSE | FIC52: FALSE | FID52: FALSE | FIE52: FALSE | FIF52: FALSE | FIG52: FALSE | FIH52: FALSE | FII52: =IF(FII6,FII29/FIH29-1) -> FALSE | FIJ52: FALSE | FIK52: FALSE | FIL52: FALSE | FIM52: FALSE | FIN52: FALSE | FIO52: FALSE | FIP52: FALSE | FIQ52: FALSE | FIR52: FALSE | FIS52: FALSE | FIT52: FALSE | FIU52: FALSE | FIV52: FALSE | FIW52: FALSE | FIX52: FALSE | FIY52: FALSE | FIZ52: FALSE | FJA52: FALSE | FJB52: FALSE | FJC52: FALSE | FJD52: FALSE | FJE52: FALSE | FJF52: FALSE | FJG52: FALSE | FJH52: FALSE | FJI52: FALSE | FJJ52: FALSE | FJK52: FALSE | FJL52: FALSE | FJM52: FALSE | FJN52: FALSE | FJO52: FALSE | FJP52: FALSE | FJQ52: FALSE | FJR52: FALSE | FJS52: FALSE | FJT52: FALSE | FJU52: FALSE | FJV52: FALSE | FJW52: FALSE | FJX52: FALSE | FJY52: FALSE | FJZ52: FALSE | FKA52: FALSE | FKB52: FALSE | FKC52: FALSE | FKD52: FALSE | FKE52: FALSE | FKF52: FALSE | FKG52: FALSE | FKH52: FALSE | FKI52: FALSE | FKJ52: FALSE | FKK52: FALSE | FKL52: FALSE | FKM52: FALSE | FKN52: FALSE | FKO52: FALSE | FKP52: FALSE | FKQ52: FALSE | FKR52: FALSE | FKS52: FALSE | FKT52: FALSE | FKU52: =IF(FKU6,FKU29/FKT29-1) -> FALSE | FKV52: FALSE | FKW52: FALSE | FKX52: FALSE | FKY52: FALSE | FKZ52: FALSE | FLA52: FALSE | FLB52: FALSE | FLC52: FALSE | FLD52: FALSE | FLE52: FALSE | FLF52: FALSE | FLG52: FALSE | FLH52: FALSE | FLI52: FALSE | FLJ52: FALSE | FLK52: FALSE | FLL52: FALSE | FLM52: FALSE | FLN52: FALSE | FLO52: FALSE | FLP52: FALSE | FLQ52: FALSE | FLR52: FALSE | FLS52: FALSE | FLT52: FALSE | FLU52: FALSE | FLV52: FALSE | FLW52: FALSE | FLX52: FALSE | FLY52: FALSE | FLZ52: FALSE | FMA52: FALSE | FMB52: FALSE | FMC52: FALSE | FMD52: FALSE | FME52: FALSE | FMF52: FALSE | FMG52: FALSE | FMH52: FALSE | FMI52: FALSE | FMJ52: FALSE | FMK52: FALSE | FML52: FALSE | FMM52: FALSE | FMN52: FALSE | FMO52: FALSE | FMP52: FALSE | FMQ52: FALSE | FMR52: FALSE | FMS52: FALSE | FMT52: FALSE | FMU52: FALSE | FMV52: FALSE | FMW52: FALSE | FMX52: FALSE | FMY52: FALSE | FMZ52: FALSE | FNA52: FALSE | FNB52: FALSE | FNC52: FALSE | FND52: FALSE | FNE52: FALSE | FNF52: FALSE | FNG52: =IF(FNG6,FNG29/FNF29-1) -> FALSE | FNH52: FALSE | FNI52: FALSE | FNJ52: FALSE | FNK52: FALSE | FNL52: FALSE | FNM52: FALSE | FNN52: FALSE | FNO52: FALSE | FNP52: FALSE | FNQ52: FALSE | FNR52: FALSE | FNS52: FALSE | FNT52: FALSE | FNU52: FALSE | FNV52: FALSE | FNW52: FALSE | FNX52: FALSE | FNY52: FALSE | FNZ52: FALSE | FOA52: FALSE | FOB52: FALSE | FOC52: FALSE | FOD52: FALSE | FOE52: FALSE | FOF52: FALSE | FOG52: FALSE | FOH52: FALSE | FOI52: FALSE | FOJ52: FALSE | FOK52: FALSE | FOL52: FALSE | FOM52: FALSE | FON52: FALSE | FOO52: FALSE | FOP52: FALSE | FOQ52: FALSE | FOR52: FALSE | FOS52: FALSE | FOT52: FALSE | FOU52: FALSE | FOV52: FALSE | FOW52: FALSE | FOX52: FALSE | FOY52: FALSE | FOZ52: FALSE | FPA52: FALSE | FPB52: FALSE | FPC52: FALSE | FPD52: FALSE | FPE52: FALSE | FPF52: FALSE | FPG52: FALSE | FPH52: FALSE | FPI52: FALSE | FPJ52: FALSE | FPK52: FALSE | FPL52: FALSE | FPM52: FALSE | FPN52: FALSE | FPO52: FALSE | FPP52: FALSE | FPQ52: FALSE | FPR52: FALSE | FPS52: =IF(FPS6,FPS29/FPR29-1) -> FALSE | FPT52: FALSE | FPU52: FALSE | FPV52: FALSE | FPW52: FALSE | FPX52: FALSE | FPY52: FALSE | FPZ52: FALSE | FQA52: FALSE | FQB52: FALSE | FQC52: FALSE | FQD52: FALSE | FQE52: FALSE | FQF52: FALSE | FQG52: FALSE | FQH52: FALSE | FQI52: FALSE | FQJ52: FALSE | FQK52: FALSE | FQL52: FALSE | FQM52: FALSE | FQN52: FALSE | FQO52: FALSE | FQP52: FALSE | FQQ52: FALSE | FQR52: FALSE | FQS52: FALSE | FQT52: FALSE | FQU52: FALSE | FQV52: FALSE | FQW52: FALSE | FQX52: FALSE | FQY52: FALSE | FQZ52: FALSE | FRA52: FALSE | FRB52: FALSE | FRC52: FALSE | FRD52: FALSE | FRE52: FALSE | FRF52: FALSE | FRG52: FALSE | FRH52: FALSE | FRI52: FALSE | FRJ52: FALSE | FRK52: FALSE | FRL52: FALSE | FRM52: FALSE | FRN52: FALSE | FRO52: FALSE | FRP52: FALSE | FRQ52: FALSE | FRR52: FALSE | FRS52: FALSE | FRT52: FALSE | FRU52: FALSE | FRV52: FALSE | FRW52: FALSE | FRX52: FALSE | FRY52: FALSE | FRZ52: FALSE | FSA52: FALSE | FSB52: FALSE | FSC52: FALSE | FSD52: FALSE | FSE52: =IF(FSE6,FSE29/FSD29-1) -> FALSE | FSF52: FALSE | FSG52: FALSE | FSH52: FALSE | FSI52: FALSE | FSJ52: FALSE | FSK52: FALSE | FSL52: FALSE | FSM52: FALSE | FSN52: FALSE | FSO52: FALSE | FSP52: FALSE | FSQ52: FALSE | FSR52: FALSE | FSS52: FALSE | FST52: FALSE | FSU52: FALSE | FSV52: FALSE | FSW52: FALSE | FSX52: FALSE | FSY52: FALSE | FSZ52: FALSE | FTA52: FALSE | FTB52: FALSE | FTC52: FALSE | FTD52: FALSE | FTE52: FALSE | FTF52: FALSE | FTG52: FALSE | FTH52: FALSE | FTI52: FALSE | FTJ52: FALSE | FTK52: FALSE | FTL52: FALSE | FTM52: FALSE | FTN52: FALSE | FTO52: FALSE | FTP52: FALSE | FTQ52: FALSE | FTR52: FALSE | FTS52: FALSE | FTT52: FALSE | FTU52: FALSE | FTV52: FALSE | FTW52: FALSE | FTX52: FALSE | FTY52: FALSE | FTZ52: FALSE | FUA52: FALSE | FUB52: FALSE | FUC52: FALSE | FUD52: FALSE | FUE52: FALSE | FUF52: FALSE | FUG52: FALSE | FUH52: FALSE | FUI52: FALSE | FUJ52: FALSE | FUK52: FALSE | FUL52: FALSE | FUM52: FALSE | FUN52: FALSE | FUO52: FALSE | FUP52: FALSE | FUQ52: =IF(FUQ6,FUQ29/FUP29-1) -> FALSE | FUR52: FALSE | FUS52: FALSE | FUT52: FALSE | FUU52: FALSE | FUV52: FALSE | FUW52: FALSE | FUX52: FALSE | FUY52: FALSE | FUZ52: FALSE | FVA52: FALSE | FVB52: FALSE | FVC52: FALSE | FVD52: FALSE | FVE52: FALSE | FVF52: FALSE | FVG52: FALSE | FVH52: FALSE | FVI52: FALSE | FVJ52: FALSE | FVK52: FALSE | FVL52: FALSE | FVM52: FALSE | FVN52: FALSE | FVO52: FALSE | FVP52: FALSE | FVQ52: FALSE | FVR52: FALSE | FVS52: FALSE | FVT52: FALSE | FVU52: FALSE | FVV52: FALSE | FVW52: FALSE | FVX52: FALSE | FVY52: FALSE | FVZ52: FALSE | FWA52: FALSE | FWB52: FALSE | FWC52: FALSE | FWD52: FALSE | FWE52: FALSE | FWF52: FALSE | FWG52: FALSE | FWH52: FALSE | FWI52: FALSE | FWJ52: FALSE | FWK52: FALSE | FWL52: FALSE | FWM52: FALSE | FWN52: FALSE | FWO52: FALSE | FWP52: FALSE | FWQ52: FALSE | FWR52: FALSE | FWS52: FALSE | FWT52: FALSE | FWU52: FALSE | FWV52: FALSE | FWW52: FALSE | FWX52: FALSE | FWY52: FALSE | FWZ52: FALSE | FXA52: FALSE | FXB52: FALSE | FXC52: =IF(FXC6,FXC29/FXB29-1) -> FALSE | FXD52: FALSE | FXE52: FALSE | FXF52: FALSE | FXG52: FALSE | FXH52: FALSE | FXI52: FALSE | FXJ52: FALSE | FXK52: FALSE | FXL52: FALSE | FXM52: FALSE | FXN52: FALSE | FXO52: FALSE | FXP52: FALSE | FXQ52: FALSE | FXR52: FALSE | FXS52: FALSE | FXT52: FALSE | FXU52: FALSE | FXV52: FALSE | FXW52: FALSE | FXX52: FALSE | FXY52: FALSE | FXZ52: FALSE | FYA52: FALSE | FYB52: FALSE | FYC52: FALSE | FYD52: FALSE | FYE52: FALSE | FYF52: FALSE | FYG52: FALSE | FYH52: FALSE | FYI52: FALSE | FYJ52: FALSE | FYK52: FALSE | FYL52: FALSE | FYM52: FALSE | FYN52: FALSE | FYO52: FALSE | FYP52: FALSE | FYQ52: FALSE | FYR52: FALSE | FYS52: FALSE | FYT52: FALSE | FYU52: FALSE | FYV52: FALSE | FYW52: FALSE | FYX52: FALSE | FYY52: FALSE | FYZ52: FALSE | FZA52: FALSE | FZB52: FALSE | FZC52: FALSE | FZD52: FALSE | FZE52: FALSE | FZF52: FALSE | FZG52: FALSE | FZH52: FALSE | FZI52: FALSE | FZJ52: FALSE | FZK52: FALSE | FZL52: FALSE | FZM52: FALSE | FZN52: FALSE | FZO52: =IF(FZO6,FZO29/FZN29-1) -> FALSE | FZP52: FALSE | FZQ52: FALSE | FZR52: FALSE | FZS52: FALSE | FZT52: FALSE | FZU52: FALSE | FZV52: FALSE | FZW52: FALSE | FZX52: FALSE | FZY52: FALSE | FZZ52: FALSE | GAA52: FALSE | GAB52: FALSE | GAC52: FALSE | GAD52: FALSE | GAE52: FALSE | GAF52: FALSE | GAG52: FALSE | GAH52: FALSE | GAI52: FALSE | GAJ52: FALSE | GAK52: FALSE | GAL52: FALSE | GAM52: FALSE | GAN52: FALSE | GAO52: FALSE | GAP52: FALSE | GAQ52: FALSE | GAR52: FALSE | GAS52: FALSE | GAT52: FALSE | GAU52: FALSE | GAV52: FALSE | GAW52: FALSE | GAX52: FALSE | GAY52: FALSE | GAZ52: FALSE | GBA52: FALSE | GBB52: FALSE | GBC52: FALSE | GBD52: FALSE | GBE52: FALSE | GBF52: FALSE | GBG52: FALSE | GBH52: FALSE | GBI52: FALSE | GBJ52: FALSE | GBK52: FALSE | GBL52: FALSE | GBM52: FALSE | GBN52: FALSE | GBO52: FALSE | GBP52: FALSE | GBQ52: FALSE | GBR52: FALSE | GBS52: FALSE | GBT52: FALSE | GBU52: FALSE | GBV52: FALSE | GBW52: FALSE | GBX52: FALSE | GBY52: FALSE | GBZ52: FALSE | GCA52: =IF(GCA6,GCA29/GBZ29-1) -> FALSE | GCB52: FALSE | GCC52: FALSE | GCD52: FALSE | GCE52: FALSE | GCF52: FALSE | GCG52: FALSE | GCH52: FALSE | GCI52: FALSE | GCJ52: FALSE | GCK52: FALSE | GCL52: FALSE | GCM52: FALSE | GCN52: FALSE | GCO52: FALSE | GCP52: FALSE | GCQ52: FALSE | GCR52: FALSE | GCS52: FALSE | GCT52: FALSE | GCU52: FALSE | GCV52: FALSE | GCW52: FALSE | GCX52: FALSE | GCY52: FALSE | GCZ52: FALSE | GDA52: FALSE | GDB52: FALSE | GDC52: FALSE | GDD52: FALSE | GDE52: FALSE | GDF52: FALSE | GDG52: FALSE | GDH52: FALSE | GDI52: FALSE | GDJ52: FALSE | GDK52: FALSE | GDL52: FALSE | GDM52: FALSE | GDN52: FALSE | GDO52: FALSE | GDP52: FALSE | GDQ52: FALSE | GDR52: FALSE | GDS52: FALSE | GDT52: FALSE | GDU52: FALSE | GDV52: FALSE | GDW52: FALSE | GDX52: FALSE | GDY52: FALSE | GDZ52: FALSE | GEA52: FALSE | GEB52: FALSE | GEC52: FALSE | GED52: FALSE | GEE52: FALSE | GEF52: FALSE | GEG52: FALSE | GEH52: FALSE | GEI52: FALSE | GEJ52: FALSE | GEK52: FALSE | GEL52: FALSE | GEM52: =IF(GEM6,GEM29/GEL29-1) -> FALSE | GEN52: FALSE | GEO52: FALSE | GEP52: FALSE | GEQ52: FALSE | GER52: FALSE | GES52: FALSE | GET52: FALSE | GEU52: FALSE | GEV52: FALSE | GEW52: FALSE | GEX52: FALSE | GEY52: FALSE | GEZ52: FALSE | GFA52: FALSE | GFB52: FALSE | GFC52: FALSE | GFD52: FALSE | GFE52: FALSE | GFF52: FALSE | GFG52: FALSE | GFH52: FALSE | GFI52: FALSE | GFJ52: FALSE | GFK52: FALSE | GFL52: FALSE | GFM52: FALSE | GFN52: FALSE | GFO52: FALSE | GFP52: FALSE | GFQ52: FALSE | GFR52: FALSE | GFS52: FALSE | GFT52: FALSE | GFU52: FALSE | GFV52: FALSE | GFW52: FALSE | GFX52: FALSE | GFY52: FALSE | GFZ52: FALSE | GGA52: FALSE | GGB52: FALSE | GGC52: FALSE | GGD52: FALSE | GGE52: FALSE | GGF52: FALSE | GGG52: FALSE | GGH52: FALSE | GGI52: FALSE | GGJ52: FALSE | GGK52: FALSE | GGL52: FALSE | GGM52: FALSE | GGN52: FALSE | GGO52: FALSE | GGP52: FALSE | GGQ52: FALSE | GGR52: FALSE | GGS52: FALSE | GGT52: FALSE | GGU52: FALSE | GGV52: FALSE | GGW52: FALSE | GGX52: FALSE | GGY52: =IF(GGY6,GGY29/GGX29-1) -> FALSE | GGZ52: FALSE | GHA52: FALSE | GHB52: FALSE | GHC52: FALSE | GHD52: FALSE | GHE52: FALSE | GHF52: FALSE | GHG52: FALSE | GHH52: FALSE | GHI52: FALSE | GHJ52: FALSE | GHK52: FALSE | GHL52: FALSE | GHM52: FALSE | GHN52: FALSE | GHO52: FALSE | GHP52: FALSE | GHQ52: FALSE | GHR52: FALSE | GHS52: FALSE | GHT52: FALSE | GHU52: FALSE | GHV52: FALSE | GHW52: FALSE | GHX52: FALSE | GHY52: FALSE | GHZ52: FALSE | GIA52: FALSE | GIB52: FALSE | GIC52: FALSE | GID52: FALSE | GIE52: FALSE | GIF52: FALSE | GIG52: FALSE | GIH52: FALSE | GII52: FALSE | GIJ52: FALSE | GIK52: FALSE | GIL52: FALSE | GIM52: FALSE | GIN52: FALSE | GIO52: FALSE | GIP52: FALSE | GIQ52: FALSE | GIR52: FALSE | GIS52: FALSE | GIT52: FALSE | GIU52: FALSE | GIV52: FALSE | GIW52: FALSE | GIX52: FALSE | GIY52: FALSE | GIZ52: FALSE | GJA52: FALSE | GJB52: FALSE | GJC52: FALSE | GJD52: FALSE | GJE52: FALSE | GJF52: FALSE | GJG52: FALSE | GJH52: FALSE | GJI52: FALSE | GJJ52: FALSE | GJK52: =IF(GJK6,GJK29/GJJ29-1) -> FALSE | GJL52: FALSE | GJM52: FALSE | GJN52: FALSE | GJO52: FALSE | GJP52: FALSE | GJQ52: FALSE | GJR52: FALSE | GJS52: FALSE | GJT52: FALSE | GJU52: FALSE | GJV52: FALSE | GJW52: FALSE | GJX52: FALSE | GJY52: FALSE | GJZ52: FALSE | GKA52: FALSE | GKB52: FALSE | GKC52: FALSE | GKD52: FALSE | GKE52: FALSE | GKF52: FALSE | GKG52: FALSE | GKH52: FALSE | GKI52: FALSE | GKJ52: FALSE | GKK52: FALSE | GKL52: FALSE | GKM52: FALSE | GKN52: FALSE | GKO52: FALSE | GKP52: FALSE | GKQ52: FALSE | GKR52: FALSE | GKS52: FALSE | GKT52: FALSE | GKU52: FALSE | GKV52: FALSE | GKW52: FALSE | GKX52: FALSE | GKY52: FALSE | GKZ52: FALSE | GLA52: FALSE | GLB52: FALSE | GLC52: FALSE | GLD52: FALSE | GLE52: FALSE | GLF52: FALSE | GLG52: FALSE | GLH52: FALSE | GLI52: FALSE | GLJ52: FALSE | GLK52: FALSE | GLL52: FALSE | GLM52: FALSE | GLN52: FALSE | GLO52: FALSE | GLP52: FALSE | GLQ52: FALSE | GLR52: FALSE | GLS52: FALSE | GLT52: FALSE | GLU52: FALSE | GLV52: FALSE | GLW52: =IF(GLW6,GLW29/GLV29-1) -> FALSE | GLX52: FALSE | GLY52: FALSE | GLZ52: FALSE | GMA52: FALSE | GMB52: FALSE | GMC52: FALSE | GMD52: FALSE | GME52: FALSE | GMF52: FALSE | GMG52: FALSE | GMH52: FALSE | GMI52: FALSE | GMJ52: FALSE | GMK52: FALSE | GML52: FALSE | GMM52: FALSE | GMN52: FALSE | GMO52: FALSE | GMP52: FALSE | GMQ52: FALSE | GMR52: FALSE | GMS52: FALSE | GMT52: FALSE | GMU52: FALSE | GMV52: FALSE | GMW52: FALSE | GMX52: FALSE | GMY52: FALSE | GMZ52: FALSE | GNA52: FALSE | GNB52: FALSE | GNC52: FALSE | GND52: FALSE | GNE52: FALSE | GNF52: FALSE | GNG52: FALSE | GNH52: FALSE | GNI52: FALSE | GNJ52: FALSE | GNK52: FALSE | GNL52: FALSE | GNM52: FALSE | GNN52: FALSE | GNO52: FALSE | GNP52: FALSE | GNQ52: FALSE | GNR52: FALSE | GNS52: FALSE | GNT52: FALSE | GNU52: FALSE | GNV52: FALSE | GNW52: FALSE | GNX52: FALSE | GNY52: FALSE | GNZ52: FALSE | GOA52: FALSE | GOB52: FALSE | GOC52: FALSE | GOD52: FALSE | GOE52: FALSE | GOF52: FALSE | GOG52: FALSE | GOH52: FALSE | GOI52: =IF(GOI6,GOI29/GOH29-1) -> FALSE | GOJ52: FALSE | GOK52: FALSE | GOL52: FALSE | GOM52: FALSE | GON52: FALSE | GOO52: FALSE | GOP52: FALSE | GOQ52: FALSE | GOR52: FALSE | GOS52: FALSE | GOT52: FALSE | GOU52: FALSE | GOV52: FALSE | GOW52: FALSE | GOX52: FALSE | GOY52: FALSE | GOZ52: FALSE | GPA52: FALSE | GPB52: FALSE | GPC52: FALSE | GPD52: FALSE | GPE52: FALSE | GPF52: FALSE | GPG52: FALSE | GPH52: FALSE | GPI52: FALSE | GPJ52: FALSE | GPK52: FALSE | GPL52: FALSE | GPM52: FALSE | GPN52: FALSE | GPO52: FALSE | GPP52: FALSE | GPQ52: FALSE | GPR52: FALSE | GPS52: FALSE | GPT52: FALSE | GPU52: FALSE | GPV52: FALSE | GPW52: FALSE | GPX52: FALSE | GPY52: FALSE | GPZ52: FALSE | GQA52: FALSE | GQB52: FALSE | GQC52: FALSE | GQD52: FALSE | GQE52: FALSE | GQF52: FALSE | GQG52: FALSE | GQH52: FALSE | GQI52: FALSE | GQJ52: FALSE | GQK52: FALSE | GQL52: FALSE | GQM52: FALSE | GQN52: FALSE | GQO52: FALSE | GQP52: FALSE | GQQ52: FALSE | GQR52: FALSE | GQS52: FALSE | GQT52: FALSE | GQU52: =IF(GQU6,GQU29/GQT29-1) -> FALSE | GQV52: FALSE | GQW52: FALSE | GQX52: FALSE | GQY52: FALSE | GQZ52: FALSE | GRA52: FALSE | GRB52: FALSE | GRC52: FALSE | GRD52: FALSE | GRE52: FALSE | GRF52: FALSE | GRG52: FALSE | GRH52: FALSE | GRI52: FALSE | GRJ52: FALSE | GRK52: FALSE | GRL52: FALSE | GRM52: FALSE | GRN52: FALSE | GRO52: FALSE | GRP52: FALSE | GRQ52: FALSE | GRR52: FALSE | GRS52: FALSE | GRT52: FALSE | GRU52: FALSE | GRV52: FALSE | GRW52: FALSE | GRX52: FALSE | GRY52: FALSE | GRZ52: FALSE | GSA52: FALSE | GSB52: FALSE | GSC52: FALSE | GSD52: FALSE | GSE52: FALSE | GSF52: FALSE | GSG52: FALSE | GSH52: FALSE | GSI52: FALSE | GSJ52: FALSE | GSK52: FALSE | GSL52: FALSE | GSM52: FALSE | GSN52: FALSE | GSO52: FALSE | GSP52: FALSE | GSQ52: FALSE | GSR52: FALSE | GSS52: FALSE | GST52: FALSE | GSU52: FALSE | GSV52: FALSE | GSW52: FALSE | GSX52: FALSE | GSY52: FALSE | GSZ52: FALSE | GTA52: FALSE | GTB52: FALSE | GTC52: FALSE | GTD52: FALSE | GTE52: FALSE | GTF52: FALSE | GTG52: =IF(GTG6,GTG29/GTF29-1) -> FALSE | GTH52: FALSE | GTI52: FALSE | GTJ52: FALSE | GTK52: FALSE | GTL52: FALSE | GTM52: FALSE | GTN52: FALSE | GTO52: FALSE | GTP52: FALSE | GTQ52: FALSE | GTR52: FALSE | GTS52: FALSE | GTT52: FALSE | GTU52: FALSE | GTV52: FALSE | GTW52: FALSE | GTX52: FALSE | GTY52: FALSE | GTZ52: FALSE | GUA52: FALSE | GUB52: FALSE | GUC52: FALSE | GUD52: FALSE | GUE52: FALSE | GUF52: FALSE | GUG52: FALSE | GUH52: FALSE | GUI52: FALSE | GUJ52: FALSE | GUK52: FALSE | GUL52: FALSE | GUM52: FALSE | GUN52: FALSE | GUO52: FALSE | GUP52: FALSE | GUQ52: FALSE | GUR52: FALSE | GUS52: FALSE | GUT52: FALSE | GUU52: FALSE | GUV52: FALSE | GUW52: FALSE | GUX52: FALSE | GUY52: FALSE | GUZ52: FALSE | GVA52: FALSE | GVB52: FALSE | GVC52: FALSE | GVD52: FALSE | GVE52: FALSE | GVF52: FALSE | GVG52: FALSE | GVH52: FALSE | GVI52: FALSE | GVJ52: FALSE | GVK52: FALSE | GVL52: FALSE | GVM52: FALSE | GVN52: FALSE | GVO52: FALSE | GVP52: FALSE | GVQ52: FALSE | GVR52: FALSE | GVS52: =IF(GVS6,GVS29/GVR29-1) -> FALSE | GVT52: FALSE | GVU52: FALSE | GVV52: FALSE | GVW52: FALSE | GVX52: FALSE | GVY52: FALSE | GVZ52: FALSE | GWA52: FALSE | GWB52: FALSE | GWC52: FALSE | GWD52: FALSE | GWE52: FALSE | GWF52: FALSE | GWG52: FALSE | GWH52: FALSE | GWI52: FALSE | GWJ52: FALSE | GWK52: FALSE | GWL52: FALSE | GWM52: FALSE | GWN52: FALSE | GWO52: FALSE | GWP52: FALSE | GWQ52: FALSE | GWR52: FALSE | GWS52: FALSE | GWT52: FALSE | GWU52: FALSE | GWV52: FALSE | GWW52: FALSE | GWX52: FALSE | GWY52: FALSE | GWZ52: FALSE | GXA52: FALSE | GXB52: FALSE | GXC52: FALSE | GXD52: FALSE | GXE52: FALSE | GXF52: FALSE | GXG52: FALSE | GXH52: FALSE | GXI52: FALSE | GXJ52: FALSE | GXK52: FALSE | GXL52: FALSE | GXM52: FALSE | GXN52: FALSE | GXO52: FALSE | GXP52: FALSE | GXQ52: FALSE | GXR52: FALSE | GXS52: FALSE | GXT52: FALSE | GXU52: FALSE | GXV52: FALSE | GXW52: FALSE | GXX52: FALSE | GXY52: FALSE | GXZ52: FALSE | GYA52: FALSE | GYB52: FALSE | GYC52: FALSE | GYD52: FALSE | GYE52: =IF(GYE6,GYE29/GYD29-1) -> FALSE | GYF52: FALSE | GYG52: FALSE | GYH52: FALSE | GYI52: FALSE | GYJ52: FALSE | GYK52: FALSE | GYL52: FALSE | GYM52: FALSE | GYN52: FALSE | GYO52: FALSE | GYP52: FALSE | GYQ52: FALSE | GYR52: FALSE | GYS52: FALSE | GYT52: FALSE | GYU52: FALSE | GYV52: FALSE | GYW52: FALSE | GYX52: FALSE | GYY52: FALSE | GYZ52: FALSE | GZA52: FALSE | GZB52: FALSE | GZC52: FALSE | GZD52: FALSE | GZE52: FALSE | GZF52: FALSE | GZG52: FALSE | GZH52: FALSE | GZI52: FALSE | GZJ52: FALSE | GZK52: FALSE | GZL52: FALSE | GZM52: FALSE | GZN52: FALSE | GZO52: FALSE | GZP52: FALSE | GZQ52: FALSE | GZR52: FALSE | GZS52: FALSE | GZT52: FALSE | GZU52: FALSE | GZV52: FALSE | GZW52: FALSE | GZX52: FALSE | GZY52: FALSE | GZZ52: FALSE | HAA52: FALSE | HAB52: FALSE | HAC52: FALSE | HAD52: FALSE | HAE52: FALSE | HAF52: FALSE | HAG52: FALSE | HAH52: FALSE | HAI52: FALSE | HAJ52: FALSE | HAK52: FALSE | HAL52: FALSE | HAM52: FALSE | HAN52: FALSE | HAO52: FALSE | HAP52: FALSE | HAQ52: =IF(HAQ6,HAQ29/HAP29-1) -> FALSE | HAR52: FALSE | HAS52: FALSE | HAT52: FALSE | HAU52: FALSE | HAV52: FALSE | HAW52: FALSE | HAX52: FALSE | HAY52: FALSE | HAZ52: FALSE | HBA52: FALSE | HBB52: FALSE | HBC52: FALSE | HBD52: FALSE | HBE52: FALSE | HBF52: FALSE | HBG52: FALSE | HBH52: FALSE | HBI52: FALSE | HBJ52: FALSE | HBK52: FALSE | HBL52: FALSE | HBM52: FALSE | HBN52: FALSE | HBO52: FALSE | HBP52: FALSE | HBQ52: FALSE | HBR52: FALSE | HBS52: FALSE | HBT52: FALSE | HBU52: FALSE | HBV52: FALSE | HBW52: FALSE | HBX52: FALSE | HBY52: FALSE | HBZ52: FALSE | HCA52: FALSE | HCB52: FALSE | HCC52: FALSE | HCD52: FALSE | HCE52: FALSE | HCF52: FALSE | HCG52: FALSE | HCH52: FALSE | HCI52: FALSE | HCJ52: FALSE | HCK52: FALSE | HCL52: FALSE | HCM52: FALSE | HCN52: FALSE | HCO52: FALSE | HCP52: FALSE | HCQ52: FALSE | HCR52: FALSE | HCS52: FALSE | HCT52: FALSE | HCU52: FALSE | HCV52: FALSE | HCW52: FALSE | HCX52: FALSE | HCY52: FALSE | HCZ52: FALSE | HDA52: FALSE | HDB52: FALSE | HDC52: =IF(HDC6,HDC29/HDB29-1) -> FALSE | HDD52: FALSE | HDE52: FALSE | HDF52: FALSE | HDG52: FALSE | HDH52: FALSE | HDI52: FALSE | HDJ52: FALSE | HDK52: FALSE | HDL52: FALSE | HDM52: FALSE | HDN52: FALSE | HDO52: FALSE | HDP52: FALSE | HDQ52: FALSE | HDR52: FALSE | HDS52: FALSE | HDT52: FALSE | HDU52: FALSE | HDV52: FALSE | HDW52: FALSE | HDX52: FALSE | HDY52: FALSE | HDZ52: FALSE | HEA52: FALSE | HEB52: FALSE | HEC52: FALSE | HED52: FALSE | HEE52: FALSE | HEF52: FALSE | HEG52: FALSE | HEH52: FALSE | HEI52: FALSE | HEJ52: FALSE | HEK52: FALSE | HEL52: FALSE | HEM52: FALSE | HEN52: FALSE | HEO52: FALSE | HEP52: FALSE | HEQ52: FALSE | HER52: FALSE | HES52: FALSE | HET52: FALSE | HEU52: FALSE | HEV52: FALSE | HEW52: FALSE | HEX52: FALSE | HEY52: FALSE | HEZ52: FALSE | HFA52: FALSE | HFB52: FALSE | HFC52: FALSE | HFD52: FALSE | HFE52: FALSE | HFF52: FALSE | HFG52: FALSE | HFH52: FALSE | HFI52: FALSE | HFJ52: FALSE | HFK52: FALSE | HFL52: FALSE | HFM52: FALSE | HFN52: FALSE | HFO52: =IF(HFO6,HFO29/HFN29-1) -> FALSE | HFP52: FALSE | HFQ52: FALSE | HFR52: FALSE | HFS52: FALSE | HFT52: FALSE | HFU52: FALSE | HFV52: FALSE | HFW52: FALSE | HFX52: FALSE | HFY52: FALSE | HFZ52: FALSE | HGA52: FALSE | HGB52: FALSE | HGC52: FALSE | HGD52: FALSE | HGE52: FALSE | HGF52: FALSE | HGG52: FALSE | HGH52: FALSE | HGI52: FALSE | HGJ52: FALSE | HGK52: FALSE | HGL52: FALSE | HGM52: FALSE | HGN52: FALSE | HGO52: FALSE | HGP52: FALSE | HGQ52: FALSE | HGR52: FALSE | HGS52: FALSE | HGT52: FALSE | HGU52: FALSE | HGV52: FALSE | HGW52: FALSE | HGX52: FALSE | HGY52: FALSE | HGZ52: FALSE | HHA52: FALSE | HHB52: FALSE | HHC52: FALSE | HHD52: FALSE | HHE52: FALSE | HHF52: FALSE | HHG52: FALSE | HHH52: FALSE | HHI52: FALSE | HHJ52: FALSE | HHK52: FALSE | HHL52: FALSE | HHM52: FALSE | HHN52: FALSE | HHO52: FALSE | HHP52: FALSE | HHQ52: FALSE | HHR52: FALSE | HHS52: FALSE | HHT52: FALSE | HHU52: FALSE | HHV52: FALSE | HHW52: FALSE | HHX52: FALSE | HHY52: FALSE | HHZ52: FALSE | HIA52: =IF(HIA6,HIA29/HHZ29-1) -> FALSE | HIB52: FALSE | HIC52: FALSE | HID52: FALSE | HIE52: FALSE | HIF52: FALSE | HIG52: FALSE | HIH52: FALSE | HII52: FALSE | HIJ52: FALSE | HIK52: FALSE | HIL52: FALSE | HIM52: FALSE | HIN52: FALSE | HIO52: FALSE | HIP52: FALSE | HIQ52: FALSE | HIR52: FALSE | HIS52: FALSE | HIT52: FALSE | HIU52: FALSE | HIV52: FALSE | HIW52: FALSE | HIX52: FALSE | HIY52: FALSE | HIZ52: FALSE | HJA52: FALSE | HJB52: FALSE | HJC52: FALSE | HJD52: FALSE | HJE52: FALSE | HJF52: FALSE | HJG52: FALSE | HJH52: FALSE | HJI52: FALSE | HJJ52: FALSE | HJK52: FALSE | HJL52: FALSE | HJM52: FALSE | HJN52: FALSE | HJO52: FALSE | HJP52: FALSE | HJQ52: FALSE | HJR52: FALSE | HJS52: FALSE | HJT52: FALSE | HJU52: FALSE | HJV52: FALSE | HJW52: FALSE | HJX52: FALSE | HJY52: FALSE | HJZ52: FALSE | HKA52: FALSE | HKB52: FALSE | HKC52: FALSE | HKD52: FALSE | HKE52: FALSE | HKF52: FALSE | HKG52: FALSE | HKH52: FALSE | HKI52: FALSE | HKJ52: FALSE | HKK52: FALSE | HKL52: FALSE | HKM52: =IF(HKM6,HKM29/HKL29-1) -> FALSE | HKN52: FALSE | HKO52: FALSE | HKP52: FALSE | HKQ52: FALSE | HKR52: FALSE | HKS52: FALSE | HKT52: FALSE | HKU52: FALSE | HKV52: FALSE | HKW52: FALSE | HKX52: FALSE | HKY52: FALSE | HKZ52: FALSE | HLA52: FALSE | HLB52: FALSE | HLC52: FALSE | HLD52: FALSE | HLE52: FALSE | HLF52: FALSE | HLG52: FALSE | HLH52: FALSE | HLI52: FALSE | HLJ52: FALSE | HLK52: FALSE | HLL52: FALSE | HLM52: FALSE | HLN52: FALSE | HLO52: FALSE | HLP52: FALSE | HLQ52: FALSE | HLR52: FALSE | HLS52: FALSE | HLT52: FALSE | HLU52: FALSE | HLV52: FALSE | HLW52: FALSE | HLX52: FALSE | HLY52: FALSE | HLZ52: FALSE | HMA52: FALSE | HMB52: FALSE | HMC52: FALSE | HMD52: FALSE | HME52: FALSE | HMF52: FALSE | HMG52: FALSE | HMH52: FALSE | HMI52: FALSE | HMJ52: FALSE | HMK52: FALSE | HML52: FALSE | HMM52: FALSE | HMN52: FALSE | HMO52: FALSE | HMP52: FALSE | HMQ52: FALSE | HMR52: FALSE | HMS52: FALSE | HMT52: FALSE | HMU52: FALSE | HMV52: FALSE | HMW52: FALSE | HMX52: FALSE | HMY52: =IF(HMY6,HMY29/HMX29-1) -> FALSE | HMZ52: FALSE | HNA52: FALSE | HNB52: FALSE | HNC52: FALSE | HND52: FALSE | HNE52: FALSE | HNF52: FALSE | HNG52: FALSE | HNH52: FALSE | HNI52: FALSE | HNJ52: FALSE | HNK52: FALSE | HNL52: FALSE | HNM52: FALSE | HNN52: FALSE | HNO52: FALSE | HNP52: FALSE | HNQ52: FALSE | HNR52: FALSE | HNS52: FALSE | HNT52: FALSE | HNU52: FALSE | HNV52: FALSE | HNW52: FALSE | HNX52: FALSE | HNY52: FALSE | HNZ52: FALSE | HOA52: FALSE | HOB52: FALSE | HOC52: FALSE | HOD52: FALSE | HOE52: FALSE | HOF52: FALSE | HOG52: FALSE | HOH52: FALSE | HOI52: FALSE | HOJ52: FALSE | HOK52: FALSE | HOL52: FALSE | HOM52: FALSE | HON52: FALSE | HOO52: FALSE | HOP52: FALSE | HOQ52: FALSE | HOR52: FALSE | HOS52: FALSE | HOT52: FALSE | HOU52: FALSE | HOV52: FALSE | HOW52: FALSE | HOX52: FALSE | HOY52: FALSE | HOZ52: FALSE | HPA52: FALSE | HPB52: FALSE | HPC52: FALSE | HPD52: FALSE | HPE52: FALSE | HPF52: FALSE | HPG52: FALSE | HPH52: FALSE | HPI52: FALSE | HPJ52: FALSE | HPK52: =IF(HPK6,HPK29/HPJ29-1) -> FALSE | HPL52: FALSE | HPM52: FALSE | HPN52: FALSE | HPO52: FALSE | HPP52: FALSE | HPQ52: FALSE | HPR52: FALSE | HPS52: FALSE | HPT52: FALSE | HPU52: FALSE | HPV52: FALSE | HPW52: FALSE | HPX52: FALSE | HPY52: FALSE | HPZ52: FALSE | HQA52: FALSE | HQB52: FALSE | HQC52: FALSE | HQD52: FALSE | HQE52: FALSE | HQF52: FALSE | HQG52: FALSE | HQH52: FALSE | HQI52: FALSE | HQJ52: FALSE | HQK52: FALSE | HQL52: FALSE | HQM52: FALSE | HQN52: FALSE | HQO52: FALSE | HQP52: FALSE | HQQ52: FALSE | HQR52: FALSE | HQS52: FALSE | HQT52: FALSE | HQU52: FALSE | HQV52: FALSE | HQW52: FALSE | HQX52: FALSE | HQY52: FALSE | HQZ52: FALSE | HRA52: FALSE | HRB52: FALSE | HRC52: FALSE | HRD52: FALSE | HRE52: FALSE | HRF52: FALSE | HRG52: FALSE | HRH52: FALSE | HRI52: FALSE | HRJ52: FALSE | HRK52: FALSE | HRL52: FALSE | HRM52: FALSE | HRN52: FALSE | HRO52: FALSE | HRP52: FALSE | HRQ52: FALSE | HRR52: FALSE | HRS52: FALSE | HRT52: FALSE | HRU52: FALSE | HRV52: FALSE | HRW52: =IF(HRW6,HRW29/HRV29-1) -> FALSE | HRX52: FALSE | HRY52: FALSE | HRZ52: FALSE | HSA52: FALSE | HSB52: FALSE | HSC52: FALSE | HSD52: FALSE | HSE52: FALSE | HSF52: FALSE | HSG52: FALSE | HSH52: FALSE | HSI52: FALSE | HSJ52: FALSE | HSK52: FALSE | HSL52: FALSE | HSM52: FALSE | HSN52: FALSE | HSO52: FALSE | HSP52: FALSE | HSQ52: FALSE | HSR52: FALSE | HSS52: FALSE | HST52: FALSE | HSU52: FALSE | HSV52: FALSE | HSW52: FALSE | HSX52: FALSE | HSY52: FALSE | HSZ52: FALSE | HTA52: FALSE | HTB52: FALSE | HTC52: FALSE | HTD52: FALSE | HTE52: FALSE | HTF52: FALSE | HTG52: FALSE | HTH52: FALSE | HTI52: FALSE | HTJ52: FALSE | HTK52: FALSE | HTL52: FALSE | HTM52: FALSE | HTN52: FALSE | HTO52: FALSE | HTP52: FALSE | HTQ52: FALSE | HTR52: FALSE | HTS52: FALSE | HTT52: FALSE | HTU52: FALSE | HTV52: FALSE | HTW52: FALSE | HTX52: FALSE | HTY52: FALSE | HTZ52: FALSE | HUA52: FALSE | HUB52: FALSE | HUC52: FALSE | HUD52: FALSE | HUE52: FALSE | HUF52: FALSE | HUG52: FALSE | HUH52: FALSE | HUI52: =IF(HUI6,HUI29/HUH29-1) -> FALSE | HUJ52: FALSE | HUK52: FALSE | HUL52: FALSE | HUM52: FALSE | HUN52: FALSE | HUO52: FALSE | HUP52: FALSE | HUQ52: FALSE | HUR52: FALSE | HUS52: FALSE | HUT52: FALSE | HUU52: FALSE | HUV52: FALSE | HUW52: FALSE | HUX52: FALSE | HUY52: FALSE | HUZ52: FALSE | HVA52: FALSE | HVB52: FALSE | HVC52: FALSE | HVD52: FALSE | HVE52: FALSE | HVF52: FALSE | HVG52: FALSE | HVH52: FALSE | HVI52: FALSE | HVJ52: FALSE | HVK52: FALSE | HVL52: FALSE | HVM52: FALSE | HVN52: FALSE | HVO52: FALSE | HVP52: FALSE | HVQ52: FALSE | HVR52: FALSE | HVS52: FALSE | HVT52: FALSE | HVU52: FALSE | HVV52: FALSE | HVW52: FALSE | HVX52: FALSE | HVY52: FALSE | HVZ52: FALSE | HWA52: FALSE | HWB52: FALSE | HWC52: FALSE | HWD52: FALSE | HWE52: FALSE | HWF52: FALSE | HWG52: FALSE | HWH52: FALSE | HWI52: FALSE | HWJ52: FALSE | HWK52: FALSE | HWL52: FALSE | HWM52: FALSE | HWN52: FALSE | HWO52: FALSE | HWP52: FALSE | HWQ52: FALSE | HWR52: FALSE | HWS52: FALSE | HWT52: FALSE | HWU52: =IF(HWU6,HWU29/HWT29-1) -> FALSE | HWV52: FALSE | HWW52: FALSE | HWX52: FALSE | HWY52: FALSE | HWZ52: FALSE | HXA52: FALSE | HXB52: FALSE | HXC52: FALSE | HXD52: FALSE | HXE52: FALSE | HXF52: FALSE | HXG52: FALSE | HXH52: FALSE | HXI52: FALSE | HXJ52: FALSE | HXK52: FALSE | HXL52: FALSE | HXM52: FALSE | HXN52: FALSE | HXO52: FALSE | HXP52: FALSE | HXQ52: FALSE | HXR52: FALSE | HXS52: FALSE | HXT52: FALSE | HXU52: FALSE | HXV52: FALSE | HXW52: FALSE | HXX52: FALSE | HXY52: FALSE | HXZ52: FALSE | HYA52: FALSE | HYB52: FALSE | HYC52: FALSE | HYD52: FALSE | HYE52: FALSE | HYF52: FALSE | HYG52: FALSE | HYH52: FALSE | HYI52: FALSE | HYJ52: FALSE | HYK52: FALSE | HYL52: FALSE | HYM52: FALSE | HYN52: FALSE | HYO52: FALSE | HYP52: FALSE | HYQ52: FALSE | HYR52: FALSE | HYS52: FALSE | HYT52: FALSE | HYU52: FALSE | HYV52: FALSE | HYW52: FALSE | HYX52: FALSE | HYY52: FALSE | HYZ52: FALSE | HZA52: FALSE | HZB52: FALSE | HZC52: FALSE | HZD52: FALSE | HZE52: FALSE | HZF52: FALSE | HZG52: =IF(HZG6,HZG29/HZF29-1) -> FALSE | HZH52: FALSE | HZI52: FALSE | HZJ52: FALSE | HZK52: FALSE | HZL52: FALSE | HZM52: FALSE | HZN52: FALSE | HZO52: FALSE | HZP52: FALSE | HZQ52: FALSE | HZR52: FALSE | HZS52: FALSE | HZT52: FALSE | HZU52: FALSE | HZV52: FALSE | HZW52: FALSE | HZX52: FALSE | HZY52: FALSE | HZZ52: FALSE | IAA52: FALSE | IAB52: FALSE | IAC52: FALSE | IAD52: FALSE | IAE52: FALSE | IAF52: FALSE | IAG52: FALSE | IAH52: FALSE | IAI52: FALSE | IAJ52: FALSE | IAK52: FALSE | IAL52: FALSE | IAM52: FALSE | IAN52: FALSE | IAO52: FALSE | IAP52: FALSE | IAQ52: FALSE | IAR52: FALSE | IAS52: FALSE | IAT52: FALSE | IAU52: FALSE | IAV52: FALSE | IAW52: FALSE | IAX52: FALSE | IAY52: FALSE | IAZ52: FALSE | IBA52: FALSE | IBB52: FALSE | IBC52: FALSE | IBD52: FALSE | IBE52: FALSE | IBF52: FALSE | IBG52: FALSE | IBH52: FALSE | IBI52: FALSE | IBJ52: FALSE | IBK52: FALSE | IBL52: FALSE | IBM52: FALSE | IBN52: FALSE | IBO52: FALSE | IBP52: FALSE | IBQ52: FALSE | IBR52: FALSE | IBS52: =IF(IBS6,IBS29/IBR29-1) -> FALSE | IBT52: FALSE | IBU52: FALSE | IBV52: FALSE | IBW52: FALSE | IBX52: FALSE | IBY52: FALSE | IBZ52: FALSE | ICA52: FALSE | ICB52: FALSE | ICC52: FALSE | ICD52: FALSE | ICE52: FALSE | ICF52: FALSE | ICG52: FALSE | ICH52: FALSE | ICI52: FALSE | ICJ52: FALSE | ICK52: FALSE | ICL52: FALSE | ICM52: FALSE | ICN52: FALSE | ICO52: FALSE | ICP52: FALSE | ICQ52: FALSE | ICR52: FALSE | ICS52: FALSE | ICT52: FALSE | ICU52: FALSE | ICV52: FALSE | ICW52: FALSE | ICX52: FALSE | ICY52: FALSE | ICZ52: FALSE | IDA52: FALSE | IDB52: FALSE | IDC52: FALSE | IDD52: FALSE | IDE52: FALSE | IDF52: FALSE | IDG52: FALSE | IDH52: FALSE | IDI52: FALSE | IDJ52: FALSE | IDK52: FALSE | IDL52: FALSE | IDM52: FALSE | IDN52: FALSE | IDO52: FALSE | IDP52: FALSE | IDQ52: FALSE | IDR52: FALSE | IDS52: FALSE | IDT52: FALSE | IDU52: FALSE | IDV52: FALSE | IDW52: FALSE | IDX52: FALSE | IDY52: FALSE | IDZ52: FALSE | IEA52: FALSE | IEB52: FALSE | IEC52: FALSE | IED52: FALSE | IEE52: =IF(IEE6,IEE29/IED29-1) -> FALSE | IEF52: FALSE | IEG52: FALSE | IEH52: FALSE | IEI52: FALSE | IEJ52: FALSE | IEK52: FALSE | IEL52: FALSE | IEM52: FALSE | IEN52: FALSE | IEO52: FALSE | IEP52: FALSE | IEQ52: FALSE | IER52: FALSE | IES52: FALSE | IET52: FALSE | IEU52: FALSE | IEV52: FALSE | IEW52: FALSE | IEX52: FALSE | IEY52: FALSE | IEZ52: FALSE | IFA52: FALSE | IFB52: FALSE | IFC52: FALSE | IFD52: FALSE | IFE52: FALSE | IFF52: FALSE | IFG52: FALSE | IFH52: FALSE | IFI52: FALSE | IFJ52: FALSE | IFK52: FALSE | IFL52: FALSE | IFM52: FALSE | IFN52: FALSE | IFO52: FALSE | IFP52: FALSE | IFQ52: FALSE | IFR52: FALSE | IFS52: FALSE | IFT52: FALSE | IFU52: FALSE | IFV52: FALSE | IFW52: FALSE | IFX52: FALSE | IFY52: FALSE | IFZ52: FALSE | IGA52: FALSE | IGB52: FALSE | IGC52: FALSE | IGD52: FALSE | IGE52: FALSE | IGF52: FALSE | IGG52: FALSE | IGH52: FALSE | IGI52: FALSE | IGJ52: FALSE | IGK52: FALSE | IGL52: FALSE | IGM52: FALSE | IGN52: FALSE | IGO52: FALSE | IGP52: FALSE | IGQ52: =IF(IGQ6,IGQ29/IGP29-1) -> FALSE | IGR52: FALSE | IGS52: FALSE | IGT52: FALSE | IGU52: FALSE | IGV52: FALSE | IGW52: FALSE | IGX52: FALSE | IGY52: FALSE | IGZ52: FALSE | IHA52: FALSE | IHB52: FALSE | IHC52: FALSE | IHD52: FALSE | IHE52: FALSE | IHF52: FALSE | IHG52: FALSE | IHH52: FALSE | IHI52: FALSE | IHJ52: FALSE | IHK52: FALSE | IHL52: FALSE | IHM52: FALSE | IHN52: FALSE | IHO52: FALSE | IHP52: FALSE | IHQ52: FALSE | IHR52: FALSE | IHS52: FALSE | IHT52: FALSE | IHU52: FALSE | IHV52: FALSE | IHW52: FALSE | IHX52: FALSE | IHY52: FALSE | IHZ52: FALSE | IIA52: FALSE | IIB52: FALSE | IIC52: FALSE | IID52: FALSE | IIE52: FALSE | IIF52: FALSE | IIG52: FALSE | IIH52: FALSE | III52: FALSE | IIJ52: FALSE | IIK52: FALSE | IIL52: FALSE | IIM52: FALSE | IIN52: FALSE | IIO52: FALSE | IIP52: FALSE | IIQ52: FALSE | IIR52: FALSE | IIS52: FALSE | IIT52: FALSE | IIU52: FALSE | IIV52: FALSE | IIW52: FALSE | IIX52: FALSE | IIY52: FALSE | IIZ52: FALSE | IJA52: FALSE | IJB52: FALSE | IJC52: =IF(IJC6,IJC29/IJB29-1) -> FALSE | IJD52: FALSE | IJE52: FALSE | IJF52: FALSE | IJG52: FALSE | IJH52: FALSE | IJI52: FALSE | IJJ52: FALSE | IJK52: FALSE | IJL52: FALSE | IJM52: FALSE | IJN52: FALSE | IJO52: FALSE | IJP52: FALSE | IJQ52: FALSE | IJR52: FALSE | IJS52: FALSE | IJT52: FALSE | IJU52: FALSE | IJV52: FALSE | IJW52: FALSE | IJX52: FALSE | IJY52: FALSE | IJZ52: FALSE | IKA52: FALSE | IKB52: FALSE | IKC52: FALSE | IKD52: FALSE | IKE52: FALSE | IKF52: FALSE | IKG52: FALSE | IKH52: FALSE | IKI52: FALSE | IKJ52: FALSE | IKK52: FALSE | IKL52: FALSE | IKM52: FALSE | IKN52: FALSE | IKO52: FALSE | IKP52: FALSE | IKQ52: FALSE | IKR52: FALSE | IKS52: FALSE | IKT52: FALSE | IKU52: FALSE | IKV52: FALSE | IKW52: FALSE | IKX52: FALSE | IKY52: FALSE | IKZ52: FALSE | ILA52: FALSE | ILB52: FALSE | ILC52: FALSE | ILD52: FALSE | ILE52: FALSE | ILF52: FALSE | ILG52: FALSE | ILH52: FALSE | ILI52: FALSE | ILJ52: FALSE | ILK52: FALSE | ILL52: FALSE | ILM52: FALSE | ILN52: FALSE | ILO52: =IF(ILO6,ILO29/ILN29-1) -> FALSE | ILP52: FALSE | ILQ52: FALSE | ILR52: FALSE | ILS52: FALSE | ILT52: FALSE | ILU52: FALSE | ILV52: FALSE | ILW52: FALSE | ILX52: FALSE | ILY52: FALSE | ILZ52: FALSE | IMA52: FALSE | IMB52: FALSE | IMC52: FALSE | IMD52: FALSE | IME52: FALSE | IMF52: FALSE | IMG52: FALSE | IMH52: FALSE | IMI52: FALSE | IMJ52: FALSE | IMK52: FALSE | IML52: FALSE | IMM52: FALSE | IMN52: FALSE | IMO52: FALSE | IMP52: FALSE | IMQ52: FALSE | IMR52: FALSE | IMS52: FALSE | IMT52: FALSE | IMU52: FALSE | IMV52: FALSE | IMW52: FALSE | IMX52: FALSE | IMY52: FALSE | IMZ52: FALSE | INA52: FALSE | INB52: FALSE | INC52: FALSE | IND52: FALSE | INE52: FALSE | INF52: FALSE | ING52: FALSE | INH52: FALSE | INI52: FALSE | INJ52: FALSE | INK52: FALSE | INL52: FALSE | INM52: FALSE | INN52: FALSE | INO52: FALSE | INP52: FALSE | INQ52: FALSE | INR52: FALSE | INS52: FALSE | INT52: FALSE | INU52: FALSE | INV52: FALSE | INW52: FALSE | INX52: FALSE | INY52: FALSE | INZ52: FALSE | IOA52: =IF(IOA6,IOA29/INZ29-1) -> FALSE | IOB52: FALSE | IOC52: FALSE | IOD52: FALSE | IOE52: FALSE | IOF52: FALSE | IOG52: FALSE | IOH52: FALSE | IOI52: FALSE | IOJ52: FALSE | IOK52: FALSE | IOL52: FALSE | IOM52: FALSE | ION52: FALSE | IOO52: FALSE | IOP52: FALSE | IOQ52: FALSE | IOR52: FALSE | IOS52: FALSE | IOT52: FALSE | IOU52: FALSE | IOV52: FALSE | IOW52: FALSE | IOX52: FALSE | IOY52: FALSE | IOZ52: FALSE | IPA52: FALSE | IPB52: FALSE | IPC52: FALSE | IPD52: FALSE | IPE52: FALSE | IPF52: FALSE | IPG52: FALSE | IPH52: FALSE | IPI52: FALSE | IPJ52: FALSE | IPK52: FALSE | IPL52: FALSE | IPM52: FALSE | IPN52: FALSE | IPO52: FALSE | IPP52: FALSE | IPQ52: FALSE | IPR52: FALSE | IPS52: FALSE | IPT52: FALSE | IPU52: FALSE | IPV52: FALSE | IPW52: FALSE | IPX52: FALSE | IPY52: FALSE | IPZ52: FALSE | IQA52: FALSE | IQB52: FALSE | IQC52: FALSE | IQD52: FALSE | IQE52: FALSE | IQF52: FALSE | IQG52: FALSE | IQH52: FALSE | IQI52: FALSE | IQJ52: FALSE | IQK52: FALSE | IQL52: FALSE | IQM52: =IF(IQM6,IQM29/IQL29-1) -> FALSE | IQN52: FALSE | IQO52: FALSE | IQP52: FALSE | IQQ52: FALSE | IQR52: FALSE | IQS52: FALSE | IQT52: FALSE | IQU52: FALSE | IQV52: FALSE | IQW52: FALSE | IQX52: FALSE | IQY52: FALSE | IQZ52: FALSE | IRA52: FALSE | IRB52: FALSE | IRC52: FALSE | IRD52: FALSE | IRE52: FALSE | IRF52: FALSE | IRG52: FALSE | IRH52: FALSE | IRI52: FALSE | IRJ52: FALSE | IRK52: FALSE | IRL52: FALSE | IRM52: FALSE | IRN52: FALSE | IRO52: FALSE | IRP52: FALSE | IRQ52: FALSE | IRR52: FALSE | IRS52: FALSE | IRT52: FALSE | IRU52: FALSE | IRV52: FALSE | IRW52: FALSE | IRX52: FALSE | IRY52: FALSE | IRZ52: FALSE | ISA52: FALSE | ISB52: FALSE | ISC52: FALSE | ISD52: FALSE | ISE52: FALSE | ISF52: FALSE | ISG52: FALSE | ISH52: FALSE | ISI52: FALSE | ISJ52: FALSE | ISK52: FALSE | ISL52: FALSE | ISM52: FALSE | ISN52: FALSE | ISO52: FALSE | ISP52: FALSE | ISQ52: FALSE | ISR52: FALSE | ISS52: FALSE | IST52: FALSE | ISU52: FALSE | ISV52: FALSE | ISW52: FALSE | ISX52: FALSE | ISY52: =IF(ISY6,ISY29/ISX29-1) -> FALSE | ISZ52: FALSE | ITA52: FALSE | ITB52: FALSE | ITC52: FALSE | ITD52: FALSE | ITE52: FALSE | ITF52: FALSE | ITG52: FALSE | ITH52: FALSE | ITI52: FALSE | ITJ52: FALSE | ITK52: FALSE | ITL52: FALSE | ITM52: FALSE | ITN52: FALSE | ITO52: FALSE | ITP52: FALSE | ITQ52: FALSE | ITR52: FALSE | ITS52: FALSE | ITT52: FALSE | ITU52: FALSE | ITV52: FALSE | ITW52: FALSE | ITX52: FALSE | ITY52: FALSE | ITZ52: FALSE | IUA52: FALSE | IUB52: FALSE | IUC52: FALSE | IUD52: FALSE | IUE52: FALSE | IUF52: FALSE | IUG52: FALSE | IUH52: FALSE | IUI52: FALSE | IUJ52: FALSE | IUK52: FALSE | IUL52: FALSE | IUM52: FALSE | IUN52: FALSE | IUO52: FALSE | IUP52: FALSE | IUQ52: FALSE | IUR52: FALSE | IUS52: FALSE | IUT52: FALSE | IUU52: FALSE | IUV52: FALSE | IUW52: FALSE | IUX52: FALSE | IUY52: FALSE | IUZ52: FALSE | IVA52: FALSE | IVB52: FALSE | IVC52: FALSE | IVD52: FALSE | IVE52: FALSE | IVF52: FALSE | IVG52: FALSE | IVH52: FALSE | IVI52: FALSE | IVJ52: FALSE | IVK52: =IF(IVK6,IVK29/IVJ29-1) -> FALSE | IVL52: FALSE | IVM52: FALSE | IVN52: FALSE | IVO52: FALSE | IVP52: FALSE | IVQ52: FALSE | IVR52: FALSE | IVS52: FALSE | IVT52: FALSE | IVU52: FALSE | IVV52: FALSE | IVW52: FALSE | IVX52: FALSE | IVY52: FALSE | IVZ52: FALSE | IWA52: FALSE | IWB52: FALSE | IWC52: FALSE | IWD52: FALSE | IWE52: FALSE | IWF52: FALSE | IWG52: FALSE | IWH52: FALSE | IWI52: FALSE | IWJ52: FALSE | IWK52: FALSE | IWL52: FALSE | IWM52: FALSE | IWN52: FALSE | IWO52: FALSE | IWP52: FALSE | IWQ52: FALSE | IWR52: FALSE | IWS52: FALSE | IWT52: FALSE | IWU52: FALSE | IWV52: FALSE | IWW52: FALSE | IWX52: FALSE | IWY52: FALSE | IWZ52: FALSE | IXA52: FALSE | IXB52: FALSE | IXC52: FALSE | IXD52: FALSE | IXE52: FALSE | IXF52: FALSE | IXG52: FALSE | IXH52: FALSE | IXI52: FALSE | IXJ52: FALSE | IXK52: FALSE | IXL52: FALSE | IXM52: FALSE | IXN52: FALSE | IXO52: FALSE | IXP52: FALSE | IXQ52: FALSE | IXR52: FALSE | IXS52: FALSE | IXT52: FALSE | IXU52: FALSE | IXV52: FALSE | IXW52: =IF(IXW6,IXW29/IXV29-1) -> FALSE | IXX52: FALSE | IXY52: FALSE | IXZ52: FALSE | IYA52: FALSE | IYB52: FALSE | IYC52: FALSE | IYD52: FALSE | IYE52: FALSE | IYF52: FALSE | IYG52: FALSE | IYH52: FALSE | IYI52: FALSE | IYJ52: FALSE | IYK52: FALSE | IYL52: FALSE | IYM52: FALSE | IYN52: FALSE | IYO52: FALSE | IYP52: FALSE | IYQ52: FALSE | IYR52: FALSE | IYS52: FALSE | IYT52: FALSE | IYU52: FALSE | IYV52: FALSE | IYW52: FALSE | IYX52: FALSE | IYY52: FALSE | IYZ52: FALSE | IZA52: FALSE | IZB52: FALSE | IZC52: FALSE | IZD52: FALSE | IZE52: FALSE | IZF52: FALSE | IZG52: FALSE | IZH52: FALSE | IZI52: FALSE | IZJ52: FALSE | IZK52: FALSE | IZL52: FALSE | IZM52: FALSE | IZN52: FALSE | IZO52: FALSE | IZP52: FALSE | IZQ52: FALSE | IZR52: FALSE | IZS52: FALSE | IZT52: FALSE | IZU52: FALSE | IZV52: FALSE | IZW52: FALSE | IZX52: FALSE | IZY52: FALSE | IZZ52: FALSE | JAA52: FALSE | JAB52: FALSE | JAC52: FALSE | JAD52: FALSE | JAE52: FALSE | JAF52: FALSE | JAG52: FALSE | JAH52: FALSE | JAI52: =IF(JAI6,JAI29/JAH29-1) -> FALSE | JAJ52: FALSE | JAK52: FALSE | JAL52: FALSE | JAM52: FALSE | JAN52: FALSE | JAO52: FALSE | JAP52: FALSE | JAQ52: FALSE | JAR52: FALSE | JAS52: FALSE | JAT52: FALSE | JAU52: FALSE | JAV52: FALSE | JAW52: FALSE | JAX52: FALSE | JAY52: FALSE | JAZ52: FALSE | JBA52: FALSE | JBB52: FALSE | JBC52: FALSE | JBD52: FALSE | JBE52: FALSE | JBF52: FALSE | JBG52: FALSE | JBH52: FALSE | JBI52: FALSE | JBJ52: FALSE | JBK52: FALSE | JBL52: FALSE | JBM52: FALSE | JBN52: FALSE | JBO52: FALSE | JBP52: FALSE | JBQ52: FALSE | JBR52: FALSE | JBS52: FALSE | JBT52: FALSE | JBU52: FALSE | JBV52: FALSE | JBW52: FALSE | JBX52: FALSE | JBY52: FALSE | JBZ52: FALSE | JCA52: FALSE | JCB52: FALSE | JCC52: FALSE | JCD52: FALSE | JCE52: FALSE | JCF52: FALSE | JCG52: FALSE | JCH52: FALSE | JCI52: FALSE | JCJ52: FALSE | JCK52: FALSE | JCL52: FALSE | JCM52: FALSE | JCN52: FALSE | JCO52: FALSE | JCP52: FALSE | JCQ52: FALSE | JCR52: FALSE | JCS52: FALSE | JCT52: FALSE | JCU52: =IF(JCU6,JCU29/JCT29-1) -> FALSE | JCV52: FALSE | JCW52: FALSE | JCX52: FALSE | JCY52: FALSE | JCZ52: FALSE | JDA52: FALSE | JDB52: FALSE | JDC52: FALSE | JDD52: FALSE | JDE52: FALSE | JDF52: FALSE | JDG52: FALSE | JDH52: FALSE | JDI52: FALSE | JDJ52: FALSE | JDK52: FALSE | JDL52: FALSE | JDM52: FALSE | JDN52: FALSE | JDO52: FALSE | JDP52: FALSE | JDQ52: FALSE | JDR52: FALSE | JDS52: FALSE | JDT52: FALSE | JDU52: FALSE | JDV52: FALSE | JDW52: FALSE | JDX52: FALSE | JDY52: FALSE | JDZ52: FALSE | JEA52: FALSE | JEB52: FALSE | JEC52: FALSE | JED52: FALSE | JEE52: FALSE | JEF52: FALSE | JEG52: FALSE | JEH52: FALSE | JEI52: FALSE | JEJ52: FALSE | JEK52: FALSE | JEL52: FALSE | JEM52: FALSE | JEN52: FALSE | JEO52: FALSE | JEP52: FALSE | JEQ52: FALSE | JER52: FALSE | JES52: FALSE | JET52: FALSE | JEU52: FALSE | JEV52: FALSE | JEW52: FALSE | JEX52: FALSE | JEY52: FALSE | JEZ52: FALSE | JFA52: FALSE | JFB52: FALSE | JFC52: FALSE | JFD52: FALSE | JFE52: FALSE | JFF52: FALSE | JFG52: =IF(JFG6,JFG29/JFF29-1) -> FALSE | JFH52: FALSE | JFI52: FALSE | JFJ52: FALSE | JFK52: FALSE | JFL52: FALSE | JFM52: FALSE | JFN52: FALSE | JFO52: FALSE | JFP52: FALSE | JFQ52: FALSE | JFR52: FALSE | JFS52: FALSE | JFT52: FALSE | JFU52: FALSE | JFV52: FALSE | JFW52: FALSE | JFX52: FALSE | JFY52: FALSE | JFZ52: FALSE | JGA52: FALSE | JGB52: FALSE | JGC52: FALSE | JGD52: FALSE | JGE52: FALSE | JGF52: FALSE | JGG52: FALSE | JGH52: FALSE | JGI52: FALSE | JGJ52: FALSE | JGK52: FALSE | JGL52: FALSE | JGM52: FALSE | JGN52: FALSE | JGO52: FALSE | JGP52: FALSE | JGQ52: FALSE | JGR52: FALSE | JGS52: FALSE | JGT52: FALSE | JGU52: FALSE | JGV52: FALSE | JGW52: FALSE | JGX52: FALSE | JGY52: FALSE | JGZ52: FALSE | JHA52: FALSE | JHB52: FALSE | JHC52: FALSE | JHD52: FALSE | JHE52: FALSE | JHF52: FALSE | JHG52: FALSE | JHH52: FALSE | JHI52: FALSE | JHJ52: FALSE | JHK52: FALSE | JHL52: FALSE | JHM52: FALSE | JHN52: FALSE | JHO52: FALSE | JHP52: FALSE | JHQ52: FALSE | JHR52: FALSE | JHS52: =IF(JHS6,JHS29/JHR29-1) -> FALSE | JHT52: FALSE | JHU52: FALSE | JHV52: FALSE | JHW52: FALSE | JHX52: FALSE | JHY52: FALSE | JHZ52: FALSE | JIA52: FALSE | JIB52: FALSE | JIC52: FALSE | JID52: FALSE | JIE52: FALSE | JIF52: FALSE | JIG52: FALSE | JIH52: FALSE | JII52: FALSE | JIJ52: FALSE | JIK52: FALSE | JIL52: FALSE | JIM52: FALSE | JIN52: FALSE | JIO52: FALSE | JIP52: FALSE | JIQ52: FALSE | JIR52: FALSE | JIS52: FALSE | JIT52: FALSE | JIU52: FALSE | JIV52: FALSE | JIW52: FALSE | JIX52: FALSE | JIY52: FALSE | JIZ52: FALSE | JJA52: FALSE | JJB52: FALSE | JJC52: FALSE | JJD52: FALSE | JJE52: FALSE | JJF52: FALSE | JJG52: FALSE | JJH52: FALSE | JJI52: FALSE | JJJ52: FALSE | JJK52: FALSE | JJL52: FALSE | JJM52: FALSE | JJN52: FALSE | JJO52: FALSE | JJP52: FALSE | JJQ52: FALSE | JJR52: FALSE | JJS52: FALSE | JJT52: FALSE | JJU52: FALSE | JJV52: FALSE | JJW52: FALSE | JJX52: FALSE | JJY52: FALSE | JJZ52: FALSE | JKA52: FALSE | JKB52: FALSE | JKC52: FALSE | JKD52: FALSE | JKE52: =IF(JKE6,JKE29/JKD29-1) -> FALSE | JKF52: FALSE | JKG52: FALSE | JKH52: FALSE | JKI52: FALSE | JKJ52: FALSE | JKK52: FALSE | JKL52: FALSE | JKM52: FALSE | JKN52: FALSE | JKO52: FALSE | JKP52: FALSE | JKQ52: FALSE | JKR52: FALSE | JKS52: FALSE | JKT52: FALSE | JKU52: FALSE | JKV52: FALSE | JKW52: FALSE | JKX52: FALSE | JKY52: FALSE | JKZ52: FALSE | JLA52: FALSE | JLB52: FALSE | JLC52: FALSE | JLD52: FALSE | JLE52: FALSE | JLF52: FALSE | JLG52: FALSE | JLH52: FALSE | JLI52: FALSE | JLJ52: FALSE | JLK52: FALSE | JLL52: FALSE | JLM52: FALSE | JLN52: FALSE | JLO52: FALSE | JLP52: FALSE | JLQ52: FALSE | JLR52: FALSE | JLS52: FALSE | JLT52: FALSE | JLU52: FALSE | JLV52: FALSE | JLW52: FALSE | JLX52: FALSE | JLY52: FALSE | JLZ52: FALSE | JMA52: FALSE | JMB52: FALSE | JMC52: FALSE | JMD52: FALSE | JME52: FALSE | JMF52: FALSE | JMG52: FALSE | JMH52: FALSE | JMI52: FALSE | JMJ52: FALSE | JMK52: FALSE | JML52: FALSE | JMM52: FALSE | JMN52: FALSE | JMO52: FALSE | JMP52: FALSE | JMQ52: =IF(JMQ6,JMQ29/JMP29-1) -> FALSE | JMR52: FALSE | JMS52: FALSE | JMT52: FALSE | JMU52: FALSE | JMV52: FALSE | JMW52: FALSE | JMX52: FALSE | JMY52: FALSE | JMZ52: FALSE | JNA52: FALSE | JNB52: FALSE | JNC52: FALSE | JND52: FALSE | JNE52: FALSE | JNF52: FALSE | JNG52: FALSE | JNH52: FALSE | JNI52: FALSE | JNJ52: FALSE | JNK52: FALSE | JNL52: FALSE | JNM52: FALSE | JNN52: FALSE | JNO52: FALSE | JNP52: FALSE | JNQ52: FALSE | JNR52: FALSE | JNS52: FALSE | JNT52: FALSE | JNU52: FALSE | JNV52: FALSE | JNW52: FALSE | JNX52: FALSE | JNY52: FALSE | JNZ52: FALSE | JOA52: FALSE | JOB52: FALSE | JOC52: FALSE | JOD52: FALSE | JOE52: FALSE | JOF52: FALSE | JOG52: FALSE | JOH52: FALSE | JOI52: FALSE | JOJ52: FALSE | JOK52: FALSE | JOL52: FALSE | JOM52: FALSE | JON52: FALSE | JOO52: FALSE | JOP52: FALSE | JOQ52: FALSE | JOR52: FALSE | JOS52: FALSE | JOT52: FALSE | JOU52: FALSE | JOV52: FALSE | JOW52: FALSE | JOX52: FALSE | JOY52: FALSE | JOZ52: FALSE | JPA52: FALSE | JPB52: FALSE | JPC52: =IF(JPC6,JPC29/JPB29-1) -> FALSE | JPD52: FALSE | JPE52: FALSE | JPF52: FALSE | JPG52: FALSE | JPH52: FALSE | JPI52: FALSE | JPJ52: FALSE | JPK52: FALSE | JPL52: FALSE | JPM52: FALSE | JPN52: FALSE | JPO52: FALSE | JPP52: FALSE | JPQ52: FALSE | JPR52: FALSE | JPS52: FALSE | JPT52: FALSE | JPU52: FALSE | JPV52: FALSE | JPW52: FALSE | JPX52: FALSE | JPY52: FALSE | JPZ52: FALSE | JQA52: FALSE | JQB52: FALSE | JQC52: FALSE | JQD52: FALSE | JQE52: FALSE | JQF52: FALSE | JQG52: FALSE | JQH52: FALSE | JQI52: FALSE | JQJ52: FALSE | JQK52: FALSE | JQL52: FALSE | JQM52: FALSE | JQN52: FALSE | JQO52: FALSE | JQP52: FALSE | JQQ52: FALSE | JQR52: FALSE | JQS52: FALSE | JQT52: FALSE | JQU52: FALSE | JQV52: FALSE | JQW52: FALSE | JQX52: FALSE | JQY52: FALSE | JQZ52: FALSE | JRA52: FALSE | JRB52: FALSE | JRC52: FALSE | JRD52: FALSE | JRE52: FALSE | JRF52: FALSE | JRG52: FALSE | JRH52: FALSE | JRI52: FALSE | JRJ52: FALSE | JRK52: FALSE | JRL52: FALSE | JRM52: FALSE | JRN52: FALSE | JRO52: =IF(JRO6,JRO29/JRN29-1) -> FALSE | JRP52: FALSE | JRQ52: FALSE | JRR52: FALSE | JRS52: FALSE | JRT52: FALSE | JRU52: FALSE | JRV52: FALSE | JRW52: FALSE | JRX52: FALSE | JRY52: FALSE | JRZ52: FALSE | JSA52: FALSE | JSB52: FALSE | JSC52: FALSE | JSD52: FALSE | JSE52: FALSE | JSF52: FALSE | JSG52: FALSE | JSH52: FALSE | JSI52: FALSE | JSJ52: FALSE | JSK52: FALSE | JSL52: FALSE | JSM52: FALSE | JSN52: FALSE | JSO52: FALSE | JSP52: FALSE | JSQ52: FALSE | JSR52: FALSE | JSS52: FALSE | JST52: FALSE | JSU52: FALSE | JSV52: FALSE | JSW52: FALSE | JSX52: FALSE | JSY52: FALSE | JSZ52: FALSE | JTA52: FALSE | JTB52: FALSE | JTC52: FALSE | JTD52: FALSE | JTE52: FALSE | JTF52: FALSE | JTG52: FALSE | JTH52: FALSE | JTI52: FALSE | JTJ52: FALSE | JTK52: FALSE | JTL52: FALSE | JTM52: FALSE | JTN52: FALSE | JTO52: FALSE | JTP52: FALSE | JTQ52: FALSE | JTR52: FALSE | JTS52: FALSE | JTT52: FALSE | JTU52: FALSE | JTV52: FALSE | JTW52: FALSE | JTX52: FALSE | JTY52: FALSE | JTZ52: FALSE | JUA52: =IF(JUA6,JUA29/JTZ29-1) -> FALSE | JUB52: FALSE | JUC52: FALSE | JUD52: FALSE | JUE52: FALSE | JUF52: FALSE | JUG52: FALSE | JUH52: FALSE | JUI52: FALSE | JUJ52: FALSE | JUK52: FALSE | JUL52: FALSE | JUM52: FALSE | JUN52: FALSE | JUO52: FALSE | JUP52: FALSE | JUQ52: FALSE | JUR52: FALSE | JUS52: FALSE | JUT52: FALSE | JUU52: FALSE | JUV52: FALSE | JUW52: FALSE | JUX52: FALSE | JUY52: FALSE | JUZ52: FALSE | JVA52: FALSE | JVB52: FALSE | JVC52: FALSE | JVD52: FALSE | JVE52: FALSE | JVF52: FALSE | JVG52: FALSE | JVH52: FALSE | JVI52: FALSE | JVJ52: FALSE | JVK52: FALSE | JVL52: FALSE | JVM52: FALSE | JVN52: FALSE | JVO52: FALSE | JVP52: FALSE | JVQ52: FALSE | JVR52: FALSE | JVS52: FALSE | JVT52: FALSE | JVU52: FALSE | JVV52: FALSE | JVW52: FALSE | JVX52: FALSE | JVY52: FALSE | JVZ52: FALSE | JWA52: FALSE | JWB52: FALSE | JWC52: FALSE | JWD52: FALSE | JWE52: FALSE | JWF52: FALSE | JWG52: FALSE | JWH52: FALSE | JWI52: FALSE | JWJ52: FALSE | JWK52: FALSE | JWL52: FALSE | JWM52: =IF(JWM6,JWM29/JWL29-1) -> FALSE | JWN52: FALSE | JWO52: FALSE | JWP52: FALSE | JWQ52: FALSE | JWR52: FALSE | JWS52: FALSE | JWT52: FALSE | JWU52: FALSE | JWV52: FALSE | JWW52: FALSE | JWX52: FALSE | JWY52: FALSE | JWZ52: FALSE | JXA52: FALSE | JXB52: FALSE | JXC52: FALSE | JXD52: FALSE | JXE52: FALSE | JXF52: FALSE | JXG52: FALSE | JXH52: FALSE | JXI52: FALSE | JXJ52: FALSE | JXK52: FALSE | JXL52: FALSE | JXM52: FALSE | JXN52: FALSE | JXO52: FALSE | JXP52: FALSE | JXQ52: FALSE | JXR52: FALSE | JXS52: FALSE | JXT52: FALSE | JXU52: FALSE | JXV52: FALSE | JXW52: FALSE | JXX52: FALSE | JXY52: FALSE | JXZ52: FALSE | JYA52: FALSE | JYB52: FALSE | JYC52: FALSE | JYD52: FALSE | JYE52: FALSE | JYF52: FALSE | JYG52: FALSE | JYH52: FALSE | JYI52: FALSE | JYJ52: FALSE | JYK52: FALSE | JYL52: FALSE | JYM52: FALSE | JYN52: FALSE | JYO52: FALSE | JYP52: FALSE | JYQ52: FALSE | JYR52: FALSE | JYS52: FALSE | JYT52: FALSE | JYU52: FALSE | JYV52: FALSE | JYW52: FALSE | JYX52: FALSE | JYY52: =IF(JYY6,JYY29/JYX29-1) -> FALSE | JYZ52: FALSE | JZA52: FALSE | JZB52: FALSE | JZC52: FALSE | JZD52: FALSE | JZE52: FALSE | JZF52: FALSE | JZG52: FALSE | JZH52: FALSE | JZI52: FALSE | JZJ52: FALSE | JZK52: FALSE | JZL52: FALSE | JZM52: FALSE | JZN52: FALSE | JZO52: FALSE | JZP52: FALSE | JZQ52: FALSE | JZR52: FALSE | JZS52: FALSE | JZT52: FALSE | JZU52: FALSE | JZV52: FALSE | JZW52: FALSE | JZX52: FALSE | JZY52: FALSE | JZZ52: FALSE | KAA52: FALSE | KAB52: FALSE | KAC52: FALSE | KAD52: FALSE | KAE52: FALSE | KAF52: FALSE | KAG52: FALSE | KAH52: FALSE | KAI52: FALSE | KAJ52: FALSE | KAK52: FALSE | KAL52: FALSE | KAM52: FALSE | KAN52: FALSE | KAO52: FALSE | KAP52: FALSE | KAQ52: FALSE | KAR52: FALSE | KAS52: FALSE | KAT52: FALSE | KAU52: FALSE | KAV52: FALSE | KAW52: FALSE | KAX52: FALSE | KAY52: FALSE | KAZ52: FALSE | KBA52: FALSE | KBB52: FALSE | KBC52: FALSE | KBD52: FALSE | KBE52: FALSE | KBF52: FALSE | KBG52: FALSE | KBH52: FALSE | KBI52: FALSE | KBJ52: FALSE | KBK52: =IF(KBK6,KBK29/KBJ29-1) -> FALSE | KBL52: FALSE | KBM52: FALSE | KBN52: FALSE | KBO52: FALSE | KBP52: FALSE | KBQ52: FALSE | KBR52: FALSE | KBS52: FALSE | KBT52: FALSE | KBU52: FALSE | KBV52: FALSE | KBW52: FALSE | KBX52: FALSE | KBY52: FALSE | KBZ52: FALSE | KCA52: FALSE | KCB52: FALSE | KCC52: FALSE | KCD52: FALSE | KCE52: FALSE | KCF52: FALSE | KCG52: FALSE | KCH52: FALSE | KCI52: FALSE | KCJ52: FALSE | KCK52: FALSE | KCL52: FALSE | KCM52: FALSE | KCN52: FALSE | KCO52: FALSE | KCP52: FALSE | KCQ52: FALSE | KCR52: FALSE | KCS52: FALSE | KCT52: FALSE | KCU52: FALSE | KCV52: FALSE | KCW52: FALSE | KCX52: FALSE | KCY52: FALSE | KCZ52: FALSE | KDA52: FALSE | KDB52: FALSE | KDC52: FALSE | KDD52: FALSE | KDE52: FALSE | KDF52: FALSE | KDG52: FALSE | KDH52: FALSE | KDI52: FALSE | KDJ52: FALSE | KDK52: FALSE | KDL52: FALSE | KDM52: FALSE | KDN52: FALSE | KDO52: FALSE | KDP52: FALSE | KDQ52: FALSE | KDR52: FALSE | KDS52: FALSE | KDT52: FALSE | KDU52: FALSE | KDV52: FALSE | KDW52: =IF(KDW6,KDW29/KDV29-1) -> FALSE | KDX52: FALSE | KDY52: FALSE | KDZ52: FALSE | KEA52: FALSE | KEB52: FALSE | KEC52: FALSE | KED52: FALSE | KEE52: FALSE | KEF52: FALSE | KEG52: FALSE | KEH52: FALSE | KEI52: FALSE | KEJ52: FALSE | KEK52: FALSE | KEL52: FALSE | KEM52: FALSE | KEN52: FALSE | KEO52: FALSE | KEP52: FALSE | KEQ52: FALSE | KER52: FALSE | KES52: FALSE | KET52: FALSE | KEU52: FALSE | KEV52: FALSE | KEW52: FALSE | KEX52: FALSE | KEY52: FALSE | KEZ52: FALSE | KFA52: FALSE | KFB52: FALSE | KFC52: FALSE | KFD52: FALSE | KFE52: FALSE | KFF52: FALSE | KFG52: FALSE | KFH52: FALSE | KFI52: FALSE | KFJ52: FALSE | KFK52: FALSE | KFL52: FALSE | KFM52: FALSE | KFN52: FALSE | KFO52: FALSE | KFP52: FALSE | KFQ52: FALSE | KFR52: FALSE | KFS52: FALSE | KFT52: FALSE | KFU52: FALSE | KFV52: FALSE | KFW52: FALSE | KFX52: FALSE | KFY52: FALSE | KFZ52: FALSE | KGA52: FALSE | KGB52: FALSE | KGC52: FALSE | KGD52: FALSE | KGE52: FALSE | KGF52: FALSE | KGG52: FALSE | KGH52: FALSE | KGI52: =IF(KGI6,KGI29/KGH29-1) -> FALSE | KGJ52: FALSE | KGK52: FALSE | KGL52: FALSE | KGM52: FALSE | KGN52: FALSE | KGO52: FALSE | KGP52: FALSE | KGQ52: FALSE | KGR52: FALSE | KGS52: FALSE | KGT52: FALSE | KGU52: FALSE | KGV52: FALSE | KGW52: FALSE | KGX52: FALSE | KGY52: FALSE | KGZ52: FALSE | KHA52: FALSE | KHB52: FALSE | KHC52: FALSE | KHD52: FALSE | KHE52: FALSE | KHF52: FALSE | KHG52: FALSE | KHH52: FALSE | KHI52: FALSE | KHJ52: FALSE | KHK52: FALSE | KHL52: FALSE | KHM52: FALSE | KHN52: FALSE | KHO52: FALSE | KHP52: FALSE | KHQ52: FALSE | KHR52: FALSE | KHS52: FALSE | KHT52: FALSE | KHU52: FALSE | KHV52: FALSE | KHW52: FALSE | KHX52: FALSE | KHY52: FALSE | KHZ52: FALSE | KIA52: FALSE | KIB52: FALSE | KIC52: FALSE | KID52: FALSE | KIE52: FALSE | KIF52: FALSE | KIG52: FALSE | KIH52: FALSE | KII52: FALSE | KIJ52: FALSE | KIK52: FALSE | KIL52: FALSE | KIM52: FALSE | KIN52: FALSE | KIO52: FALSE | KIP52: FALSE | KIQ52: FALSE | KIR52: FALSE | KIS52: FALSE | KIT52: FALSE | KIU52: =IF(KIU6,KIU29/KIT29-1) -> FALSE | KIV52: FALSE | KIW52: FALSE | KIX52: FALSE | KIY52: FALSE | KIZ52: FALSE | KJA52: FALSE | KJB52: FALSE | KJC52: FALSE | KJD52: FALSE | KJE52: FALSE | KJF52: FALSE | KJG52: FALSE | KJH52: FALSE | KJI52: FALSE | KJJ52: FALSE | KJK52: FALSE | KJL52: FALSE | KJM52: FALSE | KJN52: FALSE | KJO52: FALSE | KJP52: FALSE | KJQ52: FALSE | KJR52: FALSE | KJS52: FALSE | KJT52: FALSE | KJU52: FALSE | KJV52: FALSE | KJW52: FALSE | KJX52: FALSE | KJY52: FALSE | KJZ52: FALSE | KKA52: FALSE | KKB52: FALSE | KKC52: FALSE | KKD52: FALSE | KKE52: FALSE | KKF52: FALSE | KKG52: FALSE | KKH52: FALSE | KKI52: FALSE | KKJ52: FALSE | KKK52: FALSE | KKL52: FALSE | KKM52: FALSE | KKN52: FALSE | KKO52: FALSE | KKP52: FALSE | KKQ52: FALSE | KKR52: FALSE | KKS52: FALSE | KKT52: FALSE | KKU52: FALSE | KKV52: FALSE | KKW52: FALSE | KKX52: FALSE | KKY52: FALSE | KKZ52: FALSE | KLA52: FALSE | KLB52: FALSE | KLC52: FALSE | KLD52: FALSE | KLE52: FALSE | KLF52: FALSE | KLG52: =IF(KLG6,KLG29/KLF29-1) -> FALSE | KLH52: FALSE | KLI52: FALSE | KLJ52: FALSE | KLK52: FALSE | KLL52: FALSE | KLM52: FALSE | KLN52: FALSE | KLO52: FALSE | KLP52: FALSE | KLQ52: FALSE | KLR52: FALSE | KLS52: FALSE | KLT52: FALSE | KLU52: FALSE | KLV52: FALSE | KLW52: FALSE | KLX52: FALSE | KLY52: FALSE | KLZ52: FALSE | KMA52: FALSE | KMB52: FALSE | KMC52: FALSE | KMD52: FALSE | KME52: FALSE | KMF52: FALSE | KMG52: FALSE | KMH52: FALSE | KMI52: FALSE | KMJ52: FALSE | KMK52: FALSE | KML52: FALSE | KMM52: FALSE | KMN52: FALSE | KMO52: FALSE | KMP52: FALSE | KMQ52: FALSE | KMR52: FALSE | KMS52: FALSE | KMT52: FALSE | KMU52: FALSE | KMV52: FALSE | KMW52: FALSE | KMX52: FALSE | KMY52: FALSE | KMZ52: FALSE | KNA52: FALSE | KNB52: FALSE | KNC52: FALSE | KND52: FALSE | KNE52: FALSE | KNF52: FALSE | KNG52: FALSE | KNH52: FALSE | KNI52: FALSE | KNJ52: FALSE | KNK52: FALSE | KNL52: FALSE | KNM52: FALSE | KNN52: FALSE | KNO52: FALSE | KNP52: FALSE | KNQ52: FALSE | KNR52: FALSE | KNS52: =IF(KNS6,KNS29/KNR29-1) -> FALSE | KNT52: FALSE | KNU52: FALSE | KNV52: FALSE | KNW52: FALSE | KNX52: FALSE | KNY52: FALSE | KNZ52: FALSE | KOA52: FALSE | KOB52: FALSE | KOC52: FALSE | KOD52: FALSE | KOE52: FALSE | KOF52: FALSE | KOG52: FALSE | KOH52: FALSE | KOI52: FALSE | KOJ52: FALSE | KOK52: FALSE | KOL52: FALSE | KOM52: FALSE | KON52: FALSE | KOO52: FALSE | KOP52: FALSE | KOQ52: FALSE | KOR52: FALSE | KOS52: FALSE | KOT52: FALSE | KOU52: FALSE | KOV52: FALSE | KOW52: FALSE | KOX52: FALSE | KOY52: FALSE | KOZ52: FALSE | KPA52: FALSE | KPB52: FALSE | KPC52: FALSE | KPD52: FALSE | KPE52: FALSE | KPF52: FALSE | KPG52: FALSE | KPH52: FALSE | KPI52: FALSE | KPJ52: FALSE | KPK52: FALSE | KPL52: FALSE | KPM52: FALSE | KPN52: FALSE | KPO52: FALSE | KPP52: FALSE | KPQ52: FALSE | KPR52: FALSE | KPS52: FALSE | KPT52: FALSE | KPU52: FALSE | KPV52: FALSE | KPW52: FALSE | KPX52: FALSE | KPY52: FALSE | KPZ52: FALSE | KQA52: FALSE | KQB52: FALSE | KQC52: FALSE | KQD52: FALSE | KQE52: =IF(KQE6,KQE29/KQD29-1) -> FALSE | KQF52: FALSE | KQG52: FALSE | KQH52: FALSE | KQI52: FALSE | KQJ52: FALSE | KQK52: FALSE | KQL52: FALSE | KQM52: FALSE | KQN52: FALSE | KQO52: FALSE | KQP52: FALSE | KQQ52: FALSE | KQR52: FALSE | KQS52: FALSE | KQT52: FALSE | KQU52: FALSE | KQV52: FALSE | KQW52: FALSE | KQX52: FALSE | KQY52: FALSE | KQZ52: FALSE | KRA52: FALSE | KRB52: FALSE | KRC52: FALSE | KRD52: FALSE | KRE52: FALSE | KRF52: FALSE | KRG52: FALSE | KRH52: FALSE | KRI52: FALSE | KRJ52: FALSE | KRK52: FALSE | KRL52: FALSE | KRM52: FALSE | KRN52: FALSE | KRO52: FALSE | KRP52: FALSE | KRQ52: FALSE | KRR52: FALSE | KRS52: FALSE | KRT52: FALSE | KRU52: FALSE | KRV52: FALSE | KRW52: FALSE | KRX52: FALSE | KRY52: FALSE | KRZ52: FALSE | KSA52: FALSE | KSB52: FALSE | KSC52: FALSE | KSD52: FALSE | KSE52: FALSE | KSF52: FALSE | KSG52: FALSE | KSH52: FALSE | KSI52: FALSE | KSJ52: FALSE | KSK52: FALSE | KSL52: FALSE | KSM52: FALSE | KSN52: FALSE | KSO52: FALSE | KSP52: FALSE | KSQ52: =IF(KSQ6,KSQ29/KSP29-1) -> FALSE | KSR52: FALSE | KSS52: FALSE | KST52: FALSE | KSU52: FALSE | KSV52: FALSE | KSW52: FALSE | KSX52: FALSE | KSY52: FALSE | KSZ52: FALSE | KTA52: FALSE | KTB52: FALSE | KTC52: FALSE | KTD52: FALSE | KTE52: FALSE | KTF52: FALSE | KTG52: FALSE | KTH52: FALSE | KTI52: FALSE | KTJ52: FALSE | KTK52: FALSE | KTL52: FALSE | KTM52: FALSE | KTN52: FALSE | KTO52: FALSE | KTP52: FALSE | KTQ52: FALSE | KTR52: FALSE | KTS52: FALSE | KTT52: FALSE | KTU52: FALSE | KTV52: FALSE | KTW52: FALSE | KTX52: FALSE | KTY52: FALSE | KTZ52: FALSE | KUA52: FALSE | KUB52: FALSE | KUC52: FALSE | KUD52: FALSE | KUE52: FALSE | KUF52: FALSE | KUG52: FALSE | KUH52: FALSE | KUI52: FALSE | KUJ52: FALSE | KUK52: FALSE | KUL52: FALSE | KUM52: FALSE | KUN52: FALSE | KUO52: FALSE | KUP52: FALSE | KUQ52: FALSE | KUR52: FALSE | KUS52: FALSE | KUT52: FALSE | KUU52: FALSE | KUV52: FALSE | KUW52: FALSE | KUX52: FALSE | KUY52: FALSE | KUZ52: FALSE | KVA52: FALSE | KVB52: FALSE | KVC52: =IF(KVC6,KVC29/KVB29-1) -> FALSE | KVD52: FALSE | KVE52: FALSE | KVF52: FALSE | KVG52: FALSE | KVH52: FALSE | KVI52: FALSE | KVJ52: FALSE | KVK52: FALSE | KVL52: FALSE | KVM52: FALSE | KVN52: FALSE | KVO52: FALSE | KVP52: FALSE | KVQ52: FALSE | KVR52: FALSE | KVS52: FALSE | KVT52: FALSE | KVU52: FALSE | KVV52: FALSE | KVW52: FALSE | KVX52: FALSE | KVY52: FALSE | KVZ52: FALSE | KWA52: FALSE | KWB52: FALSE | KWC52: FALSE | KWD52: FALSE | KWE52: FALSE | KWF52: FALSE | KWG52: FALSE | KWH52: FALSE | KWI52: FALSE | KWJ52: FALSE | KWK52: FALSE | KWL52: FALSE | KWM52: FALSE | KWN52: FALSE | KWO52: FALSE | KWP52: FALSE | KWQ52: FALSE | KWR52: FALSE | KWS52: FALSE | KWT52: FALSE | KWU52: FALSE | KWV52: FALSE | KWW52: FALSE | KWX52: FALSE | KWY52: FALSE | KWZ52: FALSE | KXA52: FALSE | KXB52: FALSE | KXC52: FALSE | KXD52: FALSE | KXE52: FALSE | KXF52: FALSE | KXG52: FALSE | KXH52: FALSE | KXI52: FALSE | KXJ52: FALSE | KXK52: FALSE | KXL52: FALSE | KXM52: FALSE | KXN52: FALSE | KXO52: =IF(KXO6,KXO29/KXN29-1) -> FALSE | KXP52: FALSE | KXQ52: FALSE | KXR52: FALSE | KXS52: FALSE | KXT52: FALSE | KXU52: FALSE | KXV52: FALSE | KXW52: FALSE | KXX52: FALSE | KXY52: FALSE | KXZ52: FALSE | KYA52: FALSE | KYB52: FALSE | KYC52: FALSE | KYD52: FALSE | KYE52: FALSE | KYF52: FALSE | KYG52: FALSE | KYH52: FALSE | KYI52: FALSE | KYJ52: FALSE | KYK52: FALSE | KYL52: FALSE | KYM52: FALSE | KYN52: FALSE | KYO52: FALSE | KYP52: FALSE | KYQ52: FALSE | KYR52: FALSE | KYS52: FALSE | KYT52: FALSE | KYU52: FALSE | KYV52: FALSE | KYW52: FALSE | KYX52: FALSE | KYY52: FALSE | KYZ52: FALSE | KZA52: FALSE | KZB52: FALSE | KZC52: FALSE | KZD52: FALSE | KZE52: FALSE | KZF52: FALSE | KZG52: FALSE | KZH52: FALSE | KZI52: FALSE | KZJ52: FALSE | KZK52: FALSE | KZL52: FALSE | KZM52: FALSE | KZN52: FALSE | KZO52: FALSE | KZP52: FALSE | KZQ52: FALSE | KZR52: FALSE | KZS52: FALSE | KZT52: FALSE | KZU52: FALSE | KZV52: FALSE | KZW52: FALSE | KZX52: FALSE | KZY52: FALSE | KZZ52: FALSE | LAA52: =IF(LAA6,LAA29/KZZ29-1) -> FALSE | LAB52: FALSE | LAC52: FALSE | LAD52: FALSE | LAE52: FALSE | LAF52: FALSE | LAG52: FALSE | LAH52: FALSE | LAI52: FALSE | LAJ52: FALSE | LAK52: FALSE | LAL52: FALSE | LAM52: FALSE | LAN52: FALSE | LAO52: FALSE | LAP52: FALSE | LAQ52: FALSE | LAR52: FALSE | LAS52: FALSE | LAT52: FALSE | LAU52: FALSE | LAV52: FALSE | LAW52: FALSE | LAX52: FALSE | LAY52: FALSE | LAZ52: FALSE | LBA52: FALSE | LBB52: FALSE | LBC52: FALSE | LBD52: FALSE | LBE52: FALSE | LBF52: FALSE | LBG52: FALSE | LBH52: FALSE | LBI52: FALSE | LBJ52: FALSE | LBK52: FALSE | LBL52: FALSE | LBM52: FALSE | LBN52: FALSE | LBO52: FALSE | LBP52: FALSE | LBQ52: FALSE | LBR52: FALSE | LBS52: FALSE | LBT52: FALSE | LBU52: FALSE | LBV52: FALSE | LBW52: FALSE | LBX52: FALSE | LBY52: FALSE | LBZ52: FALSE | LCA52: FALSE | LCB52: FALSE | LCC52: FALSE | LCD52: FALSE | LCE52: FALSE | LCF52: FALSE | LCG52: FALSE | LCH52: FALSE | LCI52: FALSE | LCJ52: FALSE | LCK52: FALSE | LCL52: FALSE | LCM52: =IF(LCM6,LCM29/LCL29-1) -> FALSE | LCN52: FALSE | LCO52: FALSE | LCP52: FALSE | LCQ52: FALSE | LCR52: FALSE | LCS52: FALSE | LCT52: FALSE | LCU52: FALSE | LCV52: FALSE | LCW52: FALSE | LCX52: FALSE | LCY52: FALSE | LCZ52: FALSE | LDA52: FALSE | LDB52: FALSE | LDC52: FALSE | LDD52: FALSE | LDE52: FALSE | LDF52: FALSE | LDG52: FALSE | LDH52: FALSE | LDI52: FALSE | LDJ52: FALSE | LDK52: FALSE | LDL52: FALSE | LDM52: FALSE | LDN52: FALSE | LDO52: FALSE | LDP52: FALSE | LDQ52: FALSE | LDR52: FALSE | LDS52: FALSE | LDT52: FALSE | LDU52: FALSE | LDV52: FALSE | LDW52: FALSE | LDX52: FALSE | LDY52: FALSE | LDZ52: FALSE | LEA52: FALSE | LEB52: FALSE | LEC52: FALSE | LED52: FALSE | LEE52: FALSE | LEF52: FALSE | LEG52: FALSE | LEH52: FALSE | LEI52: FALSE | LEJ52: FALSE | LEK52: FALSE | LEL52: FALSE | LEM52: FALSE | LEN52: FALSE | LEO52: FALSE | LEP52: FALSE | LEQ52: FALSE | LER52: FALSE | LES52: FALSE | LET52: FALSE | LEU52: FALSE | LEV52: FALSE | LEW52: FALSE | LEX52: FALSE | LEY52: =IF(LEY6,LEY29/LEX29-1) -> FALSE | LEZ52: FALSE | LFA52: FALSE | LFB52: FALSE | LFC52: FALSE | LFD52: FALSE | LFE52: FALSE | LFF52: FALSE | LFG52: FALSE | LFH52: FALSE | LFI52: FALSE | LFJ52: FALSE | LFK52: FALSE | LFL52: FALSE | LFM52: FALSE | LFN52: FALSE | LFO52: FALSE | LFP52: FALSE | LFQ52: FALSE | LFR52: FALSE | LFS52: FALSE | LFT52: FALSE | LFU52: FALSE | LFV52: FALSE | LFW52: FALSE | LFX52: FALSE | LFY52: FALSE | LFZ52: FALSE | LGA52: FALSE | LGB52: FALSE | LGC52: FALSE | LGD52: FALSE | LGE52: FALSE | LGF52: FALSE | LGG52: FALSE | LGH52: FALSE | LGI52: FALSE | LGJ52: FALSE | LGK52: FALSE | LGL52: FALSE | LGM52: FALSE | LGN52: FALSE | LGO52: FALSE | LGP52: FALSE | LGQ52: FALSE | LGR52: FALSE | LGS52: FALSE | LGT52: FALSE | LGU52: FALSE | LGV52: FALSE | LGW52: FALSE | LGX52: FALSE | LGY52: FALSE | LGZ52: FALSE | LHA52: FALSE | LHB52: FALSE | LHC52: FALSE | LHD52: FALSE | LHE52: FALSE | LHF52: FALSE | LHG52: FALSE | LHH52: FALSE | LHI52: FALSE | LHJ52: FALSE | LHK52: =IF(LHK6,LHK29/LHJ29-1) -> FALSE | LHL52: FALSE | LHM52: FALSE | LHN52: FALSE | LHO52: FALSE | LHP52: FALSE | LHQ52: FALSE | LHR52: FALSE | LHS52: FALSE | LHT52: FALSE | LHU52: FALSE | LHV52: FALSE | LHW52: FALSE | LHX52: FALSE | LHY52: FALSE | LHZ52: FALSE | LIA52: FALSE | LIB52: FALSE | LIC52: FALSE | LID52: FALSE | LIE52: FALSE | LIF52: FALSE | LIG52: FALSE | LIH52: FALSE | LII52: FALSE | LIJ52: FALSE | LIK52: FALSE | LIL52: FALSE | LIM52: FALSE | LIN52: FALSE | LIO52: FALSE | LIP52: FALSE | LIQ52: FALSE | LIR52: FALSE | LIS52: FALSE | LIT52: FALSE | LIU52: FALSE | LIV52: FALSE | LIW52: FALSE | LIX52: FALSE | LIY52: FALSE | LIZ52: FALSE | LJA52: FALSE | LJB52: FALSE | LJC52: FALSE | LJD52: FALSE | LJE52: FALSE | LJF52: FALSE | LJG52: FALSE | LJH52: FALSE | LJI52: FALSE | LJJ52: FALSE | LJK52: FALSE | LJL52: FALSE | LJM52: FALSE | LJN52: FALSE | LJO52: FALSE | LJP52: FALSE | LJQ52: FALSE | LJR52: FALSE | LJS52: FALSE | LJT52: FALSE | LJU52: FALSE | LJV52: FALSE | LJW52: =IF(LJW6,LJW29/LJV29-1) -> FALSE | LJX52: FALSE | LJY52: FALSE | LJZ52: FALSE | LKA52: FALSE | LKB52: FALSE | LKC52: FALSE | LKD52: FALSE | LKE52: FALSE | LKF52: FALSE | LKG52: FALSE | LKH52: FALSE | LKI52: FALSE | LKJ52: FALSE | LKK52: FALSE | LKL52: FALSE | LKM52: FALSE | LKN52: FALSE | LKO52: FALSE | LKP52: FALSE | LKQ52: FALSE | LKR52: FALSE | LKS52: FALSE | LKT52: FALSE | LKU52: FALSE | LKV52: FALSE | LKW52: FALSE | LKX52: FALSE | LKY52: FALSE | LKZ52: FALSE | LLA52: FALSE | LLB52: FALSE | LLC52: FALSE | LLD52: FALSE | LLE52: FALSE | LLF52: FALSE | LLG52: FALSE | LLH52: FALSE | LLI52: FALSE | LLJ52: FALSE | LLK52: FALSE | LLL52: FALSE | LLM52: FALSE | LLN52: FALSE | LLO52: FALSE | LLP52: FALSE | LLQ52: FALSE | LLR52: FALSE | LLS52: FALSE | LLT52: FALSE | LLU52: FALSE | LLV52: FALSE | LLW52: FALSE | LLX52: FALSE | LLY52: FALSE | LLZ52: FALSE | LMA52: FALSE | LMB52: FALSE | LMC52: FALSE | LMD52: FALSE | LME52: FALSE | LMF52: FALSE | LMG52: FALSE | LMH52: FALSE | LMI52: =IF(LMI6,LMI29/LMH29-1) -> FALSE | LMJ52: FALSE | LMK52: FALSE | LML52: FALSE | LMM52: FALSE | LMN52: FALSE | LMO52: FALSE | LMP52: FALSE | LMQ52: FALSE | LMR52: FALSE | LMS52: FALSE | LMT52: FALSE | LMU52: FALSE | LMV52: FALSE | LMW52: FALSE | LMX52: FALSE | LMY52: FALSE | LMZ52: FALSE | LNA52: FALSE | LNB52: FALSE | LNC52: FALSE | LND52: FALSE | LNE52: FALSE | LNF52: FALSE | LNG52: FALSE | LNH52: FALSE | LNI52: FALSE | LNJ52: FALSE | LNK52: FALSE | LNL52: FALSE | LNM52: FALSE | LNN52: FALSE | LNO52: FALSE | LNP52: FALSE | LNQ52: FALSE | LNR52: FALSE | LNS52: FALSE | LNT52: FALSE | LNU52: FALSE | LNV52: FALSE | LNW52: FALSE | LNX52: FALSE | LNY52: FALSE | LNZ52: FALSE | LOA52: FALSE | LOB52: FALSE | LOC52: FALSE | LOD52: FALSE | LOE52: FALSE | LOF52: FALSE | LOG52: FALSE | LOH52: FALSE | LOI52: FALSE | LOJ52: FALSE | LOK52: FALSE | LOL52: FALSE | LOM52: FALSE | LON52: FALSE | LOO52: FALSE | LOP52: FALSE | LOQ52: FALSE | LOR52: FALSE | LOS52: FALSE | LOT52: FALSE | LOU52: =IF(LOU6,LOU29/LOT29-1) -> FALSE | LOV52: FALSE | LOW52: FALSE | LOX52: FALSE | LOY52: FALSE | LOZ52: FALSE | LPA52: FALSE | LPB52: FALSE | LPC52: FALSE | LPD52: FALSE | LPE52: FALSE | LPF52: FALSE | LPG52: FALSE | LPH52: FALSE | LPI52: FALSE | LPJ52: FALSE | LPK52: FALSE | LPL52: FALSE | LPM52: FALSE | LPN52: FALSE | LPO52: FALSE | LPP52: FALSE | LPQ52: FALSE | LPR52: FALSE | LPS52: FALSE | LPT52: FALSE | LPU52: FALSE | LPV52: FALSE | LPW52: FALSE | LPX52: FALSE | LPY52: FALSE | LPZ52: FALSE | LQA52: FALSE | LQB52: FALSE | LQC52: FALSE | LQD52: FALSE | LQE52: FALSE | LQF52: FALSE | LQG52: FALSE | LQH52: FALSE | LQI52: FALSE | LQJ52: FALSE | LQK52: FALSE | LQL52: FALSE | LQM52: FALSE | LQN52: FALSE | LQO52: FALSE | LQP52: FALSE | LQQ52: FALSE | LQR52: FALSE | LQS52: FALSE | LQT52: FALSE | LQU52: FALSE | LQV52: FALSE | LQW52: FALSE | LQX52: FALSE | LQY52: FALSE | LQZ52: FALSE | LRA52: FALSE | LRB52: FALSE | LRC52: FALSE | LRD52: FALSE | LRE52: FALSE | LRF52: FALSE | LRG52: =IF(LRG6,LRG29/LRF29-1) -> FALSE | LRH52: FALSE | LRI52: FALSE | LRJ52: FALSE | LRK52: FALSE | LRL52: FALSE | LRM52: FALSE | LRN52: FALSE | LRO52: FALSE | LRP52: FALSE | LRQ52: FALSE | LRR52: FALSE | LRS52: FALSE | LRT52: FALSE | LRU52: FALSE | LRV52: FALSE | LRW52: FALSE | LRX52: FALSE | LRY52: FALSE | LRZ52: FALSE | LSA52: FALSE | LSB52: FALSE | LSC52: FALSE | LSD52: FALSE | LSE52: FALSE | LSF52: FALSE | LSG52: FALSE | LSH52: FALSE | LSI52: FALSE | LSJ52: FALSE | LSK52: FALSE | LSL52: FALSE | LSM52: FALSE | LSN52: FALSE | LSO52: FALSE | LSP52: FALSE | LSQ52: FALSE | LSR52: FALSE | LSS52: FALSE | LST52: FALSE | LSU52: FALSE | LSV52: FALSE | LSW52: FALSE | LSX52: FALSE | LSY52: FALSE | LSZ52: FALSE | LTA52: FALSE | LTB52: FALSE | LTC52: FALSE | LTD52: FALSE | LTE52: FALSE | LTF52: FALSE | LTG52: FALSE | LTH52: FALSE | LTI52: FALSE | LTJ52: FALSE | LTK52: FALSE | LTL52: FALSE | LTM52: FALSE | LTN52: FALSE | LTO52: FALSE | LTP52: FALSE | LTQ52: FALSE | LTR52: FALSE | LTS52: =IF(LTS6,LTS29/LTR29-1) -> FALSE | LTT52: FALSE | LTU52: FALSE | LTV52: FALSE | LTW52: FALSE | LTX52: FALSE | LTY52: FALSE | LTZ52: FALSE | LUA52: FALSE | LUB52: FALSE | LUC52: FALSE | LUD52: FALSE | LUE52: FALSE | LUF52: FALSE | LUG52: FALSE | LUH52: FALSE | LUI52: FALSE | LUJ52: FALSE | LUK52: FALSE | LUL52: FALSE | LUM52: FALSE | LUN52: FALSE | LUO52: FALSE | LUP52: FALSE | LUQ52: FALSE | LUR52: FALSE | LUS52: FALSE | LUT52: FALSE | LUU52: FALSE | LUV52: FALSE | LUW52: FALSE | LUX52: FALSE | LUY52: FALSE | LUZ52: FALSE | LVA52: FALSE | LVB52: FALSE | LVC52: FALSE | LVD52: FALSE | LVE52: FALSE | LVF52: FALSE | LVG52: FALSE | LVH52: FALSE | LVI52: FALSE | LVJ52: FALSE | LVK52: FALSE | LVL52: FALSE | LVM52: FALSE | LVN52: FALSE | LVO52: FALSE | LVP52: FALSE | LVQ52: FALSE | LVR52: FALSE | LVS52: FALSE | LVT52: FALSE | LVU52: FALSE | LVV52: FALSE | LVW52: FALSE | LVX52: FALSE | LVY52: FALSE | LVZ52: FALSE | LWA52: FALSE | LWB52: FALSE | LWC52: FALSE | LWD52: FALSE | LWE52: =IF(LWE6,LWE29/LWD29-1) -> FALSE | LWF52: FALSE | LWG52: FALSE | LWH52: FALSE | LWI52: FALSE | LWJ52: FALSE | LWK52: FALSE | LWL52: FALSE | LWM52: FALSE | LWN52: FALSE | LWO52: FALSE | LWP52: FALSE | LWQ52: FALSE | LWR52: FALSE | LWS52: FALSE | LWT52: FALSE | LWU52: FALSE | LWV52: FALSE | LWW52: FALSE | LWX52: FALSE | LWY52: FALSE | LWZ52: FALSE | LXA52: FALSE | LXB52: FALSE | LXC52: FALSE | LXD52: FALSE | LXE52: FALSE | LXF52: FALSE | LXG52: FALSE | LXH52: FALSE | LXI52: FALSE | LXJ52: FALSE | LXK52: FALSE | LXL52: FALSE | LXM52: FALSE | LXN52: FALSE | LXO52: FALSE | LXP52: FALSE | LXQ52: FALSE | LXR52: FALSE | LXS52: FALSE | LXT52: FALSE | LXU52: FALSE | LXV52: FALSE | LXW52: FALSE | LXX52: FALSE | LXY52: FALSE | LXZ52: FALSE | LYA52: FALSE | LYB52: FALSE | LYC52: FALSE | LYD52: FALSE | LYE52: FALSE | LYF52: FALSE | LYG52: FALSE | LYH52: FALSE | LYI52: FALSE | LYJ52: FALSE | LYK52: FALSE | LYL52: FALSE | LYM52: FALSE | LYN52: FALSE | LYO52: FALSE | LYP52: FALSE | LYQ52: =IF(LYQ6,LYQ29/LYP29-1) -> FALSE | LYR52: FALSE | LYS52: FALSE | LYT52: FALSE | LYU52: FALSE | LYV52: FALSE | LYW52: FALSE | LYX52: FALSE | LYY52: FALSE | LYZ52: FALSE | LZA52: FALSE | LZB52: FALSE | LZC52: FALSE | LZD52: FALSE | LZE52: FALSE | LZF52: FALSE | LZG52: FALSE | LZH52: FALSE | LZI52: FALSE | LZJ52: FALSE | LZK52: FALSE | LZL52: FALSE | LZM52: FALSE | LZN52: FALSE | LZO52: FALSE | LZP52: FALSE | LZQ52: FALSE | LZR52: FALSE | LZS52: FALSE | LZT52: FALSE | LZU52: FALSE | LZV52: FALSE | LZW52: FALSE | LZX52: FALSE | LZY52: FALSE | LZZ52: FALSE | MAA52: FALSE | MAB52: FALSE | MAC52: FALSE | MAD52: FALSE | MAE52: FALSE | MAF52: FALSE | MAG52: FALSE | MAH52: FALSE | MAI52: FALSE | MAJ52: FALSE | MAK52: FALSE | MAL52: FALSE | MAM52: FALSE | MAN52: FALSE | MAO52: FALSE | MAP52: FALSE | MAQ52: FALSE | MAR52: FALSE | MAS52: FALSE | MAT52: FALSE | MAU52: FALSE | MAV52: FALSE | MAW52: FALSE | MAX52: FALSE | MAY52: FALSE | MAZ52: FALSE | MBA52: FALSE | MBB52: FALSE | MBC52: =IF(MBC6,MBC29/MBB29-1) -> FALSE | MBD52: FALSE | MBE52: FALSE | MBF52: FALSE | MBG52: FALSE | MBH52: FALSE | MBI52: FALSE | MBJ52: FALSE | MBK52: FALSE | MBL52: FALSE | MBM52: FALSE | MBN52: FALSE | MBO52: FALSE | MBP52: FALSE | MBQ52: FALSE | MBR52: FALSE | MBS52: FALSE | MBT52: FALSE | MBU52: FALSE | MBV52: FALSE | MBW52: FALSE | MBX52: FALSE | MBY52: FALSE | MBZ52: FALSE | MCA52: FALSE | MCB52: FALSE | MCC52: FALSE | MCD52: FALSE | MCE52: FALSE | MCF52: FALSE | MCG52: FALSE | MCH52: FALSE | MCI52: FALSE | MCJ52: FALSE | MCK52: FALSE | MCL52: FALSE | MCM52: FALSE | MCN52: FALSE | MCO52: FALSE | MCP52: FALSE | MCQ52: FALSE | MCR52: FALSE | MCS52: FALSE | MCT52: FALSE | MCU52: FALSE | MCV52: FALSE | MCW52: FALSE | MCX52: FALSE | MCY52: FALSE | MCZ52: FALSE | MDA52: FALSE | MDB52: FALSE | MDC52: FALSE | MDD52: FALSE | MDE52: FALSE | MDF52: FALSE | MDG52: FALSE | MDH52: FALSE | MDI52: FALSE | MDJ52: FALSE | MDK52: FALSE | MDL52: FALSE | MDM52: FALSE | MDN52: FALSE | MDO52: =IF(MDO6,MDO29/MDN29-1) -> FALSE | MDP52: FALSE | MDQ52: FALSE | MDR52: FALSE | MDS52: FALSE | MDT52: FALSE | MDU52: FALSE | MDV52: FALSE | MDW52: FALSE | MDX52: FALSE | MDY52: FALSE | MDZ52: FALSE | MEA52: FALSE | MEB52: FALSE | MEC52: FALSE | MED52: FALSE | MEE52: FALSE | MEF52: FALSE | MEG52: FALSE | MEH52: FALSE | MEI52: FALSE | MEJ52: FALSE | MEK52: FALSE | MEL52: FALSE | MEM52: FALSE | MEN52: FALSE | MEO52: FALSE | MEP52: FALSE | MEQ52: FALSE | MER52: FALSE | MES52: FALSE | MET52: FALSE | MEU52: FALSE | MEV52: FALSE | MEW52: FALSE | MEX52: FALSE | MEY52: FALSE | MEZ52: FALSE | MFA52: FALSE | MFB52: FALSE | MFC52: FALSE | MFD52: FALSE | MFE52: FALSE | MFF52: FALSE | MFG52: FALSE | MFH52: FALSE | MFI52: FALSE | MFJ52: FALSE | MFK52: FALSE | MFL52: FALSE | MFM52: FALSE | MFN52: FALSE | MFO52: FALSE | MFP52: FALSE | MFQ52: FALSE | MFR52: FALSE | MFS52: FALSE | MFT52: FALSE | MFU52: FALSE | MFV52: FALSE | MFW52: FALSE | MFX52: FALSE | MFY52: FALSE | MFZ52: FALSE | MGA52: =IF(MGA6,MGA29/MFZ29-1) -> FALSE | MGB52: FALSE | MGC52: FALSE | MGD52: FALSE | MGE52: FALSE | MGF52: FALSE | MGG52: FALSE | MGH52: FALSE | MGI52: FALSE | MGJ52: FALSE | MGK52: FALSE | MGL52: FALSE | MGM52: FALSE | MGN52: FALSE | MGO52: FALSE | MGP52: FALSE | MGQ52: FALSE | MGR52: FALSE | MGS52: FALSE | MGT52: FALSE | MGU52: FALSE | MGV52: FALSE | MGW52: FALSE | MGX52: FALSE | MGY52: FALSE | MGZ52: FALSE | MHA52: FALSE | MHB52: FALSE | MHC52: FALSE | MHD52: FALSE | MHE52: FALSE | MHF52: FALSE | MHG52: FALSE | MHH52: FALSE | MHI52: FALSE | MHJ52: FALSE | MHK52: FALSE | MHL52: FALSE | MHM52: FALSE | MHN52: FALSE | MHO52: FALSE | MHP52: FALSE | MHQ52: FALSE | MHR52: FALSE | MHS52: FALSE | MHT52: FALSE | MHU52: FALSE | MHV52: FALSE | MHW52: FALSE | MHX52: FALSE | MHY52: FALSE | MHZ52: FALSE | MIA52: FALSE | MIB52: FALSE | MIC52: FALSE | MID52: FALSE | MIE52: FALSE | MIF52: FALSE | MIG52: FALSE | MIH52: FALSE | MII52: FALSE | MIJ52: FALSE | MIK52: FALSE | MIL52: FALSE | MIM52: =IF(MIM6,MIM29/MIL29-1) -> FALSE | MIN52: FALSE | MIO52: FALSE | MIP52: FALSE | MIQ52: FALSE | MIR52: FALSE | MIS52: FALSE | MIT52: FALSE | MIU52: FALSE | MIV52: FALSE | MIW52: FALSE | MIX52: FALSE | MIY52: FALSE | MIZ52: FALSE | MJA52: FALSE | MJB52: FALSE | MJC52: FALSE | MJD52: FALSE | MJE52: FALSE | MJF52: FALSE | MJG52: FALSE | MJH52: FALSE | MJI52: FALSE | MJJ52: FALSE | MJK52: FALSE | MJL52: FALSE | MJM52: FALSE | MJN52: FALSE | MJO52: FALSE | MJP52: FALSE | MJQ52: FALSE | MJR52: FALSE | MJS52: FALSE | MJT52: FALSE | MJU52: FALSE | MJV52: FALSE | MJW52: FALSE | MJX52: FALSE | MJY52: FALSE | MJZ52: FALSE | MKA52: FALSE | MKB52: FALSE | MKC52: FALSE | MKD52: FALSE | MKE52: FALSE | MKF52: FALSE | MKG52: FALSE | MKH52: FALSE | MKI52: FALSE | MKJ52: FALSE | MKK52: FALSE | MKL52: FALSE | MKM52: FALSE | MKN52: FALSE | MKO52: FALSE | MKP52: FALSE | MKQ52: FALSE | MKR52: FALSE | MKS52: FALSE | MKT52: FALSE | MKU52: FALSE | MKV52: FALSE | MKW52: FALSE | MKX52: FALSE | MKY52: =IF(MKY6,MKY29/MKX29-1) -> FALSE | MKZ52: FALSE | MLA52: FALSE | MLB52: FALSE | MLC52: FALSE | MLD52: FALSE | MLE52: FALSE | MLF52: FALSE | MLG52: FALSE | MLH52: FALSE | MLI52: FALSE | MLJ52: FALSE | MLK52: FALSE | MLL52: FALSE | MLM52: FALSE | MLN52: FALSE | MLO52: FALSE | MLP52: FALSE | MLQ52: FALSE | MLR52: FALSE | MLS52: FALSE | MLT52: FALSE | MLU52: FALSE | MLV52: FALSE | MLW52: FALSE | MLX52: FALSE | MLY52: FALSE | MLZ52: FALSE | MMA52: FALSE | MMB52: FALSE | MMC52: FALSE | MMD52: FALSE | MME52: FALSE | MMF52: FALSE | MMG52: FALSE | MMH52: FALSE | MMI52: FALSE | MMJ52: FALSE | MMK52: FALSE | MML52: FALSE | MMM52: FALSE | MMN52: FALSE | MMO52: FALSE | MMP52: FALSE | MMQ52: FALSE | MMR52: FALSE | MMS52: FALSE | MMT52: FALSE | MMU52: FALSE | MMV52: FALSE | MMW52: FALSE | MMX52: FALSE | MMY52: FALSE | MMZ52: FALSE | MNA52: FALSE | MNB52: FALSE | MNC52: FALSE | MND52: FALSE | MNE52: FALSE | MNF52: FALSE | MNG52: FALSE | MNH52: FALSE | MNI52: FALSE | MNJ52: FALSE | MNK52: =IF(MNK6,MNK29/MNJ29-1) -> FALSE | MNL52: FALSE | MNM52: FALSE | MNN52: FALSE | MNO52: FALSE | MNP52: FALSE | MNQ52: FALSE | MNR52: FALSE | MNS52: FALSE | MNT52: FALSE | MNU52: FALSE | MNV52: FALSE | MNW52: FALSE | MNX52: FALSE | MNY52: FALSE | MNZ52: FALSE | MOA52: FALSE | MOB52: FALSE | MOC52: FALSE | MOD52: FALSE | MOE52: FALSE | MOF52: FALSE | MOG52: FALSE | MOH52: FALSE | MOI52: FALSE | MOJ52: FALSE | MOK52: FALSE | MOL52: FALSE | MOM52: FALSE | MON52: FALSE | MOO52: FALSE | MOP52: FALSE | MOQ52: FALSE | MOR52: FALSE | MOS52: FALSE | MOT52: FALSE | MOU52: FALSE | MOV52: FALSE | MOW52: FALSE | MOX52: FALSE | MOY52: FALSE | MOZ52: FALSE | MPA52: FALSE | MPB52: FALSE | MPC52: FALSE | MPD52: FALSE | MPE52: FALSE | MPF52: FALSE | MPG52: FALSE | MPH52: FALSE | MPI52: FALSE | MPJ52: FALSE | MPK52: FALSE | MPL52: FALSE | MPM52: FALSE | MPN52: FALSE | MPO52: FALSE | MPP52: FALSE | MPQ52: FALSE | MPR52: FALSE | MPS52: FALSE | MPT52: FALSE | MPU52: FALSE | MPV52: FALSE | MPW52: =IF(MPW6,MPW29/MPV29-1) -> FALSE | MPX52: FALSE | MPY52: FALSE | MPZ52: FALSE | MQA52: FALSE | MQB52: FALSE | MQC52: FALSE | MQD52: FALSE | MQE52: FALSE | MQF52: FALSE | MQG52: FALSE | MQH52: FALSE | MQI52: FALSE | MQJ52: FALSE | MQK52: FALSE | MQL52: FALSE | MQM52: FALSE | MQN52: FALSE | MQO52: FALSE | MQP52: FALSE | MQQ52: FALSE | MQR52: FALSE | MQS52: FALSE | MQT52: FALSE | MQU52: FALSE | MQV52: FALSE | MQW52: FALSE | MQX52: FALSE | MQY52: FALSE | MQZ52: FALSE | MRA52: FALSE | MRB52: FALSE | MRC52: FALSE | MRD52: FALSE | MRE52: FALSE | MRF52: FALSE | MRG52: FALSE | MRH52: FALSE | MRI52: FALSE | MRJ52: FALSE | MRK52: FALSE | MRL52: FALSE | MRM52: FALSE | MRN52: FALSE | MRO52: FALSE | MRP52: FALSE | MRQ52: FALSE | MRR52: FALSE | MRS52: FALSE | MRT52: FALSE | MRU52: FALSE | MRV52: FALSE | MRW52: FALSE | MRX52: FALSE | MRY52: FALSE | MRZ52: FALSE | MSA52: FALSE | MSB52: FALSE | MSC52: FALSE | MSD52: FALSE | MSE52: FALSE | MSF52: FALSE | MSG52: FALSE | MSH52: FALSE | MSI52: =IF(MSI6,MSI29/MSH29-1) -> FALSE | MSJ52: FALSE | MSK52: FALSE | MSL52: FALSE | MSM52: FALSE | MSN52: FALSE | MSO52: FALSE | MSP52: FALSE | MSQ52: FALSE | MSR52: FALSE | MSS52: FALSE | MST52: FALSE | MSU52: FALSE | MSV52: FALSE | MSW52: FALSE | MSX52: FALSE | MSY52: FALSE | MSZ52: FALSE | MTA52: FALSE | MTB52: FALSE | MTC52: FALSE | MTD52: FALSE | MTE52: FALSE | MTF52: FALSE | MTG52: FALSE | MTH52: FALSE | MTI52: FALSE | MTJ52: FALSE | MTK52: FALSE | MTL52: FALSE | MTM52: FALSE | MTN52: FALSE | MTO52: FALSE | MTP52: FALSE | MTQ52: FALSE | MTR52: FALSE | MTS52: FALSE | MTT52: FALSE | MTU52: FALSE | MTV52: FALSE | MTW52: FALSE | MTX52: FALSE | MTY52: FALSE | MTZ52: FALSE | MUA52: FALSE | MUB52: FALSE | MUC52: FALSE | MUD52: FALSE | MUE52: FALSE | MUF52: FALSE | MUG52: FALSE | MUH52: FALSE | MUI52: FALSE | MUJ52: FALSE | MUK52: FALSE | MUL52: FALSE | MUM52: FALSE | MUN52: FALSE | MUO52: FALSE | MUP52: FALSE | MUQ52: FALSE | MUR52: FALSE | MUS52: FALSE | MUT52: FALSE | MUU52: =IF(MUU6,MUU29/MUT29-1) -> FALSE | MUV52: FALSE | MUW52: FALSE | MUX52: FALSE | MUY52: FALSE | MUZ52: FALSE | MVA52: FALSE | MVB52: FALSE | MVC52: FALSE | MVD52: FALSE | MVE52: FALSE | MVF52: FALSE | MVG52: FALSE | MVH52: FALSE | MVI52: FALSE | MVJ52: FALSE | MVK52: FALSE | MVL52: FALSE | MVM52: FALSE | MVN52: FALSE | MVO52: FALSE | MVP52: FALSE | MVQ52: FALSE | MVR52: FALSE | MVS52: FALSE | MVT52: FALSE | MVU52: FALSE | MVV52: FALSE | MVW52: FALSE | MVX52: FALSE | MVY52: FALSE | MVZ52: FALSE | MWA52: FALSE | MWB52: FALSE | MWC52: FALSE | MWD52: FALSE | MWE52: FALSE | MWF52: FALSE | MWG52: FALSE | MWH52: FALSE | MWI52: FALSE | MWJ52: FALSE | MWK52: FALSE | MWL52: FALSE | MWM52: FALSE | MWN52: FALSE | MWO52: FALSE | MWP52: FALSE | MWQ52: FALSE | MWR52: FALSE | MWS52: FALSE | MWT52: FALSE | MWU52: FALSE | MWV52: FALSE | MWW52: FALSE | MWX52: FALSE | MWY52: FALSE | MWZ52: FALSE | MXA52: FALSE | MXB52: FALSE | MXC52: FALSE | MXD52: FALSE | MXE52: FALSE | MXF52: FALSE | MXG52: =IF(MXG6,MXG29/MXF29-1) -> FALSE | MXH52: FALSE | MXI52: FALSE | MXJ52: FALSE | MXK52: FALSE | MXL52: FALSE | MXM52: FALSE | MXN52: FALSE | MXO52: FALSE | MXP52: FALSE | MXQ52: FALSE | MXR52: FALSE | MXS52: FALSE | MXT52: FALSE | MXU52: FALSE | MXV52: FALSE | MXW52: FALSE | MXX52: FALSE | MXY52: FALSE | MXZ52: FALSE | MYA52: FALSE | MYB52: FALSE | MYC52: FALSE | MYD52: FALSE | MYE52: FALSE | MYF52: FALSE | MYG52: FALSE | MYH52: FALSE | MYI52: FALSE | MYJ52: FALSE | MYK52: FALSE | MYL52: FALSE | MYM52: FALSE | MYN52: FALSE | MYO52: FALSE | MYP52: FALSE | MYQ52: FALSE | MYR52: FALSE | MYS52: FALSE | MYT52: FALSE | MYU52: FALSE | MYV52: FALSE | MYW52: FALSE | MYX52: FALSE | MYY52: FALSE | MYZ52: FALSE | MZA52: FALSE | MZB52: FALSE | MZC52: FALSE | MZD52: FALSE | MZE52: FALSE | MZF52: FALSE | MZG52: FALSE | MZH52: FALSE | MZI52: FALSE | MZJ52: FALSE | MZK52: FALSE | MZL52: FALSE | MZM52: FALSE | MZN52: FALSE | MZO52: FALSE | MZP52: FALSE | MZQ52: FALSE | MZR52: FALSE | MZS52: =IF(MZS6,MZS29/MZR29-1) -> FALSE | MZT52: FALSE | MZU52: FALSE | MZV52: FALSE | MZW52: FALSE | MZX52: FALSE | MZY52: FALSE | MZZ52: FALSE | NAA52: FALSE | NAB52: FALSE | NAC52: FALSE | NAD52: FALSE | NAE52: FALSE | NAF52: FALSE | NAG52: FALSE | NAH52: FALSE | NAI52: FALSE | NAJ52: FALSE | NAK52: FALSE | NAL52: FALSE | NAM52: FALSE | NAN52: FALSE | NAO52: FALSE | NAP52: FALSE | NAQ52: FALSE | NAR52: FALSE | NAS52: FALSE | NAT52: FALSE | NAU52: FALSE | NAV52: FALSE | NAW52: FALSE | NAX52: FALSE | NAY52: FALSE | NAZ52: FALSE | NBA52: FALSE | NBB52: FALSE | NBC52: FALSE | NBD52: FALSE | NBE52: FALSE | NBF52: FALSE | NBG52: FALSE | NBH52: FALSE | NBI52: FALSE | NBJ52: FALSE | NBK52: FALSE | NBL52: FALSE | NBM52: FALSE | NBN52: FALSE | NBO52: FALSE | NBP52: FALSE | NBQ52: FALSE | NBR52: FALSE | NBS52: FALSE | NBT52: FALSE | NBU52: FALSE | NBV52: FALSE | NBW52: FALSE | NBX52: FALSE | NBY52: FALSE | NBZ52: FALSE | NCA52: FALSE | NCB52: FALSE | NCC52: FALSE | NCD52: FALSE | NCE52: =IF(NCE6,NCE29/NCD29-1) -> FALSE | NCF52: FALSE | NCG52: FALSE | NCH52: FALSE | NCI52: FALSE | NCJ52: FALSE | NCK52: FALSE | NCL52: FALSE | NCM52: FALSE | NCN52: FALSE | NCO52: FALSE | NCP52: FALSE | NCQ52: FALSE | NCR52: FALSE | NCS52: FALSE | NCT52: FALSE | NCU52: FALSE | NCV52: FALSE | NCW52: FALSE | NCX52: FALSE | NCY52: FALSE | NCZ52: FALSE | NDA52: FALSE | NDB52: FALSE | NDC52: FALSE | NDD52: FALSE | NDE52: FALSE | NDF52: FALSE | NDG52: FALSE | NDH52: FALSE | NDI52: FALSE | NDJ52: FALSE | NDK52: FALSE | NDL52: FALSE | NDM52: FALSE | NDN52: FALSE | NDO52: FALSE | NDP52: FALSE | NDQ52: FALSE | NDR52: FALSE | NDS52: FALSE | NDT52: FALSE | NDU52: FALSE | NDV52: FALSE | NDW52: FALSE | NDX52: FALSE | NDY52: FALSE | NDZ52: FALSE | NEA52: FALSE | NEB52: FALSE | NEC52: FALSE | NED52: FALSE | NEE52: FALSE | NEF52: FALSE | NEG52: FALSE | NEH52: FALSE | NEI52: FALSE | NEJ52: FALSE | NEK52: FALSE | NEL52: FALSE | NEM52: FALSE | NEN52: FALSE | NEO52: FALSE | NEP52: FALSE | NEQ52: =IF(NEQ6,NEQ29/NEP29-1) -> FALSE | NER52: FALSE | NES52: FALSE | NET52: FALSE | NEU52: FALSE | NEV52: FALSE | NEW52: FALSE | NEX52: FALSE | NEY52: FALSE | NEZ52: FALSE | NFA52: FALSE | NFB52: FALSE | NFC52: FALSE | NFD52: FALSE | NFE52: FALSE | NFF52: FALSE | NFG52: FALSE | NFH52: FALSE | NFI52: FALSE | NFJ52: FALSE | NFK52: FALSE | NFL52: FALSE | NFM52: FALSE | NFN52: FALSE | NFO52: FALSE | NFP52: FALSE | NFQ52: FALSE | NFR52: FALSE | NFS52: FALSE | NFT52: FALSE | NFU52: FALSE | NFV52: FALSE | NFW52: FALSE | NFX52: FALSE | NFY52: FALSE | NFZ52: FALSE | NGA52: FALSE | NGB52: FALSE | NGC52: FALSE | NGD52: FALSE | NGE52: FALSE | NGF52: FALSE | NGG52: FALSE | NGH52: FALSE | NGI52: FALSE | NGJ52: FALSE | NGK52: FALSE | NGL52: FALSE | NGM52: FALSE | NGN52: FALSE | NGO52: FALSE | NGP52: FALSE | NGQ52: FALSE | NGR52: FALSE | NGS52: FALSE | NGT52: FALSE | NGU52: FALSE | NGV52: FALSE | NGW52: FALSE | NGX52: FALSE | NGY52: FALSE | NGZ52: FALSE | NHA52: FALSE | NHB52: FALSE | NHC52: =IF(NHC6,NHC29/NHB29-1) -> FALSE | NHD52: FALSE | NHE52: FALSE | NHF52: FALSE | NHG52: FALSE | NHH52: FALSE | NHI52: FALSE | NHJ52: FALSE | NHK52: FALSE | NHL52: FALSE | NHM52: FALSE | NHN52: FALSE | NHO52: FALSE | NHP52: FALSE | NHQ52: FALSE | NHR52: FALSE | NHS52: FALSE | NHT52: FALSE | NHU52: FALSE | NHV52: FALSE | NHW52: FALSE | NHX52: FALSE | NHY52: FALSE | NHZ52: FALSE | NIA52: FALSE | NIB52: FALSE | NIC52: FALSE | NID52: FALSE | NIE52: FALSE | NIF52: FALSE | NIG52: FALSE | NIH52: FALSE | NII52: FALSE | NIJ52: FALSE | NIK52: FALSE | NIL52: FALSE | NIM52: FALSE | NIN52: FALSE | NIO52: FALSE | NIP52: FALSE | NIQ52: FALSE | NIR52: FALSE | NIS52: FALSE | NIT52: FALSE | NIU52: FALSE | NIV52: FALSE | NIW52: FALSE | NIX52: FALSE | NIY52: FALSE | NIZ52: FALSE | NJA52: FALSE | NJB52: FALSE | NJC52: FALSE | NJD52: FALSE | NJE52: FALSE | NJF52: FALSE | NJG52: FALSE | NJH52: FALSE | NJI52: FALSE | NJJ52: FALSE | NJK52: FALSE | NJL52: FALSE | NJM52: FALSE | NJN52: FALSE | NJO52: =IF(NJO6,NJO29/NJN29-1) -> FALSE | NJP52: FALSE | NJQ52: FALSE | NJR52: FALSE | NJS52: FALSE | NJT52: FALSE | NJU52: FALSE | NJV52: FALSE | NJW52: FALSE | NJX52: FALSE | NJY52: FALSE | NJZ52: FALSE | NKA52: FALSE | NKB52: FALSE | NKC52: FALSE | NKD52: FALSE | NKE52: FALSE | NKF52: FALSE | NKG52: FALSE | NKH52: FALSE | NKI52: FALSE | NKJ52: FALSE | NKK52: FALSE | NKL52: FALSE | NKM52: FALSE | NKN52: FALSE | NKO52: FALSE | NKP52: FALSE | NKQ52: FALSE | NKR52: FALSE | NKS52: FALSE | NKT52: FALSE | NKU52: FALSE | NKV52: FALSE | NKW52: FALSE | NKX52: FALSE | NKY52: FALSE | NKZ52: FALSE | NLA52: FALSE | NLB52: FALSE | NLC52: FALSE | NLD52: FALSE | NLE52: FALSE | NLF52: FALSE | NLG52: FALSE | NLH52: FALSE | NLI52: FALSE | NLJ52: FALSE | NLK52: FALSE | NLL52: FALSE | NLM52: FALSE | NLN52: FALSE | NLO52: FALSE | NLP52: FALSE | NLQ52: FALSE | NLR52: FALSE | NLS52: FALSE | NLT52: FALSE | NLU52: FALSE | NLV52: FALSE | NLW52: FALSE | NLX52: FALSE | NLY52: FALSE | NLZ52: FALSE | NMA52: =IF(NMA6,NMA29/NLZ29-1) -> FALSE | NMB52: FALSE | NMC52: FALSE | NMD52: FALSE | NME52: FALSE | NMF52: FALSE | NMG52: FALSE | NMH52: FALSE | NMI52: FALSE | NMJ52: FALSE | NMK52: FALSE | NML52: FALSE | NMM52: FALSE | NMN52: FALSE | NMO52: FALSE | NMP52: FALSE | NMQ52: FALSE | NMR52: FALSE | NMS52: FALSE | NMT52: FALSE | NMU52: FALSE | NMV52: FALSE | NMW52: FALSE | NMX52: FALSE | NMY52: FALSE | NMZ52: FALSE | NNA52: FALSE | NNB52: FALSE | NNC52: FALSE | NND52: FALSE | NNE52: FALSE | NNF52: FALSE | NNG52: FALSE | NNH52: FALSE | NNI52: FALSE | NNJ52: FALSE | NNK52: FALSE | NNL52: FALSE | NNM52: FALSE | NNN52: FALSE | NNO52: FALSE | NNP52: FALSE | NNQ52: FALSE | NNR52: FALSE | NNS52: FALSE | NNT52: FALSE | NNU52: FALSE | NNV52: FALSE | NNW52: FALSE | NNX52: FALSE | NNY52: FALSE | NNZ52: FALSE | NOA52: FALSE | NOB52: FALSE | NOC52: FALSE | NOD52: FALSE | NOE52: FALSE | NOF52: FALSE | NOG52: FALSE | NOH52: FALSE | NOI52: FALSE | NOJ52: FALSE | NOK52: FALSE | NOL52: FALSE | NOM52: =IF(NOM6,NOM29/NOL29-1) -> FALSE | NON52: FALSE | NOO52: FALSE | NOP52: FALSE | NOQ52: FALSE | NOR52: FALSE | NOS52: FALSE | NOT52: FALSE | NOU52: FALSE | NOV52: FALSE | NOW52: FALSE | NOX52: FALSE | NOY52: FALSE | NOZ52: FALSE | NPA52: FALSE | NPB52: FALSE | NPC52: FALSE | NPD52: FALSE | NPE52: FALSE | NPF52: FALSE | NPG52: FALSE | NPH52: FALSE | NPI52: FALSE | NPJ52: FALSE | NPK52: FALSE | NPL52: FALSE | NPM52: FALSE | NPN52: FALSE | NPO52: FALSE | NPP52: FALSE | NPQ52: FALSE | NPR52: FALSE | NPS52: FALSE | NPT52: FALSE | NPU52: FALSE | NPV52: FALSE | NPW52: FALSE | NPX52: FALSE | NPY52: FALSE | NPZ52: FALSE | NQA52: FALSE | NQB52: FALSE | NQC52: FALSE | NQD52: FALSE | NQE52: FALSE | NQF52: FALSE | NQG52: FALSE | NQH52: FALSE | NQI52: FALSE | NQJ52: FALSE | NQK52: FALSE | NQL52: FALSE | NQM52: FALSE | NQN52: FALSE | NQO52: FALSE | NQP52: FALSE | NQQ52: FALSE | NQR52: FALSE | NQS52: FALSE | NQT52: FALSE | NQU52: FALSE | NQV52: FALSE | NQW52: FALSE | NQX52: FALSE | NQY52: =IF(NQY6,NQY29/NQX29-1) -> FALSE | NQZ52: FALSE | NRA52: FALSE | NRB52: FALSE | NRC52: FALSE | NRD52: FALSE | NRE52: FALSE | NRF52: FALSE | NRG52: FALSE | NRH52: FALSE | NRI52: FALSE | NRJ52: FALSE | NRK52: FALSE | NRL52: FALSE | NRM52: FALSE | NRN52: FALSE | NRO52: FALSE | NRP52: FALSE | NRQ52: FALSE | NRR52: FALSE | NRS52: FALSE | NRT52: FALSE | NRU52: FALSE | NRV52: FALSE | NRW52: FALSE | NRX52: FALSE | NRY52: FALSE | NRZ52: FALSE | NSA52: FALSE | NSB52: FALSE | NSC52: FALSE | NSD52: FALSE | NSE52: FALSE | NSF52: FALSE | NSG52: FALSE | NSH52: FALSE | NSI52: FALSE | NSJ52: FALSE | NSK52: FALSE | NSL52: FALSE | NSM52: FALSE | NSN52: FALSE | NSO52: FALSE | NSP52: FALSE | NSQ52: FALSE | NSR52: FALSE | NSS52: FALSE | NST52: FALSE | NSU52: FALSE | NSV52: FALSE | NSW52: FALSE | NSX52: FALSE | NSY52: FALSE | NSZ52: FALSE | NTA52: FALSE | NTB52: FALSE | NTC52: FALSE | NTD52: FALSE | NTE52: FALSE | NTF52: FALSE | NTG52: FALSE | NTH52: FALSE | NTI52: FALSE | NTJ52: FALSE | NTK52: =IF(NTK6,NTK29/NTJ29-1) -> FALSE | NTL52: FALSE | NTM52: FALSE | NTN52: FALSE | NTO52: FALSE | NTP52: FALSE | NTQ52: FALSE | NTR52: FALSE | NTS52: FALSE | NTT52: FALSE | NTU52: FALSE | NTV52: FALSE | NTW52: FALSE | NTX52: FALSE | NTY52: FALSE | NTZ52: FALSE | NUA52: FALSE | NUB52: FALSE | NUC52: FALSE | NUD52: FALSE | NUE52: FALSE | NUF52: FALSE | NUG52: FALSE | NUH52: FALSE | NUI52: FALSE | NUJ52: FALSE | NUK52: FALSE | NUL52: FALSE | NUM52: FALSE | NUN52: FALSE | NUO52: FALSE | NUP52: FALSE | NUQ52: FALSE | NUR52: FALSE | NUS52: FALSE | NUT52: FALSE | NUU52: FALSE | NUV52: FALSE | NUW52: FALSE | NUX52: FALSE | NUY52: FALSE | NUZ52: FALSE | NVA52: FALSE | NVB52: FALSE | NVC52: FALSE | NVD52: FALSE | NVE52: FALSE | NVF52: FALSE | NVG52: FALSE | NVH52: FALSE | NVI52: FALSE | NVJ52: FALSE | NVK52: FALSE | NVL52: FALSE | NVM52: FALSE | NVN52: FALSE | NVO52: FALSE | NVP52: FALSE | NVQ52: FALSE | NVR52: FALSE | NVS52: FALSE | NVT52: FALSE | NVU52: FALSE | NVV52: FALSE | NVW52: =IF(NVW6,NVW29/NVV29-1) -> FALSE | NVX52: FALSE | NVY52: FALSE | NVZ52: FALSE | NWA52: FALSE | NWB52: FALSE | NWC52: FALSE | NWD52: FALSE | NWE52: FALSE | NWF52: FALSE | NWG52: FALSE | NWH52: FALSE | NWI52: FALSE | NWJ52: FALSE | NWK52: FALSE | NWL52: FALSE | NWM52: FALSE | NWN52: FALSE | NWO52: FALSE | NWP52: FALSE | NWQ52: FALSE | NWR52: FALSE | NWS52: FALSE | NWT52: FALSE | NWU52: FALSE | NWV52: FALSE | NWW52: FALSE | NWX52: FALSE | NWY52: FALSE | NWZ52: FALSE | NXA52: FALSE | NXB52: FALSE | NXC52: FALSE | NXD52: FALSE | NXE52: FALSE | NXF52: FALSE | NXG52: FALSE | NXH52: FALSE | NXI52: FALSE | NXJ52: FALSE | NXK52: FALSE | NXL52: FALSE | NXM52: FALSE | NXN52: FALSE | NXO52: FALSE | NXP52: FALSE | NXQ52: FALSE | NXR52: FALSE | NXS52: FALSE | NXT52: FALSE | NXU52: FALSE | NXV52: FALSE | NXW52: FALSE | NXX52: FALSE | NXY52: FALSE | NXZ52: FALSE | NYA52: FALSE | NYB52: FALSE | NYC52: FALSE | NYD52: FALSE | NYE52: FALSE | NYF52: FALSE | NYG52: FALSE | NYH52: FALSE | NYI52: =IF(NYI6,NYI29/NYH29-1) -> FALSE | NYJ52: FALSE | NYK52: FALSE | NYL52: FALSE | NYM52: FALSE | NYN52: FALSE | NYO52: FALSE | NYP52: FALSE | NYQ52: FALSE | NYR52: FALSE | NYS52: FALSE | NYT52: FALSE | NYU52: FALSE | NYV52: FALSE | NYW52: FALSE | NYX52: FALSE | NYY52: FALSE | NYZ52: FALSE | NZA52: FALSE | NZB52: FALSE | NZC52: FALSE | NZD52: FALSE | NZE52: FALSE | NZF52: FALSE | NZG52: FALSE | NZH52: FALSE | NZI52: FALSE | NZJ52: FALSE | NZK52: FALSE | NZL52: FALSE | NZM52: FALSE | NZN52: FALSE | NZO52: FALSE | NZP52: FALSE | NZQ52: FALSE | NZR52: FALSE | NZS52: FALSE | NZT52: FALSE | NZU52: FALSE | NZV52: FALSE | NZW52: FALSE | NZX52: FALSE | NZY52: FALSE | NZZ52: FALSE | OAA52: FALSE | OAB52: FALSE | OAC52: FALSE | OAD52: FALSE | OAE52: FALSE | OAF52: FALSE | OAG52: FALSE | OAH52: FALSE | OAI52: FALSE | OAJ52: FALSE | OAK52: FALSE | OAL52: FALSE | OAM52: FALSE | OAN52: FALSE | OAO52: FALSE | OAP52: FALSE | OAQ52: FALSE | OAR52: FALSE | OAS52: FALSE | OAT52: FALSE | OAU52: =IF(OAU6,OAU29/OAT29-1) -> FALSE | OAV52: FALSE | OAW52: FALSE | OAX52: FALSE | OAY52: FALSE | OAZ52: FALSE | OBA52: FALSE | OBB52: FALSE | OBC52: FALSE | OBD52: FALSE | OBE52: FALSE | OBF52: FALSE | OBG52: FALSE | OBH52: FALSE | OBI52: FALSE | OBJ52: FALSE | OBK52: FALSE | OBL52: FALSE | OBM52: FALSE | OBN52: FALSE | OBO52: FALSE | OBP52: FALSE | OBQ52: FALSE | OBR52: FALSE | OBS52: FALSE | OBT52: FALSE | OBU52: FALSE | OBV52: FALSE | OBW52: FALSE | OBX52: FALSE | OBY52: FALSE | OBZ52: FALSE | OCA52: FALSE | OCB52: FALSE | OCC52: FALSE | OCD52: FALSE | OCE52: FALSE | OCF52: FALSE | OCG52: FALSE | OCH52: FALSE | OCI52: FALSE | OCJ52: FALSE | OCK52: FALSE | OCL52: FALSE | OCM52: FALSE | OCN52: FALSE | OCO52: FALSE | OCP52: FALSE | OCQ52: FALSE | OCR52: FALSE | OCS52: FALSE | OCT52: FALSE | OCU52: FALSE | OCV52: FALSE | OCW52: FALSE | OCX52: FALSE | OCY52: FALSE | OCZ52: FALSE | ODA52: FALSE | ODB52: FALSE | ODC52: FALSE | ODD52: FALSE | ODE52: FALSE | ODF52: FALSE | ODG52: =IF(ODG6,ODG29/ODF29-1) -> FALSE | ODH52: FALSE | ODI52: FALSE | ODJ52: FALSE | ODK52: FALSE | ODL52: FALSE | ODM52: FALSE | ODN52: FALSE | ODO52: FALSE | ODP52: FALSE | ODQ52: FALSE | ODR52: FALSE | ODS52: FALSE | ODT52: FALSE | ODU52: FALSE | ODV52: FALSE | ODW52: FALSE | ODX52: FALSE | ODY52: FALSE | ODZ52: FALSE | OEA52: FALSE | OEB52: FALSE | OEC52: FALSE | OED52: FALSE | OEE52: FALSE | OEF52: FALSE | OEG52: FALSE | OEH52: FALSE | OEI52: FALSE | OEJ52: FALSE | OEK52: FALSE | OEL52: FALSE | OEM52: FALSE | OEN52: FALSE | OEO52: FALSE | OEP52: FALSE | OEQ52: FALSE | OER52: FALSE | OES52: FALSE | OET52: FALSE | OEU52: FALSE | OEV52: FALSE | OEW52: FALSE | OEX52: FALSE | OEY52: FALSE | OEZ52: FALSE | OFA52: FALSE | OFB52: FALSE | OFC52: FALSE | OFD52: FALSE | OFE52: FALSE | OFF52: FALSE | OFG52: FALSE | OFH52: FALSE | OFI52: FALSE | OFJ52: FALSE | OFK52: FALSE | OFL52: FALSE | OFM52: FALSE | OFN52: FALSE | OFO52: FALSE | OFP52: FALSE | OFQ52: FALSE | OFR52: FALSE | OFS52: =IF(OFS6,OFS29/OFR29-1) -> FALSE | OFT52: FALSE | OFU52: FALSE | OFV52: FALSE | OFW52: FALSE | OFX52: FALSE | OFY52: FALSE | OFZ52: FALSE | OGA52: FALSE | OGB52: FALSE | OGC52: FALSE | OGD52: FALSE | OGE52: FALSE | OGF52: FALSE | OGG52: FALSE | OGH52: FALSE | OGI52: FALSE | OGJ52: FALSE | OGK52: FALSE | OGL52: FALSE | OGM52: FALSE | OGN52: FALSE | OGO52: FALSE | OGP52: FALSE | OGQ52: FALSE | OGR52: FALSE | OGS52: FALSE | OGT52: FALSE | OGU52: FALSE | OGV52: FALSE | OGW52: FALSE | OGX52: FALSE | OGY52: FALSE | OGZ52: FALSE | OHA52: FALSE | OHB52: FALSE | OHC52: FALSE | OHD52: FALSE | OHE52: FALSE | OHF52: FALSE | OHG52: FALSE | OHH52: FALSE | OHI52: FALSE | OHJ52: FALSE | OHK52: FALSE | OHL52: FALSE | OHM52: FALSE | OHN52: FALSE | OHO52: FALSE | OHP52: FALSE | OHQ52: FALSE | OHR52: FALSE | OHS52: FALSE | OHT52: FALSE | OHU52: FALSE | OHV52: FALSE | OHW52: FALSE | OHX52: FALSE | OHY52: FALSE | OHZ52: FALSE | OIA52: FALSE | OIB52: FALSE | OIC52: FALSE | OID52: FALSE | OIE52: =IF(OIE6,OIE29/OID29-1) -> FALSE | OIF52: FALSE | OIG52: FALSE | OIH52: FALSE | OII52: FALSE | OIJ52: FALSE | OIK52: FALSE | OIL52: FALSE | OIM52: FALSE | OIN52: FALSE | OIO52: FALSE | OIP52: FALSE | OIQ52: FALSE | OIR52: FALSE | OIS52: FALSE | OIT52: FALSE | OIU52: FALSE | OIV52: FALSE | OIW52: FALSE | OIX52: FALSE | OIY52: FALSE | OIZ52: FALSE | OJA52: FALSE | OJB52: FALSE | OJC52: FALSE | OJD52: FALSE | OJE52: FALSE | OJF52: FALSE | OJG52: FALSE | OJH52: FALSE | OJI52: FALSE | OJJ52: FALSE | OJK52: FALSE | OJL52: FALSE | OJM52: FALSE | OJN52: FALSE | OJO52: FALSE | OJP52: FALSE | OJQ52: FALSE | OJR52: FALSE | OJS52: FALSE | OJT52: FALSE | OJU52: FALSE | OJV52: FALSE | OJW52: FALSE | OJX52: FALSE | OJY52: FALSE | OJZ52: FALSE | OKA52: FALSE | OKB52: FALSE | OKC52: FALSE | OKD52: FALSE | OKE52: FALSE | OKF52: FALSE | OKG52: FALSE | OKH52: FALSE | OKI52: FALSE | OKJ52: FALSE | OKK52: FALSE | OKL52: FALSE | OKM52: FALSE | OKN52: FALSE | OKO52: FALSE | OKP52: FALSE | OKQ52: =IF(OKQ6,OKQ29/OKP29-1) -> FALSE | OKR52: FALSE | OKS52: FALSE | OKT52: FALSE | OKU52: FALSE | OKV52: FALSE | OKW52: FALSE | OKX52: FALSE | OKY52: FALSE | OKZ52: FALSE | OLA52: FALSE | OLB52: FALSE | OLC52: FALSE | OLD52: FALSE | OLE52: FALSE | OLF52: FALSE | OLG52: FALSE | OLH52: FALSE | OLI52: FALSE | OLJ52: FALSE | OLK52: FALSE | OLL52: FALSE | OLM52: FALSE | OLN52: FALSE | OLO52: FALSE | OLP52: FALSE | OLQ52: FALSE | OLR52: FALSE | OLS52: FALSE | OLT52: FALSE | OLU52: FALSE | OLV52: FALSE | OLW52: FALSE | OLX52: FALSE | OLY52: FALSE | OLZ52: FALSE | OMA52: FALSE | OMB52: FALSE | OMC52: FALSE | OMD52: FALSE | OME52: FALSE | OMF52: FALSE | OMG52: FALSE | OMH52: FALSE | OMI52: FALSE | OMJ52: FALSE | OMK52: FALSE | OML52: FALSE | OMM52: FALSE | OMN52: FALSE | OMO52: FALSE | OMP52: FALSE | OMQ52: FALSE | OMR52: FALSE | OMS52: FALSE | OMT52: FALSE | OMU52: FALSE | OMV52: FALSE | OMW52: FALSE | OMX52: FALSE | OMY52: FALSE | OMZ52: FALSE | ONA52: FALSE | ONB52: FALSE | ONC52: =IF(ONC6,ONC29/ONB29-1) -> FALSE | OND52: FALSE | ONE52: FALSE | ONF52: FALSE | ONG52: FALSE | ONH52: FALSE | ONI52: FALSE | ONJ52: FALSE | ONK52: FALSE | ONL52: FALSE | ONM52: FALSE | ONN52: FALSE | ONO52: FALSE | ONP52: FALSE | ONQ52: FALSE | ONR52: FALSE | ONS52: FALSE | ONT52: FALSE | ONU52: FALSE | ONV52: FALSE | ONW52: FALSE | ONX52: FALSE | ONY52: FALSE | ONZ52: FALSE | OOA52: FALSE | OOB52: FALSE | OOC52: FALSE | OOD52: FALSE | OOE52: FALSE | OOF52: FALSE | OOG52: FALSE | OOH52: FALSE | OOI52: FALSE | OOJ52: FALSE | OOK52: FALSE | OOL52: FALSE | OOM52: FALSE | OON52: FALSE | OOO52: FALSE | OOP52: FALSE | OOQ52: FALSE | OOR52: FALSE | OOS52: FALSE | OOT52: FALSE | OOU52: FALSE | OOV52: FALSE | OOW52: FALSE | OOX52: FALSE | OOY52: FALSE | OOZ52: FALSE | OPA52: FALSE | OPB52: FALSE | OPC52: FALSE | OPD52: FALSE | OPE52: FALSE | OPF52: FALSE | OPG52: FALSE | OPH52: FALSE | OPI52: FALSE | OPJ52: FALSE | OPK52: FALSE | OPL52: FALSE | OPM52: FALSE | OPN52: FALSE | OPO52: =IF(OPO6,OPO29/OPN29-1) -> FALSE | OPP52: FALSE | OPQ52: FALSE | OPR52: FALSE | OPS52: FALSE | OPT52: FALSE | OPU52: FALSE | OPV52: FALSE | OPW52: FALSE | OPX52: FALSE | OPY52: FALSE | OPZ52: FALSE | OQA52: FALSE | OQB52: FALSE | OQC52: FALSE | OQD52: FALSE | OQE52: FALSE | OQF52: FALSE | OQG52: FALSE | OQH52: FALSE | OQI52: FALSE | OQJ52: FALSE | OQK52: FALSE | OQL52: FALSE | OQM52: FALSE | OQN52: FALSE | OQO52: FALSE | OQP52: FALSE | OQQ52: FALSE | OQR52: FALSE | OQS52: FALSE | OQT52: FALSE | OQU52: FALSE | OQV52: FALSE | OQW52: FALSE | OQX52: FALSE | OQY52: FALSE | OQZ52: FALSE | ORA52: FALSE | ORB52: FALSE | ORC52: FALSE | ORD52: FALSE | ORE52: FALSE | ORF52: FALSE | ORG52: FALSE | ORH52: FALSE | ORI52: FALSE | ORJ52: FALSE | ORK52: FALSE | ORL52: FALSE | ORM52: FALSE | ORN52: FALSE | ORO52: FALSE | ORP52: FALSE | ORQ52: FALSE | ORR52: FALSE | ORS52: FALSE | ORT52: FALSE | ORU52: FALSE | ORV52: FALSE | ORW52: FALSE | ORX52: FALSE | ORY52: FALSE | ORZ52: FALSE | OSA52: =IF(OSA6,OSA29/ORZ29-1) -> FALSE | OSB52: FALSE | OSC52: FALSE | OSD52: FALSE | OSE52: FALSE | OSF52: FALSE | OSG52: FALSE | OSH52: FALSE | OSI52: FALSE | OSJ52: FALSE | OSK52: FALSE | OSL52: FALSE | OSM52: FALSE | OSN52: FALSE | OSO52: FALSE | OSP52: FALSE | OSQ52: FALSE | OSR52: FALSE | OSS52: FALSE | OST52: FALSE | OSU52: FALSE | OSV52: FALSE | OSW52: FALSE | OSX52: FALSE | OSY52: FALSE | OSZ52: FALSE | OTA52: FALSE | OTB52: FALSE | OTC52: FALSE | OTD52: FALSE | OTE52: FALSE | OTF52: FALSE | OTG52: FALSE | OTH52: FALSE | OTI52: FALSE | OTJ52: FALSE | OTK52: FALSE | OTL52: FALSE | OTM52: FALSE | OTN52: FALSE | OTO52: FALSE | OTP52: FALSE | OTQ52: FALSE | OTR52: FALSE | OTS52: FALSE | OTT52: FALSE | OTU52: FALSE | OTV52: FALSE | OTW52: FALSE | OTX52: FALSE | OTY52: FALSE | OTZ52: FALSE | OUA52: FALSE | OUB52: FALSE | OUC52: FALSE | OUD52: FALSE | OUE52: FALSE | OUF52: FALSE | OUG52: FALSE | OUH52: FALSE | OUI52: FALSE | OUJ52: FALSE | OUK52: FALSE | OUL52: FALSE | OUM52: =IF(OUM6,OUM29/OUL29-1) -> FALSE | OUN52: FALSE | OUO52: FALSE | OUP52: FALSE | OUQ52: FALSE | OUR52: FALSE | OUS52: FALSE | OUT52: FALSE | OUU52: FALSE | OUV52: FALSE | OUW52: FALSE | OUX52: FALSE | OUY52: FALSE | OUZ52: FALSE | OVA52: FALSE | OVB52: FALSE | OVC52: FALSE | OVD52: FALSE | OVE52: FALSE | OVF52: FALSE | OVG52: FALSE | OVH52: FALSE | OVI52: FALSE | OVJ52: FALSE | OVK52: FALSE | OVL52: FALSE | OVM52: FALSE | OVN52: FALSE | OVO52: FALSE | OVP52: FALSE | OVQ52: FALSE | OVR52: FALSE | OVS52: FALSE | OVT52: FALSE | OVU52: FALSE | OVV52: FALSE | OVW52: FALSE | OVX52: FALSE | OVY52: FALSE | OVZ52: FALSE | OWA52: FALSE | OWB52: FALSE | OWC52: FALSE | OWD52: FALSE | OWE52: FALSE | OWF52: FALSE | OWG52: FALSE | OWH52: FALSE | OWI52: FALSE | OWJ52: FALSE | OWK52: FALSE | OWL52: FALSE | OWM52: FALSE | OWN52: FALSE | OWO52: FALSE | OWP52: FALSE | OWQ52: FALSE | OWR52: FALSE | OWS52: FALSE | OWT52: FALSE | OWU52: FALSE | OWV52: FALSE | OWW52: FALSE | OWX52: FALSE | OWY52: =IF(OWY6,OWY29/OWX29-1) -> FALSE | OWZ52: FALSE | OXA52: FALSE | OXB52: FALSE | OXC52: FALSE | OXD52: FALSE | OXE52: FALSE | OXF52: FALSE | OXG52: FALSE | OXH52: FALSE | OXI52: FALSE | OXJ52: FALSE | OXK52: FALSE | OXL52: FALSE | OXM52: FALSE | OXN52: FALSE | OXO52: FALSE | OXP52: FALSE | OXQ52: FALSE | OXR52: FALSE | OXS52: FALSE | OXT52: FALSE | OXU52: FALSE | OXV52: FALSE | OXW52: FALSE | OXX52: FALSE | OXY52: FALSE | OXZ52: FALSE | OYA52: FALSE | OYB52: FALSE | OYC52: FALSE | OYD52: FALSE | OYE52: FALSE | OYF52: FALSE | OYG52: FALSE | OYH52: FALSE | OYI52: FALSE | OYJ52: FALSE | OYK52: FALSE | OYL52: FALSE | OYM52: FALSE | OYN52: FALSE | OYO52: FALSE | OYP52: FALSE | OYQ52: FALSE | OYR52: FALSE | OYS52: FALSE | OYT52: FALSE | OYU52: FALSE | OYV52: FALSE | OYW52: FALSE | OYX52: FALSE | OYY52: FALSE | OYZ52: FALSE | OZA52: FALSE | OZB52: FALSE | OZC52: FALSE | OZD52: FALSE | OZE52: FALSE | OZF52: FALSE | OZG52: FALSE | OZH52: FALSE | OZI52: FALSE | OZJ52: FALSE | OZK52: =IF(OZK6,OZK29/OZJ29-1) -> FALSE | OZL52: FALSE | OZM52: FALSE | OZN52: FALSE | OZO52: FALSE | OZP52: FALSE | OZQ52: FALSE | OZR52: FALSE | OZS52: FALSE | OZT52: FALSE | OZU52: FALSE | OZV52: FALSE | OZW52: FALSE | OZX52: FALSE | OZY52: FALSE | OZZ52: FALSE | PAA52: FALSE | PAB52: FALSE | PAC52: FALSE | PAD52: FALSE | PAE52: FALSE | PAF52: FALSE | PAG52: FALSE | PAH52: FALSE | PAI52: FALSE | PAJ52: FALSE | PAK52: FALSE | PAL52: FALSE | PAM52: FALSE | PAN52: FALSE | PAO52: FALSE | PAP52: FALSE | PAQ52: FALSE | PAR52: FALSE | PAS52: FALSE | PAT52: FALSE | PAU52: FALSE | PAV52: FALSE | PAW52: FALSE | PAX52: FALSE | PAY52: FALSE | PAZ52: FALSE | PBA52: FALSE | PBB52: FALSE | PBC52: FALSE | PBD52: FALSE | PBE52: FALSE | PBF52: FALSE | PBG52: FALSE | PBH52: FALSE | PBI52: FALSE | PBJ52: FALSE | PBK52: FALSE | PBL52: FALSE | PBM52: FALSE | PBN52: FALSE | PBO52: FALSE | PBP52: FALSE | PBQ52: FALSE | PBR52: FALSE | PBS52: FALSE | PBT52: FALSE | PBU52: FALSE | PBV52: FALSE | PBW52: =IF(PBW6,PBW29/PBV29-1) -> FALSE | PBX52: FALSE | PBY52: FALSE | PBZ52: FALSE | PCA52: FALSE | PCB52: FALSE | PCC52: FALSE | PCD52: FALSE | PCE52: FALSE | PCF52: FALSE | PCG52: FALSE | PCH52: FALSE | PCI52: FALSE | PCJ52: FALSE | PCK52: FALSE | PCL52: FALSE | PCM52: FALSE | PCN52: FALSE | PCO52: FALSE | PCP52: FALSE | PCQ52: FALSE | PCR52: FALSE | PCS52: FALSE | PCT52: FALSE | PCU52: FALSE | PCV52: FALSE | PCW52: FALSE | PCX52: FALSE | PCY52: FALSE | PCZ52: FALSE | PDA52: FALSE | PDB52: FALSE | PDC52: FALSE | PDD52: FALSE | PDE52: FALSE | PDF52: FALSE | PDG52: FALSE | PDH52: FALSE | PDI52: FALSE | PDJ52: FALSE | PDK52: FALSE | PDL52: FALSE | PDM52: FALSE | PDN52: FALSE | PDO52: FALSE | PDP52: FALSE | PDQ52: FALSE | PDR52: FALSE | PDS52: FALSE | PDT52: FALSE | PDU52: FALSE | PDV52: FALSE | PDW52: FALSE | PDX52: FALSE | PDY52: FALSE | PDZ52: FALSE | PEA52: FALSE | PEB52: FALSE | PEC52: FALSE | PED52: FALSE | PEE52: FALSE | PEF52: FALSE | PEG52: FALSE | PEH52: FALSE | PEI52: =IF(PEI6,PEI29/PEH29-1) -> FALSE | PEJ52: FALSE | PEK52: FALSE | PEL52: FALSE | PEM52: FALSE | PEN52: FALSE | PEO52: FALSE | PEP52: FALSE | PEQ52: FALSE | PER52: FALSE | PES52: FALSE | PET52: FALSE | PEU52: FALSE | PEV52: FALSE | PEW52: FALSE | PEX52: FALSE | PEY52: FALSE | PEZ52: FALSE | PFA52: FALSE | PFB52: FALSE | PFC52: FALSE | PFD52: FALSE | PFE52: FALSE | PFF52: FALSE | PFG52: FALSE | PFH52: FALSE | PFI52: FALSE | PFJ52: FALSE | PFK52: FALSE | PFL52: FALSE | PFM52: FALSE | PFN52: FALSE | PFO52: FALSE | PFP52: FALSE | PFQ52: FALSE | PFR52: FALSE | PFS52: FALSE | PFT52: FALSE | PFU52: FALSE | PFV52: FALSE | PFW52: FALSE | PFX52: FALSE | PFY52: FALSE | PFZ52: FALSE | PGA52: FALSE | PGB52: FALSE | PGC52: FALSE | PGD52: FALSE | PGE52: FALSE | PGF52: FALSE | PGG52: FALSE | PGH52: FALSE | PGI52: FALSE | PGJ52: FALSE | PGK52: FALSE | PGL52: FALSE | PGM52: FALSE | PGN52: FALSE | PGO52: FALSE | PGP52: FALSE | PGQ52: FALSE | PGR52: FALSE | PGS52: FALSE | PGT52: FALSE | PGU52: =IF(PGU6,PGU29/PGT29-1) -> FALSE | PGV52: FALSE | PGW52: FALSE | PGX52: FALSE | PGY52: FALSE | PGZ52: FALSE | PHA52: FALSE | PHB52: FALSE | PHC52: FALSE | PHD52: FALSE | PHE52: FALSE | PHF52: FALSE | PHG52: FALSE | PHH52: FALSE | PHI52: FALSE | PHJ52: FALSE | PHK52: FALSE | PHL52: FALSE | PHM52: FALSE | PHN52: FALSE | PHO52: FALSE | PHP52: FALSE | PHQ52: FALSE | PHR52: FALSE | PHS52: FALSE | PHT52: FALSE | PHU52: FALSE | PHV52: FALSE | PHW52: FALSE | PHX52: FALSE | PHY52: FALSE | PHZ52: FALSE | PIA52: FALSE | PIB52: FALSE | PIC52: FALSE | PID52: FALSE | PIE52: FALSE | PIF52: FALSE | PIG52: FALSE | PIH52: FALSE | PII52: FALSE | PIJ52: FALSE | PIK52: FALSE | PIL52: FALSE | PIM52: FALSE | PIN52: FALSE | PIO52: FALSE | PIP52: FALSE | PIQ52: FALSE | PIR52: FALSE | PIS52: FALSE | PIT52: FALSE | PIU52: FALSE | PIV52: FALSE | PIW52: FALSE | PIX52: FALSE | PIY52: FALSE | PIZ52: FALSE | PJA52: FALSE | PJB52: FALSE | PJC52: FALSE | PJD52: FALSE | PJE52: FALSE | PJF52: FALSE | PJG52: =IF(PJG6,PJG29/PJF29-1) -> FALSE | PJH52: FALSE | PJI52: FALSE | PJJ52: FALSE | PJK52: FALSE | PJL52: FALSE | PJM52: FALSE | PJN52: FALSE | PJO52: FALSE | PJP52: FALSE | PJQ52: FALSE | PJR52: FALSE | PJS52: FALSE | PJT52: FALSE | PJU52: FALSE | PJV52: FALSE | PJW52: FALSE | PJX52: FALSE | PJY52: FALSE | PJZ52: FALSE | PKA52: FALSE | PKB52: FALSE | PKC52: FALSE | PKD52: FALSE | PKE52: FALSE | PKF52: FALSE | PKG52: FALSE | PKH52: FALSE | PKI52: FALSE | PKJ52: FALSE | PKK52: FALSE | PKL52: FALSE | PKM52: FALSE | PKN52: FALSE | PKO52: FALSE | PKP52: FALSE | PKQ52: FALSE | PKR52: FALSE | PKS52: FALSE | PKT52: FALSE | PKU52: FALSE | PKV52: FALSE | PKW52: FALSE | PKX52: FALSE | PKY52: FALSE | PKZ52: FALSE | PLA52: FALSE | PLB52: FALSE | PLC52: FALSE | PLD52: FALSE | PLE52: FALSE | PLF52: FALSE | PLG52: FALSE | PLH52: FALSE | PLI52: FALSE | PLJ52: FALSE | PLK52: FALSE | PLL52: FALSE | PLM52: FALSE | PLN52: FALSE | PLO52: FALSE | PLP52: FALSE | PLQ52: FALSE | PLR52: FALSE | PLS52: =IF(PLS6,PLS29/PLR29-1) -> FALSE | PLT52: FALSE | PLU52: FALSE | PLV52: FALSE | PLW52: FALSE | PLX52: FALSE | PLY52: FALSE | PLZ52: FALSE | PMA52: FALSE | PMB52: FALSE | PMC52: FALSE | PMD52: FALSE | PME52: FALSE | PMF52: FALSE | PMG52: FALSE | PMH52: FALSE | PMI52: FALSE | PMJ52: FALSE | PMK52: FALSE | PML52: FALSE | PMM52: FALSE | PMN52: FALSE | PMO52: FALSE | PMP52: FALSE | PMQ52: FALSE | PMR52: FALSE | PMS52: FALSE | PMT52: FALSE | PMU52: FALSE | PMV52: FALSE | PMW52: FALSE | PMX52: FALSE | PMY52: FALSE | PMZ52: FALSE | PNA52: FALSE | PNB52: FALSE | PNC52: FALSE | PND52: FALSE | PNE52: FALSE | PNF52: FALSE | PNG52: FALSE | PNH52: FALSE | PNI52: FALSE | PNJ52: FALSE | PNK52: FALSE | PNL52: FALSE | PNM52: FALSE | PNN52: FALSE | PNO52: FALSE | PNP52: FALSE | PNQ52: FALSE | PNR52: FALSE | PNS52: FALSE | PNT52: FALSE | PNU52: FALSE | PNV52: FALSE | PNW52: FALSE | PNX52: FALSE | PNY52: FALSE | PNZ52: FALSE | POA52: FALSE | POB52: FALSE | POC52: FALSE | POD52: FALSE | POE52: =IF(POE6,POE29/POD29-1) -> FALSE | POF52: FALSE | POG52: FALSE | POH52: FALSE | POI52: FALSE | POJ52: FALSE | POK52: FALSE | POL52: FALSE | POM52: FALSE | PON52: FALSE | POO52: FALSE | POP52: FALSE | POQ52: FALSE | POR52: FALSE | POS52: FALSE | POT52: FALSE | POU52: FALSE | POV52: FALSE | POW52: FALSE | POX52: FALSE | POY52: FALSE | POZ52: FALSE | PPA52: FALSE | PPB52: FALSE | PPC52: FALSE | PPD52: FALSE | PPE52: FALSE | PPF52: FALSE | PPG52: FALSE | PPH52: FALSE | PPI52: FALSE | PPJ52: FALSE | PPK52: FALSE | PPL52: FALSE | PPM52: FALSE | PPN52: FALSE | PPO52: FALSE | PPP52: FALSE | PPQ52: FALSE | PPR52: FALSE | PPS52: FALSE | PPT52: FALSE | PPU52: FALSE | PPV52: FALSE | PPW52: FALSE | PPX52: FALSE | PPY52: FALSE | PPZ52: FALSE | PQA52: FALSE | PQB52: FALSE | PQC52: FALSE | PQD52: FALSE | PQE52: FALSE | PQF52: FALSE | PQG52: FALSE | PQH52: FALSE | PQI52: FALSE | PQJ52: FALSE | PQK52: FALSE | PQL52: FALSE | PQM52: FALSE | PQN52: FALSE | PQO52: FALSE | PQP52: FALSE | PQQ52: =IF(PQQ6,PQQ29/PQP29-1) -> FALSE | PQR52: FALSE | PQS52: FALSE | PQT52: FALSE | PQU52: FALSE | PQV52: FALSE | PQW52: FALSE | PQX52: FALSE | PQY52: FALSE | PQZ52: FALSE | PRA52: FALSE | PRB52: FALSE | PRC52: FALSE | PRD52: FALSE | PRE52: FALSE | PRF52: FALSE | PRG52: FALSE | PRH52: FALSE | PRI52: FALSE | PRJ52: FALSE | PRK52: FALSE | PRL52: FALSE | PRM52: FALSE | PRN52: FALSE | PRO52: FALSE | PRP52: FALSE | PRQ52: FALSE | PRR52: FALSE | PRS52: FALSE | PRT52: FALSE | PRU52: FALSE | PRV52: FALSE | PRW52: FALSE | PRX52: FALSE | PRY52: FALSE | PRZ52: FALSE | PSA52: FALSE | PSB52: FALSE | PSC52: FALSE | PSD52: FALSE | PSE52: FALSE | PSF52: FALSE | PSG52: FALSE | PSH52: FALSE | PSI52: FALSE | PSJ52: FALSE | PSK52: FALSE | PSL52: FALSE | PSM52: FALSE | PSN52: FALSE | PSO52: FALSE | PSP52: FALSE | PSQ52: FALSE | PSR52: FALSE | PSS52: FALSE | PST52: FALSE | PSU52: FALSE | PSV52: FALSE | PSW52: FALSE | PSX52: FALSE | PSY52: FALSE | PSZ52: FALSE | PTA52: FALSE | PTB52: FALSE | PTC52: =IF(PTC6,PTC29/PTB29-1) -> FALSE | PTD52: FALSE | PTE52: FALSE | PTF52: FALSE | PTG52: FALSE | PTH52: FALSE | PTI52: FALSE | PTJ52: FALSE | PTK52: FALSE | PTL52: FALSE | PTM52: FALSE | PTN52: FALSE | PTO52: FALSE | PTP52: FALSE | PTQ52: FALSE | PTR52: FALSE | PTS52: FALSE | PTT52: FALSE | PTU52: FALSE | PTV52: FALSE | PTW52: FALSE | PTX52: FALSE | PTY52: FALSE | PTZ52: FALSE | PUA52: FALSE | PUB52: FALSE | PUC52: FALSE | PUD52: FALSE | PUE52: FALSE | PUF52: FALSE | PUG52: FALSE | PUH52: FALSE | PUI52: FALSE | PUJ52: FALSE | PUK52: FALSE | PUL52: FALSE | PUM52: FALSE | PUN52: FALSE | PUO52: FALSE | PUP52: FALSE | PUQ52: FALSE | PUR52: FALSE | PUS52: FALSE | PUT52: FALSE | PUU52: FALSE | PUV52: FALSE | PUW52: FALSE | PUX52: FALSE | PUY52: FALSE | PUZ52: FALSE | PVA52: FALSE | PVB52: FALSE | PVC52: FALSE | PVD52: FALSE | PVE52: FALSE | PVF52: FALSE | PVG52: FALSE | PVH52: FALSE | PVI52: FALSE | PVJ52: FALSE | PVK52: FALSE | PVL52: FALSE | PVM52: FALSE | PVN52: FALSE | PVO52: =IF(PVO6,PVO29/PVN29-1) -> FALSE | PVP52: FALSE | PVQ52: FALSE | PVR52: FALSE | PVS52: FALSE | PVT52: FALSE | PVU52: FALSE | PVV52: FALSE | PVW52: FALSE | PVX52: FALSE | PVY52: FALSE | PVZ52: FALSE | PWA52: FALSE | PWB52: FALSE | PWC52: FALSE | PWD52: FALSE | PWE52: FALSE | PWF52: FALSE | PWG52: FALSE | PWH52: FALSE | PWI52: FALSE | PWJ52: FALSE | PWK52: FALSE | PWL52: FALSE | PWM52: FALSE | PWN52: FALSE | PWO52: FALSE | PWP52: FALSE | PWQ52: FALSE | PWR52: FALSE | PWS52: FALSE | PWT52: FALSE | PWU52: FALSE | PWV52: FALSE | PWW52: FALSE | PWX52: FALSE | PWY52: FALSE | PWZ52: FALSE | PXA52: FALSE | PXB52: FALSE | PXC52: FALSE | PXD52: FALSE | PXE52: FALSE | PXF52: FALSE | PXG52: FALSE | PXH52: FALSE | PXI52: FALSE | PXJ52: FALSE | PXK52: FALSE | PXL52: FALSE | PXM52: FALSE | PXN52: FALSE | PXO52: FALSE | PXP52: FALSE | PXQ52: FALSE | PXR52: FALSE | PXS52: FALSE | PXT52: FALSE | PXU52: FALSE | PXV52: FALSE | PXW52: FALSE | PXX52: FALSE | PXY52: FALSE | PXZ52: FALSE | PYA52: =IF(PYA6,PYA29/PXZ29-1) -> FALSE | PYB52: FALSE | PYC52: FALSE | PYD52: FALSE | PYE52: FALSE | PYF52: FALSE | PYG52: FALSE | PYH52: FALSE | PYI52: FALSE | PYJ52: FALSE | PYK52: FALSE | PYL52: FALSE | PYM52: FALSE | PYN52: FALSE | PYO52: FALSE | PYP52: FALSE | PYQ52: FALSE | PYR52: FALSE | PYS52: FALSE | PYT52: FALSE | PYU52: FALSE | PYV52: FALSE | PYW52: FALSE | PYX52: FALSE | PYY52: FALSE | PYZ52: FALSE | PZA52: FALSE | PZB52: FALSE | PZC52: FALSE | PZD52: FALSE | PZE52: FALSE | PZF52: FALSE | PZG52: FALSE | PZH52: FALSE | PZI52: FALSE | PZJ52: FALSE | PZK52: FALSE | PZL52: FALSE | PZM52: FALSE | PZN52: FALSE | PZO52: FALSE | PZP52: FALSE | PZQ52: FALSE | PZR52: FALSE | PZS52: FALSE | PZT52: FALSE | PZU52: FALSE | PZV52: FALSE | PZW52: FALSE | PZX52: FALSE | PZY52: FALSE | PZZ52: FALSE | QAA52: FALSE | QAB52: FALSE | QAC52: FALSE | QAD52: FALSE | QAE52: FALSE | QAF52: FALSE | QAG52: FALSE | QAH52: FALSE | QAI52: FALSE | QAJ52: FALSE | QAK52: FALSE | QAL52: FALSE | QAM52: =IF(QAM6,QAM29/QAL29-1) -> FALSE | QAN52: FALSE | QAO52: FALSE | QAP52: FALSE | QAQ52: FALSE | QAR52: FALSE | QAS52: FALSE | QAT52: FALSE | QAU52: FALSE | QAV52: FALSE | QAW52: FALSE | QAX52: FALSE | QAY52: FALSE | QAZ52: FALSE | QBA52: FALSE | QBB52: FALSE | QBC52: FALSE | QBD52: FALSE | QBE52: FALSE | QBF52: FALSE | QBG52: FALSE | QBH52: FALSE | QBI52: FALSE | QBJ52: FALSE | QBK52: FALSE | QBL52: FALSE | QBM52: FALSE | QBN52: FALSE | QBO52: FALSE | QBP52: FALSE | QBQ52: FALSE | QBR52: FALSE | QBS52: FALSE | QBT52: FALSE | QBU52: FALSE | QBV52: FALSE | QBW52: FALSE | QBX52: FALSE | QBY52: FALSE | QBZ52: FALSE | QCA52: FALSE | QCB52: FALSE | QCC52: FALSE | QCD52: FALSE | QCE52: FALSE | QCF52: FALSE | QCG52: FALSE | QCH52: FALSE | QCI52: FALSE | QCJ52: FALSE | QCK52: FALSE | QCL52: FALSE | QCM52: FALSE | QCN52: FALSE | QCO52: FALSE | QCP52: FALSE | QCQ52: FALSE | QCR52: FALSE | QCS52: FALSE | QCT52: FALSE | QCU52: FALSE | QCV52: FALSE | QCW52: FALSE | QCX52: FALSE | QCY52: =IF(QCY6,QCY29/QCX29-1) -> FALSE | QCZ52: FALSE | QDA52: FALSE | QDB52: FALSE | QDC52: FALSE | QDD52: FALSE | QDE52: FALSE | QDF52: FALSE | QDG52: FALSE | QDH52: FALSE | QDI52: FALSE | QDJ52: FALSE | QDK52: FALSE | QDL52: FALSE | QDM52: FALSE | QDN52: FALSE | QDO52: FALSE | QDP52: FALSE | QDQ52: FALSE | QDR52: FALSE | QDS52: FALSE | QDT52: FALSE | QDU52: FALSE | QDV52: FALSE | QDW52: FALSE | QDX52: FALSE | QDY52: FALSE | QDZ52: FALSE | QEA52: FALSE | QEB52: FALSE | QEC52: FALSE | QED52: FALSE | QEE52: FALSE | QEF52: FALSE | QEG52: FALSE | QEH52: FALSE | QEI52: FALSE | QEJ52: FALSE | QEK52: FALSE | QEL52: FALSE | QEM52: FALSE | QEN52: FALSE | QEO52: FALSE | QEP52: FALSE | QEQ52: FALSE | QER52: FALSE | QES52: FALSE | QET52: FALSE | QEU52: FALSE | QEV52: FALSE | QEW52: FALSE | QEX52: FALSE | QEY52: FALSE | QEZ52: FALSE | QFA52: FALSE | QFB52: FALSE | QFC52: FALSE | QFD52: FALSE | QFE52: FALSE | QFF52: FALSE | QFG52: FALSE | QFH52: FALSE | QFI52: FALSE | QFJ52: FALSE | QFK52: =IF(QFK6,QFK29/QFJ29-1) -> FALSE | QFL52: FALSE | QFM52: FALSE | QFN52: FALSE | QFO52: FALSE | QFP52: FALSE | QFQ52: FALSE | QFR52: FALSE | QFS52: FALSE | QFT52: FALSE | QFU52: FALSE | QFV52: FALSE | QFW52: FALSE | QFX52: FALSE | QFY52: FALSE | QFZ52: FALSE | QGA52: FALSE | QGB52: FALSE | QGC52: FALSE | QGD52: FALSE | QGE52: FALSE | QGF52: FALSE | QGG52: FALSE | QGH52: FALSE | QGI52: FALSE | QGJ52: FALSE | QGK52: FALSE | QGL52: FALSE | QGM52: FALSE | QGN52: FALSE | QGO52: FALSE | QGP52: FALSE | QGQ52: FALSE | QGR52: FALSE | QGS52: FALSE | QGT52: FALSE | QGU52: FALSE | QGV52: FALSE | QGW52: FALSE | QGX52: FALSE | QGY52: FALSE | QGZ52: FALSE | QHA52: FALSE | QHB52: FALSE | QHC52: FALSE | QHD52: FALSE | QHE52: FALSE | QHF52: FALSE | QHG52: FALSE | QHH52: FALSE | QHI52: FALSE | QHJ52: FALSE | QHK52: FALSE | QHL52: FALSE | QHM52: FALSE | QHN52: FALSE | QHO52: FALSE | QHP52: FALSE | QHQ52: FALSE | QHR52: FALSE | QHS52: FALSE | QHT52: FALSE | QHU52: FALSE | QHV52: FALSE | QHW52: =IF(QHW6,QHW29/QHV29-1) -> FALSE | QHX52: FALSE | QHY52: FALSE | QHZ52: FALSE | QIA52: FALSE | QIB52: FALSE | QIC52: FALSE | QID52: FALSE | QIE52: FALSE | QIF52: FALSE | QIG52: FALSE | QIH52: FALSE | QII52: FALSE | QIJ52: FALSE | QIK52: FALSE | QIL52: FALSE | QIM52: FALSE | QIN52: FALSE | QIO52: FALSE | QIP52: FALSE | QIQ52: FALSE | QIR52: FALSE | QIS52: FALSE | QIT52: FALSE | QIU52: FALSE | QIV52: FALSE | QIW52: FALSE | QIX52: FALSE | QIY52: FALSE | QIZ52: FALSE | QJA52: FALSE | QJB52: FALSE | QJC52: FALSE | QJD52: FALSE | QJE52: FALSE | QJF52: FALSE | QJG52: FALSE | QJH52: FALSE | QJI52: FALSE | QJJ52: FALSE | QJK52: FALSE | QJL52: FALSE | QJM52: FALSE | QJN52: FALSE | QJO52: FALSE | QJP52: FALSE | QJQ52: FALSE | QJR52: FALSE | QJS52: FALSE | QJT52: FALSE | QJU52: FALSE | QJV52: FALSE | QJW52: FALSE | QJX52: FALSE | QJY52: FALSE | QJZ52: FALSE | QKA52: FALSE | QKB52: FALSE | QKC52: FALSE | QKD52: FALSE | QKE52: FALSE | QKF52: FALSE | QKG52: FALSE | QKH52: FALSE | QKI52: =IF(QKI6,QKI29/QKH29-1) -> FALSE | QKJ52: FALSE | QKK52: FALSE | QKL52: FALSE | QKM52: FALSE | QKN52: FALSE | QKO52: FALSE | QKP52: FALSE | QKQ52: FALSE | QKR52: FALSE | QKS52: FALSE | QKT52: FALSE | QKU52: FALSE | QKV52: FALSE | QKW52: FALSE | QKX52: FALSE | QKY52: FALSE | QKZ52: FALSE | QLA52: FALSE | QLB52: FALSE | QLC52: FALSE | QLD52: FALSE | QLE52: FALSE | QLF52: FALSE | QLG52: FALSE | QLH52: FALSE | QLI52: FALSE | QLJ52: FALSE | QLK52: FALSE | QLL52: FALSE | QLM52: FALSE | QLN52: FALSE | QLO52: FALSE | QLP52: FALSE | QLQ52: FALSE | QLR52: FALSE | QLS52: FALSE | QLT52: FALSE | QLU52: FALSE | QLV52: FALSE | QLW52: FALSE | QLX52: FALSE | QLY52: FALSE | QLZ52: FALSE | QMA52: FALSE | QMB52: FALSE | QMC52: FALSE | QMD52: FALSE | QME52: FALSE | QMF52: FALSE | QMG52: FALSE | QMH52: FALSE | QMI52: FALSE | QMJ52: FALSE | QMK52: FALSE | QML52: FALSE | QMM52: FALSE | QMN52: FALSE | QMO52: FALSE | QMP52: FALSE | QMQ52: FALSE | QMR52: FALSE | QMS52: FALSE | QMT52: FALSE | QMU52: =IF(QMU6,QMU29/QMT29-1) -> FALSE | QMV52: FALSE | QMW52: FALSE | QMX52: FALSE | QMY52: FALSE | QMZ52: FALSE | QNA52: FALSE | QNB52: FALSE | QNC52: FALSE | QND52: FALSE | QNE52: FALSE | QNF52: FALSE | QNG52: FALSE | QNH52: FALSE | QNI52: FALSE | QNJ52: FALSE | QNK52: FALSE | QNL52: FALSE | QNM52: FALSE | QNN52: FALSE | QNO52: FALSE | QNP52: FALSE | QNQ52: FALSE | QNR52: FALSE | QNS52: FALSE | QNT52: FALSE | QNU52: FALSE | QNV52: FALSE | QNW52: FALSE | QNX52: FALSE | QNY52: FALSE | QNZ52: FALSE | QOA52: FALSE | QOB52: FALSE | QOC52: FALSE | QOD52: FALSE | QOE52: FALSE | QOF52: FALSE | QOG52: FALSE | QOH52: FALSE | QOI52: FALSE | QOJ52: FALSE | QOK52: FALSE | QOL52: FALSE | QOM52: FALSE | QON52: FALSE | QOO52: FALSE | QOP52: FALSE | QOQ52: FALSE | QOR52: FALSE | QOS52: FALSE | QOT52: FALSE | QOU52: FALSE | QOV52: FALSE | QOW52: FALSE | QOX52: FALSE | QOY52: FALSE | QOZ52: FALSE | QPA52: FALSE | QPB52: FALSE | QPC52: FALSE | QPD52: FALSE | QPE52: FALSE | QPF52: FALSE | QPG52: =IF(QPG6,QPG29/QPF29-1) -> FALSE | QPH52: FALSE | QPI52: FALSE | QPJ52: FALSE | QPK52: FALSE | QPL52: FALSE | QPM52: FALSE | QPN52: FALSE | QPO52: FALSE | QPP52: FALSE | QPQ52: FALSE | QPR52: FALSE | QPS52: FALSE | QPT52: FALSE | QPU52: FALSE | QPV52: FALSE | QPW52: FALSE | QPX52: FALSE | QPY52: FALSE | QPZ52: FALSE | QQA52: FALSE | QQB52: FALSE | QQC52: FALSE | QQD52: FALSE | QQE52: FALSE | QQF52: FALSE | QQG52: FALSE | QQH52: FALSE | QQI52: FALSE | QQJ52: FALSE | QQK52: FALSE | QQL52: FALSE | QQM52: FALSE | QQN52: FALSE | QQO52: FALSE | QQP52: FALSE | QQQ52: FALSE | QQR52: FALSE | QQS52: FALSE | QQT52: FALSE | QQU52: FALSE | QQV52: FALSE | QQW52: FALSE | QQX52: FALSE | QQY52: FALSE | QQZ52: FALSE | QRA52: FALSE | QRB52: FALSE | QRC52: FALSE | QRD52: FALSE | QRE52: FALSE | QRF52: FALSE | QRG52: FALSE | QRH52: FALSE | QRI52: FALSE | QRJ52: FALSE | QRK52: FALSE | QRL52: FALSE | QRM52: FALSE | QRN52: FALSE | QRO52: FALSE | QRP52: FALSE | QRQ52: FALSE | QRR52: FALSE | QRS52: =IF(QRS6,QRS29/QRR29-1) -> FALSE | QRT52: FALSE | QRU52: FALSE | QRV52: FALSE | QRW52: FALSE | QRX52: FALSE | QRY52: FALSE | QRZ52: FALSE | QSA52: FALSE | QSB52: FALSE | QSC52: FALSE | QSD52: FALSE | QSE52: FALSE | QSF52: FALSE | QSG52: FALSE | QSH52: FALSE | QSI52: FALSE | QSJ52: FALSE | QSK52: FALSE | QSL52: FALSE | QSM52: FALSE | QSN52: FALSE | QSO52: FALSE | QSP52: FALSE | QSQ52: FALSE | QSR52: FALSE | QSS52: FALSE | QST52: FALSE | QSU52: FALSE | QSV52: FALSE | QSW52: FALSE | QSX52: FALSE | QSY52: FALSE | QSZ52: FALSE | QTA52: FALSE | QTB52: FALSE | QTC52: FALSE | QTD52: FALSE | QTE52: FALSE | QTF52: FALSE | QTG52: FALSE | QTH52: FALSE | QTI52: FALSE | QTJ52: FALSE | QTK52: FALSE | QTL52: FALSE | QTM52: FALSE | QTN52: FALSE | QTO52: FALSE | QTP52: FALSE | QTQ52: FALSE | QTR52: FALSE | QTS52: FALSE | QTT52: FALSE | QTU52: FALSE | QTV52: FALSE | QTW52: FALSE | QTX52: FALSE | QTY52: FALSE | QTZ52: FALSE | QUA52: FALSE | QUB52: FALSE | QUC52: FALSE | QUD52: FALSE | QUE52: =IF(QUE6,QUE29/QUD29-1) -> FALSE | QUF52: FALSE | QUG52: FALSE | QUH52: FALSE | QUI52: FALSE | QUJ52: FALSE | QUK52: FALSE | QUL52: FALSE | QUM52: FALSE | QUN52: FALSE | QUO52: FALSE | QUP52: FALSE | QUQ52: FALSE | QUR52: FALSE | QUS52: FALSE | QUT52: FALSE | QUU52: FALSE | QUV52: FALSE | QUW52: FALSE | QUX52: FALSE | QUY52: FALSE | QUZ52: FALSE | QVA52: FALSE | QVB52: FALSE | QVC52: FALSE | QVD52: FALSE | QVE52: FALSE | QVF52: FALSE | QVG52: FALSE | QVH52: FALSE | QVI52: FALSE | QVJ52: FALSE | QVK52: FALSE | QVL52: FALSE | QVM52: FALSE | QVN52: FALSE | QVO52: FALSE | QVP52: FALSE | QVQ52: FALSE | QVR52: FALSE | QVS52: FALSE | QVT52: FALSE | QVU52: FALSE | QVV52: FALSE | QVW52: FALSE | QVX52: FALSE | QVY52: FALSE | QVZ52: FALSE | QWA52: FALSE | QWB52: FALSE | QWC52: FALSE | QWD52: FALSE | QWE52: FALSE | QWF52: FALSE | QWG52: FALSE | QWH52: FALSE | QWI52: FALSE | QWJ52: FALSE | QWK52: FALSE | QWL52: FALSE | QWM52: FALSE | QWN52: FALSE | QWO52: FALSE | QWP52: FALSE | QWQ52: =IF(QWQ6,QWQ29/QWP29-1) -> FALSE | QWR52: FALSE | QWS52: FALSE | QWT52: FALSE | QWU52: FALSE | QWV52: FALSE | QWW52: FALSE | QWX52: FALSE | QWY52: FALSE | QWZ52: FALSE | QXA52: FALSE | QXB52: FALSE | QXC52: FALSE | QXD52: FALSE | QXE52: FALSE | QXF52: FALSE | QXG52: FALSE | QXH52: FALSE | QXI52: FALSE | QXJ52: FALSE | QXK52: FALSE | QXL52: FALSE | QXM52: FALSE | QXN52: FALSE | QXO52: FALSE | QXP52: FALSE | QXQ52: FALSE | QXR52: FALSE | QXS52: FALSE | QXT52: FALSE | QXU52: FALSE | QXV52: FALSE | QXW52: FALSE | QXX52: FALSE | QXY52: FALSE | QXZ52: FALSE | QYA52: FALSE | QYB52: FALSE | QYC52: FALSE | QYD52: FALSE | QYE52: FALSE | QYF52: FALSE | QYG52: FALSE | QYH52: FALSE | QYI52: FALSE | QYJ52: FALSE | QYK52: FALSE | QYL52: FALSE | QYM52: FALSE | QYN52: FALSE | QYO52: FALSE | QYP52: FALSE | QYQ52: FALSE | QYR52: FALSE | QYS52: FALSE | QYT52: FALSE | QYU52: FALSE | QYV52: FALSE | QYW52: FALSE | QYX52: FALSE | QYY52: FALSE | QYZ52: FALSE | QZA52: FALSE | QZB52: FALSE | QZC52: =IF(QZC6,QZC29/QZB29-1) -> FALSE | QZD52: FALSE | QZE52: FALSE | QZF52: FALSE | QZG52: FALSE | QZH52: FALSE | QZI52: FALSE | QZJ52: FALSE | QZK52: FALSE | QZL52: FALSE | QZM52: FALSE | QZN52: FALSE | QZO52: FALSE | QZP52: FALSE | QZQ52: FALSE | QZR52: FALSE | QZS52: FALSE | QZT52: FALSE | QZU52: FALSE | QZV52: FALSE | QZW52: FALSE | QZX52: FALSE | QZY52: FALSE | QZZ52: FALSE | RAA52: FALSE | RAB52: FALSE | RAC52: FALSE | RAD52: FALSE | RAE52: FALSE | RAF52: FALSE | RAG52: FALSE | RAH52: FALSE | RAI52: FALSE | RAJ52: FALSE | RAK52: FALSE | RAL52: FALSE | RAM52: FALSE | RAN52: FALSE | RAO52: FALSE | RAP52: FALSE | RAQ52: FALSE | RAR52: FALSE | RAS52: FALSE | RAT52: FALSE | RAU52: FALSE | RAV52: FALSE | RAW52: FALSE | RAX52: FALSE | RAY52: FALSE | RAZ52: FALSE | RBA52: FALSE | RBB52: FALSE | RBC52: FALSE | RBD52: FALSE | RBE52: FALSE | RBF52: FALSE | RBG52: FALSE | RBH52: FALSE | RBI52: FALSE | RBJ52: FALSE | RBK52: FALSE | RBL52: FALSE | RBM52: FALSE | RBN52: FALSE | RBO52: =IF(RBO6,RBO29/RBN29-1) -> FALSE | RBP52: FALSE | RBQ52: FALSE | RBR52: FALSE | RBS52: FALSE | RBT52: FALSE | RBU52: FALSE | RBV52: FALSE | RBW52: FALSE | RBX52: FALSE | RBY52: FALSE | RBZ52: FALSE | RCA52: FALSE | RCB52: FALSE | RCC52: FALSE | RCD52: FALSE | RCE52: FALSE | RCF52: FALSE | RCG52: FALSE | RCH52: FALSE | RCI52: FALSE | RCJ52: FALSE | RCK52: FALSE | RCL52: FALSE | RCM52: FALSE | RCN52: FALSE | RCO52: FALSE | RCP52: FALSE | RCQ52: FALSE | RCR52: FALSE | RCS52: FALSE | RCT52: FALSE | RCU52: FALSE | RCV52: FALSE | RCW52: FALSE | RCX52: FALSE | RCY52: FALSE | RCZ52: FALSE | RDA52: FALSE | RDB52: FALSE | RDC52: FALSE | RDD52: FALSE | RDE52: FALSE | RDF52: FALSE | RDG52: FALSE | RDH52: FALSE | RDI52: FALSE | RDJ52: FALSE | RDK52: FALSE | RDL52: FALSE | RDM52: FALSE | RDN52: FALSE | RDO52: FALSE | RDP52: FALSE | RDQ52: FALSE | RDR52: FALSE | RDS52: FALSE | RDT52: FALSE | RDU52: FALSE | RDV52: FALSE | RDW52: FALSE | RDX52: FALSE | RDY52: FALSE | RDZ52: FALSE | REA52: =IF(REA6,REA29/RDZ29-1) -> FALSE | REB52: FALSE | REC52: FALSE | RED52: FALSE | REE52: FALSE | REF52: FALSE | REG52: FALSE | REH52: FALSE | REI52: FALSE | REJ52: FALSE | REK52: FALSE | REL52: FALSE | REM52: FALSE | REN52: FALSE | REO52: FALSE | REP52: FALSE | REQ52: FALSE | RER52: FALSE | RES52: FALSE | RET52: FALSE | REU52: FALSE | REV52: FALSE | REW52: FALSE | REX52: FALSE | REY52: FALSE | REZ52: FALSE | RFA52: FALSE | RFB52: FALSE | RFC52: FALSE | RFD52: FALSE | RFE52: FALSE | RFF52: FALSE | RFG52: FALSE | RFH52: FALSE | RFI52: FALSE | RFJ52: FALSE | RFK52: FALSE | RFL52: FALSE | RFM52: FALSE | RFN52: FALSE | RFO52: FALSE | RFP52: FALSE | RFQ52: FALSE | RFR52: FALSE | RFS52: FALSE | RFT52: FALSE | RFU52: FALSE | RFV52: FALSE | RFW52: FALSE | RFX52: FALSE | RFY52: FALSE | RFZ52: FALSE | RGA52: FALSE | RGB52: FALSE | RGC52: FALSE | RGD52: FALSE | RGE52: FALSE | RGF52: FALSE | RGG52: FALSE | RGH52: FALSE | RGI52: FALSE | RGJ52: FALSE | RGK52: FALSE | RGL52: FALSE | RGM52: =IF(RGM6,RGM29/RGL29-1) -> FALSE | RGN52: FALSE | RGO52: FALSE | RGP52: FALSE | RGQ52: FALSE | RGR52: FALSE | RGS52: FALSE | RGT52: FALSE | RGU52: FALSE | RGV52: FALSE | RGW52: FALSE | RGX52: FALSE | RGY52: FALSE | RGZ52: FALSE | RHA52: FALSE | RHB52: FALSE | RHC52: FALSE | RHD52: FALSE | RHE52: FALSE | RHF52: FALSE | RHG52: FALSE | RHH52: FALSE | RHI52: FALSE | RHJ52: FALSE | RHK52: FALSE | RHL52: FALSE | RHM52: FALSE | RHN52: FALSE | RHO52: FALSE | RHP52: FALSE | RHQ52: FALSE | RHR52: FALSE | RHS52: FALSE | RHT52: FALSE | RHU52: FALSE | RHV52: FALSE | RHW52: FALSE | RHX52: FALSE | RHY52: FALSE | RHZ52: FALSE | RIA52: FALSE | RIB52: FALSE | RIC52: FALSE | RID52: FALSE | RIE52: FALSE | RIF52: FALSE | RIG52: FALSE | RIH52: FALSE | RII52: FALSE | RIJ52: FALSE | RIK52: FALSE | RIL52: FALSE | RIM52: FALSE | RIN52: FALSE | RIO52: FALSE | RIP52: FALSE | RIQ52: FALSE | RIR52: FALSE | RIS52: FALSE | RIT52: FALSE | RIU52: FALSE | RIV52: FALSE | RIW52: FALSE | RIX52: FALSE | RIY52: =IF(RIY6,RIY29/RIX29-1) -> FALSE | RIZ52: FALSE | RJA52: FALSE | RJB52: FALSE | RJC52: FALSE | RJD52: FALSE | RJE52: FALSE | RJF52: FALSE | RJG52: FALSE | RJH52: FALSE | RJI52: FALSE | RJJ52: FALSE | RJK52: FALSE | RJL52: FALSE | RJM52: FALSE | RJN52: FALSE | RJO52: FALSE | RJP52: FALSE | RJQ52: FALSE | RJR52: FALSE | RJS52: FALSE | RJT52: FALSE | RJU52: FALSE | RJV52: FALSE | RJW52: FALSE | RJX52: FALSE | RJY52: FALSE | RJZ52: FALSE | RKA52: FALSE | RKB52: FALSE | RKC52: FALSE | RKD52: FALSE | RKE52: FALSE | RKF52: FALSE | RKG52: FALSE | RKH52: FALSE | RKI52: FALSE | RKJ52: FALSE | RKK52: FALSE | RKL52: FALSE | RKM52: FALSE | RKN52: FALSE | RKO52: FALSE | RKP52: FALSE | RKQ52: FALSE | RKR52: FALSE | RKS52: FALSE | RKT52: FALSE | RKU52: FALSE | RKV52: FALSE | RKW52: FALSE | RKX52: FALSE | RKY52: FALSE | RKZ52: FALSE | RLA52: FALSE | RLB52: FALSE | RLC52: FALSE | RLD52: FALSE | RLE52: FALSE | RLF52: FALSE | RLG52: FALSE | RLH52: FALSE | RLI52: FALSE | RLJ52: FALSE | RLK52: =IF(RLK6,RLK29/RLJ29-1) -> FALSE | RLL52: FALSE | RLM52: FALSE | RLN52: FALSE | RLO52: FALSE | RLP52: FALSE | RLQ52: FALSE | RLR52: FALSE | RLS52: FALSE | RLT52: FALSE | RLU52: FALSE | RLV52: FALSE | RLW52: FALSE | RLX52: FALSE | RLY52: FALSE | RLZ52: FALSE | RMA52: FALSE | RMB52: FALSE | RMC52: FALSE | RMD52: FALSE | RME52: FALSE | RMF52: FALSE | RMG52: FALSE | RMH52: FALSE | RMI52: FALSE | RMJ52: FALSE | RMK52: FALSE | RML52: FALSE | RMM52: FALSE | RMN52: FALSE | RMO52: FALSE | RMP52: FALSE | RMQ52: FALSE | RMR52: FALSE | RMS52: FALSE | RMT52: FALSE | RMU52: FALSE | RMV52: FALSE | RMW52: FALSE | RMX52: FALSE | RMY52: FALSE | RMZ52: FALSE | RNA52: FALSE | RNB52: FALSE | RNC52: FALSE | RND52: FALSE | RNE52: FALSE | RNF52: FALSE | RNG52: FALSE | RNH52: FALSE | RNI52: FALSE | RNJ52: FALSE | RNK52: FALSE | RNL52: FALSE | RNM52: FALSE | RNN52: FALSE | RNO52: FALSE | RNP52: FALSE | RNQ52: FALSE | RNR52: FALSE | RNS52: FALSE | RNT52: FALSE | RNU52: FALSE | RNV52: FALSE | RNW52: =IF(RNW6,RNW29/RNV29-1) -> FALSE | RNX52: FALSE | RNY52: FALSE | RNZ52: FALSE | ROA52: FALSE | ROB52: FALSE | ROC52: FALSE | ROD52: FALSE | ROE52: FALSE | ROF52: FALSE | ROG52: FALSE | ROH52: FALSE | ROI52: FALSE | ROJ52: FALSE | ROK52: FALSE | ROL52: FALSE | ROM52: FALSE | RON52: FALSE | ROO52: FALSE | ROP52: FALSE | ROQ52: FALSE | ROR52: FALSE | ROS52: FALSE | ROT52: FALSE | ROU52: FALSE | ROV52: FALSE | ROW52: FALSE | ROX52: FALSE | ROY52: FALSE | ROZ52: FALSE | RPA52: FALSE | RPB52: FALSE | RPC52: FALSE | RPD52: FALSE | RPE52: FALSE | RPF52: FALSE | RPG52: FALSE | RPH52: FALSE | RPI52: FALSE | RPJ52: FALSE | RPK52: FALSE | RPL52: FALSE | RPM52: FALSE | RPN52: FALSE | RPO52: FALSE | RPP52: FALSE | RPQ52: FALSE | RPR52: FALSE | RPS52: FALSE | RPT52: FALSE | RPU52: FALSE | RPV52: FALSE | RPW52: FALSE | RPX52: FALSE | RPY52: FALSE | RPZ52: FALSE | RQA52: FALSE | RQB52: FALSE | RQC52: FALSE | RQD52: FALSE | RQE52: FALSE | RQF52: FALSE | RQG52: FALSE | RQH52: FALSE | RQI52: =IF(RQI6,RQI29/RQH29-1) -> FALSE | RQJ52: FALSE | RQK52: FALSE | RQL52: FALSE | RQM52: FALSE | RQN52: FALSE | RQO52: FALSE | RQP52: FALSE | RQQ52: FALSE | RQR52: FALSE | RQS52: FALSE | RQT52: FALSE | RQU52: FALSE | RQV52: FALSE | RQW52: FALSE | RQX52: FALSE | RQY52: FALSE | RQZ52: FALSE | RRA52: FALSE | RRB52: FALSE | RRC52: FALSE | RRD52: FALSE | RRE52: FALSE | RRF52: FALSE | RRG52: FALSE | RRH52: FALSE | RRI52: FALSE | RRJ52: FALSE | RRK52: FALSE | RRL52: FALSE | RRM52: FALSE | RRN52: FALSE | RRO52: FALSE | RRP52: FALSE | RRQ52: FALSE | RRR52: FALSE | RRS52: FALSE | RRT52: FALSE | RRU52: FALSE | RRV52: FALSE | RRW52: FALSE | RRX52: FALSE | RRY52: FALSE | RRZ52: FALSE | RSA52: FALSE | RSB52: FALSE | RSC52: FALSE | RSD52: FALSE | RSE52: FALSE | RSF52: FALSE | RSG52: FALSE | RSH52: FALSE | RSI52: FALSE | RSJ52: FALSE | RSK52: FALSE | RSL52: FALSE | RSM52: FALSE | RSN52: FALSE | RSO52: FALSE | RSP52: FALSE | RSQ52: FALSE | RSR52: FALSE | RSS52: FALSE | RST52: FALSE | RSU52: =IF(RSU6,RSU29/RST29-1) -> FALSE | RSV52: FALSE | RSW52: FALSE | RSX52: FALSE | RSY52: FALSE | RSZ52: FALSE | RTA52: FALSE | RTB52: FALSE | RTC52: FALSE | RTD52: FALSE | RTE52: FALSE | RTF52: FALSE | RTG52: FALSE | RTH52: FALSE | RTI52: FALSE | RTJ52: FALSE | RTK52: FALSE | RTL52: FALSE | RTM52: FALSE | RTN52: FALSE | RTO52: FALSE | RTP52: FALSE | RTQ52: FALSE | RTR52: FALSE | RTS52: FALSE | RTT52: FALSE | RTU52: FALSE | RTV52: FALSE | RTW52: FALSE | RTX52: FALSE | RTY52: FALSE | RTZ52: FALSE | RUA52: FALSE | RUB52: FALSE | RUC52: FALSE | RUD52: FALSE | RUE52: FALSE | RUF52: FALSE | RUG52: FALSE | RUH52: FALSE | RUI52: FALSE | RUJ52: FALSE | RUK52: FALSE | RUL52: FALSE | RUM52: FALSE | RUN52: FALSE | RUO52: FALSE | RUP52: FALSE | RUQ52: FALSE | RUR52: FALSE | RUS52: FALSE | RUT52: FALSE | RUU52: FALSE | RUV52: FALSE | RUW52: FALSE | RUX52: FALSE | RUY52: FALSE | RUZ52: FALSE | RVA52: FALSE | RVB52: FALSE | RVC52: FALSE | RVD52: FALSE | RVE52: FALSE | RVF52: FALSE | RVG52: =IF(RVG6,RVG29/RVF29-1) -> FALSE | RVH52: FALSE | RVI52: FALSE | RVJ52: FALSE | RVK52: FALSE | RVL52: FALSE | RVM52: FALSE | RVN52: FALSE | RVO52: FALSE | RVP52: FALSE | RVQ52: FALSE | RVR52: FALSE | RVS52: FALSE | RVT52: FALSE | RVU52: FALSE | RVV52: FALSE | RVW52: FALSE | RVX52: FALSE | RVY52: FALSE | RVZ52: FALSE | RWA52: FALSE | RWB52: FALSE | RWC52: FALSE | RWD52: FALSE | RWE52: FALSE | RWF52: FALSE | RWG52: FALSE | RWH52: FALSE | RWI52: FALSE | RWJ52: FALSE | RWK52: FALSE | RWL52: FALSE | RWM52: FALSE | RWN52: FALSE | RWO52: FALSE | RWP52: FALSE | RWQ52: FALSE | RWR52: FALSE | RWS52: FALSE | RWT52: FALSE | RWU52: FALSE | RWV52: FALSE | RWW52: FALSE | RWX52: FALSE | RWY52: FALSE | RWZ52: FALSE | RXA52: FALSE | RXB52: FALSE | RXC52: FALSE | RXD52: FALSE | RXE52: FALSE | RXF52: FALSE | RXG52: FALSE | RXH52: FALSE | RXI52: FALSE | RXJ52: FALSE | RXK52: FALSE | RXL52: FALSE | RXM52: FALSE | RXN52: FALSE | RXO52: FALSE | RXP52: FALSE | RXQ52: FALSE | RXR52: FALSE | RXS52: =IF(RXS6,RXS29/RXR29-1) -> FALSE | RXT52: FALSE | RXU52: FALSE | RXV52: FALSE | RXW52: FALSE | RXX52: FALSE | RXY52: FALSE | RXZ52: FALSE | RYA52: FALSE | RYB52: FALSE | RYC52: FALSE | RYD52: FALSE | RYE52: FALSE | RYF52: FALSE | RYG52: FALSE | RYH52: FALSE | RYI52: FALSE | RYJ52: FALSE | RYK52: FALSE | RYL52: FALSE | RYM52: FALSE | RYN52: FALSE | RYO52: FALSE | RYP52: FALSE | RYQ52: FALSE | RYR52: FALSE | RYS52: FALSE | RYT52: FALSE | RYU52: FALSE | RYV52: FALSE | RYW52: FALSE | RYX52: FALSE | RYY52: FALSE | RYZ52: FALSE | RZA52: FALSE | RZB52: FALSE | RZC52: FALSE | RZD52: FALSE | RZE52: FALSE | RZF52: FALSE | RZG52: FALSE | RZH52: FALSE | RZI52: FALSE | RZJ52: FALSE | RZK52: FALSE | RZL52: FALSE | RZM52: FALSE | RZN52: FALSE | RZO52: FALSE | RZP52: FALSE | RZQ52: FALSE | RZR52: FALSE | RZS52: FALSE | RZT52: FALSE | RZU52: FALSE | RZV52: FALSE | RZW52: FALSE | RZX52: FALSE | RZY52: FALSE | RZZ52: FALSE | SAA52: FALSE | SAB52: FALSE | SAC52: FALSE | SAD52: FALSE | SAE52: =IF(SAE6,SAE29/SAD29-1) -> FALSE | SAF52: FALSE | SAG52: FALSE | SAH52: FALSE | SAI52: FALSE | SAJ52: FALSE | SAK52: FALSE | SAL52: FALSE | SAM52: FALSE | SAN52: FALSE | SAO52: FALSE | SAP52: FALSE | SAQ52: FALSE | SAR52: FALSE | SAS52: FALSE | SAT52: FALSE | SAU52: FALSE | SAV52: FALSE | SAW52: FALSE | SAX52: FALSE | SAY52: FALSE | SAZ52: FALSE | SBA52: FALSE | SBB52: FALSE | SBC52: FALSE | SBD52: FALSE | SBE52: FALSE | SBF52: FALSE | SBG52: FALSE | SBH52: FALSE | SBI52: FALSE | SBJ52: FALSE | SBK52: FALSE | SBL52: FALSE | SBM52: FALSE | SBN52: FALSE | SBO52: FALSE | SBP52: FALSE | SBQ52: FALSE | SBR52: FALSE | SBS52: FALSE | SBT52: FALSE | SBU52: FALSE | SBV52: FALSE | SBW52: FALSE | SBX52: FALSE | SBY52: FALSE | SBZ52: FALSE | SCA52: FALSE | SCB52: FALSE | SCC52: FALSE | SCD52: FALSE | SCE52: FALSE | SCF52: FALSE | SCG52: FALSE | SCH52: FALSE | SCI52: FALSE | SCJ52: FALSE | SCK52: FALSE | SCL52: FALSE | SCM52: FALSE | SCN52: FALSE | SCO52: FALSE | SCP52: FALSE | SCQ52: =IF(SCQ6,SCQ29/SCP29-1) -> FALSE | SCR52: FALSE | SCS52: FALSE | SCT52: FALSE | SCU52: FALSE | SCV52: FALSE | SCW52: FALSE | SCX52: FALSE | SCY52: FALSE | SCZ52: FALSE | SDA52: FALSE | SDB52: FALSE | SDC52: FALSE | SDD52: FALSE | SDE52: FALSE | SDF52: FALSE | SDG52: FALSE | SDH52: FALSE | SDI52: FALSE | SDJ52: FALSE | SDK52: FALSE | SDL52: FALSE | SDM52: FALSE | SDN52: FALSE | SDO52: FALSE | SDP52: FALSE | SDQ52: FALSE | SDR52: FALSE | SDS52: FALSE | SDT52: FALSE | SDU52: FALSE | SDV52: FALSE | SDW52: FALSE | SDX52: FALSE | SDY52: FALSE | SDZ52: FALSE | SEA52: FALSE | SEB52: FALSE | SEC52: FALSE | SED52: FALSE | SEE52: FALSE | SEF52: FALSE | SEG52: FALSE | SEH52: FALSE | SEI52: FALSE | SEJ52: FALSE | SEK52: FALSE | SEL52: FALSE | SEM52: FALSE | SEN52: FALSE | SEO52: FALSE | SEP52: FALSE | SEQ52: FALSE | SER52: FALSE | SES52: FALSE | SET52: FALSE | SEU52: FALSE | SEV52: FALSE | SEW52: FALSE | SEX52: FALSE | SEY52: FALSE | SEZ52: FALSE | SFA52: FALSE | SFB52: FALSE | SFC52: =IF(SFC6,SFC29/SFB29-1) -> FALSE | SFD52: FALSE | SFE52: FALSE | SFF52: FALSE | SFG52: FALSE | SFH52: FALSE | SFI52: FALSE | SFJ52: FALSE | SFK52: FALSE | SFL52: FALSE | SFM52: FALSE | SFN52: FALSE | SFO52: FALSE | SFP52: FALSE | SFQ52: FALSE | SFR52: FALSE | SFS52: FALSE | SFT52: FALSE | SFU52: FALSE | SFV52: FALSE | SFW52: FALSE | SFX52: FALSE | SFY52: FALSE | SFZ52: FALSE | SGA52: FALSE | SGB52: FALSE | SGC52: FALSE | SGD52: FALSE | SGE52: FALSE | SGF52: FALSE | SGG52: FALSE | SGH52: FALSE | SGI52: FALSE | SGJ52: FALSE | SGK52: FALSE | SGL52: FALSE | SGM52: FALSE | SGN52: FALSE | SGO52: FALSE | SGP52: FALSE | SGQ52: FALSE | SGR52: FALSE | SGS52: FALSE | SGT52: FALSE | SGU52: FALSE | SGV52: FALSE | SGW52: FALSE | SGX52: FALSE | SGY52: FALSE | SGZ52: FALSE | SHA52: FALSE | SHB52: FALSE | SHC52: FALSE | SHD52: FALSE | SHE52: FALSE | SHF52: FALSE | SHG52: FALSE | SHH52: FALSE | SHI52: FALSE | SHJ52: FALSE | SHK52: FALSE | SHL52: FALSE | SHM52: FALSE | SHN52: FALSE | SHO52: =IF(SHO6,SHO29/SHN29-1) -> FALSE | SHP52: FALSE | SHQ52: FALSE | SHR52: FALSE | SHS52: FALSE | SHT52: FALSE | SHU52: FALSE | SHV52: FALSE | SHW52: FALSE | SHX52: FALSE | SHY52: FALSE | SHZ52: FALSE | SIA52: FALSE | SIB52: FALSE | SIC52: FALSE | SID52: FALSE | SIE52: FALSE | SIF52: FALSE | SIG52: FALSE | SIH52: FALSE | SII52: FALSE | SIJ52: FALSE | SIK52: FALSE | SIL52: FALSE | SIM52: FALSE | SIN52: FALSE | SIO52: FALSE | SIP52: FALSE | SIQ52: FALSE | SIR52: FALSE | SIS52: FALSE | SIT52: FALSE | SIU52: FALSE | SIV52: FALSE | SIW52: FALSE | SIX52: FALSE | SIY52: FALSE | SIZ52: FALSE | SJA52: FALSE | SJB52: FALSE | SJC52: FALSE | SJD52: FALSE | SJE52: FALSE | SJF52: FALSE | SJG52: FALSE | SJH52: FALSE | SJI52: FALSE | SJJ52: FALSE | SJK52: FALSE | SJL52: FALSE | SJM52: FALSE | SJN52: FALSE | SJO52: FALSE | SJP52: FALSE | SJQ52: FALSE | SJR52: FALSE | SJS52: FALSE | SJT52: FALSE | SJU52: FALSE | SJV52: FALSE | SJW52: FALSE | SJX52: FALSE | SJY52: FALSE | SJZ52: FALSE | SKA52: =IF(SKA6,SKA29/SJZ29-1) -> FALSE | SKB52: FALSE | SKC52: FALSE | SKD52: FALSE | SKE52: FALSE | SKF52: FALSE | SKG52: FALSE | SKH52: FALSE | SKI52: FALSE | SKJ52: FALSE | SKK52: FALSE | SKL52: FALSE | SKM52: FALSE | SKN52: FALSE | SKO52: FALSE | SKP52: FALSE | SKQ52: FALSE | SKR52: FALSE | SKS52: FALSE | SKT52: FALSE | SKU52: FALSE | SKV52: FALSE | SKW52: FALSE | SKX52: FALSE | SKY52: FALSE | SKZ52: FALSE | SLA52: FALSE | SLB52: FALSE | SLC52: FALSE | SLD52: FALSE | SLE52: FALSE | SLF52: FALSE | SLG52: FALSE | SLH52: FALSE | SLI52: FALSE | SLJ52: FALSE | SLK52: FALSE | SLL52: FALSE | SLM52: FALSE | SLN52: FALSE | SLO52: FALSE | SLP52: FALSE | SLQ52: FALSE | SLR52: FALSE | SLS52: FALSE | SLT52: FALSE | SLU52: FALSE | SLV52: FALSE | SLW52: FALSE | SLX52: FALSE | SLY52: FALSE | SLZ52: FALSE | SMA52: FALSE | SMB52: FALSE | SMC52: FALSE | SMD52: FALSE | SME52: FALSE | SMF52: FALSE | SMG52: FALSE | SMH52: FALSE | SMI52: FALSE | SMJ52: FALSE | SMK52: FALSE | SML52: FALSE | SMM52: =IF(SMM6,SMM29/SML29-1) -> FALSE | SMN52: FALSE | SMO52: FALSE | SMP52: FALSE | SMQ52: FALSE | SMR52: FALSE | SMS52: FALSE | SMT52: FALSE | SMU52: FALSE | SMV52: FALSE | SMW52: FALSE | SMX52: FALSE | SMY52: FALSE | SMZ52: FALSE | SNA52: FALSE | SNB52: FALSE | SNC52: FALSE | SND52: FALSE | SNE52: FALSE | SNF52: FALSE | SNG52: FALSE | SNH52: FALSE | SNI52: FALSE | SNJ52: FALSE | SNK52: FALSE | SNL52: FALSE | SNM52: FALSE | SNN52: FALSE | SNO52: FALSE | SNP52: FALSE | SNQ52: FALSE | SNR52: FALSE | SNS52: FALSE | SNT52: FALSE | SNU52: FALSE | SNV52: FALSE | SNW52: FALSE | SNX52: FALSE | SNY52: FALSE | SNZ52: FALSE | SOA52: FALSE | SOB52: FALSE | SOC52: FALSE | SOD52: FALSE | SOE52: FALSE | SOF52: FALSE | SOG52: FALSE | SOH52: FALSE | SOI52: FALSE | SOJ52: FALSE | SOK52: FALSE | SOL52: FALSE | SOM52: FALSE | SON52: FALSE | SOO52: FALSE | SOP52: FALSE | SOQ52: FALSE | SOR52: FALSE | SOS52: FALSE | SOT52: FALSE | SOU52: FALSE | SOV52: FALSE | SOW52: FALSE | SOX52: FALSE | SOY52: =IF(SOY6,SOY29/SOX29-1) -> FALSE | SOZ52: FALSE | SPA52: FALSE | SPB52: FALSE | SPC52: FALSE | SPD52: FALSE | SPE52: FALSE | SPF52: FALSE | SPG52: FALSE | SPH52: FALSE | SPI52: FALSE | SPJ52: FALSE | SPK52: FALSE | SPL52: FALSE | SPM52: FALSE | SPN52: FALSE | SPO52: FALSE | SPP52: FALSE | SPQ52: FALSE | SPR52: FALSE | SPS52: FALSE | SPT52: FALSE | SPU52: FALSE | SPV52: FALSE | SPW52: FALSE | SPX52: FALSE | SPY52: FALSE | SPZ52: FALSE | SQA52: FALSE | SQB52: FALSE | SQC52: FALSE | SQD52: FALSE | SQE52: FALSE | SQF52: FALSE | SQG52: FALSE | SQH52: FALSE | SQI52: FALSE | SQJ52: FALSE | SQK52: FALSE | SQL52: FALSE | SQM52: FALSE | SQN52: FALSE | SQO52: FALSE | SQP52: FALSE | SQQ52: FALSE | SQR52: FALSE | SQS52: FALSE | SQT52: FALSE | SQU52: FALSE | SQV52: FALSE | SQW52: FALSE | SQX52: FALSE | SQY52: FALSE | SQZ52: FALSE | SRA52: FALSE | SRB52: FALSE | SRC52: FALSE | SRD52: FALSE | SRE52: FALSE | SRF52: FALSE | SRG52: FALSE | SRH52: FALSE | SRI52: FALSE | SRJ52: FALSE | SRK52: =IF(SRK6,SRK29/SRJ29-1) -> FALSE | SRL52: FALSE | SRM52: FALSE | SRN52: FALSE | SRO52: FALSE | SRP52: FALSE | SRQ52: FALSE | SRR52: FALSE | SRS52: FALSE | SRT52: FALSE | SRU52: FALSE | SRV52: FALSE | SRW52: FALSE | SRX52: FALSE | SRY52: FALSE | SRZ52: FALSE | SSA52: FALSE | SSB52: FALSE | SSC52: FALSE | SSD52: FALSE | SSE52: FALSE | SSF52: FALSE | SSG52: FALSE | SSH52: FALSE | SSI52: FALSE | SSJ52: FALSE | SSK52: FALSE | SSL52: FALSE | SSM52: FALSE | SSN52: FALSE | SSO52: FALSE | SSP52: FALSE | SSQ52: FALSE | SSR52: FALSE | SSS52: FALSE | SST52: FALSE | SSU52: FALSE | SSV52: FALSE | SSW52: FALSE | SSX52: FALSE | SSY52: FALSE | SSZ52: FALSE | STA52: FALSE | STB52: FALSE | STC52: FALSE | STD52: FALSE | STE52: FALSE | STF52: FALSE | STG52: FALSE | STH52: FALSE | STI52: FALSE | STJ52: FALSE | STK52: FALSE | STL52: FALSE | STM52: FALSE | STN52: FALSE | STO52: FALSE | STP52: FALSE | STQ52: FALSE | STR52: FALSE | STS52: FALSE | STT52: FALSE | STU52: FALSE | STV52: FALSE | STW52: =IF(STW6,STW29/STV29-1) -> FALSE | STX52: FALSE | STY52: FALSE | STZ52: FALSE | SUA52: FALSE | SUB52: FALSE | SUC52: FALSE | SUD52: FALSE | SUE52: FALSE | SUF52: FALSE | SUG52: FALSE | SUH52: FALSE | SUI52: FALSE | SUJ52: FALSE | SUK52: FALSE | SUL52: FALSE | SUM52: FALSE | SUN52: FALSE | SUO52: FALSE | SUP52: FALSE | SUQ52: FALSE | SUR52: FALSE | SUS52: FALSE | SUT52: FALSE | SUU52: FALSE | SUV52: FALSE | SUW52: FALSE | SUX52: FALSE | SUY52: FALSE | SUZ52: FALSE | SVA52: FALSE | SVB52: FALSE | SVC52: FALSE | SVD52: FALSE | SVE52: FALSE | SVF52: FALSE | SVG52: FALSE | SVH52: FALSE | SVI52: FALSE | SVJ52: FALSE | SVK52: FALSE | SVL52: FALSE | SVM52: FALSE | SVN52: FALSE | SVO52: FALSE | SVP52: FALSE | SVQ52: FALSE | SVR52: FALSE | SVS52: FALSE | SVT52: FALSE | SVU52: FALSE | SVV52: FALSE | SVW52: FALSE | SVX52: FALSE | SVY52: FALSE | SVZ52: FALSE | SWA52: FALSE | SWB52: FALSE | SWC52: FALSE | SWD52: FALSE | SWE52: FALSE | SWF52: FALSE | SWG52: FALSE | SWH52: FALSE | SWI52: =IF(SWI6,SWI29/SWH29-1) -> FALSE | SWJ52: FALSE | SWK52: FALSE | SWL52: FALSE | SWM52: FALSE | SWN52: FALSE | SWO52: FALSE | SWP52: FALSE | SWQ52: FALSE | SWR52: FALSE | SWS52: FALSE | SWT52: FALSE | SWU52: FALSE | SWV52: FALSE | SWW52: FALSE | SWX52: FALSE | SWY52: FALSE | SWZ52: FALSE | SXA52: FALSE | SXB52: FALSE | SXC52: FALSE | SXD52: FALSE | SXE52: FALSE | SXF52: FALSE | SXG52: FALSE | SXH52: FALSE | SXI52: FALSE | SXJ52: FALSE | SXK52: FALSE | SXL52: FALSE | SXM52: FALSE | SXN52: FALSE | SXO52: FALSE | SXP52: FALSE | SXQ52: FALSE | SXR52: FALSE | SXS52: FALSE | SXT52: FALSE | SXU52: FALSE | SXV52: FALSE | SXW52: FALSE | SXX52: FALSE | SXY52: FALSE | SXZ52: FALSE | SYA52: FALSE | SYB52: FALSE | SYC52: FALSE | SYD52: FALSE | SYE52: FALSE | SYF52: FALSE | SYG52: FALSE | SYH52: FALSE | SYI52: FALSE | SYJ52: FALSE | SYK52: FALSE | SYL52: FALSE | SYM52: FALSE | SYN52: FALSE | SYO52: FALSE | SYP52: FALSE | SYQ52: FALSE | SYR52: FALSE | SYS52: FALSE | SYT52: FALSE | SYU52: =IF(SYU6,SYU29/SYT29-1) -> FALSE | SYV52: FALSE | SYW52: FALSE | SYX52: FALSE | SYY52: FALSE | SYZ52: FALSE | SZA52: FALSE | SZB52: FALSE | SZC52: FALSE | SZD52: FALSE | SZE52: FALSE | SZF52: FALSE | SZG52: FALSE | SZH52: FALSE | SZI52: FALSE | SZJ52: FALSE | SZK52: FALSE | SZL52: FALSE | SZM52: FALSE | SZN52: FALSE | SZO52: FALSE | SZP52: FALSE | SZQ52: FALSE | SZR52: FALSE | SZS52: FALSE | SZT52: FALSE | SZU52: FALSE | SZV52: FALSE | SZW52: FALSE | SZX52: FALSE | SZY52: FALSE | SZZ52: FALSE | TAA52: FALSE | TAB52: FALSE | TAC52: FALSE | TAD52: FALSE | TAE52: FALSE | TAF52: FALSE | TAG52: FALSE | TAH52: FALSE | TAI52: FALSE | TAJ52: FALSE | TAK52: FALSE | TAL52: FALSE | TAM52: FALSE | TAN52: FALSE | TAO52: FALSE | TAP52: FALSE | TAQ52: FALSE | TAR52: FALSE | TAS52: FALSE | TAT52: FALSE | TAU52: FALSE | TAV52: FALSE | TAW52: FALSE | TAX52: FALSE | TAY52: FALSE | TAZ52: FALSE | TBA52: FALSE | TBB52: FALSE | TBC52: FALSE | TBD52: FALSE | TBE52: FALSE | TBF52: FALSE | TBG52: =IF(TBG6,TBG29/TBF29-1) -> FALSE | TBH52: FALSE | TBI52: FALSE | TBJ52: FALSE | TBK52: FALSE | TBL52: FALSE | TBM52: FALSE | TBN52: FALSE | TBO52: FALSE | TBP52: FALSE | TBQ52: FALSE | TBR52: FALSE | TBS52: FALSE | TBT52: FALSE | TBU52: FALSE | TBV52: FALSE | TBW52: FALSE | TBX52: FALSE | TBY52: FALSE | TBZ52: FALSE | TCA52: FALSE | TCB52: FALSE | TCC52: FALSE | TCD52: FALSE | TCE52: FALSE | TCF52: FALSE | TCG52: FALSE | TCH52: FALSE | TCI52: FALSE | TCJ52: FALSE | TCK52: FALSE | TCL52: FALSE | TCM52: FALSE | TCN52: FALSE | TCO52: FALSE | TCP52: FALSE | TCQ52: FALSE | TCR52: FALSE | TCS52: FALSE | TCT52: FALSE | TCU52: FALSE | TCV52: FALSE | TCW52: FALSE | TCX52: FALSE | TCY52: FALSE | TCZ52: FALSE | TDA52: FALSE | TDB52: FALSE | TDC52: FALSE | TDD52: FALSE | TDE52: FALSE | TDF52: FALSE | TDG52: FALSE | TDH52: FALSE | TDI52: FALSE | TDJ52: FALSE | TDK52: FALSE | TDL52: FALSE | TDM52: FALSE | TDN52: FALSE | TDO52: FALSE | TDP52: FALSE | TDQ52: FALSE | TDR52: FALSE | TDS52: =IF(TDS6,TDS29/TDR29-1) -> FALSE | TDT52: FALSE | TDU52: FALSE | TDV52: FALSE | TDW52: FALSE | TDX52: FALSE | TDY52: FALSE | TDZ52: FALSE | TEA52: FALSE | TEB52: FALSE | TEC52: FALSE | TED52: FALSE | TEE52: FALSE | TEF52: FALSE | TEG52: FALSE | TEH52: FALSE | TEI52: FALSE | TEJ52: FALSE | TEK52: FALSE | TEL52: FALSE | TEM52: FALSE | TEN52: FALSE | TEO52: FALSE | TEP52: FALSE | TEQ52: FALSE | TER52: FALSE | TES52: FALSE | TET52: FALSE | TEU52: FALSE | TEV52: FALSE | TEW52: FALSE | TEX52: FALSE | TEY52: FALSE | TEZ52: FALSE | TFA52: FALSE | TFB52: FALSE | TFC52: FALSE | TFD52: FALSE | TFE52: FALSE | TFF52: FALSE | TFG52: FALSE | TFH52: FALSE | TFI52: FALSE | TFJ52: FALSE | TFK52: FALSE | TFL52: FALSE | TFM52: FALSE | TFN52: FALSE | TFO52: FALSE | TFP52: FALSE | TFQ52: FALSE | TFR52: FALSE | TFS52: FALSE | TFT52: FALSE | TFU52: FALSE | TFV52: FALSE | TFW52: FALSE | TFX52: FALSE | TFY52: FALSE | TFZ52: FALSE | TGA52: FALSE | TGB52: FALSE | TGC52: FALSE | TGD52: FALSE | TGE52: =IF(TGE6,TGE29/TGD29-1) -> FALSE | TGF52: FALSE | TGG52: FALSE | TGH52: FALSE | TGI52: FALSE | TGJ52: FALSE | TGK52: FALSE | TGL52: FALSE | TGM52: FALSE | TGN52: FALSE | TGO52: FALSE | TGP52: FALSE | TGQ52: FALSE | TGR52: FALSE | TGS52: FALSE | TGT52: FALSE | TGU52: FALSE | TGV52: FALSE | TGW52: FALSE | TGX52: FALSE | TGY52: FALSE | TGZ52: FALSE | THA52: FALSE | THB52: FALSE | THC52: FALSE | THD52: FALSE | THE52: FALSE | THF52: FALSE | THG52: FALSE | THH52: FALSE | THI52: FALSE | THJ52: FALSE | THK52: FALSE | THL52: FALSE | THM52: FALSE | THN52: FALSE | THO52: FALSE | THP52: FALSE | THQ52: FALSE | THR52: FALSE | THS52: FALSE | THT52: FALSE | THU52: FALSE | THV52: FALSE | THW52: FALSE | THX52: FALSE | THY52: FALSE | THZ52: FALSE | TIA52: FALSE | TIB52: FALSE | TIC52: FALSE | TID52: FALSE | TIE52: FALSE | TIF52: FALSE | TIG52: FALSE | TIH52: FALSE | TII52: FALSE | TIJ52: FALSE | TIK52: FALSE | TIL52: FALSE | TIM52: FALSE | TIN52: FALSE | TIO52: FALSE | TIP52: FALSE | TIQ52: =IF(TIQ6,TIQ29/TIP29-1) -> FALSE | TIR52: FALSE | TIS52: FALSE | TIT52: FALSE | TIU52: FALSE | TIV52: FALSE | TIW52: FALSE | TIX52: FALSE | TIY52: FALSE | TIZ52: FALSE | TJA52: FALSE | TJB52: FALSE | TJC52: FALSE | TJD52: FALSE | TJE52: FALSE | TJF52: FALSE | TJG52: FALSE | TJH52: FALSE | TJI52: FALSE | TJJ52: FALSE | TJK52: FALSE | TJL52: FALSE | TJM52: FALSE | TJN52: FALSE | TJO52: FALSE | TJP52: FALSE | TJQ52: FALSE | TJR52: FALSE | TJS52: FALSE | TJT52: FALSE | TJU52: FALSE | TJV52: FALSE | TJW52: FALSE | TJX52: FALSE | TJY52: FALSE | TJZ52: FALSE | TKA52: FALSE | TKB52: FALSE | TKC52: FALSE | TKD52: FALSE | TKE52: FALSE | TKF52: FALSE | TKG52: FALSE | TKH52: FALSE | TKI52: FALSE | TKJ52: FALSE | TKK52: FALSE | TKL52: FALSE | TKM52: FALSE | TKN52: FALSE | TKO52: FALSE | TKP52: FALSE | TKQ52: FALSE | TKR52: FALSE | TKS52: FALSE | TKT52: FALSE | TKU52: FALSE | TKV52: FALSE | TKW52: FALSE | TKX52: FALSE | TKY52: FALSE | TKZ52: FALSE | TLA52: FALSE | TLB52: FALSE | TLC52: =IF(TLC6,TLC29/TLB29-1) -> FALSE | TLD52: FALSE | TLE52: FALSE | TLF52: FALSE | TLG52: FALSE | TLH52: FALSE | TLI52: FALSE | TLJ52: FALSE | TLK52: FALSE | TLL52: FALSE | TLM52: FALSE | TLN52: FALSE | TLO52: FALSE | TLP52: FALSE | TLQ52: FALSE | TLR52: FALSE | TLS52: FALSE | TLT52: FALSE | TLU52: FALSE | TLV52: FALSE | TLW52: FALSE | TLX52: FALSE | TLY52: FALSE | TLZ52: FALSE | TMA52: FALSE | TMB52: FALSE | TMC52: FALSE | TMD52: FALSE | TME52: FALSE | TMF52: FALSE | TMG52: FALSE | TMH52: FALSE | TMI52: FALSE | TMJ52: FALSE | TMK52: FALSE | TML52: FALSE | TMM52: FALSE | TMN52: FALSE | TMO52: FALSE | TMP52: FALSE | TMQ52: FALSE | TMR52: FALSE | TMS52: FALSE | TMT52: FALSE | TMU52: FALSE | TMV52: FALSE | TMW52: FALSE | TMX52: FALSE | TMY52: FALSE | TMZ52: FALSE | TNA52: FALSE | TNB52: FALSE | TNC52: FALSE | TND52: FALSE | TNE52: FALSE | TNF52: FALSE | TNG52: FALSE | TNH52: FALSE | TNI52: FALSE | TNJ52: FALSE | TNK52: FALSE | TNL52: FALSE | TNM52: FALSE | TNN52: FALSE | TNO52: =IF(TNO6,TNO29/TNN29-1) -> FALSE | TNP52: FALSE | TNQ52: FALSE | TNR52: FALSE | TNS52: FALSE | TNT52: FALSE | TNU52: FALSE | TNV52: FALSE | TNW52: FALSE | TNX52: FALSE | TNY52: FALSE | TNZ52: FALSE | TOA52: FALSE | TOB52: FALSE | TOC52: FALSE | TOD52: FALSE | TOE52: FALSE | TOF52: FALSE | TOG52: FALSE | TOH52: FALSE | TOI52: FALSE | TOJ52: FALSE | TOK52: FALSE | TOL52: FALSE | TOM52: FALSE | TON52: FALSE | TOO52: FALSE | TOP52: FALSE | TOQ52: FALSE | TOR52: FALSE | TOS52: FALSE | TOT52: FALSE | TOU52: FALSE | TOV52: FALSE | TOW52: FALSE | TOX52: FALSE | TOY52: FALSE | TOZ52: FALSE | TPA52: FALSE | TPB52: FALSE | TPC52: FALSE | TPD52: FALSE | TPE52: FALSE | TPF52: FALSE | TPG52: FALSE | TPH52: FALSE | TPI52: FALSE | TPJ52: FALSE | TPK52: FALSE | TPL52: FALSE | TPM52: FALSE | TPN52: FALSE | TPO52: FALSE | TPP52: FALSE | TPQ52: FALSE | TPR52: FALSE | TPS52: FALSE | TPT52: FALSE | TPU52: FALSE | TPV52: FALSE | TPW52: FALSE | TPX52: FALSE | TPY52: FALSE | TPZ52: FALSE | TQA52: =IF(TQA6,TQA29/TPZ29-1) -> FALSE | TQB52: FALSE | TQC52: FALSE | TQD52: FALSE | TQE52: FALSE | TQF52: FALSE | TQG52: FALSE | TQH52: FALSE | TQI52: FALSE | TQJ52: FALSE | TQK52: FALSE | TQL52: FALSE | TQM52: FALSE | TQN52: FALSE | TQO52: FALSE | TQP52: FALSE | TQQ52: FALSE | TQR52: FALSE | TQS52: FALSE | TQT52: FALSE | TQU52: FALSE | TQV52: FALSE | TQW52: FALSE | TQX52: FALSE | TQY52: FALSE | TQZ52: FALSE | TRA52: FALSE | TRB52: FALSE | TRC52: FALSE | TRD52: FALSE | TRE52: FALSE | TRF52: FALSE | TRG52: FALSE | TRH52: FALSE | TRI52: FALSE | TRJ52: FALSE | TRK52: FALSE | TRL52: FALSE | TRM52: FALSE | TRN52: FALSE | TRO52: FALSE | TRP52: FALSE | TRQ52: FALSE | TRR52: FALSE | TRS52: FALSE | TRT52: FALSE | TRU52: FALSE | TRV52: FALSE | TRW52: FALSE | TRX52: FALSE | TRY52: FALSE | TRZ52: FALSE | TSA52: FALSE | TSB52: FALSE | TSC52: FALSE | TSD52: FALSE | TSE52: FALSE | TSF52: FALSE | TSG52: FALSE | TSH52: FALSE | TSI52: FALSE | TSJ52: FALSE | TSK52: FALSE | TSL52: FALSE | TSM52: =IF(TSM6,TSM29/TSL29-1) -> FALSE | TSN52: FALSE | TSO52: FALSE | TSP52: FALSE | TSQ52: FALSE | TSR52: FALSE | TSS52: FALSE | TST52: FALSE | TSU52: FALSE | TSV52: FALSE | TSW52: FALSE | TSX52: FALSE | TSY52: FALSE | TSZ52: FALSE | TTA52: FALSE | TTB52: FALSE | TTC52: FALSE | TTD52: FALSE | TTE52: FALSE | TTF52: FALSE | TTG52: FALSE | TTH52: FALSE | TTI52: FALSE | TTJ52: FALSE | TTK52: FALSE | TTL52: FALSE | TTM52: FALSE | TTN52: FALSE | TTO52: FALSE | TTP52: FALSE | TTQ52: FALSE | TTR52: FALSE | TTS52: FALSE | TTT52: FALSE | TTU52: FALSE | TTV52: FALSE | TTW52: FALSE | TTX52: FALSE | TTY52: FALSE | TTZ52: FALSE | TUA52: FALSE | TUB52: FALSE | TUC52: FALSE | TUD52: FALSE | TUE52: FALSE | TUF52: FALSE | TUG52: FALSE | TUH52: FALSE | TUI52: FALSE | TUJ52: FALSE | TUK52: FALSE | TUL52: FALSE | TUM52: FALSE | TUN52: FALSE | TUO52: FALSE | TUP52: FALSE | TUQ52: FALSE | TUR52: FALSE | TUS52: FALSE | TUT52: FALSE | TUU52: FALSE | TUV52: FALSE | TUW52: FALSE | TUX52: FALSE | TUY52: =IF(TUY6,TUY29/TUX29-1) -> FALSE | TUZ52: FALSE | TVA52: FALSE | TVB52: FALSE | TVC52: FALSE | TVD52: FALSE | TVE52: FALSE | TVF52: FALSE | TVG52: FALSE | TVH52: FALSE | TVI52: FALSE | TVJ52: FALSE | TVK52: FALSE | TVL52: FALSE | TVM52: FALSE | TVN52: FALSE | TVO52: FALSE | TVP52: FALSE | TVQ52: FALSE | TVR52: FALSE | TVS52: FALSE | TVT52: FALSE | TVU52: FALSE | TVV52: FALSE | TVW52: FALSE | TVX52: FALSE | TVY52: FALSE | TVZ52: FALSE | TWA52: FALSE | TWB52: FALSE | TWC52: FALSE | TWD52: FALSE | TWE52: FALSE | TWF52: FALSE | TWG52: FALSE | TWH52: FALSE | TWI52: FALSE | TWJ52: FALSE | TWK52: FALSE | TWL52: FALSE | TWM52: FALSE | TWN52: FALSE | TWO52: FALSE | TWP52: FALSE | TWQ52: FALSE | TWR52: FALSE | TWS52: FALSE | TWT52: FALSE | TWU52: FALSE | TWV52: FALSE | TWW52: FALSE | TWX52: FALSE | TWY52: FALSE | TWZ52: FALSE | TXA52: FALSE | TXB52: FALSE | TXC52: FALSE | TXD52: FALSE | TXE52: FALSE | TXF52: FALSE | TXG52: FALSE | TXH52: FALSE | TXI52: FALSE | TXJ52: FALSE | TXK52: =IF(TXK6,TXK29/TXJ29-1) -> FALSE | TXL52: FALSE | TXM52: FALSE | TXN52: FALSE | TXO52: FALSE | TXP52: FALSE | TXQ52: FALSE | TXR52: FALSE | TXS52: FALSE | TXT52: FALSE | TXU52: FALSE | TXV52: FALSE | TXW52: FALSE | TXX52: FALSE | TXY52: FALSE | TXZ52: FALSE | TYA52: FALSE | TYB52: FALSE | TYC52: FALSE | TYD52: FALSE | TYE52: FALSE | TYF52: FALSE | TYG52: FALSE | TYH52: FALSE | TYI52: FALSE | TYJ52: FALSE | TYK52: FALSE | TYL52: FALSE | TYM52: FALSE | TYN52: FALSE | TYO52: FALSE | TYP52: FALSE | TYQ52: FALSE | TYR52: FALSE | TYS52: FALSE | TYT52: FALSE | TYU52: FALSE | TYV52: FALSE | TYW52: FALSE | TYX52: FALSE | TYY52: FALSE | TYZ52: FALSE | TZA52: FALSE | TZB52: FALSE | TZC52: FALSE | TZD52: FALSE | TZE52: FALSE | TZF52: FALSE | TZG52: FALSE | TZH52: FALSE | TZI52: FALSE | TZJ52: FALSE | TZK52: FALSE | TZL52: FALSE | TZM52: FALSE | TZN52: FALSE | TZO52: FALSE | TZP52: FALSE | TZQ52: FALSE | TZR52: FALSE | TZS52: FALSE | TZT52: FALSE | TZU52: FALSE | TZV52: FALSE | TZW52: =IF(TZW6,TZW29/TZV29-1) -> FALSE | TZX52: FALSE | TZY52: FALSE | TZZ52: FALSE | UAA52: FALSE | UAB52: FALSE | UAC52: FALSE | UAD52: FALSE | UAE52: FALSE | UAF52: FALSE | UAG52: FALSE | UAH52: FALSE | UAI52: FALSE | UAJ52: FALSE | UAK52: FALSE | UAL52: FALSE | UAM52: FALSE | UAN52: FALSE | UAO52: FALSE | UAP52: FALSE | UAQ52: FALSE | UAR52: FALSE | UAS52: FALSE | UAT52: FALSE | UAU52: FALSE | UAV52: FALSE | UAW52: FALSE | UAX52: FALSE | UAY52: FALSE | UAZ52: FALSE | UBA52: FALSE | UBB52: FALSE | UBC52: FALSE | UBD52: FALSE | UBE52: FALSE | UBF52: FALSE | UBG52: FALSE | UBH52: FALSE | UBI52: FALSE | UBJ52: FALSE | UBK52: FALSE | UBL52: FALSE | UBM52: FALSE | UBN52: FALSE | UBO52: FALSE | UBP52: FALSE | UBQ52: FALSE | UBR52: FALSE | UBS52: FALSE | UBT52: FALSE | UBU52: FALSE | UBV52: FALSE | UBW52: FALSE | UBX52: FALSE | UBY52: FALSE | UBZ52: FALSE | UCA52: FALSE | UCB52: FALSE | UCC52: FALSE | UCD52: FALSE | UCE52: FALSE | UCF52: FALSE | UCG52: FALSE | UCH52: FALSE | UCI52: =IF(UCI6,UCI29/UCH29-1) -> FALSE | UCJ52: FALSE | UCK52: FALSE | UCL52: FALSE | UCM52: FALSE | UCN52: FALSE | UCO52: FALSE | UCP52: FALSE | UCQ52: FALSE | UCR52: FALSE | UCS52: FALSE | UCT52: FALSE | UCU52: FALSE | UCV52: FALSE | UCW52: FALSE | UCX52: FALSE | UCY52: FALSE | UCZ52: FALSE | UDA52: FALSE | UDB52: FALSE | UDC52: FALSE | UDD52: FALSE | UDE52: FALSE | UDF52: FALSE | UDG52: FALSE | UDH52: FALSE | UDI52: FALSE | UDJ52: FALSE | UDK52: FALSE | UDL52: FALSE | UDM52: FALSE | UDN52: FALSE | UDO52: FALSE | UDP52: FALSE | UDQ52: FALSE | UDR52: FALSE | UDS52: FALSE | UDT52: FALSE | UDU52: FALSE | UDV52: FALSE | UDW52: FALSE | UDX52: FALSE | UDY52: FALSE | UDZ52: FALSE | UEA52: FALSE | UEB52: FALSE | UEC52: FALSE | UED52: FALSE | UEE52: FALSE | UEF52: FALSE | UEG52: FALSE | UEH52: FALSE | UEI52: FALSE | UEJ52: FALSE | UEK52: FALSE | UEL52: FALSE | UEM52: FALSE | UEN52: FALSE | UEO52: FALSE | UEP52: FALSE | UEQ52: FALSE | UER52: FALSE | UES52: FALSE | UET52: FALSE | UEU52: =IF(UEU6,UEU29/UET29-1) -> FALSE | UEV52: FALSE | UEW52: FALSE | UEX52: FALSE | UEY52: FALSE | UEZ52: FALSE | UFA52: FALSE | UFB52: FALSE | UFC52: FALSE | UFD52: FALSE | UFE52: FALSE | UFF52: FALSE | UFG52: FALSE | UFH52: FALSE | UFI52: FALSE | UFJ52: FALSE | UFK52: FALSE | UFL52: FALSE | UFM52: FALSE | UFN52: FALSE | UFO52: FALSE | UFP52: FALSE | UFQ52: FALSE | UFR52: FALSE | UFS52: FALSE | UFT52: FALSE | UFU52: FALSE | UFV52: FALSE | UFW52: FALSE | UFX52: FALSE | UFY52: FALSE | UFZ52: FALSE | UGA52: FALSE | UGB52: FALSE | UGC52: FALSE | UGD52: FALSE | UGE52: FALSE | UGF52: FALSE | UGG52: FALSE | UGH52: FALSE | UGI52: FALSE | UGJ52: FALSE | UGK52: FALSE | UGL52: FALSE | UGM52: FALSE | UGN52: FALSE | UGO52: FALSE | UGP52: FALSE | UGQ52: FALSE | UGR52: FALSE | UGS52: FALSE | UGT52: FALSE | UGU52: FALSE | UGV52: FALSE | UGW52: FALSE | UGX52: FALSE | UGY52: FALSE | UGZ52: FALSE | UHA52: FALSE | UHB52: FALSE | UHC52: FALSE | UHD52: FALSE | UHE52: FALSE | UHF52: FALSE | UHG52: =IF(UHG6,UHG29/UHF29-1) -> FALSE | UHH52: FALSE | UHI52: FALSE | UHJ52: FALSE | UHK52: FALSE | UHL52: FALSE | UHM52: FALSE | UHN52: FALSE | UHO52: FALSE | UHP52: FALSE | UHQ52: FALSE | UHR52: FALSE | UHS52: FALSE | UHT52: FALSE | UHU52: FALSE | UHV52: FALSE | UHW52: FALSE | UHX52: FALSE | UHY52: FALSE | UHZ52: FALSE | UIA52: FALSE | UIB52: FALSE | UIC52: FALSE | UID52: FALSE | UIE52: FALSE | UIF52: FALSE | UIG52: FALSE | UIH52: FALSE | UII52: FALSE | UIJ52: FALSE | UIK52: FALSE | UIL52: FALSE | UIM52: FALSE | UIN52: FALSE | UIO52: FALSE | UIP52: FALSE | UIQ52: FALSE | UIR52: FALSE | UIS52: FALSE | UIT52: FALSE | UIU52: FALSE | UIV52: FALSE | UIW52: FALSE | UIX52: FALSE | UIY52: FALSE | UIZ52: FALSE | UJA52: FALSE | UJB52: FALSE | UJC52: FALSE | UJD52: FALSE | UJE52: FALSE | UJF52: FALSE | UJG52: FALSE | UJH52: FALSE | UJI52: FALSE | UJJ52: FALSE | UJK52: FALSE | UJL52: FALSE | UJM52: FALSE | UJN52: FALSE | UJO52: FALSE | UJP52: FALSE | UJQ52: FALSE | UJR52: FALSE | UJS52: =IF(UJS6,UJS29/UJR29-1) -> FALSE | UJT52: FALSE | UJU52: FALSE | UJV52: FALSE | UJW52: FALSE | UJX52: FALSE | UJY52: FALSE | UJZ52: FALSE | UKA52: FALSE | UKB52: FALSE | UKC52: FALSE | UKD52: FALSE | UKE52: FALSE | UKF52: FALSE | UKG52: FALSE | UKH52: FALSE | UKI52: FALSE | UKJ52: FALSE | UKK52: FALSE | UKL52: FALSE | UKM52: FALSE | UKN52: FALSE | UKO52: FALSE | UKP52: FALSE | UKQ52: FALSE | UKR52: FALSE | UKS52: FALSE | UKT52: FALSE | UKU52: FALSE | UKV52: FALSE | UKW52: FALSE | UKX52: FALSE | UKY52: FALSE | UKZ52: FALSE | ULA52: FALSE | ULB52: FALSE | ULC52: FALSE | ULD52: FALSE | ULE52: FALSE | ULF52: FALSE | ULG52: FALSE | ULH52: FALSE | ULI52: FALSE | ULJ52: FALSE | ULK52: FALSE | ULL52: FALSE | ULM52: FALSE | ULN52: FALSE | ULO52: FALSE | ULP52: FALSE | ULQ52: FALSE | ULR52: FALSE | ULS52: FALSE | ULT52: FALSE | ULU52: FALSE | ULV52: FALSE | ULW52: FALSE | ULX52: FALSE | ULY52: FALSE | ULZ52: FALSE | UMA52: FALSE | UMB52: FALSE | UMC52: FALSE | UMD52: FALSE | UME52: =IF(UME6,UME29/UMD29-1) -> FALSE | UMF52: FALSE | UMG52: FALSE | UMH52: FALSE | UMI52: FALSE | UMJ52: FALSE | UMK52: FALSE | UML52: FALSE | UMM52: FALSE | UMN52: FALSE | UMO52: FALSE | UMP52: FALSE | UMQ52: FALSE | UMR52: FALSE | UMS52: FALSE | UMT52: FALSE | UMU52: FALSE | UMV52: FALSE | UMW52: FALSE | UMX52: FALSE | UMY52: FALSE | UMZ52: FALSE | UNA52: FALSE | UNB52: FALSE | UNC52: FALSE | UND52: FALSE | UNE52: FALSE | UNF52: FALSE | UNG52: FALSE | UNH52: FALSE | UNI52: FALSE | UNJ52: FALSE | UNK52: FALSE | UNL52: FALSE | UNM52: FALSE | UNN52: FALSE | UNO52: FALSE | UNP52: FALSE | UNQ52: FALSE | UNR52: FALSE | UNS52: FALSE | UNT52: FALSE | UNU52: FALSE | UNV52: FALSE | UNW52: FALSE | UNX52: FALSE | UNY52: FALSE | UNZ52: FALSE | UOA52: FALSE | UOB52: FALSE | UOC52: FALSE | UOD52: FALSE | UOE52: FALSE | UOF52: FALSE | UOG52: FALSE | UOH52: FALSE | UOI52: FALSE | UOJ52: FALSE | UOK52: FALSE | UOL52: FALSE | UOM52: FALSE | UON52: FALSE | UOO52: FALSE | UOP52: FALSE | UOQ52: =IF(UOQ6,UOQ29/UOP29-1) -> FALSE | UOR52: FALSE | UOS52: FALSE | UOT52: FALSE | UOU52: FALSE | UOV52: FALSE | UOW52: FALSE | UOX52: FALSE | UOY52: FALSE | UOZ52: FALSE | UPA52: FALSE | UPB52: FALSE | UPC52: FALSE | UPD52: FALSE | UPE52: FALSE | UPF52: FALSE | UPG52: FALSE | UPH52: FALSE | UPI52: FALSE | UPJ52: FALSE | UPK52: FALSE | UPL52: FALSE | UPM52: FALSE | UPN52: FALSE | UPO52: FALSE | UPP52: FALSE | UPQ52: FALSE | UPR52: FALSE | UPS52: FALSE | UPT52: FALSE | UPU52: FALSE | UPV52: FALSE | UPW52: FALSE | UPX52: FALSE | UPY52: FALSE | UPZ52: FALSE | UQA52: FALSE | UQB52: FALSE | UQC52: FALSE | UQD52: FALSE | UQE52: FALSE | UQF52: FALSE | UQG52: FALSE | UQH52: FALSE | UQI52: FALSE | UQJ52: FALSE | UQK52: FALSE | UQL52: FALSE | UQM52: FALSE | UQN52: FALSE | UQO52: FALSE | UQP52: FALSE | UQQ52: FALSE | UQR52: FALSE | UQS52: FALSE | UQT52: FALSE | UQU52: FALSE | UQV52: FALSE | UQW52: FALSE | UQX52: FALSE | UQY52: FALSE | UQZ52: FALSE | URA52: FALSE | URB52: FALSE | URC52: =IF(URC6,URC29/URB29-1) -> FALSE | URD52: FALSE | URE52: FALSE | URF52: FALSE | URG52: FALSE | URH52: FALSE | URI52: FALSE | URJ52: FALSE | URK52: FALSE | URL52: FALSE | URM52: FALSE | URN52: FALSE | URO52: FALSE | URP52: FALSE | URQ52: FALSE | URR52: FALSE | URS52: FALSE | URT52: FALSE | URU52: FALSE | URV52: FALSE | URW52: FALSE | URX52: FALSE | URY52: FALSE | URZ52: FALSE | USA52: FALSE | USB52: FALSE | USC52: FALSE | USD52: FALSE | USE52: FALSE | USF52: FALSE | USG52: FALSE | USH52: FALSE | USI52: FALSE | USJ52: FALSE | USK52: FALSE | USL52: FALSE | USM52: FALSE | USN52: FALSE | USO52: FALSE | USP52: FALSE | USQ52: FALSE | USR52: FALSE | USS52: FALSE | UST52: FALSE | USU52: FALSE | USV52: FALSE | USW52: FALSE | USX52: FALSE | USY52: FALSE | USZ52: FALSE | UTA52: FALSE | UTB52: FALSE | UTC52: FALSE | UTD52: FALSE | UTE52: FALSE | UTF52: FALSE | UTG52: FALSE | UTH52: FALSE | UTI52: FALSE | UTJ52: FALSE | UTK52: FALSE | UTL52: FALSE | UTM52: FALSE | UTN52: FALSE | UTO52: =IF(UTO6,UTO29/UTN29-1) -> FALSE | UTP52: FALSE | UTQ52: FALSE | UTR52: FALSE | UTS52: FALSE | UTT52: FALSE | UTU52: FALSE | UTV52: FALSE | UTW52: FALSE | UTX52: FALSE | UTY52: FALSE | UTZ52: FALSE | UUA52: FALSE | UUB52: FALSE | UUC52: FALSE | UUD52: FALSE | UUE52: FALSE | UUF52: FALSE | UUG52: FALSE | UUH52: FALSE | UUI52: FALSE | UUJ52: FALSE | UUK52: FALSE | UUL52: FALSE | UUM52: FALSE | UUN52: FALSE | UUO52: FALSE | UUP52: FALSE | UUQ52: FALSE | UUR52: FALSE | UUS52: FALSE | UUT52: FALSE | UUU52: FALSE | UUV52: FALSE | UUW52: FALSE | UUX52: FALSE | UUY52: FALSE | UUZ52: FALSE | UVA52: FALSE | UVB52: FALSE | UVC52: FALSE | UVD52: FALSE | UVE52: FALSE | UVF52: FALSE | UVG52: FALSE | UVH52: FALSE | UVI52: FALSE | UVJ52: FALSE | UVK52: FALSE | UVL52: FALSE | UVM52: FALSE | UVN52: FALSE | UVO52: FALSE | UVP52: FALSE | UVQ52: FALSE | UVR52: FALSE | UVS52: FALSE | UVT52: FALSE | UVU52: FALSE | UVV52: FALSE | UVW52: FALSE | UVX52: FALSE | UVY52: FALSE | UVZ52: FALSE | UWA52: =IF(UWA6,UWA29/UVZ29-1) -> FALSE | UWB52: FALSE | UWC52: FALSE | UWD52: FALSE | UWE52: FALSE | UWF52: FALSE | UWG52: FALSE | UWH52: FALSE | UWI52: FALSE | UWJ52: FALSE | UWK52: FALSE | UWL52: FALSE | UWM52: FALSE | UWN52: FALSE | UWO52: FALSE | UWP52: FALSE | UWQ52: FALSE | UWR52: FALSE | UWS52: FALSE | UWT52: FALSE | UWU52: FALSE | UWV52: FALSE | UWW52: FALSE | UWX52: FALSE | UWY52: FALSE | UWZ52: FALSE | UXA52: FALSE | UXB52: FALSE | UXC52: FALSE | UXD52: FALSE | UXE52: FALSE | UXF52: FALSE | UXG52: FALSE | UXH52: FALSE | UXI52: FALSE | UXJ52: FALSE | UXK52: FALSE | UXL52: FALSE | UXM52: FALSE | UXN52: FALSE | UXO52: FALSE | UXP52: FALSE | UXQ52: FALSE | UXR52: FALSE | UXS52: FALSE | UXT52: FALSE | UXU52: FALSE | UXV52: FALSE | UXW52: FALSE | UXX52: FALSE | UXY52: FALSE | UXZ52: FALSE | UYA52: FALSE | UYB52: FALSE | UYC52: FALSE | UYD52: FALSE | UYE52: FALSE | UYF52: FALSE | UYG52: FALSE | UYH52: FALSE | UYI52: FALSE | UYJ52: FALSE | UYK52: FALSE | UYL52: FALSE | UYM52: =IF(UYM6,UYM29/UYL29-1) -> FALSE | UYN52: FALSE | UYO52: FALSE | UYP52: FALSE | UYQ52: FALSE | UYR52: FALSE | UYS52: FALSE | UYT52: FALSE | UYU52: FALSE | UYV52: FALSE | UYW52: FALSE | UYX52: FALSE | UYY52: FALSE | UYZ52: FALSE | UZA52: FALSE | UZB52: FALSE | UZC52: FALSE | UZD52: FALSE | UZE52: FALSE | UZF52: FALSE | UZG52: FALSE | UZH52: FALSE | UZI52: FALSE | UZJ52: FALSE | UZK52: FALSE | UZL52: FALSE | UZM52: FALSE | UZN52: FALSE | UZO52: FALSE | UZP52: FALSE | UZQ52: FALSE | UZR52: FALSE | UZS52: FALSE | UZT52: FALSE | UZU52: FALSE | UZV52: FALSE | UZW52: FALSE | UZX52: FALSE | UZY52: FALSE | UZZ52: FALSE | VAA52: FALSE | VAB52: FALSE | VAC52: FALSE | VAD52: FALSE | VAE52: FALSE | VAF52: FALSE | VAG52: FALSE | VAH52: FALSE | VAI52: FALSE | VAJ52: FALSE | VAK52: FALSE | VAL52: FALSE | VAM52: FALSE | VAN52: FALSE | VAO52: FALSE | VAP52: FALSE | VAQ52: FALSE | VAR52: FALSE | VAS52: FALSE | VAT52: FALSE | VAU52: FALSE | VAV52: FALSE | VAW52: FALSE | VAX52: FALSE | VAY52: =IF(VAY6,VAY29/VAX29-1) -> FALSE | VAZ52: FALSE | VBA52: FALSE | VBB52: FALSE | VBC52: FALSE | VBD52: FALSE | VBE52: FALSE | VBF52: FALSE | VBG52: FALSE | VBH52: FALSE | VBI52: FALSE | VBJ52: FALSE | VBK52: FALSE | VBL52: FALSE | VBM52: FALSE | VBN52: FALSE | VBO52: FALSE | VBP52: FALSE | VBQ52: FALSE | VBR52: FALSE | VBS52: FALSE | VBT52: FALSE | VBU52: FALSE | VBV52: FALSE | VBW52: FALSE | VBX52: FALSE | VBY52: FALSE | VBZ52: FALSE | VCA52: FALSE | VCB52: FALSE | VCC52: FALSE | VCD52: FALSE | VCE52: FALSE | VCF52: FALSE | VCG52: FALSE | VCH52: FALSE | VCI52: FALSE | VCJ52: FALSE | VCK52: FALSE | VCL52: FALSE | VCM52: FALSE | VCN52: FALSE | VCO52: FALSE | VCP52: FALSE | VCQ52: FALSE | VCR52: FALSE | VCS52: FALSE | VCT52: FALSE | VCU52: FALSE | VCV52: FALSE | VCW52: FALSE | VCX52: FALSE | VCY52: FALSE | VCZ52: FALSE | VDA52: FALSE | VDB52: FALSE | VDC52: FALSE | VDD52: FALSE | VDE52: FALSE | VDF52: FALSE | VDG52: FALSE | VDH52: FALSE | VDI52: FALSE | VDJ52: FALSE | VDK52: =IF(VDK6,VDK29/VDJ29-1) -> FALSE | VDL52: FALSE | VDM52: FALSE | VDN52: FALSE | VDO52: FALSE | VDP52: FALSE | VDQ52: FALSE | VDR52: FALSE | VDS52: FALSE | VDT52: FALSE | VDU52: FALSE | VDV52: FALSE | VDW52: FALSE | VDX52: FALSE | VDY52: FALSE | VDZ52: FALSE | VEA52: FALSE | VEB52: FALSE | VEC52: FALSE | VED52: FALSE | VEE52: FALSE | VEF52: FALSE | VEG52: FALSE | VEH52: FALSE | VEI52: FALSE | VEJ52: FALSE | VEK52: FALSE | VEL52: FALSE | VEM52: FALSE | VEN52: FALSE | VEO52: FALSE | VEP52: FALSE | VEQ52: FALSE | VER52: FALSE | VES52: FALSE | VET52: FALSE | VEU52: FALSE | VEV52: FALSE | VEW52: FALSE | VEX52: FALSE | VEY52: FALSE | VEZ52: FALSE | VFA52: FALSE | VFB52: FALSE | VFC52: FALSE | VFD52: FALSE | VFE52: FALSE | VFF52: FALSE | VFG52: FALSE | VFH52: FALSE | VFI52: FALSE | VFJ52: FALSE | VFK52: FALSE | VFL52: FALSE | VFM52: FALSE | VFN52: FALSE | VFO52: FALSE | VFP52: FALSE | VFQ52: FALSE | VFR52: FALSE | VFS52: FALSE | VFT52: FALSE | VFU52: FALSE | VFV52: FALSE | VFW52: =IF(VFW6,VFW29/VFV29-1) -> FALSE | VFX52: FALSE | VFY52: FALSE | VFZ52: FALSE | VGA52: FALSE | VGB52: FALSE | VGC52: FALSE | VGD52: FALSE | VGE52: FALSE | VGF52: FALSE | VGG52: FALSE | VGH52: FALSE | VGI52: FALSE | VGJ52: FALSE | VGK52: FALSE | VGL52: FALSE | VGM52: FALSE | VGN52: FALSE | VGO52: FALSE | VGP52: FALSE | VGQ52: FALSE | VGR52: FALSE | VGS52: FALSE | VGT52: FALSE | VGU52: FALSE | VGV52: FALSE | VGW52: FALSE | VGX52: FALSE | VGY52: FALSE | VGZ52: FALSE | VHA52: FALSE | VHB52: FALSE | VHC52: FALSE | VHD52: FALSE | VHE52: FALSE | VHF52: FALSE | VHG52: FALSE | VHH52: FALSE | VHI52: FALSE | VHJ52: FALSE | VHK52: FALSE | VHL52: FALSE | VHM52: FALSE | VHN52: FALSE | VHO52: FALSE | VHP52: FALSE | VHQ52: FALSE | VHR52: FALSE | VHS52: FALSE | VHT52: FALSE | VHU52: FALSE | VHV52: FALSE | VHW52: FALSE | VHX52: FALSE | VHY52: FALSE | VHZ52: FALSE | VIA52: FALSE | VIB52: FALSE | VIC52: FALSE | VID52: FALSE | VIE52: FALSE | VIF52: FALSE | VIG52: FALSE | VIH52: FALSE | VII52: =IF(VII6,VII29/VIH29-1) -> FALSE | VIJ52: FALSE | VIK52: FALSE | VIL52: FALSE | VIM52: FALSE | VIN52: FALSE | VIO52: FALSE | VIP52: FALSE | VIQ52: FALSE | VIR52: FALSE | VIS52: FALSE | VIT52: FALSE | VIU52: FALSE | VIV52: FALSE | VIW52: FALSE | VIX52: FALSE | VIY52: FALSE | VIZ52: FALSE | VJA52: FALSE | VJB52: FALSE | VJC52: FALSE | VJD52: FALSE | VJE52: FALSE | VJF52: FALSE | VJG52: FALSE | VJH52: FALSE | VJI52: FALSE | VJJ52: FALSE | VJK52: FALSE | VJL52: FALSE | VJM52: FALSE | VJN52: FALSE | VJO52: FALSE | VJP52: FALSE | VJQ52: FALSE | VJR52: FALSE | VJS52: FALSE | VJT52: FALSE | VJU52: FALSE | VJV52: FALSE | VJW52: FALSE | VJX52: FALSE | VJY52: FALSE | VJZ52: FALSE | VKA52: FALSE | VKB52: FALSE | VKC52: FALSE | VKD52: FALSE | VKE52: FALSE | VKF52: FALSE | VKG52: FALSE | VKH52: FALSE | VKI52: FALSE | VKJ52: FALSE | VKK52: FALSE | VKL52: FALSE | VKM52: FALSE | VKN52: FALSE | VKO52: FALSE | VKP52: FALSE | VKQ52: FALSE | VKR52: FALSE | VKS52: FALSE | VKT52: FALSE | VKU52: =IF(VKU6,VKU29/VKT29-1) -> FALSE | VKV52: FALSE | VKW52: FALSE | VKX52: FALSE | VKY52: FALSE | VKZ52: FALSE | VLA52: FALSE | VLB52: FALSE | VLC52: FALSE | VLD52: FALSE | VLE52: FALSE | VLF52: FALSE | VLG52: FALSE | VLH52: FALSE | VLI52: FALSE | VLJ52: FALSE | VLK52: FALSE | VLL52: FALSE | VLM52: FALSE | VLN52: FALSE | VLO52: FALSE | VLP52: FALSE | VLQ52: FALSE | VLR52: FALSE | VLS52: FALSE | VLT52: FALSE | VLU52: FALSE | VLV52: FALSE | VLW52: FALSE | VLX52: FALSE | VLY52: FALSE | VLZ52: FALSE | VMA52: FALSE | VMB52: FALSE | VMC52: FALSE | VMD52: FALSE | VME52: FALSE | VMF52: FALSE | VMG52: FALSE | VMH52: FALSE | VMI52: FALSE | VMJ52: FALSE | VMK52: FALSE | VML52: FALSE | VMM52: FALSE | VMN52: FALSE | VMO52: FALSE | VMP52: FALSE | VMQ52: FALSE | VMR52: FALSE | VMS52: FALSE | VMT52: FALSE | VMU52: FALSE | VMV52: FALSE | VMW52: FALSE | VMX52: FALSE | VMY52: FALSE | VMZ52: FALSE | VNA52: FALSE | VNB52: FALSE | VNC52: FALSE | VND52: FALSE | VNE52: FALSE | VNF52: FALSE | VNG52: =IF(VNG6,VNG29/VNF29-1) -> FALSE | VNH52: FALSE | VNI52: FALSE | VNJ52: FALSE | VNK52: FALSE | VNL52: FALSE | VNM52: FALSE | VNN52: FALSE | VNO52: FALSE | VNP52: FALSE | VNQ52: FALSE | VNR52: FALSE | VNS52: FALSE | VNT52: FALSE | VNU52: FALSE | VNV52: FALSE | VNW52: FALSE | VNX52: FALSE | VNY52: FALSE | VNZ52: FALSE | VOA52: FALSE | VOB52: FALSE | VOC52: FALSE | VOD52: FALSE | VOE52: FALSE | VOF52: FALSE | VOG52: FALSE | VOH52: FALSE | VOI52: FALSE | VOJ52: FALSE | VOK52: FALSE | VOL52: FALSE | VOM52: FALSE | VON52: FALSE | VOO52: FALSE | VOP52: FALSE | VOQ52: FALSE | VOR52: FALSE | VOS52: FALSE | VOT52: FALSE | VOU52: FALSE | VOV52: FALSE | VOW52: FALSE | VOX52: FALSE | VOY52: FALSE | VOZ52: FALSE | VPA52: FALSE | VPB52: FALSE | VPC52: FALSE | VPD52: FALSE | VPE52: FALSE | VPF52: FALSE | VPG52: FALSE | VPH52: FALSE | VPI52: FALSE | VPJ52: FALSE | VPK52: FALSE | VPL52: FALSE | VPM52: FALSE | VPN52: FALSE | VPO52: FALSE | VPP52: FALSE | VPQ52: FALSE | VPR52: FALSE | VPS52: =IF(VPS6,VPS29/VPR29-1) -> FALSE | VPT52: FALSE | VPU52: FALSE | VPV52: FALSE | VPW52: FALSE | VPX52: FALSE | VPY52: FALSE | VPZ52: FALSE | VQA52: FALSE | VQB52: FALSE | VQC52: FALSE | VQD52: FALSE | VQE52: FALSE | VQF52: FALSE | VQG52: FALSE | VQH52: FALSE | VQI52: FALSE | VQJ52: FALSE | VQK52: FALSE | VQL52: FALSE | VQM52: FALSE | VQN52: FALSE | VQO52: FALSE | VQP52: FALSE | VQQ52: FALSE | VQR52: FALSE | VQS52: FALSE | VQT52: FALSE | VQU52: FALSE | VQV52: FALSE | VQW52: FALSE | VQX52: FALSE | VQY52: FALSE | VQZ52: FALSE | VRA52: FALSE | VRB52: FALSE | VRC52: FALSE | VRD52: FALSE | VRE52: FALSE | VRF52: FALSE | VRG52: FALSE | VRH52: FALSE | VRI52: FALSE | VRJ52: FALSE | VRK52: FALSE | VRL52: FALSE | VRM52: FALSE | VRN52: FALSE | VRO52: FALSE | VRP52: FALSE | VRQ52: FALSE | VRR52: FALSE | VRS52: FALSE | VRT52: FALSE | VRU52: FALSE | VRV52: FALSE | VRW52: FALSE | VRX52: FALSE | VRY52: FALSE | VRZ52: FALSE | VSA52: FALSE | VSB52: FALSE | VSC52: FALSE | VSD52: FALSE | VSE52: =IF(VSE6,VSE29/VSD29-1) -> FALSE | VSF52: FALSE | VSG52: FALSE | VSH52: FALSE | VSI52: FALSE | VSJ52: FALSE | VSK52: FALSE | VSL52: FALSE | VSM52: FALSE | VSN52: FALSE | VSO52: FALSE | VSP52: FALSE | VSQ52: FALSE | VSR52: FALSE | VSS52: FALSE | VST52: FALSE | VSU52: FALSE | VSV52: FALSE | VSW52: FALSE | VSX52: FALSE | VSY52: FALSE | VSZ52: FALSE | VTA52: FALSE | VTB52: FALSE | VTC52: FALSE | VTD52: FALSE | VTE52: FALSE | VTF52: FALSE | VTG52: FALSE | VTH52: FALSE | VTI52: FALSE | VTJ52: FALSE | VTK52: FALSE | VTL52: FALSE | VTM52: FALSE | VTN52: FALSE | VTO52: FALSE | VTP52: FALSE | VTQ52: FALSE | VTR52: FALSE | VTS52: FALSE | VTT52: FALSE | VTU52: FALSE | VTV52: FALSE | VTW52: FALSE | VTX52: FALSE | VTY52: FALSE | VTZ52: FALSE | VUA52: FALSE | VUB52: FALSE | VUC52: FALSE | VUD52: FALSE | VUE52: FALSE | VUF52: FALSE | VUG52: FALSE | VUH52: FALSE | VUI52: FALSE | VUJ52: FALSE | VUK52: FALSE | VUL52: FALSE | VUM52: FALSE | VUN52: FALSE | VUO52: FALSE | VUP52: FALSE | VUQ52: =IF(VUQ6,VUQ29/VUP29-1) -> FALSE | VUR52: FALSE | VUS52: FALSE | VUT52: FALSE | VUU52: FALSE | VUV52: FALSE | VUW52: FALSE | VUX52: FALSE | VUY52: FALSE | VUZ52: FALSE | VVA52: FALSE | VVB52: FALSE | VVC52: FALSE | VVD52: FALSE | VVE52: FALSE | VVF52: FALSE | VVG52: FALSE | VVH52: FALSE | VVI52: FALSE | VVJ52: FALSE | VVK52: FALSE | VVL52: FALSE | VVM52: FALSE | VVN52: FALSE | VVO52: FALSE | VVP52: FALSE | VVQ52: FALSE | VVR52: FALSE | VVS52: FALSE | VVT52: FALSE | VVU52: FALSE | VVV52: FALSE | VVW52: FALSE | VVX52: FALSE | VVY52: FALSE | VVZ52: FALSE | VWA52: FALSE | VWB52: FALSE | VWC52: FALSE | VWD52: FALSE | VWE52: FALSE | VWF52: FALSE | VWG52: FALSE | VWH52: FALSE | VWI52: FALSE | VWJ52: FALSE | VWK52: FALSE | VWL52: FALSE | VWM52: FALSE | VWN52: FALSE | VWO52: FALSE | VWP52: FALSE | VWQ52: FALSE | VWR52: FALSE | VWS52: FALSE | VWT52: FALSE | VWU52: FALSE | VWV52: FALSE | VWW52: FALSE | VWX52: FALSE | VWY52: FALSE | VWZ52: FALSE | VXA52: FALSE | VXB52: FALSE | VXC52: =IF(VXC6,VXC29/VXB29-1) -> FALSE | VXD52: FALSE | VXE52: FALSE | VXF52: FALSE | VXG52: FALSE | VXH52: FALSE | VXI52: FALSE | VXJ52: FALSE | VXK52: FALSE | VXL52: FALSE | VXM52: FALSE | VXN52: FALSE | VXO52: FALSE | VXP52: FALSE | VXQ52: FALSE | VXR52: FALSE | VXS52: FALSE | VXT52: FALSE | VXU52: FALSE | VXV52: FALSE | VXW52: FALSE | VXX52: FALSE | VXY52: FALSE | VXZ52: FALSE | VYA52: FALSE | VYB52: FALSE | VYC52: FALSE | VYD52: FALSE | VYE52: FALSE | VYF52: FALSE | VYG52: FALSE | VYH52: FALSE | VYI52: FALSE | VYJ52: FALSE | VYK52: FALSE | VYL52: FALSE | VYM52: FALSE | VYN52: FALSE | VYO52: FALSE | VYP52: FALSE | VYQ52: FALSE | VYR52: FALSE | VYS52: FALSE | VYT52: FALSE | VYU52: FALSE | VYV52: FALSE | VYW52: FALSE | VYX52: FALSE | VYY52: FALSE | VYZ52: FALSE | VZA52: FALSE | VZB52: FALSE | VZC52: FALSE | VZD52: FALSE | VZE52: FALSE | VZF52: FALSE | VZG52: FALSE | VZH52: FALSE | VZI52: FALSE | VZJ52: FALSE | VZK52: FALSE | VZL52: FALSE | VZM52: FALSE | VZN52: FALSE | VZO52: =IF(VZO6,VZO29/VZN29-1) -> FALSE | VZP52: FALSE | VZQ52: FALSE | VZR52: FALSE | VZS52: FALSE | VZT52: FALSE | VZU52: FALSE | VZV52: FALSE | VZW52: FALSE | VZX52: FALSE | VZY52: FALSE | VZZ52: FALSE | WAA52: FALSE | WAB52: FALSE | WAC52: FALSE | WAD52: FALSE | WAE52: FALSE | WAF52: FALSE | WAG52: FALSE | WAH52: FALSE | WAI52: FALSE | WAJ52: FALSE | WAK52: FALSE | WAL52: FALSE | WAM52: FALSE | WAN52: FALSE | WAO52: FALSE | WAP52: FALSE | WAQ52: FALSE | WAR52: FALSE | WAS52: FALSE | WAT52: FALSE | WAU52: FALSE | WAV52: FALSE | WAW52: FALSE | WAX52: FALSE | WAY52: FALSE | WAZ52: FALSE | WBA52: FALSE | WBB52: FALSE | WBC52: FALSE | WBD52: FALSE | WBE52: FALSE | WBF52: FALSE | WBG52: FALSE | WBH52: FALSE | WBI52: FALSE | WBJ52: FALSE | WBK52: FALSE | WBL52: FALSE | WBM52: FALSE | WBN52: FALSE | WBO52: FALSE | WBP52: FALSE | WBQ52: FALSE | WBR52: FALSE | WBS52: FALSE | WBT52: FALSE | WBU52: FALSE | WBV52: FALSE | WBW52: FALSE | WBX52: FALSE | WBY52: FALSE | WBZ52: FALSE | WCA52: =IF(WCA6,WCA29/WBZ29-1) -> FALSE | WCB52: FALSE | WCC52: FALSE | WCD52: FALSE | WCE52: FALSE | WCF52: FALSE | WCG52: FALSE | WCH52: FALSE | WCI52: FALSE | WCJ52: FALSE | WCK52: FALSE | WCL52: FALSE | WCM52: FALSE | WCN52: FALSE | WCO52: FALSE | WCP52: FALSE | WCQ52: FALSE | WCR52: FALSE | WCS52: FALSE | WCT52: FALSE | WCU52: FALSE | WCV52: FALSE | WCW52: FALSE | WCX52: FALSE | WCY52: FALSE | WCZ52: FALSE | WDA52: FALSE | WDB52: FALSE | WDC52: FALSE | WDD52: FALSE | WDE52: FALSE | WDF52: FALSE | WDG52: FALSE | WDH52: FALSE | WDI52: FALSE | WDJ52: FALSE | WDK52: FALSE | WDL52: FALSE | WDM52: FALSE | WDN52: FALSE | WDO52: FALSE | WDP52: FALSE | WDQ52: FALSE | WDR52: FALSE | WDS52: FALSE | WDT52: FALSE | WDU52: FALSE | WDV52: FALSE | WDW52: FALSE | WDX52: FALSE | WDY52: FALSE | WDZ52: FALSE | WEA52: FALSE | WEB52: FALSE | WEC52: FALSE | WED52: FALSE | WEE52: FALSE | WEF52: FALSE | WEG52: FALSE | WEH52: FALSE | WEI52: FALSE | WEJ52: FALSE | WEK52: FALSE | WEL52: FALSE | WEM52: =IF(WEM6,WEM29/WEL29-1) -> FALSE | WEN52: FALSE | WEO52: FALSE | WEP52: FALSE | WEQ52: FALSE | WER52: FALSE | WES52: FALSE | WET52: FALSE | WEU52: FALSE | WEV52: FALSE | WEW52: FALSE | WEX52: FALSE | WEY52: FALSE | WEZ52: FALSE | WFA52: FALSE | WFB52: FALSE | WFC52: FALSE | WFD52: FALSE | WFE52: FALSE | WFF52: FALSE | WFG52: FALSE | WFH52: FALSE | WFI52: FALSE | WFJ52: FALSE | WFK52: FALSE | WFL52: FALSE | WFM52: FALSE | WFN52: FALSE | WFO52: FALSE | WFP52: FALSE | WFQ52: FALSE | WFR52: FALSE | WFS52: FALSE | WFT52: FALSE | WFU52: FALSE | WFV52: FALSE | WFW52: FALSE | WFX52: FALSE | WFY52: FALSE | WFZ52: FALSE | WGA52: FALSE | WGB52: FALSE | WGC52: FALSE | WGD52: FALSE | WGE52: FALSE | WGF52: FALSE | WGG52: FALSE | WGH52: FALSE | WGI52: FALSE | WGJ52: FALSE | WGK52: FALSE | WGL52: FALSE | WGM52: FALSE | WGN52: FALSE | WGO52: FALSE | WGP52: FALSE | WGQ52: FALSE | WGR52: FALSE | WGS52: FALSE | WGT52: FALSE | WGU52: FALSE | WGV52: FALSE | WGW52: FALSE | WGX52: FALSE | WGY52: =IF(WGY6,WGY29/WGX29-1) -> FALSE | WGZ52: FALSE | WHA52: FALSE | WHB52: FALSE | WHC52: FALSE | WHD52: FALSE | WHE52: FALSE | WHF52: FALSE | WHG52: FALSE | WHH52: FALSE | WHI52: FALSE | WHJ52: FALSE | WHK52: FALSE | WHL52: FALSE | WHM52: FALSE | WHN52: FALSE | WHO52: FALSE | WHP52: FALSE | WHQ52: FALSE | WHR52: FALSE | WHS52: FALSE | WHT52: FALSE | WHU52: FALSE | WHV52: FALSE | WHW52: FALSE | WHX52: FALSE | WHY52: FALSE | WHZ52: FALSE | WIA52: FALSE | WIB52: FALSE | WIC52: FALSE | WID52: FALSE | WIE52: FALSE | WIF52: FALSE | WIG52: FALSE | WIH52: FALSE | WII52: FALSE | WIJ52: FALSE | WIK52: FALSE | WIL52: FALSE | WIM52: FALSE | WIN52: FALSE | WIO52: FALSE | WIP52: FALSE | WIQ52: FALSE | WIR52: FALSE | WIS52: FALSE | WIT52: FALSE | WIU52: FALSE | WIV52: FALSE | WIW52: FALSE | WIX52: FALSE | WIY52: FALSE | WIZ52: FALSE | WJA52: FALSE | WJB52: FALSE | WJC52: FALSE | WJD52: FALSE | WJE52: FALSE | WJF52: FALSE | WJG52: FALSE | WJH52: FALSE | WJI52: FALSE | WJJ52: FALSE | WJK52: =IF(WJK6,WJK29/WJJ29-1) -> FALSE | WJL52: FALSE | WJM52: FALSE | WJN52: FALSE | WJO52: FALSE | WJP52: FALSE | WJQ52: FALSE | WJR52: FALSE | WJS52: FALSE | WJT52: FALSE | WJU52: FALSE | WJV52: FALSE | WJW52: FALSE | WJX52: FALSE | WJY52: FALSE | WJZ52: FALSE | WKA52: FALSE | WKB52: FALSE | WKC52: FALSE | WKD52: FALSE | WKE52: FALSE | WKF52: FALSE | WKG52: FALSE | WKH52: FALSE | WKI52: FALSE | WKJ52: FALSE | WKK52: FALSE | WKL52: FALSE | WKM52: FALSE | WKN52: FALSE | WKO52: FALSE | WKP52: FALSE | WKQ52: FALSE | WKR52: FALSE | WKS52: FALSE | WKT52: FALSE | WKU52: FALSE | WKV52: FALSE | WKW52: FALSE | WKX52: FALSE | WKY52: FALSE | WKZ52: FALSE | WLA52: FALSE | WLB52: FALSE | WLC52: FALSE | WLD52: FALSE | WLE52: FALSE | WLF52: FALSE | WLG52: FALSE | WLH52: FALSE | WLI52: FALSE | WLJ52: FALSE | WLK52: FALSE | WLL52: FALSE | WLM52: FALSE | WLN52: FALSE | WLO52: FALSE | WLP52: FALSE | WLQ52: FALSE | WLR52: FALSE | WLS52: FALSE | WLT52: FALSE | WLU52: FALSE | WLV52: FALSE | WLW52: =IF(WLW6,WLW29/WLV29-1) -> FALSE | WLX52: FALSE | WLY52: FALSE | WLZ52: FALSE | WMA52: FALSE | WMB52: FALSE | WMC52: FALSE | WMD52: FALSE | WME52: FALSE | WMF52: FALSE | WMG52: FALSE | WMH52: FALSE | WMI52: FALSE | WMJ52: FALSE | WMK52: FALSE | WML52: FALSE | WMM52: FALSE | WMN52: FALSE | WMO52: FALSE | WMP52: FALSE | WMQ52: FALSE | WMR52: FALSE | WMS52: FALSE | WMT52: FALSE | WMU52: FALSE | WMV52: FALSE | WMW52: FALSE | WMX52: FALSE | WMY52: FALSE | WMZ52: FALSE | WNA52: FALSE | WNB52: FALSE | WNC52: FALSE | WND52: FALSE | WNE52: FALSE | WNF52: FALSE | WNG52: FALSE | WNH52: FALSE | WNI52: FALSE | WNJ52: FALSE | WNK52: FALSE | WNL52: FALSE | WNM52: FALSE | WNN52: FALSE | WNO52: FALSE | WNP52: FALSE | WNQ52: FALSE | WNR52: FALSE | WNS52: FALSE | WNT52: FALSE | WNU52: FALSE | WNV52: FALSE | WNW52: FALSE | WNX52: FALSE | WNY52: FALSE | WNZ52: FALSE | WOA52: FALSE | WOB52: FALSE | WOC52: FALSE | WOD52: FALSE | WOE52: FALSE | WOF52: FALSE | WOG52: FALSE | WOH52: FALSE | WOI52: =IF(WOI6,WOI29/WOH29-1) -> FALSE | WOJ52: FALSE | WOK52: FALSE | WOL52: FALSE | WOM52: FALSE | WON52: FALSE | WOO52: FALSE | WOP52: FALSE | WOQ52: FALSE | WOR52: FALSE | WOS52: FALSE | WOT52: FALSE | WOU52: FALSE | WOV52: FALSE | WOW52: FALSE | WOX52: FALSE | WOY52: FALSE | WOZ52: FALSE | WPA52: FALSE | WPB52: FALSE | WPC52: FALSE | WPD52: FALSE | WPE52: FALSE | WPF52: FALSE | WPG52: FALSE | WPH52: FALSE | WPI52: FALSE | WPJ52: FALSE | WPK52: FALSE | WPL52: FALSE | WPM52: FALSE | WPN52: FALSE | WPO52: FALSE | WPP52: FALSE | WPQ52: FALSE | WPR52: FALSE | WPS52: FALSE | WPT52: FALSE | WPU52: FALSE | WPV52: FALSE | WPW52: FALSE | WPX52: FALSE | WPY52: FALSE | WPZ52: FALSE | WQA52: FALSE | WQB52: FALSE | WQC52: FALSE | WQD52: FALSE | WQE52: FALSE | WQF52: FALSE | WQG52: FALSE | WQH52: FALSE | WQI52: FALSE | WQJ52: FALSE | WQK52: FALSE | WQL52: FALSE | WQM52: FALSE | WQN52: FALSE | WQO52: FALSE | WQP52: FALSE | WQQ52: FALSE | WQR52: FALSE | WQS52: FALSE | WQT52: FALSE | WQU52: =IF(WQU6,WQU29/WQT29-1) -> FALSE | WQV52: FALSE | WQW52: FALSE | WQX52: FALSE | WQY52: FALSE | WQZ52: FALSE | WRA52: FALSE | WRB52: FALSE | WRC52: FALSE | WRD52: FALSE | WRE52: FALSE | WRF52: FALSE | WRG52: FALSE | WRH52: FALSE | WRI52: FALSE | WRJ52: FALSE | WRK52: FALSE | WRL52: FALSE | WRM52: FALSE | WRN52: FALSE | WRO52: FALSE | WRP52: FALSE | WRQ52: FALSE | WRR52: FALSE | WRS52: FALSE | WRT52: FALSE | WRU52: FALSE | WRV52: FALSE | WRW52: FALSE | WRX52: FALSE | WRY52: FALSE | WRZ52: FALSE | WSA52: FALSE | WSB52: FALSE | WSC52: FALSE | WSD52: FALSE | WSE52: FALSE | WSF52: FALSE | WSG52: FALSE | WSH52: FALSE | WSI52: FALSE | WSJ52: FALSE | WSK52: FALSE | WSL52: FALSE | WSM52: FALSE | WSN52: FALSE | WSO52: FALSE | WSP52: FALSE | WSQ52: FALSE | WSR52: FALSE | WSS52: FALSE | WST52: FALSE | WSU52: FALSE | WSV52: FALSE | WSW52: FALSE | WSX52: FALSE | WSY52: FALSE | WSZ52: FALSE | WTA52: FALSE | WTB52: FALSE | WTC52: FALSE | WTD52: FALSE | WTE52: FALSE | WTF52: FALSE | WTG52: =IF(WTG6,WTG29/WTF29-1) -> FALSE | WTH52: FALSE | WTI52: FALSE | WTJ52: FALSE | WTK52: FALSE | WTL52: FALSE | WTM52: FALSE | WTN52: FALSE | WTO52: FALSE | WTP52: FALSE | WTQ52: FALSE | WTR52: FALSE | WTS52: FALSE | WTT52: FALSE | WTU52: FALSE | WTV52: FALSE | WTW52: FALSE | WTX52: FALSE | WTY52: FALSE | WTZ52: FALSE | WUA52: FALSE | WUB52: FALSE | WUC52: FALSE | WUD52: FALSE | WUE52: FALSE | WUF52: FALSE | WUG52: FALSE | WUH52: FALSE | WUI52: FALSE | WUJ52: FALSE | WUK52: FALSE | WUL52: FALSE | WUM52: FALSE | WUN52: FALSE | WUO52: FALSE | WUP52: FALSE | WUQ52: FALSE | WUR52: FALSE | WUS52: FALSE | WUT52: FALSE | WUU52: FALSE | WUV52: FALSE | WUW52: FALSE | WUX52: FALSE | WUY52: FALSE | WUZ52: FALSE | WVA52: FALSE | WVB52: FALSE | WVC52: FALSE | WVD52: FALSE | WVE52: FALSE | WVF52: FALSE | WVG52: FALSE | WVH52: FALSE | WVI52: FALSE | WVJ52: FALSE | WVK52: FALSE | WVL52: FALSE | WVM52: FALSE | WVN52: FALSE | WVO52: FALSE | WVP52: FALSE | WVQ52: FALSE | WVR52: FALSE | WVS52: =IF(WVS6,WVS29/WVR29-1) -> FALSE | WVT52: FALSE | WVU52: FALSE | WVV52: FALSE | WVW52: FALSE | WVX52: FALSE | WVY52: FALSE | WVZ52: FALSE | WWA52: FALSE | WWB52: FALSE | WWC52: FALSE | WWD52: FALSE | WWE52: FALSE | WWF52: FALSE | WWG52: FALSE | WWH52: FALSE | WWI52: FALSE | WWJ52: FALSE | WWK52: FALSE | WWL52: FALSE | WWM52: FALSE | WWN52: FALSE | WWO52: FALSE | WWP52: FALSE | WWQ52: FALSE | WWR52: FALSE | WWS52: FALSE | WWT52: FALSE | WWU52: FALSE | WWV52: FALSE | WWW52: FALSE | WWX52: FALSE | WWY52: FALSE | WWZ52: FALSE | WXA52: FALSE | WXB52: FALSE | WXC52: FALSE | WXD52: FALSE | WXE52: FALSE | WXF52: FALSE | WXG52: FALSE | WXH52: FALSE | WXI52: FALSE | WXJ52: FALSE | WXK52: FALSE | WXL52: FALSE | WXM52: FALSE | WXN52: FALSE | WXO52: FALSE | WXP52: FALSE | WXQ52: FALSE | WXR52: FALSE | WXS52: FALSE | WXT52: FALSE | WXU52: FALSE | WXV52: FALSE | WXW52: FALSE | WXX52: FALSE | WXY52: FALSE | WXZ52: FALSE | WYA52: FALSE | WYB52: FALSE | WYC52: FALSE | WYD52: FALSE | WYE52: =IF(WYE6,WYE29/WYD29-1) -> FALSE | WYF52: FALSE | WYG52: FALSE | WYH52: FALSE | WYI52: FALSE | WYJ52: FALSE | WYK52: FALSE | WYL52: FALSE | WYM52: FALSE | WYN52: FALSE | WYO52: FALSE | WYP52: FALSE | WYQ52: FALSE | WYR52: FALSE | WYS52: FALSE | WYT52: FALSE | WYU52: FALSE | WYV52: FALSE | WYW52: FALSE | WYX52: FALSE | WYY52: FALSE | WYZ52: FALSE | WZA52: FALSE | WZB52: FALSE | WZC52: FALSE | WZD52: FALSE | WZE52: FALSE | WZF52: FALSE | WZG52: FALSE | WZH52: FALSE | WZI52: FALSE | WZJ52: FALSE | WZK52: FALSE | WZL52: FALSE | WZM52: FALSE | WZN52: FALSE | WZO52: FALSE | WZP52: FALSE | WZQ52: FALSE | WZR52: FALSE | WZS52: FALSE | WZT52: FALSE | WZU52: FALSE | WZV52: FALSE | WZW52: FALSE | WZX52: FALSE | WZY52: FALSE | WZZ52: FALSE | XAA52: FALSE | XAB52: FALSE | XAC52: FALSE | XAD52: FALSE | XAE52: FALSE | XAF52: FALSE | XAG52: FALSE | XAH52: FALSE | XAI52: FALSE | XAJ52: FALSE | XAK52: FALSE | XAL52: FALSE | XAM52: FALSE | XAN52: FALSE | XAO52: FALSE | XAP52: FALSE | XAQ52: =IF(XAQ6,XAQ29/XAP29-1) -> FALSE | XAR52: FALSE | XAS52: FALSE | XAT52: FALSE | XAU52: FALSE | XAV52: FALSE | XAW52: FALSE | XAX52: FALSE | XAY52: FALSE | XAZ52: FALSE | XBA52: FALSE | XBB52: FALSE | XBC52: FALSE | XBD52: FALSE | XBE52: FALSE | XBF52: FALSE | XBG52: FALSE | XBH52: FALSE | XBI52: FALSE | XBJ52: FALSE | XBK52: FALSE | XBL52: FALSE | XBM52: FALSE | XBN52: FALSE | XBO52: FALSE | XBP52: FALSE | XBQ52: FALSE | XBR52: FALSE | XBS52: FALSE | XBT52: FALSE | XBU52: FALSE | XBV52: FALSE | XBW52: FALSE | XBX52: FALSE | XBY52: FALSE | XBZ52: FALSE | XCA52: FALSE | XCB52: FALSE | XCC52: FALSE | XCD52: FALSE | XCE52: FALSE | XCF52: FALSE | XCG52: FALSE | XCH52: FALSE | XCI52: FALSE | XCJ52: FALSE | XCK52: FALSE | XCL52: FALSE | XCM52: FALSE | XCN52: FALSE | XCO52: FALSE | XCP52: FALSE | XCQ52: FALSE | XCR52: FALSE | XCS52: FALSE | XCT52: FALSE | XCU52: FALSE | XCV52: FALSE | XCW52: FALSE | XCX52: FALSE | XCY52: FALSE | XCZ52: FALSE | XDA52: FALSE | XDB52: FALSE | XDC52: =IF(XDC6,XDC29/XDB29-1) -> FALSE | XDD52: FALSE | XDE52: FALSE | XDF52: FALSE | XDG52: FALSE | XDH52: FALSE | XDI52: FALSE | XDJ52: FALSE | XDK52: FALSE | XDL52: FALSE | XDM52: FALSE | XDN52: FALSE | XDO52: FALSE | XDP52: FALSE | XDQ52: FALSE | XDR52: FALSE | XDS52: FALSE | XDT52: FALSE | XDU52: FALSE | XDV52: FALSE | XDW52: FALSE | XDX52: FALSE | XDY52: FALSE | XDZ52: FALSE | XEA52: FALSE | XEB52: FALSE | XEC52: FALSE | XED52: FALSE | XEE52: FALSE | XEF52: FALSE | XEG52: FALSE | XEH52: FALSE | XEI52: FALSE | XEJ52: FALSE | XEK52: FALSE | XEL52: FALSE | XEM52: FALSE | XEN52: FALSE | XEO52: FALSE | XEP52: FALSE | XEQ52: FALSE | XER52: FALSE | XES52: FALSE | XET52: FALSE | XEU52: FALSE | XEV52: FALSE | XEW52: FALSE | XEX52: FALSE | XEY52: FALSE | XEZ52: FALSE | XFA52: FALSE | XFB52: FALSE | XFC52: FALSE | XFD52: FALSE
C53: Projected Growth | E53: Scenario | F53: =Scenario!$E$22 -> 0.06 | J53: =$F$53 -> 0.06 | K53: =$F$53 -> 0.06 | L53: 0.06 | M53: 0.06 | N53: 0.06 | O53: 0.06 | P53: 0.06 | Q53: 0.06 | R53: 0.06 | S53: 0.06 | T53: 0.06 | U53: 0.06 | V53: 0.06 | W53: 0.06 | X53: 0.06 | Y53: 0.06 | Z53: 0.06 | AA53: 0.06
B54: 1 | C54: Revenue Growth | J54: =IF(J6,J52,J53) -> 0.0625 | K54: =IF(K6,K52,K53) -> -0.1058823529 | L54: 0.05263157895 | M54: 0.1 | N54: 0.04545454545 | O54: 0.03260869565 | P54: 0.06 | Q54: 0.06 | R54: 0.06 | S54: 0.06 | T54: 0.06 | U54: 0.06 | V54: 0.06 | W54: 0.06 | X54: 0.06 | Y54: 0.06 | Z54: 0.06 | AA54: 0.06
B56: COGS
C57: Cash cost of goods sold | I57: =I30-I42 -> 570 | J57: =J30-J42 -> 638 | K57: 555 | L57: 582 | M57: 608 | N57: 654 | O57: 670 | P57: 0 | Q57: 0 | R57: 0 | S57: 0 | T57: 0 | U57: 0 | V57: 0 | W57: 0 | X57: 0 | Y57: 0 | Z57: 0 | AA57: 0
C58: Historical COGS/ Revenue | I58: =IF(I6,(I57/I29)) -> 0.7125 | J58: =IF(J6,(J57/J29)) -> 0.7505882353 | K58: 0.7302631579 | L58: 0.7275 | M58: 0.6909090909 | N58: 0.7108695652 | O58: 0.7052631579 | P58: FALSE | Q58: FALSE | R58: FALSE | S58: FALSE | T58: FALSE | U58: FALSE | V58: FALSE | W58: FALSE | X58: FALSE | Y58: FALSE | Z58: FALSE | AA58: FALSE
C60: Base Case | P60: 0.7 | Q60: 0.7 | R60: 0.7 | S60: 0.7 | T60: 0.7 | U60: 0.7 | V60: 0.7 | W60: 0.7 | X60: 0.7 | Y60: 0.7 | Z60: 0.7 | AA60: 0.7
C61: High Cost Case | P61: 0.72 | Q61: 0.72 | R61: 0.72 | S61: 0.72 | T61: 0.72 | U61: 0.72 | V61: 0.72 | W61: 0.72 | X61: 0.72 | Y61: 0.72 | Z61: 0.72 | AA61: 0.72
C62: Low Cost Case | P62: 0.68 | Q62: 0.68 | R62: 0.68 | S62: 0.68 | T62: 0.68 | U62: 0.68 | V62: 0.68 | W62: 0.68 | X62: 0.68 | Y62: 0.68 | Z62: 0.68 | AA62: 0.68
B64: 2 | C64: COGS | E64: Code No | F64: =Scenario!F22 -> 1 | I64: =IF(I6,I58,INDEX(I60:I62,$F$64)) -> 0.7125 | J64: =IF(J6,J58,INDEX(J60:J62,$F$64)) -> 0.7505882353 | K64: 0.7302631579 | L64: 0.7275 | M64: 0.6909090909 | N64: 0.7108695652 | O64: 0.7052631579 | P64: 0.7 | Q64: =INDEX(Q60:Q62,$F$64) -> 0.7 | R64: 0.7 | S64: 0.7 | T64: 0.7 | U64: 0.7 | V64: 0.7 | W64: 0.7 | X64: 0.7 | Y64: 0.7 | Z64: 0.7 | AA64: 0.7
B66: Administrative Cost
C67: Historical Administrative Cost/ Revenue | I67: =IF(I6,I32/I29) -> 0.0375 | J67: =IF(J6,J32/J29) -> 0.04117647059 | K67: 0.03684210526 | L67: 0.0425 | M67: 0.04431818182 | N67: 0.04565217391 | O67: 0.05263157895 | P67: FALSE | Q67: FALSE | R67: FALSE | S67: FALSE | T67: FALSE | U67: FALSE | V67: FALSE | W67: FALSE | X67: FALSE | Y67: FALSE | Z67: FALSE | AA67: FALSE
C69: Base Admin Case | P69: 0.05 | Q69: 0.0475 | R69: 0.045 | S69: 0.045 | T69: 0.045 | U69: 0.045 | V69: 0.045 | W69: 0.045 | X69: 0.045 | Y69: 0.045 | Z69: 0.045 | AA69: 0.045
C70: High Admin Case | P70: 0.052 | Q70: 0.053 | R70: 0.055 | S70: 0.055 | T70: 0.055 | U70: 0.055 | V70: 0.055 | W70: 0.055 | X70: 0.055 | Y70: 0.055 | Z70: 0.055 | AA70: 0.055
C71: Low Admin Case | P71: 0.048 | Q71: 0.045 | R71: 0.04 | S71: 0.035 | T71: 0.035 | U71: 0.035 | V71: 0.035 | W71: 0.035 | X71: 0.035 | Y71: 0.035 | Z71: 0.035 | AA71: 0.035
C72: Admin Sensitivity Case | F72: 0.045 | P72: 0.045 | Q72: 0.045 | R72: 0.045 | S72: 0.045 | T72: 0.045 | U72: 0.045 | V72: 0.045 | W72: 0.045 | X72: 0.045 | Y72: 0.045 | Z72: 0.045 | AA72: 0.045
B74: 3 | C74: =INDEX(C69:C72,$F$74) -> Base Admin Case | E74: Code No | F74: =Scenario!G22 -> 1 | I74: =IF(I6,I67,INDEX(I69:I72,$F$74)) -> 0.0375 | J74: =IF(J6,J67,INDEX(J69:J72,$F$74)) -> 0.04117647059 | K74: 0.03684210526 | L74: 0.0425 | M74: 0.04431818182 | N74: 0.04565217391 | O74: 0.05263157895 | P74: 0.05 | Q74: 0.0475 | R74: 0.045 | S74: 0.045 | T74: 0.045 | U74: 0.045 | V74: 0.045 | W74: 0.045 | X74: 0.045 | Y74: 0.045 | Z74: 0.045 | AA74: 0.045
B76: CAPEX
C77: Historical CAPEX to sales | I77: =IF(I6,I46/I29) -> 0.075 | J77: =IF(J6,J46/J29) -> 0.07294117647 | K77: 0.02631578947 | L77: 0.04375 | M77: 0.09090909091 | N77: 0.0652173913 | O77: 0.07368421053 | P77: FALSE | Q77: FALSE | R77: FALSE | S77: FALSE | T77: FALSE | U77: FALSE | V77: FALSE | W77: FALSE | X77: FALSE | Y77: FALSE | Z77: FALSE | AA77: FALSE
B79: 1 | C79: Base CAPEX | P79: 0.065 | Q79: 0.065 | R79: 0.065 | S79: 0.065 | T79: 0.065 | U79: 0.065 | V79: 0.065 | W79: 0.065 | X79: 0.065 | Y79: 0.065 | Z79: 0.065 | AA79: 0.065
B80: 2 | C80: High CAPEX | P80: 0.08 | Q80: 0.08 | R80: 0.08 | S80: 0.08 | T80: 0.08 | U80: 0.08 | V80: 0.08 | W80: 0.08 | X80: 0.08 | Y80: 0.08 | Z80: 0.08 | AA80: 0.08
B81: 3 | C81: Low CAPEX | P81: 0.04 | Q81: 0.04 | R81: 0.04 | S81: 0.04 | T81: 0.04 | U81: 0.04 | V81: 0.04 | W81: 0.04 | X81: 0.04 | Y81: 0.04 | Z81: 0.04 | AA81: 0.04
B83: 4 | C83: Historical/ forecast CAPEX | E83: Code No | F83: =Scenario!H22 -> 1 | I83: =IF(I6,I77,INDEX(I79:I81,$F$83)) -> 0.075 | J83: =IF(J6,J77,INDEX(J79:J81,$F$83)) -> 0.07294117647 | K83: 0.02631578947 | L83: 0.04375 | M83: 0.09090909091 | N83: 0.0652173913 | O83: 0.07368421053 | P83: 0.065 | Q83: 0.065 | R83: 0.065 | S83: 0.065 | T83: 0.065 | U83: 0.065 | V83: 0.065 | W83: 0.065 | X83: 0.065 | Y83: 0.065 | Z83: 0.065 | AA83: 0.065
B86: Working Capital
C87: Historical | I87: =IF(I6,I14/I121) -> 0.350877193 | J87: 0.329153605 | K87: 0.5405405405 | L87: 0.4295532646 | M87: 0.4276315789 | N87: 0.4128440367 | O87: 0.4179104478 | P87: FALSE | Q87: FALSE | R87: FALSE | S87: FALSE | T87: FALSE | U87: FALSE | V87: FALSE | W87: FALSE | X87: FALSE | Y87: FALSE | Z87: FALSE | AA87: FALSE
B88: 5 | C88: Historical & Projected WC | E88: Scenario | F88: =Scenario!I22 -> 0.35 | I88: =IF(I6,I87,$F$88) -> 0.350877193 | J88: =IF(J6,J87,$F$88) -> 0.329153605 | K88: 0.5405405405 | L88: 0.4295532646 | M88: 0.4276315789 | N88: 0.4128440367 | O88: 0.4179104478 | P88: 0.35 | Q88: 0.35 | R88: 0.35 | S88: 0.35 | T88: 0.35 | U88: 0.35 | V88: 0.35 | W88: 0.35 | X88: 0.35 | Y88: 0.35 | Z88: 0.35 | AA88: 0.35
B90: Tax Rate
C91: Historical | I91: =IF(I6,I38/I37) -> 0.1963190184 | J91: =IF(J6,J38/J37) -> 0.1879699248 | K91: 0.1804511278 | L91: 0.2042253521 | M91: 0.2085561497 | N91: 0.1941176471 | O91: 0.1796407186 | P91: FALSE | Q91: FALSE | R91: FALSE | S91: FALSE | T91: FALSE | U91: FALSE | V91: FALSE | W91: FALSE | X91: FALSE | Y91: FALSE | Z91: FALSE | AA91: FALSE
B92: 6 | C92: Historical & Projected Tax Rate | F92: 0.2 | I92: =IF(I6,I91,$F$92) -> 0.1963190184 | J92: 0.1879699248 | K92: 0.1804511278 | L92: 0.2042253521 | M92: 0.2085561497 | N92: 0.1941176471 | O92: 0.1796407186 | P92: 0.2 | Q92: 0.2 | R92: 0.2 | S92: 0.2 | T92: 0.2 | U92: 0.2 | V92: 0.2 | W92: 0.2 | X92: 0.2 | Y92: 0.2 | Z92: 0.2 | AA92: 0.2
B94: Depreciation rate
C95: Historical | I95: =IF(I6,I42/I15) -> 0.03 | J95: =IF(J6,J42/J15) -> 0.02461538462 | K95: 0.02671755725 | L95: 0.02814814815 | M95: 0.028 | N95: 0.02628571429 | O95: 0.02631578947 | P95: FALSE | Q95: FALSE | R95: FALSE | S95: FALSE | T95: FALSE | U95: FALSE | V95: FALSE | W95: FALSE | X95: FALSE | Y95: FALSE | Z95: FALSE | AA95: FALSE
B96: 7 | C96: Historical & Projected Depre Rate | F96: 0.026 | I96: =IF(I6,I95,$F$96) -> 0.03 | J96: 0.02461538462 | K96: 0.02671755725 | L96: 0.02814814815 | M96: 0.028 | N96: 0.02628571429 | O96: 0.02631578947 | P96: 0.026 | Q96: 0.026 | R96: 0.026 | S96: 0.026 | T96: 0.026 | U96: 0.026 | V96: 0.026 | W96: 0.026 | X96: 0.026 | Y96: 0.026 | Z96: 0.026 | AA96: 0.026
B98: Retirement Rate | F98: 0.015 | I98: =$F$98 -> 0.015 | J98: =$F$98 -> 0.015 | K98: 0.015 | L98: 0.015 | M98: 0.015 | N98: 0.015 | O98: 0.015 | P98: 0.015 | Q98: 0.015 | R98: 0.015 | S98: 0.015 | T98: 0.015 | U98: 0.015 | V98: 0.015 | W98: 0.015 | X98: 0.015 | Y98: 0.015 | Z98: 0.015 | AA98: 0.015
B100: Interest Income Rate
C101: Historical | I101: =IF(I6,I35/I13) -> 0.02 | J101: =IF(J6,J35/J13) -> 0.008333333333 | K101: 0.1 | L101: 0.06666666667 | M101: 0.0375 | N101: 0.01818181818 | O101: 0.01538461538 | P101: FALSE | Q101: FALSE | R101: FALSE | S101: FALSE | T101: FALSE | U101: FALSE | V101: FALSE | W101: FALSE | X101: FALSE | Y101: FALSE | Z101: FALSE | AA101: FALSE
B102: 8 | C102: Historical & Projected Interest Income | F102: 0.02 | I102: =IF(I6,I101,$F$102) -> 0.02 | J102: =IF(J6,J101,$F$102) -> 0.008333333333 | K102: 0.1 | L102: 0.06666666667 | M102: 0.0375 | N102: 0.01818181818 | O102: 0.01538461538 | P102: 0.02 | Q102: 0.02 | R102: 0.02 | S102: 0.02 | T102: 0.02 | U102: 0.02 | V102: 0.02 | W102: 0.02 | X102: 0.02 | Y102: 0.02 | Z102: 0.02 | AA102: 0.02
B104: Interest Expense Rate
C105: Historical | I105: =IF(I6,I36/I22) -> 0.06 | J105: =IF(J6,J36/J22) -> 0.056 | K105: 0.045 | L105: 0.04181818182 | M105: 0.04888888889 | N105: 0.05 | O105: 0.05882352941 | P105: FALSE | Q105: FALSE | R105: FALSE | S105: FALSE | T105: FALSE | U105: FALSE | V105: FALSE | W105: FALSE | X105: FALSE | Y105: FALSE | Z105: FALSE | AA105: FALSE
B106: 9 | C106: Historical & Projected Interest Expense | F106: 0.05 | I106: =IF(I6,I105,$F$106) -> 0.06 | J106: =IF(J6,J105,$F$106) -> 0.056 | K106: 0.045 | L106: 0.04181818182 | M106: 0.04888888889 | N106: 0.05 | O106: 0.05882352941 | P106: 0.05 | Q106: 0.05 | R106: 0.05 | S106: 0.05 | T106: 0.05 | U106: 0.05 | V106: 0.05 | W106: 0.05 | X106: 0.05 | Y106: 0.05 | Z106: 0.05 | AA106: 0.05
B108: Dividends Payout Ratio
C109: Historical | I109: =IF(I6,I47/I39) -> 0.1908396947 | J109: =IF(J6,J47/J39) -> 0.1296296296 | K109: 0.1376146789 | L109: 0.1327433628 | M109: 0.1148648649 | N109: 0.1459854015 | O109: 0.2189781022 | P109: FALSE | Q109: FALSE | R109: FALSE | S109: FALSE | T109: FALSE | U109: FALSE | V109: FALSE | W109: FALSE | X109: FALSE | Y109: FALSE | Z109: FALSE | AA109: FALSE
B110: 10 | C110: Historical & Projected Dividend Payout Ratio | F110: 0.4 | I110: =IF(I6,I109,$F$110) -> 0.1908396947 | J110: =IF(J6,J109,$F$110) -> 0.1296296296 | K110: 0.1376146789 | L110: 0.1327433628 | M110: 0.1148648649 | N110: 0.1459854015 | O110: 0.2189781022 | P110: 0.4 | Q110: 0.4 | R110: 0.4 | S110: 0.4 | T110: 0.4 | U110: 0.4 | V110: 0.4 | W110: 0.4 | X110: 0.4 | Y110: 0.4 | Z110: 0.4 | AA110: 0.4
A113: Operating Analysis
B114: EBITDA calculation
C115: Revenue
D116: Growth rate | I116: =I54 -> 0 | J116: 0.0625 | K116: -0.1058823529 | L116: 0.05263157895 | M116: 0.1 | N116: 0.04545454545 | O116: 0.03260869565 | P116: 0.06 | Q116: 0.06 | R116: 0.06 | S116: 0.06 | T116: 0.06 | U116: 0.06 | V116: 0.06 | W116: 0.06 | X116: 0.06 | Y116: 0.06 | Z116: 0.06 | AA116: 0.06
D117: Revenue | I117: =IF(I6, I29,H117*(1+I116)) -> 800 | J117: 850 | K117: 760 | L117: 800 | M117: 880 | N117: 920 | O117: 950 | P117: 1007 | Q117: 1067.42 | R117: 1131.4652 | S117: 1199.353112 | T117: 1271.314299 | U117: 1347.593157 | V117: 1428.448746 | W117: 1514.155671 | X117: 1605.005011 | Y117: 1701.305312 | Z117: 1803.38363 | AA117: 1911.586648
C119: Cost of Goods Sold
D120: COGS Percent | I120: =I64 -> 0.7125 | J120: 0.7505882353 | K120: 0.7302631579 | L120: 0.7275 | M120: 0.6909090909 | N120: 0.7108695652 | O120: 0.7052631579 | P120: 0.7 | Q120: 0.7 | R120: 0.7 | S120: 0.7 | T120: 0.7 | U120: 0.7 | V120: 0.7 | W120: 0.7 | X120: 0.7 | Y120: 0.7 | Z120: 0.7 | AA120: 0.7
D121: COGS Amount | I121: =I120*I117 -> 570 | J121: =J120*J117 -> 638 | K121: 555 | L121: 582 | M121: 608 | N121: 654 | O121: 670 | P121: 704.9 | Q121: 747.194 | R121: 792.02564 | S121: 839.5471784 | T121: 889.9200091 | U121: 943.3152097 | V121: 999.9141222 | W121: 1059.90897 | X121: 1123.503508 | Y121: 1190.913718 | Z121: 1262.368541 | AA121: 1338.110654
C123: Admin Cost
D124: Admin Percent | I124: =I74 -> 0.0375 | J124: 0.04117647059 | K124: 0.03684210526 | L124: 0.0425 | M124: 0.04431818182 | N124: 0.04565217391 | O124: 0.05263157895 | P124: 0.05 | Q124: 0.0475 | R124: 0.045 | S124: 0.045 | T124: 0.045 | U124: 0.045 | V124: 0.045 | W124: 0.045 | X124: 0.045 | Y124: 0.045 | Z124: 0.045 | AA124: 0.045
D125: Admin Amount | I125: =I124*I117 -> 30 | J125: =J124*J117 -> 35 | K125: 28 | L125: 34 | M125: 39 | N125: 42 | O125: 50 | P125: 50.35 | Q125: 50.70245 | R125: 50.915934 | S125: 53.97089004 | T125: 57.20914344 | U125: 60.64169205 | V125: 64.28019357 | W125: 68.13700519 | X125: 72.2252255 | Y125: 76.55873903 | Z125: 81.15226337 | AA125: 86.02139917
D127: EBITDA | I127: =I117-I121-I125 -> 200 | J127: =J117-J121-J125 -> 177 | K127: 177 | L127: 184 | M127: 233 | N127: 224 | O127: 230 | P127: 251.75 | Q127: 269.52355 | R127: 288.523626 | S127: 305.8350436 | T127: 324.1851462 | U127: 343.6362549 | V127: 364.2544302 | W127: 386.1096961 | X127: 409.2762778 | Y127: 433.8328545 | Z127: 459.8628258 | AA127: 487.4545953
D128: EBITDA Margin | I128: =I127/I117 -> 0.25 | J128: =J127/J117 -> 0.2082352941 | K128: 0.2328947368 | L128: 0.23 | M128: 0.2647727273 | N128: 0.2434782609 | O128: 0.2421052632 | P128: 0.25 | Q128: 0.2525 | R128: 0.255 | S128: 0.255 | T128: 0.255 | U128: 0.255 | V128: 0.255 | W128: 0.255 | X128: 0.255 | Y128: 0.255 | Z128: 0.255 | AA128: 0.255
B130: CAPEX
D131: CAPEX Percent to Sales | I131: =I83 -> 0.075 | J131: 0.07294117647 | K131: 0.02631578947 | L131: 0.04375 | M131: 0.09090909091 | N131: 0.0652173913 | O131: 0.07368421053 | P131: 0.065 | Q131: 0.065 | R131: 0.065 | S131: 0.065 | T131: 0.065 | U131: 0.065 | V131: 0.065 | W131: 0.065 | X131: 0.065 | Y131: 0.065 | Z131: 0.065 | AA131: 0.065
D132: CAPEX | I132: =I131*I117 -> 60 | J132: =J131*J117 -> 62 | K132: 20 | L132: 35 | M132: 80 | N132: 60 | O132: 70 | P132: 65.455 | Q132: 69.3823 | R132: 73.545238 | S132: 77.95795228 | T132: 82.63542942 | U132: 87.59355518 | V132: 92.84916849 | W132: 98.4201186 | X132: 104.3253257 | Y132: 110.5848453 | Z132: 117.219936 | AA132: 124.2531321
A134: Working Capital Analysis
B135: Inventory
C136: Inventory/COGS | I136: =I88 -> 0.350877193 | J136: 0.329153605 | K136: 0.5405405405 | L136: 0.4295532646 | M136: 0.4276315789 | N136: 0.4128440367 | O136: 0.4179104478 | P136: 0.35 | Q136: 0.35 | R136: 0.35 | S136: 0.35 | T136: 0.35 | U136: 0.35 | V136: 0.35 | W136: 0.35 | X136: 0.35 | Y136: 0.35 | Z136: 0.35 | AA136: 0.35
C137: Level Inventory | I137: =I136*I121 -> 200 | J137: =J136*J121 -> 210 | K137: 300 | L137: 250 | M137: 260 | N137: 270 | O137: 280 | P137: 246.715 | Q137: 261.5179 | R137: 277.208974 | S137: 293.8415124 | T137: 311.4720032 | U137: 330.1603234 | V137: 349.9699428 | W137: 370.9681393 | X137: 393.2262277 | Y137: 416.8198014 | Z137: 441.8289895 | AA137: 468.3387288
D138: Change in working capital | J138: =J137-I137 -> 10 | K138: =K137-J137 -> 90 | L138: -50 | M138: 10 | N138: 10 | O138: 10 | P138: -33.285 | Q138: 14.8029 | R138: 15.691074 | S138: 16.63253844 | T138: 17.63049075 | U138: 18.68832019 | V138: 19.8096194 | W138: 20.99819657 | X138: 22.25808836 | Y138: 23.59357366 | Z138: 25.00918808 | AA138: 26.50973937
B140: Pre-tax cash flows | I140: =I127-I132-I138 -> 140 | J140: =J127-J132-J138 -> 105 | K140: 67 | L140: 199 | M140: 143 | N140: 154 | O140: 150 | P140: 219.58 | Q140: 185.33835 | R140: 199.287314 | S140: 211.2445528 | T140: 223.919226 | U140: 237.3543796 | V140: 251.5956423 | W140: 266.6913809 | X140: 282.6928637 | Y140: 299.6544356 | Z140: 317.6337017 | AA140: 336.6917238
A142: Depreciation
B143: Plant Balance
C144: Opening Balance | J144: =I147 -> 1000 | K144: =J147 -> 1300 | L144: 1310 | M144: 1350 | N144: 1500 | O144: 1750 | P144: 1900 | Q144: 1936.955 | R144: 1977.282975 | S144: 2021.168968 | T144: 2068.809386 | U144: 2120.412675 | V144: 2176.20004 | W144: 2236.406208 | X144: 2301.280233 | Y144: 2371.086355 | Z144: 2446.104905 | AA144: 2526.633268
C145: Add CAPEX | I145: =I132 -> 60 | J145: =J132 -> 62 | K145: =K132 -> 20 | L145: 35 | M145: 80 | N145: 60 | O145: 70 | P145: 65.455 | Q145: 69.3823 | R145: 73.545238 | S145: 77.95795228 | T145: 82.63542942 | U145: 87.59355518 | V145: 92.84916849 | W145: 98.4201186 | X145: 104.3253257 | Y145: 110.5848453 | Z145: 117.219936 | AA145: 124.2531321
C146: Less Retirement | I146: =I144*I98 -> 0 | J146: 15 | K146: 19.5 | L146: 19.65 | M146: 20.25 | N146: 22.5 | O146: 26.25 | P146: 28.5 | Q146: 29.054325 | R146: 29.65924462 | S146: 30.31753453 | T146: 31.03214079 | U146: 31.80619012 | V146: 32.6430006 | W146: 33.54609312 | X146: 34.5192035 | Y146: 35.56629533 | Z146: 36.69157358 | AA146: 37.89949902
C147: Closing Balance | I147: =IF(I6,I15,I144+I145-I146) -> 1000 | J147: 1300 | K147: 1310 | L147: 1350 | M147: 1500 | N147: 1750 | O147: 1900 | P147: 1936.955 | Q147: 1977.282975 | R147: 2021.168968 | S147: 2068.809386 | T147: 2120.412675 | U147: 2176.20004 | V147: 2236.406208 | W147: 2301.280233 | X147: 2371.086355 | Y147: 2446.104905 | Z147: 2526.633268 | AA147: 2612.986901
C149: Depreciation rate | I149: =I96 -> 0.03 | J149: 0.02461538462 | K149: 0.02671755725 | L149: 0.02814814815 | M149: 0.028 | N149: 0.02628571429 | O149: 0.02631578947 | P149: 0.026 | Q149: 0.026 | R149: 0.026 | S149: 0.026 | T149: 0.026 | U149: 0.026 | V149: 0.026 | W149: 0.026 | X149: 0.026 | Y149: 0.026 | Z149: 0.026 | AA149: 0.026
C150: Depreciation expenses | I150: =IF(I6,I42,AVERAGE(I147,I144)*I149) -> 30 | J150: 32 | K150: 35 | L150: 38 | M150: 42 | N150: 46 | O150: 50 | P150: 49.880415 | Q150: 50.88509368 | R150: 51.97987526 | S150: 53.16971861 | T150: 54.45988679 | U150: 55.85596529 | V150: 57.36388122 | W150: 58.98992373 | X150: 60.74076565 | Y150: 62.62348639 | Z150: 64.64559625 | AA150: 66.81506219
B152: Accumulated Depreciation
C153: Opening Balance | J153: =I156 -> 350 | K153: =J156 -> 390 | L153: 410 | M153: 450 | N153: 520 | O153: 630 | P153: 710 | Q153: 731.380415 | R153: 753.2111837 | S153: 775.5318143 | T153: 798.3839984 | U153: 821.8117444 | V153: 845.8615196 | W153: 870.5824002 | X153: 896.0262308 | Y153: 922.247793 | Z153: 949.304984 | AA153: 977.2590067
C154: Add Depreciation Expense | J154: =J150 -> 32 | K154: =K150 -> 35 | L154: 38 | M154: 42 | N154: 46 | O154: 50 | P154: 49.880415 | Q154: 50.88509368 | R154: 51.97987526 | S154: 53.16971861 | T154: 54.45988679 | U154: 55.85596529 | V154: 57.36388122 | W154: 58.98992373 | X154: 60.74076565 | Y154: 62.62348639 | Z154: 64.64559625 | AA154: 66.81506219
C155: Less Retirement | I155: =I146 -> 0 | J155: =J146 -> 15 | K155: 19.5 | L155: 19.65 | M155: 20.25 | N155: 22.5 | O155: 26.25 | P155: 28.5 | Q155: 29.054325 | R155: 29.65924462 | S155: 30.31753453 | T155: 31.03214079 | U155: 31.80619012 | V155: 32.6430006 | W155: 33.54609312 | X155: 34.5192035 | Y155: 35.56629533 | Z155: 36.69157358 | AA155: 37.89949902
C156: Closing Balance | I156: =IF(I6,-I16,I153+I154-I155) -> 350 | J156: 390 | K156: 410 | L156: 450 | M156: 520 | N156: 630 | O156: 710 | P156: 731.380415 | Q156: 753.2111837 | R156: 775.5318143 | S156: 798.3839984 | T156: 821.8117444 | U156: 845.8615196 | V156: 870.5824002 | W156: 896.0262308 | X156: 922.247793 | Y156: 949.304984 | Z156: 977.2590067 | AA156: 1006.17457
B158: EBITDA | I158: =I127 -> 200 | J158: =J127 -> 177 | K158: 177 | L158: 184 | M158: 233 | N158: 224 | O158: 230 | P158: 251.75 | Q158: 269.52355 | R158: 288.523626 | S158: 305.8350436 | T158: 324.1851462 | U158: 343.6362549 | V158: 364.2544302 | W158: 386.1096961 | X158: 409.2762778 | Y158: 433.8328545 | Z158: 459.8628258 | AA158: 487.4545953
B159: Less CAPEX | I159: =I132 -> 60 | J159: =J132 -> 62 | K159: 20 | L159: 35 | M159: 80 | N159: 60 | O159: 70 | P159: 65.455 | Q159: 69.3823 | R159: 73.545238 | S159: 77.95795228 | T159: 82.63542942 | U159: 87.59355518 | V159: 92.84916849 | W159: 98.4201186 | X159: 104.3253257 | Y159: 110.5848453 | Z159: 117.219936 | AA159: 124.2531321
B160: Less WC Change | I160: =I138 -> 0 | J160: =J138 -> 10 | K160: 90 | L160: -50 | M160: 10 | N160: 10 | O160: 10 | P160: -33.285 | Q160: 14.8029 | R160: 15.691074 | S160: 16.63253844 | T160: 17.63049075 | U160: 18.68832019 | V160: 19.8096194 | W160: 20.99819657 | X160: 22.25808836 | Y160: 23.59357366 | Z160: 25.00918808 | AA160: 26.50973937
B162: EBIT | I162: =I158-I150 -> 170 | J162: =J158-J150 -> 145 | K162: 142 | L162: 146 | M162: 191 | N162: 178 | O162: 180 | P162: =P158-P150 -> 201.869585 | Q162: 218.6384563 | R162: 236.5437507 | S162: 252.665325 | T162: 269.7252594 | U162: 287.7802897 | V162: 306.890549 | W162: 327.1197723 | X162: 348.5355122 | Y162: 371.2093681 | Z162: 395.2172295 | AA162: 420.6395331
B163: Less EBIT*Tax Rate | I163: =I162*I92 -> 33.37423313 | J163: 27.2556391 | K163: 25.62406015 | L163: 29.81690141 | M163: 39.8342246 | N163: 34.55294118 | O163: 32.33532934 | P163: 40.373917 | Q163: 43.72769127 | R163: 47.30875015 | S163: 50.53306499 | T163: 53.94505188 | U163: 57.55605793 | V163: 61.3781098 | W163: 65.42395446 | X163: 69.70710243 | Y163: 74.24187362 | Z163: 79.0434459 | AA163: 84.12790662
B164: Free Cash Flows | I164: =I158-I159-I160-I163 -> 106.6257669 | J164: 77.7443609 | K164: 41.37593985 | L164: 169.1830986 | M164: 103.1657754 | N164: 119.4470588 | O164: 117.6646707 | P164: 179.206083 | Q164: 141.6106587 | R164: 151.9785639 | S164: 160.7114878 | T164: 169.9741741 | U164: 179.7983216 | V164: 190.2175325 | W164: 201.2674264 | X164: 212.9857613 | Y164: 225.4125619 | Z164: 238.5902558 | AA164: 252.5638172
A166: Other Assets & Income NOT in EBITDA
B167: Other Income | I167: =IF(I6,I34,H167) -> 15 | J167: 15 | K167: 15 | L167: 15 | M167: 15 | N167: 15 | O167: 15 | P167: 15 | Q167: 15 | R167: 15 | S167: 15 | T167: 15 | U167: 15 | V167: 15 | W167: 15 | X167: 15 | Y167: 15 | Z167: 15 | AA167: 15
B168: Invesment property | I168: =IF(I6,I18,H168) -> 70 | J168: 70 | K168: 70 | L168: 70 | M168: 70 | N168: 70 | O168: 70 | P168: 70 | Q168: 70 | R168: 70 | S168: 70 | T168: 70 | U168: 70 | V168: 70 | W168: 70 | X168: 70 | Y168: 70 | Z168: 70 | AA168: 70
A170: Financing
B171: Cash Balance
B172: Opening Balance | I172: =H175 -> 0 | J172: =I175 -> 100 | K172: =J175 -> 120 | L172: 30 | M172: 60 | N172: 80 | O172: 110 | P172: 130 | Q172: 130 | R172: 130 | S172: 130 | T172: 130 | U172: 130 | V172: 142.6776605 | W172: 243.2599229 | X172: 349.3843174 | Y172: 461.3928043 | Z172: 579.6477393 | AA172: 704.5331
B173: Less : Reduction in Cash - Negative CF | E173: > from CF down below | I173: =I220 -> 0 | J173: =J220 -> 0 | K173: 0 | L173: 0 | M173: 0 | N173: 0 | O173: 0 | P173: 0 | Q173: 0 | R173: 0 | S173: 0 | T173: 0 | U173: 0 | V173: 0 | W173: 0 | X173: 0 | Y173: 0 | Z173: 0 | AA173: 0
B174: Add : Addition to Cash - Positive CF | E174: > from CF down below | I174: =I223 -> 76 | J174: =J223 -> 0 | K174: 0 | L174: 0 | M174: 0 | N174: 0 | O174: 0 | P174: 0 | Q174: 0 | R174: 0 | S174: 0 | T174: 0 | U174: 12.67766048 | V174: 100.5822624 | W174: 106.1243945 | X174: 112.0084869 | Y174: 118.2549351 | Z174: 124.8853607 | AA174: 131.9226843
B175: Closing Balance | I175: =IF(I6,I13,I172-I173+I174) -> 100 | J175: 120 | K175: 30 | L175: 60 | M175: 80 | N175: 110 | O175: 130 | P175: 130 | Q175: 130 | R175: 130 | S175: 130 | T175: 130 | U175: 142.6776605 | V175: 243.2599229 | W175: 349.3843174 | X175: 461.3928043 | Y175: 579.6477393 | Z175: 704.5331 | AA175: 836.4557843
B177: Interest Income Rate | I177: =I102 -> 0.02 | J177: 0.008333333333 | K177: 0.1 | L177: 0.06666666667 | M177: 0.0375 | N177: 0.01818181818 | O177: 0.01538461538 | P177: 0.02 | Q177: 0.02 | R177: 0.02 | S177: 0.02 | T177: 0.02 | U177: 0.02 | V177: 0.02 | W177: 0.02 | X177: 0.02 | Y177: 0.02 | Z177: 0.02 | AA177: 0.02
B178: Interest Income | I178: =IF(I6,I35,I177*I172) -> 2 | J178: 1 | K178: 3 | L178: 4 | M178: 3 | N178: 2 | O178: 2 | P178: 2.6 | Q178: 2.6 | R178: 2.6 | S178: 2.6 | T178: 2.6 | U178: 2.6 | V178: 2.85355321 | W178: 4.865198458 | X178: 6.987686348 | Y178: 9.227856086 | Z178: 11.59295479 | AA178: 14.090662
B180: Debt Balance
B181: Opening Balance | I181: =H184 -> 0 | J181: =I184 -> 400 | K181: 500 | L181: 600 | M181: 550 | N181: 450 | O181: 500 | P181: 510 | Q181: 399.1841842 | R181: 328.6702519 | S181: 251.8257743 | T181: 169.5630091 | U181: 81.52243014 | V181: 0 | W181: 0 | X181: 0 | Y181: 0 | Z181: 0 | AA181: 0
B182: Less : Reduction in Debt - Positive CF | E182: > from CF down below | I182: =I221 -> 0 | J182: =J221 -> 54 | K182: 19 | L182: 151 | M182: 83 | N182: 93 | O182: 77 | P182: 110.8158158 | Q182: 70.51393229 | R182: 76.84447757 | S182: 82.26276528 | T182: 88.04057891 | U182: 81.52243014 | V182: 0 | W182: 0 | X182: 0 | Y182: 0 | Z182: 0 | AA182: 0
B183: Add : New Debt - Negative CF | E183: > from CF down below | I183: =I224 -> 0 | J183: =J224 -> 0 | K183: 0 | L183: 0 | M183: 0 | N183: 0 | O183: 0 | P183: 0 | Q183: 0 | R183: 0 | S183: 0 | T183: 0 | U183: 0 | V183: 0 | W183: 0 | X183: 0 | Y183: 0 | Z183: 0 | AA183: 0
B184: Closing Balance | I184: =IF(I6,I22,I181-I182+I183) -> 400 | J184: 500 | K184: 600 | L184: 550 | M184: 450 | N184: 500 | O184: 510 | P184: 399.1841842 | Q184: 328.6702519 | R184: 251.8257743 | S184: 169.5630091 | T184: 81.52243014 | U184: 0 | V184: 0 | W184: 0 | X184: 0 | Y184: 0 | Z184: 0 | AA184: 0
B186: Interest Expense Rate | I186: =I106 -> 0.06 | J186: 0.056 | K186: 0.045 | L186: 0.04181818182 | M186: 0.04888888889 | N186: 0.05 | O186: 0.05882352941 | P186: 0.05 | Q186: 0.05 | R186: 0.05 | S186: 0.05 | T186: 0.05 | U186: 0.05 | V186: 0.05 | W186: 0.05 | X186: 0.05 | Y186: 0.05 | Z186: 0.05 | AA186: 0.05
B187: Interest Expense | I187: =IF(I6,I36,I186*I181) -> 24 | J187: 28 | K187: 27 | L187: 23 | M187: 22 | N187: 25 | O187: 30 | P187: 25.5 | Q187: 19.95920921 | R187: 16.4335126 | S187: 12.59128872 | T187: 8.478150453 | U187: 4.076121507 | V187: 0 | W187: 0 | X187: 0 | Y187: 0 | Z187: 0 | AA187: 0
A189: Profit & Loss
B190: Revenues | I190: =I117 -> 800 | J190: =J117 -> 850 | K190: 760 | L190: 800 | M190: 880 | N190: 920 | O190: 950 | P190: 1007 | Q190: 1067.42 | R190: 1131.4652 | S190: 1199.353112 | T190: 1271.314299 | U190: 1347.593157 | V190: 1428.448746 | W190: 1514.155671 | X190: 1605.005011 | Y190: 1701.305312 | Z190: 1803.38363 | AA190: 1911.586648
B191: Less : COGS | I191: =I121 -> 570 | J191: =J121 -> 638 | K191: 555 | L191: 582 | M191: 608 | N191: 654 | O191: 670 | P191: 704.9 | Q191: 747.194 | R191: 792.02564 | S191: 839.5471784 | T191: 889.9200091 | U191: 943.3152097 | V191: 999.9141222 | W191: 1059.90897 | X191: 1123.503508 | Y191: 1190.913718 | Z191: 1262.368541 | AA191: 1338.110654
B192: Less : Admin Cost | I192: =I125 -> 30 | J192: =J125 -> 35 | K192: 28 | L192: 34 | M192: 39 | N192: 42 | O192: 50 | P192: 50.35 | Q192: 50.70245 | R192: 50.915934 | S192: 53.97089004 | T192: 57.20914344 | U192: 60.64169205 | V192: 64.28019357 | W192: 68.13700519 | X192: 72.2252255 | Y192: 76.55873903 | Z192: 81.15226337 | AA192: 86.02139917
C193: EBITDA | I193: =I190-I191-I192 -> 200 | J193: =J190-J191-J192 -> 177 | K193: 177 | L193: 184 | M193: 233 | N193: 224 | O193: 230 | P193: 251.75 | Q193: 269.52355 | R193: 288.523626 | S193: 305.8350436 | T193: 324.1851462 | U193: 343.6362549 | V193: 364.2544302 | W193: 386.1096961 | X193: 409.2762778 | Y193: 433.8328545 | Z193: 459.8628258 | AA193: 487.4545953
B194: Less : DA | I194: =I150 -> 30 | J194: =J150 -> 32 | K194: 35 | L194: 38 | M194: 42 | N194: 46 | O194: 50 | P194: 49.880415 | Q194: 50.88509368 | R194: 51.97987526 | S194: 53.16971861 | T194: 54.45988679 | U194: 55.85596529 | V194: 57.36388122 | W194: 58.98992373 | X194: 60.74076565 | Y194: 62.62348639 | Z194: 64.64559625 | AA194: 66.81506219
C195: EBIT | I195: =I193-I194 -> 170 | J195: =J193-J194 -> 145 | K195: 142 | L195: 146 | M195: 191 | N195: 178 | O195: 180 | P195: 201.869585 | Q195: 218.6384563 | R195: 236.5437507 | S195: 252.665325 | T195: 269.7252594 | U195: 287.7802897 | V195: 306.890549 | W195: 327.1197723 | X195: 348.5355122 | Y195: 371.2093681 | Z195: 395.2172295 | AA195: 420.6395331
B196: Add : Other Income | I196: =I167 -> 15 | J196: =J167 -> 15 | K196: 15 | L196: 15 | M196: 15 | N196: 15 | O196: 15 | P196: 15 | Q196: 15 | R196: 15 | S196: 15 | T196: 15 | U196: 15 | V196: 15 | W196: 15 | X196: 15 | Y196: 15 | Z196: 15 | AA196: 15
B197: Less : Interest Expenses | I197: =I187 -> 24 | J197: =J187 -> 28 | K197: 27 | L197: 23 | M197: 22 | N197: 25 | O197: 30 | P197: 25.5 | Q197: 19.95920921 | R197: 16.4335126 | S197: 12.59128872 | T197: 8.478150453 | U197: 4.076121507 | V197: 0 | W197: 0 | X197: 0 | Y197: 0 | Z197: 0 | AA197: 0
B198: Add : Interest Income | I198: =I178 -> 2 | J198: =J178 -> 1 | K198: 3 | L198: 4 | M198: 3 | N198: 2 | O198: 2 | P198: 2.6 | Q198: 2.6 | R198: 2.6 | S198: 2.6 | T198: 2.6 | U198: 2.6 | V198: 2.85355321 | W198: 4.865198458 | X198: 6.987686348 | Y198: 9.227856086 | Z198: 11.59295479 | AA198: 14.090662
C199: EBT | I199: =I195+I196-I197+I198 -> 163 | J199: =J195+J196-J197+J198 -> 133 | K199: 133 | L199: 142 | M199: 187 | N199: 170 | O199: 167 | P199: 193.969585 | Q199: 216.2792471 | R199: 237.7102381 | S199: 257.6740362 | T199: 278.8471089 | U199: 301.3041681 | V199: 324.7441022 | W199: 346.9849708 | X199: 370.5231985 | Y199: 395.4372242 | Z199: 421.8101843 | AA199: 449.7301951
B200: Tax Rate | I200: =I92 -> 0.1963190184 | J200: 0.1879699248 | K200: 0.1804511278 | L200: 0.2042253521 | M200: 0.2085561497 | N200: 0.1941176471 | O200: 0.1796407186 | P200: 0.2 | Q200: 0.2 | R200: 0.2 | S200: 0.2 | T200: 0.2 | U200: 0.2 | V200: 0.2 | W200: 0.2 | X200: 0.2 | Y200: 0.2 | Z200: 0.2 | AA200: 0.2
B201: Less : Taxes | E201: > need to cal | I201: =I200*I199 -> 32 | J201: =J200*J199 -> 25 | K201: 24 | L201: 29 | M201: 39 | N201: 33 | O201: 30 | P201: 38.793917 | Q201: 43.25584942 | R201: 47.54204763 | S201: 51.53480725 | T201: 55.76942179 | U201: 60.26083363 | V201: 64.94882045 | W201: 69.39699416 | X201: 74.1046397 | Y201: 79.08744484 | Z201: 84.36203686 | AA201: 89.94603902
C202: Net Income | I202: =I199-I201 -> 131 | J202: =J199-J201 -> 108 | K202: 109 | L202: 113 | M202: 148 | N202: 137 | O202: 137 | P202: 155.175668 | Q202: 173.0233977 | R202: 190.1681905 | S202: 206.139229 | T202: 223.0776871 | U202: 241.0433345 | V202: 259.7952818 | W202: 277.5879766 | X202: 296.4185588 | Y202: 316.3497793 | Z202: 337.4481474 | AA202: 359.7841561
B204: Actual Net Income | I204: =I39 -> 131 | J204: 108 | K204: 109 | L204: 113 | M204: 148 | N204: 137 | O204: 137 | P204: 0 | Q204: 0 | R204: 0 | S204: 0 | T204: 0 | U204: 0 | V204: 0 | W204: 0 | X204: 0 | Y204: 0 | Z204: 0 | AA204: 0
F205: =SUMIF(6:6,TRUE,205:205)=0 -> TRUE | G205: Test | I205: =I202-I204 -> 0 | J205: =J202-J204 -> 0 | K205: 0 | L205: 0 | M205: 0 | N205: 0 | O205: 0 | P205: 155.175668 | Q205: 173.0233977 | R205: 190.1681905 | S205: 206.139229 | T205: 223.0776871 | U205: 241.0433345 | V205: 259.7952818 | W205: 277.5879766 | X205: 296.4185588 | Y205: 316.3497793 | Z205: 337.4481474 | AA205: 359.7841561
A207: Cash Flow | F207: > starting from EBITDA (direct method) for modelling
B208: Direct Method
B209: EBITDA | I209: =I127 -> 200 | J209: =J127 -> 177 | K209: 177 | L209: 184 | M209: 233 | N209: 224 | O209: 230 | P209: 251.75 | Q209: 269.52355 | R209: 288.523626 | S209: 305.8350436 | T209: 324.1851462 | U209: 343.6362549 | V209: 364.2544302 | W209: 386.1096961 | X209: 409.2762778 | Y209: 433.8328545 | Z209: 459.8628258 | AA209: 487.4545953
B210: Less : WC Changes | I210: =I138 -> 0 | J210: =J138 -> 10 | K210: 90 | L210: -50 | M210: 10 | N210: 10 | O210: 10 | P210: -33.285 | Q210: 14.8029 | R210: 15.691074 | S210: 16.63253844 | T210: 17.63049075 | U210: 18.68832019 | V210: 19.8096194 | W210: 20.99819657 | X210: 22.25808836 | Y210: 23.59357366 | Z210: 25.00918808 | AA210: 26.50973937
B211: Less : Tax Paid | I211: =I201 -> 32 | J211: =J201 -> 25 | K211: 24 | L211: 29 | M211: 39 | N211: 33 | O211: 30 | P211: 38.793917 | Q211: 43.25584942 | R211: 47.54204763 | S211: 51.53480725 | T211: 55.76942179 | U211: 60.26083363 | V211: 64.94882045 | W211: 69.39699416 | X211: 74.1046397 | Y211: 79.08744484 | Z211: 84.36203686 | AA211: 89.94603902
B212: Operating CF | I212: =I209-I210-I211 -> 168 | J212: =J209-J210-J211 -> 142 | K212: 63 | L212: 205 | M212: 184 | N212: 181 | O212: 190 | P212: 246.241083 | Q212: 211.4648006 | R212: 225.2905044 | S212: 237.6676979 | T212: 250.7852336 | U212: 264.6871011 | V212: 279.4959904 | W212: 295.7145053 | X212: 312.9135498 | Y212: 331.151836 | Z212: 350.4916008 | AA212: 370.9988169
B213: Less : CAPEX | I213: =I132 -> 60 | J213: =J132 -> 62 | K213: 20 | L213: 35 | M213: 80 | N213: 60 | O213: 70 | P213: 65.455 | Q213: 69.3823 | R213: 73.545238 | S213: 77.95795228 | T213: 82.63542942 | U213: 87.59355518 | V213: 92.84916849 | W213: 98.4201186 | X213: 104.3253257 | Y213: 110.5848453 | Z213: 117.219936 | AA213: 124.2531321
B214: Add : Other Income | I214: =I167 -> 15 | J214: =J167 -> 15 | K214: 15 | L214: 15 | M214: 15 | N214: 15 | O214: 15 | P214: 15 | Q214: 15 | R214: 15 | S214: 15 | T214: 15 | U214: 15 | V214: 15 | W214: 15 | X214: 15 | Y214: 15 | Z214: 15 | AA214: 15
C215: Net CF | E215: > real CF (not FXF yet) | I215: =I212-I213+I214 -> 123 | J215: =J212-J213+J214 -> 95 | K215: 58 | L215: 185 | M215: 119 | N215: 136 | O215: 135 | P215: 195.786083 | Q215: 157.0825006 | R215: 166.7452664 | S215: 174.7097456 | T215: 183.1498042 | U215: 192.0935459 | V215: 201.6468219 | W215: 212.2943867 | X215: 223.588224 | Y215: 235.5669907 | Z215: 248.2716648 | AA215: 261.7456848
B216: Less : Interest Expense | I216: =I187 -> 24 | J216: =J187 -> 28 | K216: 27 | L216: 23 | M216: 22 | N216: 25 | O216: 30 | P216: 25.5 | Q216: 19.95920921 | R216: 16.4335126 | S216: 12.59128872 | T216: 8.478150453 | U216: 4.076121507 | V216: 0 | W216: 0 | X216: 0 | Y216: 0 | Z216: 0 | AA216: 0
B217: Add : Interest Income | I217: =I178 -> 2 | J217: =J178 -> 1 | K217: 3 | L217: 4 | M217: 3 | N217: 2 | O217: 2 | P217: 2.6 | Q217: 2.6 | R217: 2.6 | S217: 2.6 | T217: 2.6 | U217: 2.6 | V217: 2.85355321 | W217: 4.865198458 | X217: 6.987686348 | Y217: 9.227856086 | Z217: 11.59295479 | AA217: 14.090662
B218: Less : Dividend | E218: > need to cal | I218: =MAX(0,I202*I110) -> 25 | J218: 14 | K218: 15 | L218: 15 | M218: 17 | N218: 20 | O218: 30 | P218: 62.0702672 | Q218: 69.20935908 | R218: 76.06727621 | S218: 82.4556916 | T218: 89.23107486 | U218: 96.41733381 | V218: 103.9181127 | W218: 111.0351906 | X218: 118.5674235 | Y218: 126.5399117 | Z218: 134.979259 | AA218: 143.9136624
C219: Net CF | I219: =I215-I216+I217-I218 -> 76 | J219: =J215-J216+J217-J218 -> 54 | K219: 19 | L219: 151 | M219: 83 | N219: 93 | O219: 77 | P219: 110.8158158 | Q219: 70.51393229 | R219: 76.84447757 | S219: 82.26276528 | T219: 88.04057891 | U219: 94.20009063 | V219: 100.5822624 | W219: 106.1243945 | X219: 112.0084869 | Y219: 118.2549351 | Z219: 124.8853607 | AA219: 131.9226843
B220: Add : If Negative - reducing existing cash | I220: =MIN(I172,MAX(-I219,0)) -> 0 | J220: =MIN(J172,MAX(-J219,0)) -> 0 | K220: 0 | L220: 0 | M220: 0 | N220: 0 | O220: 0 | P220: 0 | Q220: 0 | R220: 0 | S220: 0 | T220: 0 | U220: 0 | V220: 0 | W220: 0 | X220: 0 | Y220: 0 | Z220: 0 | AA220: 0
B221: Less : If Positive - reducing debt | I221: =MIN(I181,MAX(I219,0)) -> 0 | J221: =MIN(J181,MAX(J219,0)) -> 54 | K221: 19 | L221: 151 | M221: 83 | N221: 93 | O221: 77 | P221: 110.8158158 | Q221: 70.51393229 | R221: 76.84447757 | S221: 82.26276528 | T221: 88.04057891 | U221: 81.52243014 | V221: 0 | W221: 0 | X221: 0 | Y221: 0 | Z221: 0 | AA221: 0
C222: CF after reduction in Cash and Debt | I222: =I219+I220-I221 -> 76 | J222: =J219+J220-J221 -> 0 | K222: 0 | L222: 0 | M222: 0 | N222: 0 | O222: 0 | P222: 0 | Q222: 0 | R222: 0 | S222: 0 | T222: 0 | U222: 12.67766048 | V222: 100.5822624 | W222: 106.1243945 | X222: 112.0084869 | Y222: 118.2549351 | Z222: 124.8853607 | AA222: 131.9226843
B223: If Positive - add to Cash Balance | E223: > no max limit for positive cash balance | I223: =MAX(I222,0) -> 76 | J223: =MAX(J222,0) -> 0 | K223: 0 | L223: 0 | M223: 0 | N223: 0 | O223: 0 | P223: 0 | Q223: 0 | R223: 0 | S223: 0 | T223: 0 | U223: 12.67766048 | V223: 100.5822624 | W223: 106.1243945 | X223: 112.0084869 | Y223: 118.2549351 | Z223: 124.8853607 | AA223: 131.9226843
B224: If Negative - add to Debt Balance (Borrowing) | I224: =MAX(-I222,0) -> 0 | J224: =MAX(-J222,0) -> 0 | K224: 0 | L224: 0 | M224: 0 | N224: 0 | O224: 0 | P224: 0 | Q224: 0 | R224: 0 | S224: 0 | T224: 0 | U224: 0 | V224: 0 | W224: 0 | X224: 0 | Y224: 0 | Z224: 0 | AA224: 0
A227: Balance Sheet
B228: Common Equity Balance | E228: > need to complete Dividend and NI first
B229: Opening Balance | I229: =H232 -> 0 | J229: =I232 -> 620 | K229: 810 | L229: 700 | M229: 730 | N229: 940 | O229: 1070 | P229: 1160 | Q229: 1253.105401 | R229: 1356.919439 | S229: 1471.020354 | T229: 1594.703891 | U229: 1728.550503 | V229: 1873.176504 | W229: 2029.053673 | X229: 2195.606459 | Y229: 2373.457594 | Z229: 2563.267462 | AA229: 2765.736351
B230: Add : Net Income | I230: =I202 -> 131 | J230: =J202 -> 108 | K230: 109 | L230: 113 | M230: 148 | N230: 137 | O230: 137 | P230: 155.175668 | Q230: 173.0233977 | R230: 190.1681905 | S230: 206.139229 | T230: 223.0776871 | U230: 241.0433345 | V230: 259.7952818 | W230: 277.5879766 | X230: 296.4185588 | Y230: 316.3497793 | Z230: 337.4481474 | AA230: 359.7841561
